Workbook

Sheet COVER
C4: Model | E4: Climatescope 2021: Model
C6: Date | E6: 2021-12-15
C8: Contact | E8: Ulimmeh Ezekiel, Luiza Demoro, Sofia Maia
E9: climatescope@bloomberg.net
C11: Description | E11: Climatescope is a unique market assessment, interactive report and index that evaluates the investment conditions for clean energy, electric vehicles and buildings in developing and developed economies and evaluates their ability to attract capital for low-carbon energy sources while building a greener economy. It also provides a snapshot of where clean energy policy and finance stand today and a guide to what can happen in the future. This year, BNEF gathered detailed information on 107 emerging markets and 29 developed nations. After surveying emerging markets exclusively for nine years, Climatescope 2021 expanded to include developed economies to provide greater context on how emerging markets are faring in transitioning to lower-carbon energy.
E12: http://global-climatescope.org/methodology
C13: Contents
C14: Ranking | E14: Rank Climatescope Scores or indicator data for all markets.
C15: Details | E15: View detailed information on clean energy markets.
C18: Copyright and Disclaimer | E18: © Bloomberg Finance L.P. 2019. This publication is the copyright of Bloomberg Finance L.P. in connection with BloombergNEF. No portion of this document may be photocopied, reproduced, scanned into an electronic system or transmitted, forwarded or distributed in any way without prior consent of BloombergNEF. The BloombergNEF ("BNEF"), service/information is derived from selected public sources. Bloomberg Finance L.P. and its affiliates, in providing the service/information, believe that the information it uses comes from reliable sources, but do not guarantee the accuracy or completeness of this information, which is subject to change without notice, and nothing in this document shall be construed as such a guarantee. The statements in this service/document reflect the current judgment of the authors of the relevant articles or features, and do not necessarily reflect the opinion of Bloomberg Finance L.P., Bloomberg L.P. or any of their affiliates (“Bloomberg”). Bloomberg disclaims any liability arising from use of this document, its contents and/or this service. Nothing herein shall constitute or be construed as an offering of financial instruments or as investment advice or recommendations by Bloomberg of an investment or other strategy (e.g., whether or not to “buy”, “sell”, or “hold” an investment). The information available through this service is not based on consideration of a subscriber’s individual circumstances and should not be considered as information sufficient upon which to base an investment decision. You should determine on your own whether you agree with the content. This service should not be construed as tax or accounting advice or as a service designed to facilitate any subscriber’s compliance with its tax, accounting or other legal obligations. Employees involved in this service may hold positions in the companies mentioned in the services/information. The data included in these materials are for illustrative purposes only. The BLOOMBERG TERMINAL service and Bloomberg data products (the “Services”) are owned and distributed by Bloomberg Finance L.P. (“BFLP”) except (i) in Argentina, Australia and certain jurisdictions in the Pacific islands, Bermuda, China, India, Japan, Korea and New Zealand, where Bloomberg L.P. and its subsidiaries (“BLP”) distribute these products, and (ii) in Singapore and the jurisdictions serviced by Bloomberg’s Singapore office, where a subsidiary of BFLP distributes these products. BLP provides BFLP and its subsidiaries with global marketing and operational support and service. Certain features, functions, products and services are available only to sophisticated investors and only where permitted. BFLP, BLP and their affiliates do not guarantee the accuracy of prices or other information in the Services. Nothing in the Services shall constitute or be construed as an offering of financial instruments by BFLP, BLP or their affiliates, or as investment advice or recommendations by BFLP, BLP or their affiliates of an investment strategy or whether or not to “buy”, “sell” or “hold” an investment. Information available via the Services should not be considered as information sufficient upon which to base an investment decision. The following are trademarks and service marks of BFLP, a Delaware limited partnership, or its subsidiaries: BLOOMBERG, BLOOMBERG ANYWHERE, BLOOMBERG MARKETS, BLOOMBERG NEWS, BLOOMBERG PROFESSIONAL, BLOOMBERG TERMINAL and BLOOMBERG.COM. Absence of any trademark or service mark from this list does not waive Bloomberg’s intellectual property rights in that name, mark or logo. All rights reserved. © 2021 Bloomberg.

Sheet RANKING
F1: =PROPER("CLIMATESCOPE " & int_Year+1 & ": GLOBAL RANKING") -> Climatescope 2021: Global Ranking
B3: Rank Variable | E3: Climatescope Score | K3: Last Run | L3: 2021-12-09T15:47:21 | O3: Custom Weights - New!
B4: Region | E4: Developing Markets | K4: Runtime (Secs) | L4: 0.48046875 | O4: Sector | P4: =SUM(P5:P7) -> 1 | Q4: Parameter | R4: =SUM(R5:R7) -> 1
B5: Sector Weight - New! | E5: Power | O5: Power | P5: 0.6 | Q5: Fundamentals | R5: 0.1
B6: Parameter Weight - New! | E6: Default | O6: Transport | P6: 0.1 | Q6: Opportunities | R6: 0.1
O7: Buildings | P7: 0.3 | Q7: Experience | R7: 0.8
B8: =SUBSTITUTE(str_Region & " Ranking", "Countries ", "") -> Developing Markets Ranking | H8: Data Visualization
B9: Rank | C9: Region | D9: Data* | E9: Geography | F9: =DEFN!$B$435 -> Climatescope Score (Decimal) | H9: 107
B10: =IF(F10="", "", IFERROR(RANK(F10, $F$10:$F$159), "")) -> 1 | C10: Asia-Pacific | D10: =IF(E10="", "", HYPERLINK("#", "View Details")) -> View Details | E10: India | F10: 2.547811381 | H10: =IF(E10="", "", F10) -> 2.547811381
B11: 2 | C11: Americas | D11: View Details | E11: Chile | F11: 2.501644891 | H11: =IF(E11="", "", F11) -> 2.501644891
B12: 3 | C12: Asia-Pacific | D12: View Details | E12: Mainland China | F12: 2.496732484 | H12: 2.496732484
B13: 4 | C13: Europe | D13: View Details | E13: Croatia | F13: 2.426194125 | H13: 2.426194125
B14: 5 | C14: Asia-Pacific | D14: View Details | E14: Vietnam | F14: 2.40709593 | H14: 2.40709593
B15: 6 | C15: Asia-Pacific | D15: View Details | E15: Taiwan | F15: 2.401515031 | H15: 2.401515031
B16: 7 | C16: Europe | D16: View Details | E16: North Macedonia | F16: 2.311751684 | H16: 2.311751684
B17: 8 | C17: Americas | D17: View Details | E17: Brazil | F17: 2.293743529 | H17: 2.293743529
B18: 9 | C18: Middle East & Africa | D18: View Details | E18: Nigeria | F18: 2.242903287 | H18: 2.242903287
B19: 10 | C19: Middle East & Africa | D19: View Details | E19: South Africa | F19: 2.193383411 | H19: 2.193383411
B20: 11 | C20: Europe | D20: View Details | E20: Albania | F20: 2.174893873 | H20: 2.174893873
B21: 12 | C21: Europe | D21: View Details | E21: Turkey | F21: 2.171476188 | H21: 2.171476188
B22: 13 | C22: Americas | D22: View Details | E22: Colombia | F22: 2.161353037 | H22: 2.161353037
B23: 14 | C23: Europe | D23: View Details | E23: Ukraine | F23: 2.143365177 | H23: 2.143365177
B24: 15 | C24: Middle East & Africa | D24: View Details | E24: Oman | F24: 2.128339364 | H24: 2.128339364
B25: 16 | C25: Americas | D25: View Details | E25: Argentina | F25: 2.117116108 | H25: 2.117116108
B26: 17 | C26: Middle East & Africa | D26: View Details | E26: Namibia | F26: 2.086371714 | H26: 2.086371714
B27: =IF(F27="", "", IFERROR(RANK(F27, $F$10:$F$159), "")) -> 18 | C27: Middle East & Africa | D27: View Details | E27: Jordan | F27: 2.084877022 | H27: 2.084877022
B28: 19 | C28: Middle East & Africa | D28: View Details | E28: United Arab Emirates | F28: 2.081698394 | H28: 2.081698394
B29: 20 | C29: Asia-Pacific | D29: View Details | E29: Philippines | F29: 2.068770761 | H29: 2.068770761
B30: 21 | C30: Middle East & Africa | D30: View Details | E30: Senegal | F30: 2.066037758 | H30: 2.066037758
B31: 22 | C31: Americas | D31: View Details | E31: Dominican Republic | F31: 2.056044138 | H31: 2.056044138
B32: 23 | C32: Americas | D32: View Details | E32: Panama | F32: 2.049207965 | H32: 2.049207965
B33: 24 | C33: Asia-Pacific | D33: View Details | E33: Bangladesh | F33: 2.046882325 | H33: 2.046882325
B34: 25 | C34: Middle East & Africa | D34: View Details | E34: Kenya | F34: 2.040782637 | H34: 2.040782637
B35: 26 | C35: Americas | D35: View Details | E35: Peru | F35: 2.016966625 | H35: 2.016966625
B36: 27 | C36: Asia-Pacific | D36: View Details | E36: Mongolia | F36: 2.011776215 | H36: 2.011776215
B37: 28 | C37: Asia-Pacific | D37: View Details | E37: Cambodia | F37: 2.00312777 | H37: 2.00312777
B38: 29 | C38: Asia-Pacific | D38: View Details | E38: Armenia | F38: 1.992521139 | H38: 1.992521139
B39: 30 | C39: Asia-Pacific | D39: View Details | E39: Nepal | F39: 1.958407458 | H39: 1.958407458
B40: 31 | C40: Americas | D40: View Details | E40: Guatemala | F40: 1.954501689 | H40: 1.954501689
B41: 32 | C41: Americas | D41: View Details | E41: Honduras | F41: 1.930767634 | H41: 1.930767634
B42: 33 | C42: Middle East & Africa | D42: =IF(E42="", "", HYPERLINK("#", "View Details")) -> View Details | E42: Morocco | F42: 1.92464534 | H42: 1.92464534
B43: 34 | C43: Asia-Pacific | D43: View Details | E43: Singapore | F43: 1.885374124 | H43: 1.885374124
B44: 35 | C44: Asia-Pacific | D44: View Details | E44: Malaysia | F44: 1.879120181 | H44: 1.879120181
B45: 36 | C45: Asia-Pacific | D45: View Details | E45: Thailand | F45: 1.869754823 | H45: 1.869754823
B46: 37 | C46: Asia-Pacific | D46: View Details | E46: Kazakhstan | F46: 1.86954509 | H46: 1.86954509
B47: 38 | C47: Americas | D47: View Details | E47: Mexico | F47: 1.860751888 | H47: 1.860751888
B48: 39 | C48: Asia-Pacific | D48: View Details | E48: Pakistan | F48: 1.837840163 | H48: 1.837840163
B49: 40 | C49: Europe | D49: View Details | E49: Bulgaria | F49: 1.83718396 | H49: 1.83718396
B50: 41 | C50: Middle East & Africa | D50: View Details | E50: Tunisia | F50: 1.835751223 | H50: 1.835751223
B51: 42 | C51: Middle East & Africa | D51: View Details | E51: Ghana | F51: 1.828505641 | H51: 1.828505641
B52: 43 | C52: Middle East & Africa | D52: View Details | E52: Burkina Faso | F52: 1.826215939 | H52: 1.826215939
B53: 44 | C53: Americas | D53: View Details | E53: Jamaica | F53: 1.81965158 | H53: 1.81965158
B54: 45 | C54: Americas | D54: View Details | E54: El Salvador | F54: 1.815410993 | H54: 1.815410993
B55: 46 | C55: Asia-Pacific | D55: View Details | E55: Uzbekistan | F55: 1.788214438 | H55: 1.788214438
B56: 47 | C56: Middle East & Africa | D56: View Details | E56: Malawi | F56: 1.783070186 | H56: 1.783070186
B57: 48 | C57: Americas | D57: View Details | E57: Uruguay | F57: 1.779588439 | H57: 1.779588439
B58: 49 | C58: Europe | D58: View Details | E58: Russia | F58: 1.772953601 | H58: 1.772953601
B59: 50 | C59: Europe | D59: View Details | E59: Serbia | F59: 1.772485321 | H59: 1.772485321
B60: 51 | C60: Middle East & Africa | D60: View Details | E60: Cote d'Ivoire | F60: 1.767811576 | H60: 1.767811576
B61: 52 | C61: Middle East & Africa | D61: View Details | E61: Egypt | F61: 1.762266925 | H61: 1.762266925
B62: 53 | C62: Middle East & Africa | D62: View Details | E62: Saudi Arabia | F62: 1.760338771 | H62: 1.760338771
B63: 54 | C63: Middle East & Africa | D63: View Details | E63: Algeria | F63: 1.754896238 | H63: 1.754896238
B64: 55 | C64: Europe | D64: View Details | E64: Romania | F64: 1.752859694 | H64: 1.752859694
B65: 56 | C65: Middle East & Africa | D65: View Details | E65: Zambia | F65: 1.75071019 | H65: 1.75071019
B66: 57 | C66: Middle East & Africa | D66: View Details | E66: Angola | F66: 1.73089797 | H66: 1.73089797
B67: 58 | C67: Middle East & Africa | D67: View Details | E67: Benin | F67: 1.718677832 | H67: 1.718677832
B68: 59 | C68: Middle East & Africa | D68: View Details | E68: Madagascar | F68: 1.704010259 | H68: 1.704010259
B69: 60 | C69: Asia-Pacific | D69: View Details | E69: Myanmar | F69: 1.696451471 | H69: 1.696451471
B70: 61 | C70: Americas | D70: View Details | E70: Nicaragua | F70: 1.677776359 | H70: 1.677776359
B71: 62 | C71: Middle East & Africa | D71: View Details | E71: Mali | F71: 1.675785335 | H71: 1.675785335
B72: 63 | C72: Middle East & Africa | D72: View Details | E72: Tanzania | F72: 1.674195981 | H72: 1.674195981
B73: 64 | C73: Middle East & Africa | D73: View Details | E73: Zimbabwe | F73: 1.663301125 | H73: 1.663301125
B74: 65 | C74: Americas | D74: =IF(E74="", "", HYPERLINK("#", "View Details")) -> View Details | E74: Costa Rica | F74: 1.662957475 | H74: 1.662957475
B75: 66 | C75: Middle East & Africa | D75: View Details | E75: Sierra Leone | F75: 1.654572342 | H75: =IF(E75="", "", F75) -> 1.654572342
B76: 67 | C76: Middle East & Africa | D76: View Details | E76: Rwanda | F76: 1.633181193 | H76: 1.633181193
B77: 68 | C77: Asia-Pacific | D77: View Details | E77: Georgia | F77: 1.6254079 | H77: 1.6254079
B78: 69 | C78: Middle East & Africa | D78: View Details | E78: Uganda | F78: 1.61561197 | H78: 1.61561197
B79: 70 | C79: Americas | D79: View Details | E79: Ecuador | F79: 1.600098789 | H79: 1.600098789
B80: 71 | C80: Asia-Pacific | D80: View Details | E80: Sri Lanka | F80: 1.595530967 | H80: 1.595530967
B81: 72 | C81: Europe | D81: View Details | E81: Bosnia and Herzegovina | F81: 1.583833767 | H81: 1.583833767
B82: 73 | C82: Middle East & Africa | D82: View Details | E82: Ethiopia | F82: 1.552582574 | H82: 1.552582574
B83: 74 | C83: Europe | D83: View Details | E83: Moldova | F83: 1.551797071 | H83: 1.551797071
B84: 75 | C84: Middle East & Africa | D84: View Details | E84: Cameroon | F84: 1.526416549 | H84: 1.526416549
B85: 76 | C85: Americas | D85: View Details | E85: Bolivia | F85: 1.516164766 | H85: 1.516164766
B86: 77 | C86: Asia-Pacific | D86: View Details | E86: Indonesia | F86: 1.480769774 | H86: 1.480769774
B87: 78 | C87: Middle East & Africa | D87: View Details | E87: Somalia | F87: 1.464280965 | H87: 1.464280965
B88: 79 | C88: Middle East & Africa | D88: View Details | E88: Iraq | F88: 1.384852507 | H88: 1.384852507
B89: 80 | C89: Europe | D89: View Details | E89: Belarus | F89: 1.374827333 | H89: 1.374827333
B90: 81 | C90: Middle East & Africa | D90: View Details | E90: Botswana | F90: 1.350116348 | H90: 1.350116348
B91: =IF(F91="", "", IFERROR(RANK(F91, $F$10:$F$159), "")) -> 82 | C91: Middle East & Africa | D91: View Details | E91: Palestinian Authority | F91: 1.339516821 | H91: 1.339516821
B92: 83 | C92: Middle East & Africa | D92: View Details | E92: Lebanon | F92: 1.285956371 | H92: 1.285956371
B93: 84 | C93: Middle East & Africa | D93: View Details | E93: Mozambique | F93: 1.234917957 | H93: 1.234917957
B94: 85 | C94: Asia-Pacific | D94: View Details | E94: Laos | F94: 1.218822904 | H94: 1.218822904
B95: 86 | C95: Middle East & Africa | D95: View Details | E95: Qatar | F95: 1.192454199 | H95: 1.192454199
B96: 87 | C96: Middle East & Africa | D96: View Details | E96: Togo | F96: 1.184137875 | H96: 1.184137875
B97: 88 | C97: Middle East & Africa | D97: View Details | E97: Guinea | F97: 1.168548754 | H97: =IF(E97="", "", F97) -> 1.168548754
B98: 89 | C98: Asia-Pacific | D98: View Details | E98: Azerbaijan | F98: 1.164124934 | H98: 1.164124934
B99: 90 | C99: Middle East & Africa | D99: View Details | E99: Burundi | F99: 1.163922815 | H99: 1.163922815
B100: 91 | C100: Middle East & Africa | D100: View Details | E100: Central African Republic | F100: 1.155977731 | H100: 1.155977731
B101: 92 | C101: Middle East & Africa | D101: View Details | E101: Niger | F101: 1.090141892 | H101: 1.090141892
B102: 93 | C102: Middle East & Africa | D102: View Details | E102: Mauritania | F102: 1.088998294 | H102: 1.088998294
B103: 94 | C103: Middle East & Africa | D103: View Details | E103: Chad | F103: 1.040164974 | H103: 1.040164974
B104: 95 | C104: Americas | D104: View Details | E104: Haiti | F104: 0.9927137051 | H104: 0.9927137051
B105: 96 | C105: Middle East & Africa | D105: View Details | E105: Liberia | F105: 0.9399098023 | H105: 0.9399098023
B106: 97 | C106: Asia-Pacific | D106: =IF(E106="", "", HYPERLINK("#", "View Details")) -> View Details | E106: Tajikistan | F106: 0.9329882 | H106: 0.9329882
B107: 98 | C107: Middle East & Africa | D107: View Details | E107: Congo (Dem. Rep.) | F107: 0.9087175378 | H107: 0.9087175378
B108: 99 | C108: Middle East & Africa | D108: View Details | E108: Sudan | F108: 0.8775775452 | H108: 0.8775775452
B109: 100 | C109: Middle East & Africa | D109: View Details | E109: Kuwait | F109: 0.8675401294 | H109: 0.8675401294
B110: 101 | C110: Middle East & Africa | D110: View Details | E110: South Sudan | F110: 0.8670490957 | H110: 0.8670490957
B111: 102 | C111: Americas | D111: View Details | E111: Paraguay | F111: 0.8466342682 | H111: 0.8466342682
B112: 103 | C112: Asia-Pacific | D112: View Details | E112: Kyrgyzstan | F112: 0.7722656704 | H112: 0.7722656704
B113: 104 | C113: Middle East & Africa | D113: View Details | E113: Lesotho | F113: 0.7695891088 | H113: 0.7695891088
B114: 105 | C114: Middle East & Africa | D114: View Details | E114: Congo | F114: 0.7520842822 | H114: 0.7520842822
B115: 106 | C115: Middle East & Africa | D115: View Details | E115: Eritrea | F115: 0.7511565854 | H115: 0.7511565854
B116: 107 | C116: Asia-Pacific | D116: View Details | E116: Turkmenistan | F116: 0.5020408028 | H116: =IF(E116="", "", F116) -> 0.5020408028
D138: =IF(E138="", "", HYPERLINK("#", "View Details")) -> 

Sheet DETAILS
F1: =PROPER("CLIMATESCOPE " & int_Year+1 & ": MARKET OVERVIEW") -> Climatescope 2021: Market Overview | P1: Hidden Columns
E3: View more in-depth country data (bnef clients only):
B4: India | E4: =HYPERLINK("https://www.bnef.com/core/country-profiles/"&IFERROR(INDEX(DEFN!$E$278:$E$427, MATCH(str_Country, DEFN!$C$278:$C$427, 0), 1), "")) -> https://www.bnef.com/core/country-profiles/IND
E5: about.bnef.com | @BloombergNEF
B6: Geography | C6: =INDEX(IND!$L$11:$L$146, MATCH(str_Country, IND!$M$11:$M$146, 0), 1) -> Asia-Pacific | E6: ="*Note: Clean investment growth period = " & str_InvestGrowthPeriod -> *Note: Clean investment growth period = 2016-20
B7: Climatescope Score | C7: =SUM($N$11:$N$80) -> 2.547811381 | E7: Type: | F7: =SUBSTITUTE(str_CountryType, " ", ", ") -> Off-grid, Non-Flexibility, Non-Heating
B8: ="*Note: Max possible score = " & dbl_ScoreMax & "." -> *Note: Max possible score = 5.
B9: =IF(SUM($K$11:$K$80)=1, "", "Sum of Net Weight column is " & TEXT(SUM($K$11:$K$80), "0.00%") & " this must equal 100% to calculate score, please adjust weights in orange cells.") ->  | O9: ="Year-end " & int_Year & " data." -> Year-end 2020 data. | AA9: Check*
B10: Sector | C10: =HYPERLINK("#tbl_WeightSettings", "Weight*") -> Weight* | D10: Parameter | E10: =HYPERLINK("#tbl_WeightSettings", "Weight*") -> Weight* | F10: Category | G10: =HYPERLINK("#tbl_WeightSettings", "Weight*") -> Weight* | H10: Indicator | J10: Weight* | K10: Net Weight* | L10: =COUNTIF(L11:L80, "<>0") -> 58 | M10: Units | N10: Score | O10: Performance* | P10: SID's* | Q10: Row | R10: Sector Name | S10: Parameter Name | T10: Category Name | U10: Indicator Name | V10: On/off-grid | W10: Units | X10: Category | Y10: Indicator ID | Z10: Indicator Weight* | AA10: Sector | AB10: Parameter | AC10: Category | AD10: Indicator
B11: =R11 -> Power | C11: =IFERROR(INDEX(C$85:C$133, MATCH(B11, B$85:B$133, 0), 1), 0) -> 1 | D11: =S11&"" -> Fundamentals | E11: =IFERROR(INDEX(E$85:E$133, MATCH(D11, D$85:D$133, 0), 1)*1, 0) -> 0.5 | F11: =T11 -> Policy - Renewable energy | G11: =SUMIFS($G$85:$G$133, $F$85:$F$133, F11, $D$85:$D$133, D11, $B$85:$B$133, B11) -> 0.3 | H11: =IF(P11<2, HYPERLINK("#", U11), HYPERLINK("#" & "str_CountryProfileURL", U11)) -> Policy - Renewable energy | I11: =V11 -> No | J11: =IF(ISNUMBER(Z11), Z11, IF(AND(Z11="None", L11<>0), (1-SUMIFS($Z$11:$Z$80, $F$11:$F$80, F11, $Z$11:$Z$80, ">0"))/COUNTIFS($F$11:$F$80, F11, $Z$11:$Z$80, "None", $L$11:$L$80, "<>0"), 0)) -> 1 | K11: =IF(J11="", "", C11*E11*G11*J11) -> 0.15 | L11: =IFERROR(INDEX(IND!$S$11:$S$11410, MATCH(Y11&" > "&$B$4, IND!$AC$11:$AC$11410, 0), 1)*IF(LEFT(W11,1)="%", 100, 1), 0) -> 117.0673687 | M11: =IF(AND(L11=1, LEFT(W11, 1)<>"%", LEFT(W11, 1)<>"$", W11<>"MW", W11<>"GWh"), LEFT(W11, LEN(W11)-1), W11) -> Policies | N11: =IF(K11="", "", IFERROR(K11*dbl_ScoreMax*MAX(0, IFERROR(INDEX(IND!$V$11:$V$11410, MATCH(Y11&" > "&$B$4, IND!$AC$11:$AC$11410, 0), 1), 0))/100, 0)) -> 0.4910664713 | O11: =IF(OR(N11="", N11=0), "", IFERROR(N11/(K11*dbl_ScoreMax), 0)) -> 0.654755295 | P11: =IF(ISNUMBER(FIND("Growth", Y11)), 0, COUNTIFS(DEFN!$U$88:$U$273,Y11)) -> 9 | Q11: 1 | R11: =IFERROR(INDEX(DEFN!B$13:B$82, $Q11, 1), "Cannot Find: " & R$10) -> Power | S11: =IFERROR(INDEX(DEFN!C$13:C$82, $Q11, 1), "Cannot Find: " & S$10) -> Fundamentals | T11: =IFERROR(INDEX(DEFN!D$13:D$82, $Q11, 1), "Cannot Find: " & T$10) -> Policy - Renewable energy | U11: =IFERROR(INDEX(DEFN!E$13:E$82, $Q11, 1), "Cannot Find: " & U$10) -> Policy - Renewable energy | V11: =IFERROR(INDEX(DEFN!$F$13:$F$82, $Q11), "Cannot Find Indicator") -> No | W11: =IFERROR(INDEX(DEFN!$K$13:$K$82, $Q11, 1), "Cannot Find Indicator") -> Policies | X11: =F11 -> Policy - Renewable energy | Y11: =B11&" - "&U11 -> Power - Policy - Renewable energy | Z11: =IFERROR(INDEX(DEFN!$Q$13:$W$82, MATCH(Y11, DEFN!$X$13:$X$82, 0), MATCH(str_CountryType, DEFN!$Q$10:$W$10, 0)), 0) -> 1 | AA11: =IF(B10<>B11, SUMIFS($C$11:$C$80, $C$11:$C$80, ">=0", $AB$11:$AB$80, ">=0"), "") -> 1 | AB11: =IF(B10<>B11, SUMIFS($E$11:$E$80, $B$11:$B$80, B11, $B$11:$B$80, B11, $E$11:$E$80, ">=0", $AC$11:$AC$80, ">=0"), "") -> 1 | AC11: =IF(D10<>D11, SUMIFS($G$11:$G$80, $D$11:$D$80, D11, $B$11:$B$80, B11, $G$11:$G$80, ">=0", $AD$11:$AD$80, ">=0"), "") -> 1 | AD11: =IF(F10<>F11, SUMIFS($Z$11:$Z$80, $F$11:$F$80, F11, $D$11:$D$80, D11, $B$11:$B$80, B11, $Z$11:$Z$80, ">=0"), "") -> 1
B12: =R12 -> Power | C12: 1 | D12: =S12&"" -> Fundamentals | E12: 0.5 | F12: =T12 -> Policy - Climate change | G12: 0.1 | H12: =IF(P12<2, HYPERLINK("#", U12), HYPERLINK("#" & "str_CountryProfileURL", U12)) -> Policy - Climate change | I12: =V12 -> No | J12: 1 | K12: =IF(J12="", "", C12*E12*G12*J12) -> 0.05 | L12: =IFERROR(INDEX(IND!$S$11:$S$11410, MATCH(Y12&" > "&$B$4, IND!$AC$11:$AC$11410, 0), 1)*IF(LEFT(W12,1)="%", 100, 1), 0) -> 2.75 | M12: =IF(AND(L12=1, LEFT(W12, 1)<>"%", LEFT(W12, 1)<>"$", W12<>"MW", W12<>"GWh"), LEFT(W12, LEN(W12)-1), W12) -> Score | N12: =IF(K12="", "", IFERROR(K12*dbl_ScoreMax*MAX(0, IFERROR(INDEX(IND!$V$11:$V$11410, MATCH(Y12&" > "&$B$4, IND!$AC$11:$AC$11410, 0), 1), 0))/100, 0)) -> 0.09821428571 | O12: =IF(OR(N12="", N12=0), "", IFERROR(N12/(K12*dbl_ScoreMax), 0)) -> 0.3928571429 | P12: =IF(ISNUMBER(FIND("Growth", Y12)), 0, COUNTIFS(DEFN!$U$88:$U$273,Y12)) -> 6 | Q12: 2 | R12: =IFERROR(INDEX(DEFN!B$13:B$82, $Q12, 1), "Cannot Find: " & R$10) -> Power | S12: =IFERROR(INDEX(DEFN!C$13:C$82, $Q12, 1), "Cannot Find: " & S$10) -> Fundamentals | T12: =IFERROR(INDEX(DEFN!D$13:D$82, $Q12, 1), "Cannot Find: " & T$10) -> Policy - Climate change | U12: =IFERROR(INDEX(DEFN!E$13:E$82, $Q12, 1), "Cannot Find: " & U$10) -> Policy - Climate change | V12: =IFERROR(INDEX(DEFN!$F$13:$F$82, $Q12), "Cannot Find Indicator") -> No | W12: =IFERROR(INDEX(DEFN!$K$13:$K$82, $Q12, 1), "Cannot Find Indicator") -> Score | X12: Policy - Climate change | Y12: =B12&" - "&U12 -> Power - Policy - Climate change | Z12: =IFERROR(INDEX(DEFN!$Q$13:$W$82, MATCH(Y12, DEFN!$X$13:$X$82, 0), MATCH(str_CountryType, DEFN!$Q$10:$W$10, 0)), 0) -> 1 | AD12: 1
B13: Power | C13: 1 | D13: Fundamentals | E13: 0.5 | F13: Policy - Flexibility | G13: 0 | H13: Policy - Flexibility | I13: No | J13: 1 | K13: 0 | L13: =IFERROR(INDEX(IND!$S$11:$S$11410, MATCH(Y13&" > "&$B$4, IND!$AC$11:$AC$11410, 0), 1)*IF(LEFT(W13,1)="%", 100, 1), 0) -> 0 | M13: Policies | N13: =IF(K13="", "", IFERROR(K13*dbl_ScoreMax*MAX(0, IFERROR(INDEX(IND!$V$11:$V$11410, MATCH(Y13&" > "&$B$4, IND!$AC$11:$AC$11410, 0), 1), 0))/100, 0)) -> 0 | P13: =IF(ISNUMBER(FIND("Growth", Y13)), 0, COUNTIFS(DEFN!$U$88:$U$273,Y13)) -> 2 | Q13: 3 | R13: =IFERROR(INDEX(DEFN!B$13:B$82, $Q13, 1), "Cannot Find: " & R$10) -> Power | S13: =IFERROR(INDEX(DEFN!C$13:C$82, $Q13, 1), "Cannot Find: " & S$10) -> Fundamentals | T13: =IFERROR(INDEX(DEFN!D$13:D$82, $Q13, 1), "Cannot Find: " & T$10) -> Policy - Flexibility | U13: =IFERROR(INDEX(DEFN!E$13:E$82, $Q13, 1), "Cannot Find: " & U$10) -> Policy - Flexibility | V13: =IFERROR(INDEX(DEFN!$F$13:$F$82, $Q13), "Cannot Find Indicator") -> No | W13: =IFERROR(INDEX(DEFN!$K$13:$K$82, $Q13, 1), "Cannot Find Indicator") -> Policies | X13: Policy - Flexibility | Y13: Power - Policy - Flexibility | Z13: =IFERROR(INDEX(DEFN!$Q$13:$W$82, MATCH(Y13, DEFN!$X$13:$X$82, 0), MATCH(str_CountryType, DEFN!$Q$10:$W$10, 0)), 0) -> 1 | AD13: 1
B14: Power | C14: 1 | D14: Fundamentals | E14: 0.5 | F14: Power sector - General | G14: 0.15 | H14: Power sector - General | I14: No | J14: 1 | K14: 0.075 | L14: =IFERROR(INDEX(IND!$S$11:$S$11410, MATCH(Y14&" > "&$B$4, IND!$AC$11:$AC$11410, 0), 1)*IF(LEFT(W14,1)="%", 100, 1), 0) -> 7.25 | M14: Score | N14: =IF(K14="", "", IFERROR(K14*dbl_ScoreMax*MAX(0, IFERROR(INDEX(IND!$V$11:$V$11410, MATCH(Y14&" > "&$B$4, IND!$AC$11:$AC$11410, 0), 1), 0))/100, 0)) -> 0.33984375 | O14: 0.90625 | P14: =IF(ISNUMBER(FIND("Growth", Y14)), 0, COUNTIFS(DEFN!$U$88:$U$273,Y14)) -> 7 | Q14: 4 | R14: =IFERROR(INDEX(DEFN!B$13:B$82, $Q14, 1), "Cannot Find: " & R$10) -> Power | S14: =IFERROR(INDEX(DEFN!C$13:C$82, $Q14, 1), "Cannot Find: " & S$10) -> Fundamentals | T14: =IFERROR(INDEX(DEFN!D$13:D$82, $Q14, 1), "Cannot Find: " & T$10) -> Power sector - General | U14: =IFERROR(INDEX(DEFN!E$13:E$82, $Q14, 1), "Cannot Find: " & U$10) -> Power sector - General | V14: =IFERROR(INDEX(DEFN!$F$13:$F$82, $Q14), "Cannot Find Indicator") -> No | W14: =IFERROR(INDEX(DEFN!$K$13:$K$82, $Q14, 1), "Cannot Find Indicator") -> Score | X14: Power sector - General | Y14: Power - Power sector - General | Z14: =IFERROR(INDEX(DEFN!$Q$13:$W$82, MATCH(Y14, DEFN!$X$13:$X$82, 0), MATCH(str_CountryType, DEFN!$Q$10:$W$10, 0)), 0) -> 1 | AD14: 1
B15: Power | C15: 1 | D15: Fundamentals | E15: 0.5 | F15: Power sector - Wholesale | G15: 0.15 | H15: Power sector - Wholesale | I15: No | J15: 1 | K15: 0.075 | L15: =IFERROR(INDEX(IND!$S$11:$S$11410, MATCH(Y15&" > "&$B$4, IND!$AC$11:$AC$11410, 0), 1)*IF(LEFT(W15,1)="%", 100, 1), 0) -> 8 | M15: Score | N15: =IF(K15="", "", IFERROR(K15*dbl_ScoreMax*MAX(0, IFERROR(INDEX(IND!$V$11:$V$11410, MATCH(Y15&" > "&$B$4, IND!$AC$11:$AC$11410, 0), 1), 0))/100, 0)) -> 0.375 | O15: 1 | P15: =IF(ISNUMBER(FIND("Growth", Y15)), 0, COUNTIFS(DEFN!$U$88:$U$273,Y15)) -> 6 | Q15: 5 | R15: =IFERROR(INDEX(DEFN!B$13:B$82, $Q15, 1), "Cannot Find: " & R$10) -> Power | S15: =IFERROR(INDEX(DEFN!C$13:C$82, $Q15, 1), "Cannot Find: " & S$10) -> Fundamentals | T15: =IFERROR(INDEX(DEFN!D$13:D$82, $Q15, 1), "Cannot Find: " & T$10) -> Power sector - Wholesale | U15: =IFERROR(INDEX(DEFN!E$13:E$82, $Q15, 1), "Cannot Find: " & U$10) -> Power sector - Wholesale | V15: =IFERROR(INDEX(DEFN!$F$13:$F$82, $Q15), "Cannot Find Indicator") -> No | W15: =IFERROR(INDEX(DEFN!$K$13:$K$82, $Q15, 1), "Cannot Find Indicator") -> Score | X15: Power sector - Wholesale | Y15: Power - Power sector - Wholesale | Z15: =IFERROR(INDEX(DEFN!$Q$13:$W$82, MATCH(Y15, DEFN!$X$13:$X$82, 0), MATCH(str_CountryType, DEFN!$Q$10:$W$10, 0)), 0) -> 1 | AD15: 1
B16: Power | C16: 1 | D16: Fundamentals | E16: 0.5 | F16: Power sector - Decentralized energy | G16: 0.05 | H16: Power sector - Decentralized energy | I16: Yes | J16: 1 | K16: 0.025 | L16: =IFERROR(INDEX(IND!$S$11:$S$11410, MATCH(Y16&" > "&$B$4, IND!$AC$11:$AC$11410, 0), 1)*IF(LEFT(W16,1)="%", 100, 1), 0) -> 5.6666662 | M16: Score | N16: =IF(K16="", "", IFERROR(K16*dbl_ScoreMax*MAX(0, IFERROR(INDEX(IND!$V$11:$V$11410, MATCH(Y16&" > "&$B$4, IND!$AC$11:$AC$11410, 0), 1), 0))/100, 0)) -> 0.08854165937 | O16: 0.708333275 | P16: =IF(ISNUMBER(FIND("Growth", Y16)), 0, COUNTIFS(DEFN!$U$88:$U$273,Y16)) -> 7 | Q16: 6 | R16: =IFERROR(INDEX(DEFN!B$13:B$82, $Q16, 1), "Cannot Find: " & R$10) -> Power | S16: =IFERROR(INDEX(DEFN!C$13:C$82, $Q16, 1), "Cannot Find: " & S$10) -> Fundamentals | T16: =IFERROR(INDEX(DEFN!D$13:D$82, $Q16, 1), "Cannot Find: " & T$10) -> Power sector - Decentralized energy | U16: =IFERROR(INDEX(DEFN!E$13:E$82, $Q16, 1), "Cannot Find: " & U$10) -> Power sector - Decentralized energy | V16: =IFERROR(INDEX(DEFN!$F$13:$F$82, $Q16), "Cannot Find Indicator") -> Yes | W16: =IFERROR(INDEX(DEFN!$K$13:$K$82, $Q16, 1), "Cannot Find Indicator") -> Score | X16: Power sector - Decentralized energy | Y16: Power - Power sector - Decentralized energy | Z16: =IFERROR(INDEX(DEFN!$Q$13:$W$82, MATCH(Y16, DEFN!$X$13:$X$82, 0), MATCH(str_CountryType, DEFN!$Q$10:$W$10, 0)), 0) -> 1 | AD16: 1
B17: Power | C17: 1 | D17: Fundamentals | E17: 0.5 | F17: Power sector - Decentralized energy details | G17: 0.05 | H17: Power sector - Decentralized energy details | I17: No | J17: 1 | K17: 0.025 | L17: =IFERROR(INDEX(IND!$S$11:$S$11410, MATCH(Y17&" > "&$B$4, IND!$AC$11:$AC$11410, 0), 1)*IF(LEFT(W17,1)="%", 100, 1), 0) -> 0.9999999999 | M17: Score | N17: =IF(K17="", "", IFERROR(K17*dbl_ScoreMax*MAX(0, IFERROR(INDEX(IND!$V$11:$V$11410, MATCH(Y17&" > "&$B$4, IND!$AC$11:$AC$11410, 0), 1), 0))/100, 0)) -> 0.06249999999 | O17: 0.4999999999 | P17: =IF(ISNUMBER(FIND("Growth", Y17)), 0, COUNTIFS(DEFN!$U$88:$U$273,Y17)) -> 2 | Q17: 7 | R17: =IFERROR(INDEX(DEFN!B$13:B$82, $Q17, 1), "Cannot Find: " & R$10) -> Power | S17: =IFERROR(INDEX(DEFN!C$13:C$82, $Q17, 1), "Cannot Find: " & S$10) -> Fundamentals | T17: =IFERROR(INDEX(DEFN!D$13:D$82, $Q17, 1), "Cannot Find: " & T$10) -> Power sector - Decentralized energy details | U17: =IFERROR(INDEX(DEFN!E$13:E$82, $Q17, 1), "Cannot Find: " & U$10) -> Power sector - Decentralized energy details | V17: =IFERROR(INDEX(DEFN!$F$13:$F$82, $Q17), "Cannot Find Indicator") -> No | W17: =IFERROR(INDEX(DEFN!$K$13:$K$82, $Q17, 1), "Cannot Find Indicator") -> Score | X17: Power sector - Decentralized energy details | Y17: Power - Power sector - Decentralized energy details | Z17: =IFERROR(INDEX(DEFN!$Q$13:$W$82, MATCH(Y17, DEFN!$X$13:$X$82, 0), MATCH(str_CountryType, DEFN!$Q$10:$W$10, 0)), 0) -> 1 | AD17: 1
B18: Power | C18: 1 | D18: Fundamentals | E18: 0.5 | F18: Power sector - Flexibility | G18: 0 | H18: Power sector - Flexibility | I18: No | J18: 1 | K18: 0 | L18: =IFERROR(INDEX(IND!$S$11:$S$11410, MATCH(Y18&" > "&$B$4, IND!$AC$11:$AC$11410, 0), 1)*IF(LEFT(W18,1)="%", 100, 1), 0) -> 2 | M18: Score | N18: =IF(K18="", "", IFERROR(K18*dbl_ScoreMax*MAX(0, IFERROR(INDEX(IND!$V$11:$V$11410, MATCH(Y18&" > "&$B$4, IND!$AC$11:$AC$11410, 0), 1), 0))/100, 0)) -> 0 | P18: =IF(ISNUMBER(FIND("Growth", Y18)), 0, COUNTIFS(DEFN!$U$88:$U$273,Y18)) -> 7 | Q18: 8 | R18: =IFERROR(INDEX(DEFN!B$13:B$82, $Q18, 1), "Cannot Find: " & R$10) -> Power | S18: =IFERROR(INDEX(DEFN!C$13:C$82, $Q18, 1), "Cannot Find: " & S$10) -> Fundamentals | T18: =IFERROR(INDEX(DEFN!D$13:D$82, $Q18, 1), "Cannot Find: " & T$10) -> Power sector - Flexibility | U18: =IFERROR(INDEX(DEFN!E$13:E$82, $Q18, 1), "Cannot Find: " & U$10) -> Power sector - Flexibility | V18: =IFERROR(INDEX(DEFN!$F$13:$F$82, $Q18), "Cannot Find Indicator") -> No | W18: =IFERROR(INDEX(DEFN!$K$13:$K$82, $Q18, 1), "Cannot Find Indicator") -> Score | X18: Power sector - Flexibility | Y18: Power - Power sector - Flexibility | Z18: =IFERROR(INDEX(DEFN!$Q$13:$W$82, MATCH(Y18, DEFN!$X$13:$X$82, 0), MATCH(str_CountryType, DEFN!$Q$10:$W$10, 0)), 0) -> 1 | AD18: 1
B19: Power | C19: 1 | D19: Fundamentals | E19: 0.5 | F19: Power sector - Ancillary services | G19: 0 | H19: Power sector - Ancillary services | I19: No | J19: 1 | K19: 0 | L19: =IFERROR(INDEX(IND!$S$11:$S$11410, MATCH(Y19&" > "&$B$4, IND!$AC$11:$AC$11410, 0), 1)*IF(LEFT(W19,1)="%", 100, 1), 0) -> 1 | M19: Scor | N19: =IF(K19="", "", IFERROR(K19*dbl_ScoreMax*MAX(0, IFERROR(INDEX(IND!$V$11:$V$11410, MATCH(Y19&" > "&$B$4, IND!$AC$11:$AC$11410, 0), 1), 0))/100, 0)) -> 0 | P19: =IF(ISNUMBER(FIND("Growth", Y19)), 0, COUNTIFS(DEFN!$U$88:$U$273,Y19)) -> 2 | Q19: 9 | R19: =IFERROR(INDEX(DEFN!B$13:B$82, $Q19, 1), "Cannot Find: " & R$10) -> Power | S19: =IFERROR(INDEX(DEFN!C$13:C$82, $Q19, 1), "Cannot Find: " & S$10) -> Fundamentals | T19: =IFERROR(INDEX(DEFN!D$13:D$82, $Q19, 1), "Cannot Find: " & T$10) -> Power sector - Ancillary services | U19: =IFERROR(INDEX(DEFN!E$13:E$82, $Q19, 1), "Cannot Find: " & U$10) -> Power sector - Ancillary services | V19: =IFERROR(INDEX(DEFN!$F$13:$F$82, $Q19), "Cannot Find Indicator") -> No | W19: =IFERROR(INDEX(DEFN!$K$13:$K$82, $Q19, 1), "Cannot Find Indicator") -> Score | X19: Power sector - Ancillary services | Y19: Power - Power sector - Ancillary services | Z19: =IFERROR(INDEX(DEFN!$Q$13:$W$82, MATCH(Y19, DEFN!$X$13:$X$82, 0), MATCH(str_CountryType, DEFN!$Q$10:$W$10, 0)), 0) -> 1 | AD19: 1
B20: Power | C20: 1 | D20: Fundamentals | E20: 0.5 | F20: Barriers - General | G20: 0.1 | H20: Barriers - General | I20: No | J20: 1 | K20: 0.05 | L20: =IFERROR(INDEX(IND!$S$11:$S$11410, MATCH(Y20&" > "&$B$4, IND!$AC$11:$AC$11410, 0), 1)*IF(LEFT(W20,1)="%", 100, 1), 0) -> 6.1 | M20: Score | N20: =IF(K20="", "", IFERROR(K20*dbl_ScoreMax*MAX(0, IFERROR(INDEX(IND!$V$11:$V$11410, MATCH(Y20&" > "&$B$4, IND!$AC$11:$AC$11410, 0), 1), 0))/100, 0)) -> 0.1794117647 | O20: 0.7176470588 | P20: =IF(ISNUMBER(FIND("Growth", Y20)), 0, COUNTIFS(DEFN!$U$88:$U$273,Y20)) -> 8 | Q20: 10 | R20: =IFERROR(INDEX(DEFN!B$13:B$82, $Q20, 1), "Cannot Find: " & R$10) -> Power | S20: =IFERROR(INDEX(DEFN!C$13:C$82, $Q20, 1), "Cannot Find: " & S$10) -> Fundamentals | T20: =IFERROR(INDEX(DEFN!D$13:D$82, $Q20, 1), "Cannot Find: " & T$10) -> Barriers - General | U20: =IFERROR(INDEX(DEFN!E$13:E$82, $Q20, 1), "Cannot Find: " & U$10) -> Barriers - General | V20: =IFERROR(INDEX(DEFN!$F$13:$F$82, $Q20), "Cannot Find Indicator") -> No | W20: =IFERROR(INDEX(DEFN!$K$13:$K$82, $Q20, 1), "Cannot Find Indicator") -> Score | X20: Barriers - General | Y20: Power - Barriers - General | Z20: =IFERROR(INDEX(DEFN!$Q$13:$W$82, MATCH(Y20, DEFN!$X$13:$X$82, 0), MATCH(str_CountryType, DEFN!$Q$10:$W$10, 0)), 0) -> 1 | AD20: 1
B21: Power | C21: 1 | D21: Fundamentals | E21: 0.5 | F21: Barriers - Decentralized energy | G21: 0.05 | H21: Barriers - Decentralized energy | I21: Yes | J21: 1 | K21: 0.025 | L21: =IFERROR(INDEX(IND!$S$11:$S$11410, MATCH(Y21&" > "&$B$4, IND!$AC$11:$AC$11410, 0), 1)*IF(LEFT(W21,1)="%", 100, 1), 0) -> 0.99999 | M21: Score | N21: =IF(K21="", "", IFERROR(K21*dbl_ScoreMax*MAX(0, IFERROR(INDEX(IND!$V$11:$V$11410, MATCH(Y21&" > "&$B$4, IND!$AC$11:$AC$11410, 0), 1), 0))/100, 0)) -> 0.125 | O21: 1 | P21: =IF(ISNUMBER(FIND("Growth", Y21)), 0, COUNTIFS(DEFN!$U$88:$U$273,Y21)) -> 1 | Q21: 11 | R21: =IFERROR(INDEX(DEFN!B$13:B$82, $Q21, 1), "Cannot Find: " & R$10) -> Power | S21: =IFERROR(INDEX(DEFN!C$13:C$82, $Q21, 1), "Cannot Find: " & S$10) -> Fundamentals | T21: =IFERROR(INDEX(DEFN!D$13:D$82, $Q21, 1), "Cannot Find: " & T$10) -> Barriers - Decentralized energy | U21: =IFERROR(INDEX(DEFN!E$13:E$82, $Q21, 1), "Cannot Find: " & U$10) -> Barriers - Decentralized energy | V21: =IFERROR(INDEX(DEFN!$F$13:$F$82, $Q21), "Cannot Find Indicator") -> Yes | W21: =IFERROR(INDEX(DEFN!$K$13:$K$82, $Q21, 1), "Cannot Find Indicator") -> Score | X21: Barriers - Decentralized energy | Y21: Power - Barriers - Decentralized energy | Z21: =IFERROR(INDEX(DEFN!$Q$13:$W$82, MATCH(Y21, DEFN!$X$13:$X$82, 0), MATCH(str_CountryType, DEFN!$Q$10:$W$10, 0)), 0) -> 1 | AD21: 1
B22: Power | C22: 1 | D22: Fundamentals | E22: 0.5 | F22: Currency variation | G22: 0.05 | H22: Currency variation | I22: No | J22: 1 | K22: 0.025 | L22: =IFERROR(INDEX(IND!$S$11:$S$11410, MATCH(Y22&" > "&$B$4, IND!$AC$11:$AC$11410, 0), 1)*IF(LEFT(W22,1)="%", 100, 1), 0) -> 0.5 | M22: Score | N22: =IF(K22="", "", IFERROR(K22*dbl_ScoreMax*MAX(0, IFERROR(INDEX(IND!$V$11:$V$11410, MATCH(Y22&" > "&$B$4, IND!$AC$11:$AC$11410, 0), 1), 0))/100, 0)) -> 0.0625 | O22: 0.5 | P22: =IF(ISNUMBER(FIND("Growth", Y22)), 0, COUNTIFS(DEFN!$U$88:$U$273,Y22)) -> 1 | Q22: 12 | R22: =IFERROR(INDEX(DEFN!B$13:B$82, $Q22, 1), "Cannot Find: " & R$10) -> Power | S22: =IFERROR(INDEX(DEFN!C$13:C$82, $Q22, 1), "Cannot Find: " & S$10) -> Fundamentals | T22: =IFERROR(INDEX(DEFN!D$13:D$82, $Q22, 1), "Cannot Find: " & T$10) -> Currency variation | U22: =IFERROR(INDEX(DEFN!E$13:E$82, $Q22, 1), "Cannot Find: " & U$10) -> Currency variation | V22: =IFERROR(INDEX(DEFN!$F$13:$F$82, $Q22), "Cannot Find Indicator") -> No | W22: =IFERROR(INDEX(DEFN!$K$13:$K$82, $Q22, 1), "Cannot Find Indicator") -> Score | X22: Currency variation | Y22: Power - Currency variation | Z22: =IFERROR(INDEX(DEFN!$Q$13:$W$82, MATCH(Y22, DEFN!$X$13:$X$82, 0), MATCH(str_CountryType, DEFN!$Q$10:$W$10, 0)), 0) -> 1 | AD22: 1
B23: Power | C23: 1 | D23: Opportunities | E23: 0.25 | F23: Prices and costs - Decentralized energy | G23: 0.05 | H23: Kerosene and diesel subsidies | I23: Yes | J23: 0.25 | K23: 0.003125 | L23: =IFERROR(INDEX(IND!$S$11:$S$11410, MATCH(Y23&" > "&$B$4, IND!$AC$11:$AC$11410, 0), 1)*IF(LEFT(W23,1)="%", 100, 1), 0) -> 1 | M23: Scor | N23: =IF(K23="", "", IFERROR(K23*dbl_ScoreMax*MAX(0, IFERROR(INDEX(IND!$V$11:$V$11410, MATCH(Y23&" > "&$B$4, IND!$AC$11:$AC$11410, 0), 1), 0))/100, 0)) -> 0.015625 | O23: 1 | P23: =IF(ISNUMBER(FIND("Growth", Y23)), 0, COUNTIFS(DEFN!$U$88:$U$273,Y23)) -> 1 | Q23: 13 | R23: =IFERROR(INDEX(DEFN!B$13:B$82, $Q23, 1), "Cannot Find: " & R$10) -> Power | S23: =IFERROR(INDEX(DEFN!C$13:C$82, $Q23, 1), "Cannot Find: " & S$10) -> Opportunities | T23: =IFERROR(INDEX(DEFN!D$13:D$82, $Q23, 1), "Cannot Find: " & T$10) -> Prices and costs - Decentralized energy | U23: =IFERROR(INDEX(DEFN!E$13:E$82, $Q23, 1), "Cannot Find: " & U$10) -> Kerosene and diesel subsidies | V23: =IFERROR(INDEX(DEFN!$F$13:$F$82, $Q23), "Cannot Find Indicator") -> Yes | W23: =IFERROR(INDEX(DEFN!$K$13:$K$82, $Q23, 1), "Cannot Find Indicator") -> Score | X23: Prices and costs - Decentralized energy | Y23: Power - Kerosene and diesel subsidies | Z23: =IFERROR(INDEX(DEFN!$Q$13:$W$82, MATCH(Y23, DEFN!$X$13:$X$82, 0), MATCH(str_CountryType, DEFN!$Q$10:$W$10, 0)), 0) -> 0.25 | AC23: 1 | AD23: 1
B24: Power | C24: 1 | D24: Opportunities | E24: 0.25 | F24: Prices and costs - Decentralized energy | G24: 0.05 | H24: Average diesel prices | I24: Yes | J24: 0.25 | K24: 0.003125 | L24: =IFERROR(INDEX(IND!$S$11:$S$11410, MATCH(Y24&" > "&$B$4, IND!$AC$11:$AC$11410, 0), 1)*IF(LEFT(W24,1)="%", 100, 1), 0) -> 0.9759882391 | M24: $/Litre | N24: =IF(K24="", "", IFERROR(K24*dbl_ScoreMax*MAX(0, IFERROR(INDEX(IND!$V$11:$V$11410, MATCH(Y24&" > "&$B$4, IND!$AC$11:$AC$11410, 0), 1), 0))/100, 0)) -> 0.006354090099 | O24: 0.4066617663 | P24: =IF(ISNUMBER(FIND("Growth", Y24)), 0, COUNTIFS(DEFN!$U$88:$U$273,Y24)) -> 1 | Q24: 14 | R24: =IFERROR(INDEX(DEFN!B$13:B$82, $Q24, 1), "Cannot Find: " & R$10) -> Power | S24: =IFERROR(INDEX(DEFN!C$13:C$82, $Q24, 1), "Cannot Find: " & S$10) -> Opportunities | T24: =IFERROR(INDEX(DEFN!D$13:D$82, $Q24, 1), "Cannot Find: " & T$10) -> Prices and costs - Decentralized energy | U24: =IFERROR(INDEX(DEFN!E$13:E$82, $Q24, 1), "Cannot Find: " & U$10) -> Average diesel prices | V24: =IFERROR(INDEX(DEFN!$F$13:$F$82, $Q24), "Cannot Find Indicator") -> Yes | W24: =IFERROR(INDEX(DEFN!$K$13:$K$82, $Q24, 1), "Cannot Find Indicator") -> $/Litre | X24: Prices and costs - Decentralized energy | Y24: Power - Average diesel prices | Z24: =IFERROR(INDEX(DEFN!$Q$13:$W$82, MATCH(Y24, DEFN!$X$13:$X$82, 0), MATCH(str_CountryType, DEFN!$Q$10:$W$10, 0)), 0) -> 0.25
B25: Power | C25: 1 | D25: Opportunities | E25: 0.25 | F25: Prices and costs - Decentralized energy | G25: 0.05 | H25: Average kerosene prices | I25: Yes | J25: 0.25 | K25: 0.003125 | L25: =IFERROR(INDEX(IND!$S$11:$S$11410, MATCH(Y25&" > "&$B$4, IND!$AC$11:$AC$11410, 0), 1)*IF(LEFT(W25,1)="%", 100, 1), 0) -> 0.3155967116 | M25: $/Litre | N25: =IF(K25="", "", IFERROR(K25*dbl_ScoreMax*MAX(0, IFERROR(INDEX(IND!$V$11:$V$11410, MATCH(Y25&" > "&$B$4, IND!$AC$11:$AC$11410, 0), 1), 0))/100, 0)) -> 0.002754859564 | O25: 0.1763110121 | P25: =IF(ISNUMBER(FIND("Growth", Y25)), 0, COUNTIFS(DEFN!$U$88:$U$273,Y25)) -> 1 | Q25: 15 | R25: =IFERROR(INDEX(DEFN!B$13:B$82, $Q25, 1), "Cannot Find: " & R$10) -> Power | S25: =IFERROR(INDEX(DEFN!C$13:C$82, $Q25, 1), "Cannot Find: " & S$10) -> Opportunities | T25: =IFERROR(INDEX(DEFN!D$13:D$82, $Q25, 1), "Cannot Find: " & T$10) -> Prices and costs - Decentralized energy | U25: =IFERROR(INDEX(DEFN!E$13:E$82, $Q25, 1), "Cannot Find: " & U$10) -> Average kerosene prices | V25: =IFERROR(INDEX(DEFN!$F$13:$F$82, $Q25), "Cannot Find Indicator") -> Yes | W25: =IFERROR(INDEX(DEFN!$K$13:$K$82, $Q25, 1), "Cannot Find Indicator") -> $/Litre | X25: Prices and costs - Decentralized energy | Y25: Power - Average kerosene prices | Z25: =IFERROR(INDEX(DEFN!$Q$13:$W$82, MATCH(Y25, DEFN!$X$13:$X$82, 0), MATCH(str_CountryType, DEFN!$Q$10:$W$10, 0)), 0) -> 0.25
B26: Power | C26: 1 | D26: Opportunities | E26: 0.25 | F26: Prices and costs - Decentralized energy | G26: 0.05 | H26: Mobile money penetration | I26: No | J26: 0.25 | K26: 0.003125 | L26: =IFERROR(INDEX(IND!$S$11:$S$11410, MATCH(Y26&" > "&$B$4, IND!$AC$11:$AC$11410, 0), 1)*IF(LEFT(W26,1)="%", 100, 1), 0) -> 0.0199454315 | M26: Score | N26: =IF(K26="", "", IFERROR(K26*dbl_ScoreMax*MAX(0, IFERROR(INDEX(IND!$V$11:$V$11410, MATCH(Y26&" > "&$B$4, IND!$AC$11:$AC$11410, 0), 1), 0))/100, 0)) -> 0.0004269142016 | O26: 0.02732250891 | P26: =IF(ISNUMBER(FIND("Growth", Y26)), 0, COUNTIFS(DEFN!$U$88:$U$273,Y26)) -> 1 | Q26: 16 | R26: =IFERROR(INDEX(DEFN!B$13:B$82, $Q26, 1), "Cannot Find: " & R$10) -> Power | S26: =IFERROR(INDEX(DEFN!C$13:C$82, $Q26, 1), "Cannot Find: " & S$10) -> Opportunities | T26: =IFERROR(INDEX(DEFN!D$13:D$82, $Q26, 1), "Cannot Find: " & T$10) -> Prices and costs - Decentralized energy | U26: =IFERROR(INDEX(DEFN!E$13:E$82, $Q26, 1), "Cannot Find: " & U$10) -> Mobile money penetration | V26: =IFERROR(INDEX(DEFN!$F$13:$F$82, $Q26), "Cannot Find Indicator") -> No | W26: =IFERROR(INDEX(DEFN!$K$13:$K$82, $Q26, 1), "Cannot Find Indicator") -> Score | X26: Prices and costs - Decentralized energy | Y26: Power - Mobile money penetration | Z26: =IFERROR(INDEX(DEFN!$Q$13:$W$82, MATCH(Y26, DEFN!$X$13:$X$82, 0), MATCH(str_CountryType, DEFN!$Q$10:$W$10, 0)), 0) -> 0.25
B27: Power | C27: 1 | D27: Opportunities | E27: 0.25 | F27: Prices and costs | G27: 0.1 | H27: Power price subsidies | I27: No | J27: 0.2 | K27: 0.005 | L27: =IFERROR(INDEX(IND!$S$11:$S$11410, MATCH(Y27&" > "&$B$4, IND!$AC$11:$AC$11410, 0), 1)*IF(LEFT(W27,1)="%", 100, 1), 0) -> 0.5 | M27: Score | N27: =IF(K27="", "", IFERROR(K27*dbl_ScoreMax*MAX(0, IFERROR(INDEX(IND!$V$11:$V$11410, MATCH(Y27&" > "&$B$4, IND!$AC$11:$AC$11410, 0), 1), 0))/100, 0)) -> 0.0125 | O27: 0.5 | P27: =IF(ISNUMBER(FIND("Growth", Y27)), 0, COUNTIFS(DEFN!$U$88:$U$273,Y27)) -> 1 | Q27: 17 | R27: =IFERROR(INDEX(DEFN!B$13:B$82, $Q27, 1), "Cannot Find: " & R$10) -> Power | S27: =IFERROR(INDEX(DEFN!C$13:C$82, $Q27, 1), "Cannot Find: " & S$10) -> Opportunities | T27: =IFERROR(INDEX(DEFN!D$13:D$82, $Q27, 1), "Cannot Find: " & T$10) -> Prices and costs | U27: =IFERROR(INDEX(DEFN!E$13:E$82, $Q27, 1), "Cannot Find: " & U$10) -> Power price subsidies | V27: =IFERROR(INDEX(DEFN!$F$13:$F$82, $Q27), "Cannot Find Indicator") -> No | W27: =IFERROR(INDEX(DEFN!$K$13:$K$82, $Q27, 1), "Cannot Find Indicator") -> Score | X27: Prices and costs | Y27: Power - Power price subsidies | Z27: =IFERROR(INDEX(DEFN!$Q$13:$W$82, MATCH(Y27, DEFN!$X$13:$X$82, 0), MATCH(str_CountryType, DEFN!$Q$10:$W$10, 0)), 0) -> 0.2 | AD27: 1
B28: Power | C28: 1 | D28: Opportunities | E28: 0.25 | F28: Prices and costs | G28: 0.1 | H28: Fossil fuel price distortions | I28: No | J28: 0.4 | K28: 0.01 | L28: =IFERROR(INDEX(IND!$S$11:$S$11410, MATCH(Y28&" > "&$B$4, IND!$AC$11:$AC$11410, 0), 1)*IF(LEFT(W28,1)="%", 100, 1), 0) -> 1 | M28: Scor | N28: =IF(K28="", "", IFERROR(K28*dbl_ScoreMax*MAX(0, IFERROR(INDEX(IND!$V$11:$V$11410, MATCH(Y28&" > "&$B$4, IND!$AC$11:$AC$11410, 0), 1), 0))/100, 0)) -> 0.025 | O28: 0.5 | P28: =IF(ISNUMBER(FIND("Growth", Y28)), 0, COUNTIFS(DEFN!$U$88:$U$273,Y28)) -> 2 | Q28: 18 | R28: =IFERROR(INDEX(DEFN!B$13:B$82, $Q28, 1), "Cannot Find: " & R$10) -> Power | S28: =IFERROR(INDEX(DEFN!C$13:C$82, $Q28, 1), "Cannot Find: " & S$10) -> Opportunities | T28: =IFERROR(INDEX(DEFN!D$13:D$82, $Q28, 1), "Cannot Find: " & T$10) -> Prices and costs | U28: =IFERROR(INDEX(DEFN!E$13:E$82, $Q28, 1), "Cannot Find: " & U$10) -> Fossil fuel price distortions | V28: =IFERROR(INDEX(DEFN!$F$13:$F$82, $Q28), "Cannot Find Indicator") -> No | W28: =IFERROR(INDEX(DEFN!$K$13:$K$82, $Q28, 1), "Cannot Find Indicator") -> Score | X28: Prices and costs | Y28: Power - Fossil fuel price distortions | Z28: =IFERROR(INDEX(DEFN!$Q$13:$W$82, MATCH(Y28, DEFN!$X$13:$X$82, 0), MATCH(str_CountryType, DEFN!$Q$10:$W$10, 0)), 0) -> 0.4
B29: Power | C29: 1 | D29: Opportunities | E29: 0.25 | F29: Prices and costs | G29: 0.1 | H29: Average electricity prices | I29: No | J29: 0.4 | K29: 0.01 | L29: =IFERROR(INDEX(IND!$S$11:$S$11410, MATCH(Y29&" > "&$B$4, IND!$AC$11:$AC$11410, 0), 1)*IF(LEFT(W29,1)="%", 100, 1), 0) -> 98.287496 | M29: $/MWh | N29: =IF(K29="", "", IFERROR(K29*dbl_ScoreMax*MAX(0, IFERROR(INDEX(IND!$V$11:$V$11410, MATCH(Y29&" > "&$B$4, IND!$AC$11:$AC$11410, 0), 1), 0))/100, 0)) -> 0.01404107086 | O29: 0.2808214171 | P29: =IF(ISNUMBER(FIND("Growth", Y29)), 0, COUNTIFS(DEFN!$U$88:$U$273,Y29)) -> 1 | Q29: 19 | R29: =IFERROR(INDEX(DEFN!B$13:B$82, $Q29, 1), "Cannot Find: " & R$10) -> Power | S29: =IFERROR(INDEX(DEFN!C$13:C$82, $Q29, 1), "Cannot Find: " & S$10) -> Opportunities | T29: =IFERROR(INDEX(DEFN!D$13:D$82, $Q29, 1), "Cannot Find: " & T$10) -> Prices and costs | U29: =IFERROR(INDEX(DEFN!E$13:E$82, $Q29, 1), "Cannot Find: " & U$10) -> Average electricity prices | V29: =IFERROR(INDEX(DEFN!$F$13:$F$82, $Q29), "Cannot Find Indicator") -> No | W29: =IFERROR(INDEX(DEFN!$K$13:$K$82, $Q29, 1), "Cannot Find Indicator") -> $/MWh | X29: Prices and costs | Y29: Power - Average electricity prices | Z29: =IFERROR(INDEX(DEFN!$Q$13:$W$82, MATCH(Y29, DEFN!$X$13:$X$82, 0), MATCH(str_CountryType, DEFN!$Q$10:$W$10, 0)), 0) -> 0.4
B30: Power | C30: 1 | D30: Opportunities | E30: 0.25 | F30: Renewables procurement | G30: 0.1875 | H30: Renewables procurement | I30: No | J30: 1 | K30: 0.046875 | L30: =IFERROR(INDEX(IND!$S$11:$S$11410, MATCH(Y30&" > "&$B$4, IND!$AC$11:$AC$11410, 0), 1)*IF(LEFT(W30,1)="%", 100, 1), 0) -> 2.25 | M30: Score | N30: =IF(K30="", "", IFERROR(K30*dbl_ScoreMax*MAX(0, IFERROR(INDEX(IND!$V$11:$V$11410, MATCH(Y30&" > "&$B$4, IND!$AC$11:$AC$11410, 0), 1), 0))/100, 0)) -> 0.17578125 | O30: 0.75 | P30: =IF(ISNUMBER(FIND("Growth", Y30)), 0, COUNTIFS(DEFN!$U$88:$U$273,Y30)) -> 2 | Q30: 20 | R30: =IFERROR(INDEX(DEFN!B$13:B$82, $Q30, 1), "Cannot Find: " & R$10) -> Power | S30: =IFERROR(INDEX(DEFN!C$13:C$82, $Q30, 1), "Cannot Find: " & S$10) -> Opportunities | T30: =IFERROR(INDEX(DEFN!D$13:D$82, $Q30, 1), "Cannot Find: " & T$10) -> Renewables procurement | U30: =IFERROR(INDEX(DEFN!E$13:E$82, $Q30, 1), "Cannot Find: " & U$10) -> Renewables procurement | V30: =IFERROR(INDEX(DEFN!$F$13:$F$82, $Q30), "Cannot Find Indicator") -> No | W30: =IFERROR(INDEX(DEFN!$K$13:$K$82, $Q30, 1), "Cannot Find Indicator") -> Score | X30: Renewables procurement | Y30: Power - Renewables procurement | Z30: =IFERROR(INDEX(DEFN!$Q$13:$W$82, MATCH(Y30, DEFN!$X$13:$X$82, 0), MATCH(str_CountryType, DEFN!$Q$10:$W$10, 0)), 0) -> 1 | AD30: 1
B31: Power | C31: 1 | D31: Opportunities | E31: 0.25 | F31: Decentralized energy incentives | G31: 0.1125 | H31: Decentralized energy incentives | I31: Yes | J31: 1 | K31: 0.028125 | L31: =IFERROR(INDEX(IND!$S$11:$S$11410, MATCH(Y31&" > "&$B$4, IND!$AC$11:$AC$11410, 0), 1)*IF(LEFT(W31,1)="%", 100, 1), 0) -> 1.9989 | M31: Score | N31: =IF(K31="", "", IFERROR(K31*dbl_ScoreMax*MAX(0, IFERROR(INDEX(IND!$V$11:$V$11410, MATCH(Y31&" > "&$B$4, IND!$AC$11:$AC$11410, 0), 1), 0))/100, 0)) -> 0.0937328062 | O31: 0.6665443996 | P31: =IF(ISNUMBER(FIND("Growth", Y31)), 0, COUNTIFS(DEFN!$U$88:$U$273,Y31)) -> 3 | Q31: 21 | R31: =IFERROR(INDEX(DEFN!B$13:B$82, $Q31, 1), "Cannot Find: " & R$10) -> Power | S31: =IFERROR(INDEX(DEFN!C$13:C$82, $Q31, 1), "Cannot Find: " & S$10) -> Opportunities | T31: =IFERROR(INDEX(DEFN!D$13:D$82, $Q31, 1), "Cannot Find: " & T$10) -> Decentralized energy incentives | U31: =IFERROR(INDEX(DEFN!E$13:E$82, $Q31, 1), "Cannot Find: " & U$10) -> Decentralized energy incentives | V31: =IFERROR(INDEX(DEFN!$F$13:$F$82, $Q31), "Cannot Find Indicator") -> Yes | W31: =IFERROR(INDEX(DEFN!$K$13:$K$82, $Q31, 1), "Cannot Find Indicator") -> Score | X31: Decentralized energy incentives | Y31: Power - Decentralized energy incentives | Z31: =IFERROR(INDEX(DEFN!$Q$13:$W$82, MATCH(Y31, DEFN!$X$13:$X$82, 0), MATCH(str_CountryType, DEFN!$Q$10:$W$10, 0)), 0) -> 1 | AD31: 1
B32: Power | C32: 1 | D32: Opportunities | E32: 0.25 | F32: Carbon Intensity | G32: 0.15 | H32: Carbon Intensity - Power | I32: No | J32: 1 | K32: 0.0375 | L32: =IFERROR(INDEX(IND!$S$11:$S$11410, MATCH(Y32&" > "&$B$4, IND!$AC$11:$AC$11410, 0), 1)*IF(LEFT(W32,1)="%", 100, 1), 0) -> 1242.520144 | M32: Mt CO2e | N32: =IF(K32="", "", IFERROR(K32*dbl_ScoreMax*MAX(0, IFERROR(INDEX(IND!$V$11:$V$11410, MATCH(Y32&" > "&$B$4, IND!$AC$11:$AC$11410, 0), 1), 0))/100, 0)) -> 0.04467043858 | O32: 0.2382423391 | P32: =IF(ISNUMBER(FIND("Growth", Y32)), 0, COUNTIFS(DEFN!$U$88:$U$273,Y32)) -> 3 | Q32: 22 | R32: =IFERROR(INDEX(DEFN!B$13:B$82, $Q32, 1), "Cannot Find: " & R$10) -> Power | S32: =IFERROR(INDEX(DEFN!C$13:C$82, $Q32, 1), "Cannot Find: " & S$10) -> Opportunities | T32: =IFERROR(INDEX(DEFN!D$13:D$82, $Q32, 1), "Cannot Find: " & T$10) -> Carbon Intensity | U32: =IFERROR(INDEX(DEFN!E$13:E$82, $Q32, 1), "Cannot Find: " & U$10) -> Carbon Intensity - Power | V32: =IFERROR(INDEX(DEFN!$F$13:$F$82, $Q32), "Cannot Find Indicator") -> No | W32: =IFERROR(INDEX(DEFN!$K$13:$K$82, $Q32, 1), "Cannot Find Indicator") -> Mt CO2e | X32: Carbon Intensity | Y32: Power - Carbon Intensity - Power | Z32: =IFERROR(INDEX(DEFN!$Q$13:$W$82, MATCH(Y32, DEFN!$X$13:$X$82, 0), MATCH(str_CountryType, DEFN!$Q$10:$W$10, 0)), 0) -> 1 | AD32: 1
B33: Power | C33: 1 | D33: Opportunities | E33: 0.25 | F33: Market size | G33: 0.3 | H33: Demand dynamics | I33: No | J33: 0.3333333333 | K33: 0.025 | L33: =IFERROR(INDEX(IND!$S$11:$S$11410, MATCH(Y33&" > "&$B$4, IND!$AC$11:$AC$11410, 0), 1)*IF(LEFT(W33,1)="%", 100, 1), 0) -> 1.25 | M33: Score | N33: =IF(K33="", "", IFERROR(K33*dbl_ScoreMax*MAX(0, IFERROR(INDEX(IND!$V$11:$V$11410, MATCH(Y33&" > "&$B$4, IND!$AC$11:$AC$11410, 0), 1), 0))/100, 0)) -> 0.05208333333 | O33: 0.4166666667 | P33: =IF(ISNUMBER(FIND("Growth", Y33)), 0, COUNTIFS(DEFN!$U$88:$U$273,Y33)) -> 3 | Q33: 23 | R33: =IFERROR(INDEX(DEFN!B$13:B$82, $Q33, 1), "Cannot Find: " & R$10) -> Power | S33: =IFERROR(INDEX(DEFN!C$13:C$82, $Q33, 1), "Cannot Find: " & S$10) -> Opportunities | T33: =IFERROR(INDEX(DEFN!D$13:D$82, $Q33, 1), "Cannot Find: " & T$10) -> Market size | U33: =IFERROR(INDEX(DEFN!E$13:E$82, $Q33, 1), "Cannot Find: " & U$10) -> Demand dynamics | V33: =IFERROR(INDEX(DEFN!$F$13:$F$82, $Q33), "Cannot Find Indicator") -> No | W33: =IFERROR(INDEX(DEFN!$K$13:$K$82, $Q33, 1), "Cannot Find Indicator") -> Score | X33: Market size | Y33: Power - Demand dynamics | Z33: =IFERROR(INDEX(DEFN!$Q$13:$W$82, MATCH(Y33, DEFN!$X$13:$X$82, 0), MATCH(str_CountryType, DEFN!$Q$10:$W$10, 0)), 0) -> 0.3333333333 | AD33: 1
B34: Power | C34: 1 | D34: Opportunities | E34: 0.25 | F34: Market size | G34: 0.3 | H34: Growth rate of generation and peak demand | I34: No | J34: 0.3333333333 | K34: 0.025 | L34: =IFERROR(INDEX(IND!$S$11:$S$11410, MATCH(Y34&" > "&$B$4, IND!$AC$11:$AC$11410, 0), 1)*IF(LEFT(W34,1)="%", 100, 1), 0) -> 0.6463111633 | M34: % | N34: =IF(K34="", "", IFERROR(K34*dbl_ScoreMax*MAX(0, IFERROR(INDEX(IND!$V$11:$V$11410, MATCH(Y34&" > "&$B$4, IND!$AC$11:$AC$11410, 0), 1), 0))/100, 0)) -> 0.002989403008 | O34: 0.02391522406 | P34: =IF(ISNUMBER(FIND("Growth", Y34)), 0, COUNTIFS(DEFN!$U$88:$U$273,Y34)) -> 0 | Q34: 24 | R34: =IFERROR(INDEX(DEFN!B$13:B$82, $Q34, 1), "Cannot Find: " & R$10) -> Power | S34: =IFERROR(INDEX(DEFN!C$13:C$82, $Q34, 1), "Cannot Find: " & S$10) -> Opportunities | T34: =IFERROR(INDEX(DEFN!D$13:D$82, $Q34, 1), "Cannot Find: " & T$10) -> Market size | U34: =IFERROR(INDEX(DEFN!E$13:E$82, $Q34, 1), "Cannot Find: " & U$10) -> Growth rate of generation and peak demand | V34: =IFERROR(INDEX(DEFN!$F$13:$F$82, $Q34), "Cannot Find Indicator") -> No | W34: =IFERROR(INDEX(DEFN!$K$13:$K$82, $Q34, 1), "Cannot Find Indicator") -> % | X34: Market size | Y34: Power - Growth rate of generation and peak demand | Z34: =IFERROR(INDEX(DEFN!$Q$13:$W$82, MATCH(Y34, DEFN!$X$13:$X$82, 0), MATCH(str_CountryType, DEFN!$Q$10:$W$10, 0)), 0) -> 0.3333333333
B35: Power | C35: 1 | D35: Opportunities | E35: 0.25 | F35: Market size | G35: 0.3 | H35: Electrification rate - national | I35: No | J35: 0.3333333333 | K35: 0.025 | L35: =IFERROR(INDEX(IND!$S$11:$S$11410, MATCH(Y35&" > "&$B$4, IND!$AC$11:$AC$11410, 0), 1)*IF(LEFT(W35,1)="%", 100, 1), 0) -> 100 | M35: % | N35: =IF(K35="", "", IFERROR(K35*dbl_ScoreMax*MAX(0, IFERROR(INDEX(IND!$V$11:$V$11410, MATCH(Y35&" > "&$B$4, IND!$AC$11:$AC$11410, 0), 1), 0))/100, 0)) -> 0.00125 | O35: 0.01 | P35: =IF(ISNUMBER(FIND("Growth", Y35)), 0, COUNTIFS(DEFN!$U$88:$U$273,Y35)) -> 1 | Q35: 25 | R35: =IFERROR(INDEX(DEFN!B$13:B$82, $Q35, 1), "Cannot Find: " & R$10) -> Power | S35: =IFERROR(INDEX(DEFN!C$13:C$82, $Q35, 1), "Cannot Find: " & S$10) -> Opportunities | T35: =IFERROR(INDEX(DEFN!D$13:D$82, $Q35, 1), "Cannot Find: " & T$10) -> Market size | U35: =IFERROR(INDEX(DEFN!E$13:E$82, $Q35, 1), "Cannot Find: " & U$10) -> Electrification rate - national | V35: =IFERROR(INDEX(DEFN!$F$13:$F$82, $Q35), "Cannot Find Indicator") -> No | W35: =IFERROR(INDEX(DEFN!$K$13:$K$82, $Q35, 1), "Cannot Find Indicator") -> % | X35: Market size | Y35: Power - Electrification rate - national | Z35: =IFERROR(INDEX(DEFN!$Q$13:$W$82, MATCH(Y35, DEFN!$X$13:$X$82, 0), MATCH(str_CountryType, DEFN!$Q$10:$W$10, 0)), 0) -> 0.3333333333
B36: Power | C36: 1 | D36: Opportunities | E36: 0.25 | F36: Corporate commitments | G36: 0.05 | H36: Corporate commitments | I36: No | J36: 1 | K36: 0.0125 | L36: =IFERROR(INDEX(IND!$S$11:$S$11410, MATCH(Y36&" > "&$B$4, IND!$AC$11:$AC$11410, 0), 1)*IF(LEFT(W36,1)="%", 100, 1), 0) -> 0.2174856917 | M36: Companies | N36: =IF(K36="", "", IFERROR(K36*dbl_ScoreMax*MAX(0, IFERROR(INDEX(IND!$V$11:$V$11410, MATCH(Y36&" > "&$B$4, IND!$AC$11:$AC$11410, 0), 1), 0))/100, 0)) -> 0.006796427867 | O36: 0.1087428459 | P36: =IF(ISNUMBER(FIND("Growth", Y36)), 0, COUNTIFS(DEFN!$U$88:$U$273,Y36)) -> 3 | Q36: 26 | R36: =IFERROR(INDEX(DEFN!B$13:B$82, $Q36, 1), "Cannot Find: " & R$10) -> Power | S36: =IFERROR(INDEX(DEFN!C$13:C$82, $Q36, 1), "Cannot Find: " & S$10) -> Opportunities | T36: =IFERROR(INDEX(DEFN!D$13:D$82, $Q36, 1), "Cannot Find: " & T$10) -> Corporate commitments | U36: =IFERROR(INDEX(DEFN!E$13:E$82, $Q36, 1), "Cannot Find: " & U$10) -> Corporate commitments | V36: =IFERROR(INDEX(DEFN!$F$13:$F$82, $Q36), "Cannot Find Indicator") -> No | W36: =IFERROR(INDEX(DEFN!$K$13:$K$82, $Q36, 1), "Cannot Find Indicator") -> Companies | X36: Corporate commitments | Y36: Power - Corporate commitments | Z36: =IFERROR(INDEX(DEFN!$Q$13:$W$82, MATCH(Y36, DEFN!$X$13:$X$82, 0), MATCH(str_CountryType, DEFN!$Q$10:$W$10, 0)), 0) -> 1 | AD36: 1
B37: Power | C37: 1 | D37: Opportunities | E37: 0.25 | F37: GDP growth - 5 year IMF outlook | G37: 0.05 | H37: GDP growth - 5 year IMF outlook | I37: No | J37: 1 | K37: 0.0125 | L37: =IFERROR(INDEX(IND!$S$11:$S$11410, MATCH(Y37&" > "&$B$4, IND!$AC$11:$AC$11410, 0), 1)*IF(LEFT(W37,1)="%", 100, 1), 0) -> 49.14192204 | M37: % | N37: =IF(K37="", "", IFERROR(K37*dbl_ScoreMax*MAX(0, IFERROR(INDEX(IND!$V$11:$V$11410, MATCH(Y37&" > "&$B$4, IND!$AC$11:$AC$11410, 0), 1), 0))/100, 0)) -> 0.02541044809 | O37: 0.4065671694 | P37: =IF(ISNUMBER(FIND("Growth", Y37)), 0, COUNTIFS(DEFN!$U$88:$U$273,Y37)) -> 1 | Q37: 27 | R37: =IFERROR(INDEX(DEFN!B$13:B$82, $Q37, 1), "Cannot Find: " & R$10) -> Power | S37: =IFERROR(INDEX(DEFN!C$13:C$82, $Q37, 1), "Cannot Find: " & S$10) -> Opportunities | T37: =IFERROR(INDEX(DEFN!D$13:D$82, $Q37, 1), "Cannot Find: " & T$10) -> GDP growth - 5 year IMF outlook | U37: =IFERROR(INDEX(DEFN!E$13:E$82, $Q37, 1), "Cannot Find: " & U$10) -> GDP growth - 5 year IMF outlook | V37: =IFERROR(INDEX(DEFN!$F$13:$F$82, $Q37), "Cannot Find Indicator") -> No | W37: =IFERROR(INDEX(DEFN!$K$13:$K$82, $Q37, 1), "Cannot Find Indicator") -> % | X37: GDP growth - 5 year IMF outlook | Y37: Power - GDP growth - 5 year IMF outlook | Z37: =IFERROR(INDEX(DEFN!$Q$13:$W$82, MATCH(Y37, DEFN!$X$13:$X$82, 0), MATCH(str_CountryType, DEFN!$Q$10:$W$10, 0)), 0) -> 1 | AD37: 1
B38: Power | C38: 1 | D38: Experience | E38: 0.25 | F38: Manufacturing | G38: 0 | H38: Lithium-ion battery cell manufacturing | I38: No | J38: 1 | K38: 0 | L38: =IFERROR(INDEX(IND!$S$11:$S$11410, MATCH(Y38&" > "&$B$4, IND!$AC$11:$AC$11410, 0), 1)*IF(LEFT(W38,1)="%", 100, 1), 0) -> 1 | M38: Scor | N38: =IF(K38="", "", IFERROR(K38*dbl_ScoreMax*MAX(0, IFERROR(INDEX(IND!$V$11:$V$11410, MATCH(Y38&" > "&$B$4, IND!$AC$11:$AC$11410, 0), 1), 0))/100, 0)) -> 0 | P38: =IF(ISNUMBER(FIND("Growth", Y38)), 0, COUNTIFS(DEFN!$U$88:$U$273,Y38)) -> 1 | Q38: 28 | R38: =IFERROR(INDEX(DEFN!B$13:B$82, $Q38, 1), "Cannot Find: " & R$10) -> Power | S38: =IFERROR(INDEX(DEFN!C$13:C$82, $Q38, 1), "Cannot Find: " & S$10) -> Experience | T38: =IFERROR(INDEX(DEFN!D$13:D$82, $Q38, 1), "Cannot Find: " & T$10) -> Manufacturing | U38: =IFERROR(INDEX(DEFN!E$13:E$82, $Q38, 1), "Cannot Find: " & U$10) -> Lithium-ion battery cell manufacturing | V38: =IFERROR(INDEX(DEFN!$F$13:$F$82, $Q38), "Cannot Find Indicator") -> No | W38: =IFERROR(INDEX(DEFN!$K$13:$K$82, $Q38, 1), "Cannot Find Indicator") -> Score | X38: =F38 -> Manufacturing | Y38: =B38&" - "&U38 -> Power - Lithium-ion battery cell manufacturing | Z38: =IFERROR(INDEX(DEFN!$Q$13:$W$82, MATCH(Y38, DEFN!$X$13:$X$82, 0), MATCH(str_CountryType, DEFN!$Q$10:$W$10, 0)), 0) -> 1 | AC38: 1 | AD38: 1
B39: Power | C39: 1 | D39: Experience | E39: 0.25 | F39: Finance | G39: 0.4 | H39: Foreign investment | I39: No | J39: 0.25 | K39: 0.025 | L39: =IFERROR(INDEX(IND!$S$11:$S$11410, MATCH(Y39&" > "&$B$4, IND!$AC$11:$AC$11410, 0), 1)*IF(LEFT(W39,1)="%", 100, 1), 0) -> 28.29599986 | M39: % | N39: =IF(K39="", "", IFERROR(K39*dbl_ScoreMax*MAX(0, IFERROR(INDEX(IND!$V$11:$V$11410, MATCH(Y39&" > "&$B$4, IND!$AC$11:$AC$11410, 0), 1), 0))/100, 0)) -> 0.03536999982 | O39: 0.2829599986 | P39: =IF(ISNUMBER(FIND("Growth", Y39)), 0, COUNTIFS(DEFN!$U$88:$U$273,Y39)) -> 1 | Q39: 29 | R39: =IFERROR(INDEX(DEFN!B$13:B$82, $Q39, 1), "Cannot Find: " & R$10) -> Power | S39: =IFERROR(INDEX(DEFN!C$13:C$82, $Q39, 1), "Cannot Find: " & S$10) -> Experience | T39: =IFERROR(INDEX(DEFN!D$13:D$82, $Q39, 1), "Cannot Find: " & T$10) -> Finance | U39: =IFERROR(INDEX(DEFN!E$13:E$82, $Q39, 1), "Cannot Find: " & U$10) -> Foreign investment | V39: =IFERROR(INDEX(DEFN!$F$13:$F$82, $Q39), "Cannot Find Indicator") -> No | W39: =IFERROR(INDEX(DEFN!$K$13:$K$82, $Q39, 1), "Cannot Find Indicator") -> % | X39: Finance | Y39: Power - Foreign investment | Z39: =IFERROR(INDEX(DEFN!$Q$13:$W$82, MATCH(Y39, DEFN!$X$13:$X$82, 0), MATCH(str_CountryType, DEFN!$Q$10:$W$10, 0)), 0) -> 0.25 | AD39: 1
B40: Power | C40: 1 | D40: Experience | E40: 0.25 | F40: Finance | G40: 0.4 | H40: Clean energy investment | I40: No | J40: 0.45 | K40: 0.045 | L40: =IFERROR(INDEX(IND!$S$11:$S$11410, MATCH(Y40&" > "&$B$4, IND!$AC$11:$AC$11410, 0), 1)*IF(LEFT(W40,1)="%", 100, 1), 0) -> 49083.87219 | M40: $ million | N40: =IF(K40="", "", IFERROR(K40*dbl_ScoreMax*MAX(0, IFERROR(INDEX(IND!$V$11:$V$11410, MATCH(Y40&" > "&$B$4, IND!$AC$11:$AC$11410, 0), 1), 0))/100, 0)) -> 0.07609715867 | O40: 0.3382095941 | P40: =IF(ISNUMBER(FIND("Growth", Y40)), 0, COUNTIFS(DEFN!$U$88:$U$273,Y40)) -> 1 | Q40: 30 | R40: =IFERROR(INDEX(DEFN!B$13:B$82, $Q40, 1), "Cannot Find: " & R$10) -> Power | S40: =IFERROR(INDEX(DEFN!C$13:C$82, $Q40, 1), "Cannot Find: " & S$10) -> Experience | T40: =IFERROR(INDEX(DEFN!D$13:D$82, $Q40, 1), "Cannot Find: " & T$10) -> Finance | U40: =IFERROR(INDEX(DEFN!E$13:E$82, $Q40, 1), "Cannot Find: " & U$10) -> Clean energy investment | V40: =IFERROR(INDEX(DEFN!$F$13:$F$82, $Q40), "Cannot Find Indicator") -> No | W40: =IFERROR(INDEX(DEFN!$K$13:$K$82, $Q40, 1), "Cannot Find Indicator") -> $ million | X40: Finance | Y40: Power - Clean energy investment | Z40: =IFERROR(INDEX(DEFN!$Q$13:$W$82, MATCH(Y40, DEFN!$X$13:$X$82, 0), MATCH(str_CountryType, DEFN!$Q$10:$W$10, 0)), 0) -> 0.45
B41: Power | C41: 1 | D41: Experience | E41: 0.25 | F41: Finance | G41: 0.4 | H41: Growth rate of clean energy investment | I41: No | J41: 0.3 | K41: 0.03 | L41: =IFERROR(INDEX(IND!$S$11:$S$11410, MATCH(Y41&" > "&$B$4, IND!$AC$11:$AC$11410, 0), 1)*IF(LEFT(W41,1)="%", 100, 1), 0) -> 14.08464031 | M41: % | N41: =IF(K41="", "", IFERROR(K41*dbl_ScoreMax*MAX(0, IFERROR(INDEX(IND!$V$11:$V$11410, MATCH(Y41&" > "&$B$4, IND!$AC$11:$AC$11410, 0), 1), 0))/100, 0)) -> 0.01408464031 | O41: 0.09389760205 | P41: =IF(ISNUMBER(FIND("Growth", Y41)), 0, COUNTIFS(DEFN!$U$88:$U$273,Y41)) -> 0 | Q41: 31 | R41: =IFERROR(INDEX(DEFN!B$13:B$82, $Q41, 1), "Cannot Find: " & R$10) -> Power | S41: =IFERROR(INDEX(DEFN!C$13:C$82, $Q41, 1), "Cannot Find: " & S$10) -> Experience | T41: =IFERROR(INDEX(DEFN!D$13:D$82, $Q41, 1), "Cannot Find: " & T$10) -> Finance | U41: =IFERROR(INDEX(DEFN!E$13:E$82, $Q41, 1), "Cannot Find: " & U$10) -> Growth rate of clean energy investment | V41: =IFERROR(INDEX(DEFN!$F$13:$F$82, $Q41), "Cannot Find Indicator") -> No | W41: =IFERROR(INDEX(DEFN!$K$13:$K$82, $Q41, 1), "Cannot Find Indicator") -> % | X41: Finance | Y41: Power - Growth rate of clean energy investment | Z41: =IFERROR(INDEX(DEFN!$Q$13:$W$82, MATCH(Y41, DEFN!$X$13:$X$82, 0), MATCH(str_CountryType, DEFN!$Q$10:$W$10, 0)), 0) -> 0.3
B42: Power | C42: 1 | D42: Experience | E42: 0.25 | F42: System | G42: 0.6 | H42: Clean energy installed capacity | I42: No | J42: 0.3 | K42: 0.045 | L42: =IFERROR(INDEX(IND!$S$11:$S$11410, MATCH(Y42&" > "&$B$4, IND!$AC$11:$AC$11410, 0), 1)*IF(LEFT(W42,1)="%", 100, 1), 0) -> 100216.97 | M42: MW | N42: =IF(K42="", "", IFERROR(K42*dbl_ScoreMax*MAX(0, IFERROR(INDEX(IND!$V$11:$V$11410, MATCH(Y42&" > "&$B$4, IND!$AC$11:$AC$11410, 0), 1), 0))/100, 0)) -> 0.08260711688 | O42: 0.3671427417 | P42: =IF(ISNUMBER(FIND("Growth", Y42)), 0, COUNTIFS(DEFN!$U$88:$U$273,Y42)) -> 14 | Q42: 32 | R42: =IFERROR(INDEX(DEFN!B$13:B$82, $Q42, 1), "Cannot Find: " & R$10) -> Power | S42: =IFERROR(INDEX(DEFN!C$13:C$82, $Q42, 1), "Cannot Find: " & S$10) -> Experience | T42: =IFERROR(INDEX(DEFN!D$13:D$82, $Q42, 1), "Cannot Find: " & T$10) -> System | U42: =IFERROR(INDEX(DEFN!E$13:E$82, $Q42, 1), "Cannot Find: " & U$10) -> Clean energy installed capacity | V42: =IFERROR(INDEX(DEFN!$F$13:$F$82, $Q42), "Cannot Find Indicator") -> No | W42: =IFERROR(INDEX(DEFN!$K$13:$K$82, $Q42, 1), "Cannot Find Indicator") -> MW | X42: System | Y42: Power - Clean energy installed capacity | Z42: =IFERROR(INDEX(DEFN!$Q$13:$W$82, MATCH(Y42, DEFN!$X$13:$X$82, 0), MATCH(str_CountryType, DEFN!$Q$10:$W$10, 0)), 0) -> 0.3 | AD42: 1
B43: Power | C43: =IFERROR(INDEX(C$85:C$133, MATCH(B43, B$85:B$133, 0), 1), 0) -> 1 | D43: Experience | E43: =IFERROR(INDEX(E$85:E$133, MATCH(D43, D$85:D$133, 0), 1)*1, 0) -> 0.25 | F43: System | G43: =SUMIFS($G$85:$G$133, $F$85:$F$133, F43, $D$85:$D$133, D43, $B$85:$B$133, B43) -> 0.6 | H43: Clean electricity generation excl. large hydro | I43: No | J43: =IF(ISNUMBER(Z43), Z43, IF(AND(Z43="None", L43<>0), (1-SUMIFS($Z$11:$Z$80, $F$11:$F$80, F43, $Z$11:$Z$80, ">0"))/COUNTIFS($F$11:$F$80, F43, $Z$11:$Z$80, "None", $L$11:$L$80, "<>0"), 0)) -> 0.3 | K43: 0.045 | L43: =IFERROR(INDEX(IND!$S$11:$S$11410, MATCH(Y43&" > "&$B$4, IND!$AC$11:$AC$11410, 0), 1)*IF(LEFT(W43,1)="%", 100, 1), 0) -> 143969.4 | M43: GWh | N43: =IF(K43="", "", IFERROR(K43*dbl_ScoreMax*MAX(0, IFERROR(INDEX(IND!$V$11:$V$11410, MATCH(Y43&" > "&$B$4, IND!$AC$11:$AC$11410, 0), 1), 0))/100, 0)) -> 0.02461541085 | O43: 0.109401826 | P43: =IF(ISNUMBER(FIND("Growth", Y43)), 0, COUNTIFS(DEFN!$U$88:$U$273,Y43)) -> 14 | Q43: 33 | R43: =IFERROR(INDEX(DEFN!B$13:B$82, $Q43, 1), "Cannot Find: " & R$10) -> Power | S43: =IFERROR(INDEX(DEFN!C$13:C$82, $Q43, 1), "Cannot Find: " & S$10) -> Experience | T43: =IFERROR(INDEX(DEFN!D$13:D$82, $Q43, 1), "Cannot Find: " & T$10) -> System | U43: =IFERROR(INDEX(DEFN!E$13:E$82, $Q43, 1), "Cannot Find: " & U$10) -> Clean electricity generation excl. large hydro | V43: =IFERROR(INDEX(DEFN!$F$13:$F$82, $Q43), "Cannot Find Indicator") -> No | W43: =IFERROR(INDEX(DEFN!$K$13:$K$82, $Q43, 1), "Cannot Find Indicator") -> GWh | X43: =F43 -> System | Y43: Power - Clean electricity generation excl. large hydro | Z43: =IFERROR(INDEX(DEFN!$Q$13:$W$82, MATCH(Y43, DEFN!$X$13:$X$82, 0), MATCH(str_CountryType, DEFN!$Q$10:$W$10, 0)), 0) -> 0.3 | AB43: =IF(B42<>B43, SUMIFS($E$11:$E$80, $B$11:$B$80, B43, $B$11:$B$80, B43, $E$11:$E$80, ">=0", $AC$11:$AC$80, ">=0"), "") ->  | AC43: =IF(D42<>D43, SUMIFS($G$11:$G$80, $D$11:$D$80, D43, $B$11:$B$80, B43, $G$11:$G$80, ">=0", $AD$11:$AD$80, ">=0"), "") ->  | AD43: =IF(F42<>F43, SUMIFS($Z$11:$Z$80, $F$11:$F$80, F43, $D$11:$D$80, D43, $B$11:$B$80, B43, $Z$11:$Z$80, ">=0"), "") -> 
B44: Power | C44: 1 | D44: Experience | E44: 0.25 | F44: System | G44: 0.6 | H44: Growth rate of clean electricity generation | I44: No | J44: 0.2 | K44: 0.03 | L44: =IFERROR(INDEX(IND!$S$11:$S$11410, MATCH(Y44&" > "&$B$4, IND!$AC$11:$AC$11410, 0), 1)*IF(LEFT(W44,1)="%", 100, 1), 0) -> 7.797634312 | M44: % | N44: =IF(K44="", "", IFERROR(K44*dbl_ScoreMax*MAX(0, IFERROR(INDEX(IND!$V$11:$V$11410, MATCH(Y44&" > "&$B$4, IND!$AC$11:$AC$11410, 0), 1), 0))/100, 0)) -> 0.007797634312 | O44: 0.05198422875 | P44: =IF(ISNUMBER(FIND("Growth", Y44)), 0, COUNTIFS(DEFN!$U$88:$U$273,Y44)) -> 0 | Q44: 34 | R44: =IFERROR(INDEX(DEFN!B$13:B$82, $Q44, 1), "Cannot Find: " & R$10) -> Power | S44: =IFERROR(INDEX(DEFN!C$13:C$82, $Q44, 1), "Cannot Find: " & S$10) -> Experience | T44: =IFERROR(INDEX(DEFN!D$13:D$82, $Q44, 1), "Cannot Find: " & T$10) -> System | U44: =IFERROR(INDEX(DEFN!E$13:E$82, $Q44, 1), "Cannot Find: " & U$10) -> Growth rate of clean electricity generation | V44: =IFERROR(INDEX(DEFN!$F$13:$F$82, $Q44), "Cannot Find Indicator") -> No | W44: =IFERROR(INDEX(DEFN!$K$13:$K$82, $Q44, 1), "Cannot Find Indicator") -> % | X44: System | Y44: Power - Growth rate of clean electricity generation | Z44: =IFERROR(INDEX(DEFN!$Q$13:$W$82, MATCH(Y44, DEFN!$X$13:$X$82, 0), MATCH(str_CountryType, DEFN!$Q$10:$W$10, 0)), 0) -> 0.2
B45: Power | C45: 1 | D45: Experience | E45: 0.25 | F45: System | G45: 0.6 | H45: Growth rate of clean installed capacity | I45: No | J45: 0.2 | K45: 0.03 | L45: =IFERROR(INDEX(IND!$S$11:$S$11410, MATCH(Y45&" > "&$B$4, IND!$AC$11:$AC$11410, 0), 1)*IF(LEFT(W45,1)="%", 100, 1), 0) -> 5.745447754 | M45: % | N45: =IF(K45="", "", IFERROR(K45*dbl_ScoreMax*MAX(0, IFERROR(INDEX(IND!$V$11:$V$11410, MATCH(Y45&" > "&$B$4, IND!$AC$11:$AC$11410, 0), 1), 0))/100, 0)) -> 0.005745447754 | O45: 0.03830298503 | P45: =IF(ISNUMBER(FIND("Growth", Y45)), 0, COUNTIFS(DEFN!$U$88:$U$273,Y45)) -> 0 | Q45: 35 | R45: =IFERROR(INDEX(DEFN!B$13:B$82, $Q45, 1), "Cannot Find: " & R$10) -> Power | S45: =IFERROR(INDEX(DEFN!C$13:C$82, $Q45, 1), "Cannot Find: " & S$10) -> Experience | T45: =IFERROR(INDEX(DEFN!D$13:D$82, $Q45, 1), "Cannot Find: " & T$10) -> System | U45: =IFERROR(INDEX(DEFN!E$13:E$82, $Q45, 1), "Cannot Find: " & U$10) -> Growth rate of clean installed capacity | V45: =IFERROR(INDEX(DEFN!$F$13:$F$82, $Q45), "Cannot Find Indicator") -> No | W45: =IFERROR(INDEX(DEFN!$K$13:$K$82, $Q45, 1), "Cannot Find Indicator") -> % | X45: System | Y45: Power - Growth rate of clean installed capacity | Z45: =IFERROR(INDEX(DEFN!$Q$13:$W$82, MATCH(Y45, DEFN!$X$13:$X$82, 0), MATCH(str_CountryType, DEFN!$Q$10:$W$10, 0)), 0) -> 0.2
B46: Transport | C46: 0 | D46: Fundamentals | E46: 0.5 | F46: Policy - Transport | G46: 0.55 | H46: Policy - Transport | I46: No | J46: 1 | K46: 0 | L46: =IFERROR(INDEX(IND!$S$11:$S$11410, MATCH(Y46&" > "&$B$4, IND!$AC$11:$AC$11410, 0), 1)*IF(LEFT(W46,1)="%", 100, 1), 0) -> 90 | M46: Policies | N46: =IF(K46="", "", IFERROR(K46*dbl_ScoreMax*MAX(0, IFERROR(INDEX(IND!$V$11:$V$11410, MATCH(Y46&" > "&$B$4, IND!$AC$11:$AC$11410, 0), 1), 0))/100, 0)) -> 0 | P46: =IF(ISNUMBER(FIND("Growth", Y46)), 0, COUNTIFS(DEFN!$U$88:$U$273,Y46)) -> 11 | Q46: 36 | R46: =IFERROR(INDEX(DEFN!B$13:B$82, $Q46, 1), "Cannot Find: " & R$10) -> Transport | S46: =IFERROR(INDEX(DEFN!C$13:C$82, $Q46, 1), "Cannot Find: " & S$10) -> Fundamentals | T46: =IFERROR(INDEX(DEFN!D$13:D$82, $Q46, 1), "Cannot Find: " & T$10) -> Policy - Transport | U46: =IFERROR(INDEX(DEFN!E$13:E$82, $Q46, 1), "Cannot Find: " & U$10) -> Policy - Transport | V46: =IFERROR(INDEX(DEFN!$F$13:$F$82, $Q46), "Cannot Find Indicator") -> No | W46: =IFERROR(INDEX(DEFN!$K$13:$K$82, $Q46, 1), "Cannot Find Indicator") -> Policies | X46: Policy - Transport | Y46: Transport - Policy - Transport | Z46: =IFERROR(INDEX(DEFN!$Q$13:$W$82, MATCH(Y46, DEFN!$X$13:$X$82, 0), MATCH(str_CountryType, DEFN!$Q$10:$W$10, 0)), 0) -> 1 | AB46: 1 | AC46: 1 | AD46: 1
B47: Transport | C47: 0 | D47: Fundamentals | E47: 0.5 | F47: Policy - Climate change | G47: 0.1 | H47: Policy - Climate change | I47: No | J47: 1 | K47: 0 | L47: =IFERROR(INDEX(IND!$S$11:$S$11410, MATCH(Y47&" > "&$B$4, IND!$AC$11:$AC$11410, 0), 1)*IF(LEFT(W47,1)="%", 100, 1), 0) -> 2.75 | M47: Score | N47: =IF(K47="", "", IFERROR(K47*dbl_ScoreMax*MAX(0, IFERROR(INDEX(IND!$V$11:$V$11410, MATCH(Y47&" > "&$B$4, IND!$AC$11:$AC$11410, 0), 1), 0))/100, 0)) -> 0 | P47: =IF(ISNUMBER(FIND("Growth", Y47)), 0, COUNTIFS(DEFN!$U$88:$U$273,Y47)) -> 5 | Q47: 37 | R47: =IFERROR(INDEX(DEFN!B$13:B$82, $Q47, 1), "Cannot Find: " & R$10) -> Transport | S47: =IFERROR(INDEX(DEFN!C$13:C$82, $Q47, 1), "Cannot Find: " & S$10) -> Fundamentals | T47: =IFERROR(INDEX(DEFN!D$13:D$82, $Q47, 1), "Cannot Find: " & T$10) -> Policy - Climate change | U47: =IFERROR(INDEX(DEFN!E$13:E$82, $Q47, 1), "Cannot Find: " & U$10) -> Policy - Climate change | V47: =IFERROR(INDEX(DEFN!$F$13:$F$82, $Q47), "Cannot Find Indicator") -> No | W47: =IFERROR(INDEX(DEFN!$K$13:$K$82, $Q47, 1), "Cannot Find Indicator") -> Score | X47: Policy - Climate change | Y47: Transport - Policy - Climate change | Z47: =IFERROR(INDEX(DEFN!$Q$13:$W$82, MATCH(Y47, DEFN!$X$13:$X$82, 0), MATCH(str_CountryType, DEFN!$Q$10:$W$10, 0)), 0) -> 1 | AD47: 1
B48: Transport | C48: 0 | D48: Fundamentals | E48: 0.5 | F48: Barriers - Transport | G48: 0.2 | H48: Barriers - Transport | I48: No | J48: 1 | K48: 0 | L48: =IFERROR(INDEX(IND!$S$11:$S$11410, MATCH(Y48&" > "&$B$4, IND!$AC$11:$AC$11410, 0), 1)*IF(LEFT(W48,1)="%", 100, 1), 0) -> 0.5 | M48: Score | N48: =IF(K48="", "", IFERROR(K48*dbl_ScoreMax*MAX(0, IFERROR(INDEX(IND!$V$11:$V$11410, MATCH(Y48&" > "&$B$4, IND!$AC$11:$AC$11410, 0), 1), 0))/100, 0)) -> 0 | P48: =IF(ISNUMBER(FIND("Growth", Y48)), 0, COUNTIFS(DEFN!$U$88:$U$273,Y48)) -> 1 | Q48: 38 | R48: =IFERROR(INDEX(DEFN!B$13:B$82, $Q48, 1), "Cannot Find: " & R$10) -> Transport | S48: =IFERROR(INDEX(DEFN!C$13:C$82, $Q48, 1), "Cannot Find: " & S$10) -> Fundamentals | T48: =IFERROR(INDEX(DEFN!D$13:D$82, $Q48, 1), "Cannot Find: " & T$10) -> Barriers - Transport | U48: =IFERROR(INDEX(DEFN!E$13:E$82, $Q48, 1), "Cannot Find: " & U$10) -> Barriers - Transport | V48: =IFERROR(INDEX(DEFN!$F$13:$F$82, $Q48), "Cannot Find Indicator") -> No | W48: =IFERROR(INDEX(DEFN!$K$13:$K$82, $Q48, 1), "Cannot Find Indicator") -> Score | X48: Barriers - Transport | Y48: Transport - Barriers - Transport | Z48: =IFERROR(INDEX(DEFN!$Q$13:$W$82, MATCH(Y48, DEFN!$X$13:$X$82, 0), MATCH(str_CountryType, DEFN!$Q$10:$W$10, 0)), 0) -> 1 | AD48: 1
B49: Transport | C49: 0 | D49: Fundamentals | E49: 0.5 | F49: Incentives - Transport | G49: 0.05 | H49: Incentives - Transport | I49: No | J49: 1 | K49: 0 | L49: =IFERROR(INDEX(IND!$S$11:$S$11410, MATCH(Y49&" > "&$B$4, IND!$AC$11:$AC$11410, 0), 1)*IF(LEFT(W49,1)="%", 100, 1), 0) -> 0.5 | M49: Score | N49: =IF(K49="", "", IFERROR(K49*dbl_ScoreMax*MAX(0, IFERROR(INDEX(IND!$V$11:$V$11410, MATCH(Y49&" > "&$B$4, IND!$AC$11:$AC$11410, 0), 1), 0))/100, 0)) -> 0 | P49: =IF(ISNUMBER(FIND("Growth", Y49)), 0, COUNTIFS(DEFN!$U$88:$U$273,Y49)) -> 1 | Q49: 39 | R49: =IFERROR(INDEX(DEFN!B$13:B$82, $Q49, 1), "Cannot Find: " & R$10) -> Transport | S49: =IFERROR(INDEX(DEFN!C$13:C$82, $Q49, 1), "Cannot Find: " & S$10) -> Fundamentals | T49: =IFERROR(INDEX(DEFN!D$13:D$82, $Q49, 1), "Cannot Find: " & T$10) -> Incentives - Transport | U49: =IFERROR(INDEX(DEFN!E$13:E$82, $Q49, 1), "Cannot Find: " & U$10) -> Incentives - Transport | V49: =IFERROR(INDEX(DEFN!$F$13:$F$82, $Q49), "Cannot Find Indicator") -> No | W49: =IFERROR(INDEX(DEFN!$K$13:$K$82, $Q49, 1), "Cannot Find Indicator") -> Score | X49: Incentives - Transport | Y49: Transport - Incentives - Transport | Z49: =IFERROR(INDEX(DEFN!$Q$13:$W$82, MATCH(Y49, DEFN!$X$13:$X$82, 0), MATCH(str_CountryType, DEFN!$Q$10:$W$10, 0)), 0) -> 1 | AD49: 1
B50: Transport | C50: 0 | D50: Fundamentals | E50: 0.5 | F50: Currency variation | G50: 0.1 | H50: Currency variation | I50: No | J50: 1 | K50: 0 | L50: =IFERROR(INDEX(IND!$S$11:$S$11410, MATCH(Y50&" > "&$B$4, IND!$AC$11:$AC$11410, 0), 1)*IF(LEFT(W50,1)="%", 100, 1), 0) -> 0.5 | M50: Score | N50: =IF(K50="", "", IFERROR(K50*dbl_ScoreMax*MAX(0, IFERROR(INDEX(IND!$V$11:$V$11410, MATCH(Y50&" > "&$B$4, IND!$AC$11:$AC$11410, 0), 1), 0))/100, 0)) -> 0 | P50: =IF(ISNUMBER(FIND("Growth", Y50)), 0, COUNTIFS(DEFN!$U$88:$U$273,Y50)) -> 1 | Q50: 40 | R50: =IFERROR(INDEX(DEFN!B$13:B$82, $Q50, 1), "Cannot Find: " & R$10) -> Transport | S50: =IFERROR(INDEX(DEFN!C$13:C$82, $Q50, 1), "Cannot Find: " & S$10) -> Fundamentals | T50: =IFERROR(INDEX(DEFN!D$13:D$82, $Q50, 1), "Cannot Find: " & T$10) -> Currency variation | U50: =IFERROR(INDEX(DEFN!E$13:E$82, $Q50, 1), "Cannot Find: " & U$10) -> Currency variation | V50: =IFERROR(INDEX(DEFN!$F$13:$F$82, $Q50), "Cannot Find Indicator") -> No | W50: =IFERROR(INDEX(DEFN!$K$13:$K$82, $Q50, 1), "Cannot Find Indicator") -> Score | X50: Currency variation | Y50: Transport - Currency variation | Z50: =IFERROR(INDEX(DEFN!$Q$13:$W$82, MATCH(Y50, DEFN!$X$13:$X$82, 0), MATCH(str_CountryType, DEFN!$Q$10:$W$10, 0)), 0) -> 1 | AD50: 1
B51: Transport | C51: 0 | D51: Opportunities | E51: 0.25 | F51: Influence on fuel prices | G51: 0.2 | H51: Influence on fuel prices | I51: No | J51: 1 | K51: 0 | L51: =IFERROR(INDEX(IND!$S$11:$S$11410, MATCH(Y51&" > "&$B$4, IND!$AC$11:$AC$11410, 0), 1)*IF(LEFT(W51,1)="%", 100, 1), 0) -> 2 | M51: Score | N51: =IF(K51="", "", IFERROR(K51*dbl_ScoreMax*MAX(0, IFERROR(INDEX(IND!$V$11:$V$11410, MATCH(Y51&" > "&$B$4, IND!$AC$11:$AC$11410, 0), 1), 0))/100, 0)) -> 0 | P51: =IF(ISNUMBER(FIND("Growth", Y51)), 0, COUNTIFS(DEFN!$U$88:$U$273,Y51)) -> 2 | Q51: 41 | R51: =IFERROR(INDEX(DEFN!B$13:B$82, $Q51, 1), "Cannot Find: " & R$10) -> Transport | S51: =IFERROR(INDEX(DEFN!C$13:C$82, $Q51, 1), "Cannot Find: " & S$10) -> Opportunities | T51: =IFERROR(INDEX(DEFN!D$13:D$82, $Q51, 1), "Cannot Find: " & T$10) -> Influence on fuel prices | U51: =IFERROR(INDEX(DEFN!E$13:E$82, $Q51, 1), "Cannot Find: " & U$10) -> Influence on fuel prices | V51: =IFERROR(INDEX(DEFN!$F$13:$F$82, $Q51), "Cannot Find Indicator") -> No | W51: =IFERROR(INDEX(DEFN!$K$13:$K$82, $Q51, 1), "Cannot Find Indicator") -> Score | X51: Influence on fuel prices | Y51: Transport - Influence on fuel prices | Z51: =IFERROR(INDEX(DEFN!$Q$13:$W$82, MATCH(Y51, DEFN!$X$13:$X$82, 0), MATCH(str_CountryType, DEFN!$Q$10:$W$10, 0)), 0) -> 1 | AC51: 1 | AD51: 1
B52: Transport | C52: 0 | D52: Opportunities | E52: 0.25 | F52: Prices and costs - Transport | G52: 0.2 | H52: Average electricity prices | I52: No | J52: 0.5 | K52: 0 | L52: =IFERROR(INDEX(IND!$S$11:$S$11410, MATCH(Y52&" > "&$B$4, IND!$AC$11:$AC$11410, 0), 1)*IF(LEFT(W52,1)="%", 100, 1), 0) -> 98.287496 | M52: $/MWh | N52: =IF(K52="", "", IFERROR(K52*dbl_ScoreMax*MAX(0, IFERROR(INDEX(IND!$V$11:$V$11410, MATCH(Y52&" > "&$B$4, IND!$AC$11:$AC$11410, 0), 1), 0))/100, 0)) -> 0 | P52: =IF(ISNUMBER(FIND("Growth", Y52)), 0, COUNTIFS(DEFN!$U$88:$U$273,Y52)) -> 1 | Q52: 42 | R52: =IFERROR(INDEX(DEFN!B$13:B$82, $Q52, 1), "Cannot Find: " & R$10) -> Transport | S52: =IFERROR(INDEX(DEFN!C$13:C$82, $Q52, 1), "Cannot Find: " & S$10) -> Opportunities | T52: =IFERROR(INDEX(DEFN!D$13:D$82, $Q52, 1), "Cannot Find: " & T$10) -> Prices and costs - Transport | U52: =IFERROR(INDEX(DEFN!E$13:E$82, $Q52, 1), "Cannot Find: " & U$10) -> Average electricity prices | V52: =IFERROR(INDEX(DEFN!$F$13:$F$82, $Q52), "Cannot Find Indicator") -> No | W52: =IFERROR(INDEX(DEFN!$K$13:$K$82, $Q52, 1), "Cannot Find Indicator") -> $/MWh | X52: Prices and costs - Transport | Y52: Transport - Average electricity prices | Z52: =IFERROR(INDEX(DEFN!$Q$13:$W$82, MATCH(Y52, DEFN!$X$13:$X$82, 0), MATCH(str_CountryType, DEFN!$Q$10:$W$10, 0)), 0) -> 0.5 | AD52: 1
B53: Transport | C53: 0 | D53: Opportunities | E53: 0.25 | F53: Prices and costs - Transport | G53: 0.2 | H53: Average gasoline prices | I53: No | J53: 0.5 | K53: 0 | L53: =IFERROR(INDEX(IND!$S$11:$S$11410, MATCH(Y53&" > "&$B$4, IND!$AC$11:$AC$11410, 0), 1)*IF(LEFT(W53,1)="%", 100, 1), 0) -> 1.080508989 | M53: $/Litre | N53: =IF(K53="", "", IFERROR(K53*dbl_ScoreMax*MAX(0, IFERROR(INDEX(IND!$V$11:$V$11410, MATCH(Y53&" > "&$B$4, IND!$AC$11:$AC$11410, 0), 1), 0))/100, 0)) -> 0 | P53: =IF(ISNUMBER(FIND("Growth", Y53)), 0, COUNTIFS(DEFN!$U$88:$U$273,Y53)) -> 1 | Q53: 43 | R53: =IFERROR(INDEX(DEFN!B$13:B$82, $Q53, 1), "Cannot Find: " & R$10) -> Transport | S53: =IFERROR(INDEX(DEFN!C$13:C$82, $Q53, 1), "Cannot Find: " & S$10) -> Opportunities | T53: =IFERROR(INDEX(DEFN!D$13:D$82, $Q53, 1), "Cannot Find: " & T$10) -> Prices and costs - Transport | U53: =IFERROR(INDEX(DEFN!E$13:E$82, $Q53, 1), "Cannot Find: " & U$10) -> Average gasoline prices | V53: =IFERROR(INDEX(DEFN!$F$13:$F$82, $Q53), "Cannot Find Indicator") -> No | W53: =IFERROR(INDEX(DEFN!$K$13:$K$82, $Q53, 1), "Cannot Find Indicator") -> $/Litre | X53: Prices and costs - Transport | Y53: Transport - Average gasoline prices | Z53: =IFERROR(INDEX(DEFN!$Q$13:$W$82, MATCH(Y53, DEFN!$X$13:$X$82, 0), MATCH(str_CountryType, DEFN!$Q$10:$W$10, 0)), 0) -> 0.5
B54: Transport | C54: 0 | D54: Opportunities | E54: 0.25 | F54: Market size - Transport | G54: 0.2 | H54: Market size - Transport | I54: No | J54: 1 | K54: 0 | L54: =IFERROR(INDEX(IND!$S$11:$S$11410, MATCH(Y54&" > "&$B$4, IND!$AC$11:$AC$11410, 0), 1)*IF(LEFT(W54,1)="%", 100, 1), 0) -> 18.79737165 | M54: % Growth | N54: =IF(K54="", "", IFERROR(K54*dbl_ScoreMax*MAX(0, IFERROR(INDEX(IND!$V$11:$V$11410, MATCH(Y54&" > "&$B$4, IND!$AC$11:$AC$11410, 0), 1), 0))/100, 0)) -> 0 | P54: =IF(ISNUMBER(FIND("Growth", Y54)), 0, COUNTIFS(DEFN!$U$88:$U$273,Y54)) -> 3 | Q54: 44 | R54: =IFERROR(INDEX(DEFN!B$13:B$82, $Q54, 1), "Cannot Find: " & R$10) -> Transport | S54: =IFERROR(INDEX(DEFN!C$13:C$82, $Q54, 1), "Cannot Find: " & S$10) -> Opportunities | T54: =IFERROR(INDEX(DEFN!D$13:D$82, $Q54, 1), "Cannot Find: " & T$10) -> Market size - Transport | U54: =IFERROR(INDEX(DEFN!E$13:E$82, $Q54, 1), "Cannot Find: " & U$10) -> Market size - Transport | V54: =IFERROR(INDEX(DEFN!$F$13:$F$82, $Q54), "Cannot Find Indicator") -> No | W54: =IFERROR(INDEX(DEFN!$K$13:$K$82, $Q54, 1), "Cannot Find Indicator") -> % Growth | X54: Market size - Transport | Y54: Transport - Market size - Transport | Z54: =IFERROR(INDEX(DEFN!$Q$13:$W$82, MATCH(Y54, DEFN!$X$13:$X$82, 0), MATCH(str_CountryType, DEFN!$Q$10:$W$10, 0)), 0) -> 1 | AD54: 1
B55: Transport | C55: 0 | D55: Opportunities | E55: 0.25 | F55: Carbon Intensity - Transport | G55: 0.1 | H55: Carbon Intensity - Transport | I55: No | J55: 1 | K55: 0 | L55: =IFERROR(INDEX(IND!$S$11:$S$11410, MATCH(Y55&" > "&$B$4, IND!$AC$11:$AC$11410, 0), 1)*IF(LEFT(W55,1)="%", 100, 1), 0) -> 305.4554169 | M55: Mt CO2e | N55: =IF(K55="", "", IFERROR(K55*dbl_ScoreMax*MAX(0, IFERROR(INDEX(IND!$V$11:$V$11410, MATCH(Y55&" > "&$B$4, IND!$AC$11:$AC$11410, 0), 1), 0))/100, 0)) -> 0 | P55: =IF(ISNUMBER(FIND("Growth", Y55)), 0, COUNTIFS(DEFN!$U$88:$U$273,Y55)) -> 2 | Q55: 45 | R55: =IFERROR(INDEX(DEFN!B$13:B$82, $Q55, 1), "Cannot Find: " & R$10) -> Transport | S55: =IFERROR(INDEX(DEFN!C$13:C$82, $Q55, 1), "Cannot Find: " & S$10) -> Opportunities | T55: =IFERROR(INDEX(DEFN!D$13:D$82, $Q55, 1), "Cannot Find: " & T$10) -> Carbon Intensity - Transport | U55: =IFERROR(INDEX(DEFN!E$13:E$82, $Q55, 1), "Cannot Find: " & U$10) -> Carbon Intensity - Transport | V55: =IFERROR(INDEX(DEFN!$F$13:$F$82, $Q55), "Cannot Find Indicator") -> No | W55: =IFERROR(INDEX(DEFN!$K$13:$K$82, $Q55, 1), "Cannot Find Indicator") -> Mt CO2e | X55: Carbon Intensity - Transport | Y55: Transport - Carbon Intensity - Transport | Z55: =IFERROR(INDEX(DEFN!$Q$13:$W$82, MATCH(Y55, DEFN!$X$13:$X$82, 0), MATCH(str_CountryType, DEFN!$Q$10:$W$10, 0)), 0) -> 1 | AD55: 1
B56: Transport | C56: 0 | D56: Opportunities | E56: 0.25 | F56: Clean power - Transport | G56: 0.1 | H56: Clean power - Transport | I56: No | J56: 1 | K56: 0 | L56: =IFERROR(INDEX(IND!$S$11:$S$11410, MATCH(Y56&" > "&$B$4, IND!$AC$11:$AC$11410, 0), 1)*IF(LEFT(W56,1)="%", 100, 1), 0) -> 22.02412466 | M56: % | N56: =IF(K56="", "", IFERROR(K56*dbl_ScoreMax*MAX(0, IFERROR(INDEX(IND!$V$11:$V$11410, MATCH(Y56&" > "&$B$4, IND!$AC$11:$AC$11410, 0), 1), 0))/100, 0)) -> 0 | P56: =IF(ISNUMBER(FIND("Growth", Y56)), 0, COUNTIFS(DEFN!$U$88:$U$273,Y56)) -> 1 | Q56: 46 | R56: =IFERROR(INDEX(DEFN!B$13:B$82, $Q56, 1), "Cannot Find: " & R$10) -> Transport | S56: =IFERROR(INDEX(DEFN!C$13:C$82, $Q56, 1), "Cannot Find: " & S$10) -> Opportunities | T56: =IFERROR(INDEX(DEFN!D$13:D$82, $Q56, 1), "Cannot Find: " & T$10) -> Clean power - Transport | U56: =IFERROR(INDEX(DEFN!E$13:E$82, $Q56, 1), "Cannot Find: " & U$10) -> Clean power - Transport | V56: =IFERROR(INDEX(DEFN!$F$13:$F$82, $Q56), "Cannot Find Indicator") -> No | W56: =IFERROR(INDEX(DEFN!$K$13:$K$82, $Q56, 1), "Cannot Find Indicator") -> % | X56: Clean power - Transport | Y56: Transport - Clean power - Transport | Z56: =IFERROR(INDEX(DEFN!$Q$13:$W$82, MATCH(Y56, DEFN!$X$13:$X$82, 0), MATCH(str_CountryType, DEFN!$Q$10:$W$10, 0)), 0) -> 1 | AD56: 1
B57: Transport | C57: 0 | D57: Opportunities | E57: 0.25 | F57: Corporate commitments | G57: 0.05 | H57: Corporate commitments | I57: No | J57: 1 | K57: 0 | L57: =IFERROR(INDEX(IND!$S$11:$S$11410, MATCH(Y57&" > "&$B$4, IND!$AC$11:$AC$11410, 0), 1)*IF(LEFT(W57,1)="%", 100, 1), 0) -> 0.2174856917 | M57: Companies | N57: =IF(K57="", "", IFERROR(K57*dbl_ScoreMax*MAX(0, IFERROR(INDEX(IND!$V$11:$V$11410, MATCH(Y57&" > "&$B$4, IND!$AC$11:$AC$11410, 0), 1), 0))/100, 0)) -> 0 | P57: =IF(ISNUMBER(FIND("Growth", Y57)), 0, COUNTIFS(DEFN!$U$88:$U$273,Y57)) -> 3 | Q57: 47 | R57: =IFERROR(INDEX(DEFN!B$13:B$82, $Q57, 1), "Cannot Find: " & R$10) -> Transport | S57: =IFERROR(INDEX(DEFN!C$13:C$82, $Q57, 1), "Cannot Find: " & S$10) -> Opportunities | T57: =IFERROR(INDEX(DEFN!D$13:D$82, $Q57, 1), "Cannot Find: " & T$10) -> Corporate commitments | U57: =IFERROR(INDEX(DEFN!E$13:E$82, $Q57, 1), "Cannot Find: " & U$10) -> Corporate commitments | V57: =IFERROR(INDEX(DEFN!$F$13:$F$82, $Q57), "Cannot Find Indicator") -> No | W57: =IFERROR(INDEX(DEFN!$K$13:$K$82, $Q57, 1), "Cannot Find Indicator") -> Companies | X57: Corporate commitments | Y57: Transport - Corporate commitments | Z57: =IFERROR(INDEX(DEFN!$Q$13:$W$82, MATCH(Y57, DEFN!$X$13:$X$82, 0), MATCH(str_CountryType, DEFN!$Q$10:$W$10, 0)), 0) -> 1 | AD57: 1
B58: Transport | C58: 0 | D58: Opportunities | E58: 0.25 | F58: GDP growth - 5 year IMF outlook | G58: 0.15 | H58: GDP growth - 5 year IMF outlook | I58: No | J58: 1 | K58: 0 | L58: =IFERROR(INDEX(IND!$S$11:$S$11410, MATCH(Y58&" > "&$B$4, IND!$AC$11:$AC$11410, 0), 1)*IF(LEFT(W58,1)="%", 100, 1), 0) -> 49.14192204 | M58: % | N58: =IF(K58="", "", IFERROR(K58*dbl_ScoreMax*MAX(0, IFERROR(INDEX(IND!$V$11:$V$11410, MATCH(Y58&" > "&$B$4, IND!$AC$11:$AC$11410, 0), 1), 0))/100, 0)) -> 0 | P58: =IF(ISNUMBER(FIND("Growth", Y58)), 0, COUNTIFS(DEFN!$U$88:$U$273,Y58)) -> 1 | Q58: 48 | R58: =IFERROR(INDEX(DEFN!B$13:B$82, $Q58, 1), "Cannot Find: " & R$10) -> Transport | S58: =IFERROR(INDEX(DEFN!C$13:C$82, $Q58, 1), "Cannot Find: " & S$10) -> Opportunities | T58: =IFERROR(INDEX(DEFN!D$13:D$82, $Q58, 1), "Cannot Find: " & T$10) -> GDP growth - 5 year IMF outlook | U58: =IFERROR(INDEX(DEFN!E$13:E$82, $Q58, 1), "Cannot Find: " & U$10) -> GDP growth - 5 year IMF outlook | V58: =IFERROR(INDEX(DEFN!$F$13:$F$82, $Q58), "Cannot Find Indicator") -> No | W58: =IFERROR(INDEX(DEFN!$K$13:$K$82, $Q58, 1), "Cannot Find Indicator") -> % | X58: GDP growth - 5 year IMF outlook | Y58: Transport - GDP growth - 5 year IMF outlook | Z58: =IFERROR(INDEX(DEFN!$Q$13:$W$82, MATCH(Y58, DEFN!$X$13:$X$82, 0), MATCH(str_CountryType, DEFN!$Q$10:$W$10, 0)), 0) -> 1 | AD58: 1
B59: Transport | C59: 0 | D59: Experience | E59: 0.25 | F59: Finance - Transport | G59: 0.5 | H59: Electrified vehicles investment | I59: No | J59: 0.5 | K59: 0 | L59: =IFERROR(INDEX(IND!$S$11:$S$11410, MATCH(Y59&" > "&$B$4, IND!$AC$11:$AC$11410, 0), 1)*IF(LEFT(W59,1)="%", 100, 1), 0) -> 676.6421751 | M59: $ million | N59: =IF(K59="", "", IFERROR(K59*dbl_ScoreMax*MAX(0, IFERROR(INDEX(IND!$V$11:$V$11410, MATCH(Y59&" > "&$B$4, IND!$AC$11:$AC$11410, 0), 1), 0))/100, 0)) -> 0 | P59: =IF(ISNUMBER(FIND("Growth", Y59)), 0, COUNTIFS(DEFN!$U$88:$U$273,Y59)) -> 0 | Q59: 49 | R59: =IFERROR(INDEX(DEFN!B$13:B$82, $Q59, 1), "Cannot Find: " & R$10) -> Transport | S59: =IFERROR(INDEX(DEFN!C$13:C$82, $Q59, 1), "Cannot Find: " & S$10) -> Experience | T59: =IFERROR(INDEX(DEFN!D$13:D$82, $Q59, 1), "Cannot Find: " & T$10) -> Finance - Transport | U59: =IFERROR(INDEX(DEFN!E$13:E$82, $Q59, 1), "Cannot Find: " & U$10) -> Electrified vehicles investment | V59: =IFERROR(INDEX(DEFN!$F$13:$F$82, $Q59), "Cannot Find Indicator") -> No | W59: =IFERROR(INDEX(DEFN!$K$13:$K$82, $Q59, 1), "Cannot Find Indicator") -> $ million | X59: Finance - Transport | Y59: Transport - Electrified vehicles investment | Z59: =IFERROR(INDEX(DEFN!$Q$13:$W$82, MATCH(Y59, DEFN!$X$13:$X$82, 0), MATCH(str_CountryType, DEFN!$Q$10:$W$10, 0)), 0) -> 0.5 | AC59: 1 | AD59: 1
B60: Transport | C60: 0 | D60: Experience | E60: 0.25 | F60: Finance - Transport | G60: 0.5 | H60: Growth rate of electrified vehicles investment | I60: No | J60: 0.5 | K60: 0 | L60: =IFERROR(INDEX(IND!$S$11:$S$11410, MATCH(Y60&" > "&$B$4, IND!$AC$11:$AC$11410, 0), 1)*IF(LEFT(W60,1)="%", 100, 1), 0) -> 24.2965143 | M60: % | N60: =IF(K60="", "", IFERROR(K60*dbl_ScoreMax*MAX(0, IFERROR(INDEX(IND!$V$11:$V$11410, MATCH(Y60&" > "&$B$4, IND!$AC$11:$AC$11410, 0), 1), 0))/100, 0)) -> 0 | P60: =IF(ISNUMBER(FIND("Growth", Y60)), 0, COUNTIFS(DEFN!$U$88:$U$273,Y60)) -> 0 | Q60: 50 | R60: =IFERROR(INDEX(DEFN!B$13:B$82, $Q60, 1), "Cannot Find: " & R$10) -> Transport | S60: =IFERROR(INDEX(DEFN!C$13:C$82, $Q60, 1), "Cannot Find: " & S$10) -> Experience | T60: =IFERROR(INDEX(DEFN!D$13:D$82, $Q60, 1), "Cannot Find: " & T$10) -> Finance - Transport | U60: =IFERROR(INDEX(DEFN!E$13:E$82, $Q60, 1), "Cannot Find: " & U$10) -> Growth rate of electrified vehicles investment | V60: =IFERROR(INDEX(DEFN!$F$13:$F$82, $Q60), "Cannot Find Indicator") -> No | W60: =IFERROR(INDEX(DEFN!$K$13:$K$82, $Q60, 1), "Cannot Find Indicator") -> % | X60: Finance - Transport | Y60: Transport - Growth rate of electrified vehicles investment | Z60: =IFERROR(INDEX(DEFN!$Q$13:$W$82, MATCH(Y60, DEFN!$X$13:$X$82, 0), MATCH(str_CountryType, DEFN!$Q$10:$W$10, 0)), 0) -> 0.5
B61: Transport | C61: 0 | D61: Experience | E61: 0.25 | F61: System - Transport | G61: 0.5 | H61: Total annual EVs sales | I61: No | J61: 0.5 | K61: 0 | L61: =IFERROR(INDEX(IND!$S$11:$S$11410, MATCH(Y61&" > "&$B$4, IND!$AC$11:$AC$11410, 0), 1)*IF(LEFT(W61,1)="%", 100, 1), 0) -> 4393.666667 | M61: Number | N61: =IF(K61="", "", IFERROR(K61*dbl_ScoreMax*MAX(0, IFERROR(INDEX(IND!$V$11:$V$11410, MATCH(Y61&" > "&$B$4, IND!$AC$11:$AC$11410, 0), 1), 0))/100, 0)) -> 0 | P61: =IF(ISNUMBER(FIND("Growth", Y61)), 0, COUNTIFS(DEFN!$U$88:$U$273,Y61)) -> 1 | Q61: 51 | R61: =IFERROR(INDEX(DEFN!B$13:B$82, $Q61, 1), "Cannot Find: " & R$10) -> Transport | S61: =IFERROR(INDEX(DEFN!C$13:C$82, $Q61, 1), "Cannot Find: " & S$10) -> Experience | T61: =IFERROR(INDEX(DEFN!D$13:D$82, $Q61, 1), "Cannot Find: " & T$10) -> System - Transport | U61: =IFERROR(INDEX(DEFN!E$13:E$82, $Q61, 1), "Cannot Find: " & U$10) -> Total annual EVs sales | V61: =IFERROR(INDEX(DEFN!$F$13:$F$82, $Q61), "Cannot Find Indicator") -> No | W61: =IFERROR(INDEX(DEFN!$K$13:$K$82, $Q61, 1), "Cannot Find Indicator") -> Number | X61: System - Transport | Y61: Transport - Total annual EVs sales | Z61: =IFERROR(INDEX(DEFN!$Q$13:$W$82, MATCH(Y61, DEFN!$X$13:$X$82, 0), MATCH(str_CountryType, DEFN!$Q$10:$W$10, 0)), 0) -> 0.5 | AD61: 1
B62: Transport | C62: 0 | D62: Experience | E62: 0.25 | F62: System - Transport | G62: 0.5 | H62: Passenger EV (BEV+PHEV) share of new sales | I62: No | J62: 0.5 | K62: 0 | L62: =IFERROR(INDEX(IND!$S$11:$S$11410, MATCH(Y62&" > "&$B$4, IND!$AC$11:$AC$11410, 0), 1)*IF(LEFT(W62,1)="%", 100, 1), 0) -> 0.1805816315 | M62: % | N62: =IF(K62="", "", IFERROR(K62*dbl_ScoreMax*MAX(0, IFERROR(INDEX(IND!$V$11:$V$11410, MATCH(Y62&" > "&$B$4, IND!$AC$11:$AC$11410, 0), 1), 0))/100, 0)) -> 0 | P62: =IF(ISNUMBER(FIND("Growth", Y62)), 0, COUNTIFS(DEFN!$U$88:$U$273,Y62)) -> 1 | Q62: 52 | R62: =IFERROR(INDEX(DEFN!B$13:B$82, $Q62, 1), "Cannot Find: " & R$10) -> Transport | S62: =IFERROR(INDEX(DEFN!C$13:C$82, $Q62, 1), "Cannot Find: " & S$10) -> Experience | T62: =IFERROR(INDEX(DEFN!D$13:D$82, $Q62, 1), "Cannot Find: " & T$10) -> System - Transport | U62: =IFERROR(INDEX(DEFN!E$13:E$82, $Q62, 1), "Cannot Find: " & U$10) -> Passenger EV (BEV+PHEV) share of new sales | V62: =IFERROR(INDEX(DEFN!$F$13:$F$82, $Q62), "Cannot Find Indicator") -> No | W62: =IFERROR(INDEX(DEFN!$K$13:$K$82, $Q62, 1), "Cannot Find Indicator") -> % | X62: System - Transport | Y62: Transport - Passenger EV (BEV+PHEV) share of new sales | Z62: =IFERROR(INDEX(DEFN!$Q$13:$W$82, MATCH(Y62, DEFN!$X$13:$X$82, 0), MATCH(str_CountryType, DEFN!$Q$10:$W$10, 0)), 0) -> 0.5
B63: Buildings | C63: 0 | D63: Fundamentals | E63: 0.5 | F63: Policy - Buildings | G63: 0 | H63: Policy - Buildings | I63: No | J63: 1 | K63: 0 | L63: =IFERROR(INDEX(IND!$S$11:$S$11410, MATCH(Y63&" > "&$B$4, IND!$AC$11:$AC$11410, 0), 1)*IF(LEFT(W63,1)="%", 100, 1), 0) -> 0 | M63: Policies | N63: =IF(K63="", "", IFERROR(K63*dbl_ScoreMax*MAX(0, IFERROR(INDEX(IND!$V$11:$V$11410, MATCH(Y63&" > "&$B$4, IND!$AC$11:$AC$11410, 0), 1), 0))/100, 0)) -> 0 | P63: =IF(ISNUMBER(FIND("Growth", Y63)), 0, COUNTIFS(DEFN!$U$88:$U$273,Y63)) -> 6 | Q63: 53 | R63: =IFERROR(INDEX(DEFN!B$13:B$82, $Q63, 1), "Cannot Find: " & R$10) -> Buildings | S63: =IFERROR(INDEX(DEFN!C$13:C$82, $Q63, 1), "Cannot Find: " & S$10) -> Fundamentals | T63: =IFERROR(INDEX(DEFN!D$13:D$82, $Q63, 1), "Cannot Find: " & T$10) -> Policy - Buildings | U63: =IFERROR(INDEX(DEFN!E$13:E$82, $Q63, 1), "Cannot Find: " & U$10) -> Policy - Buildings | V63: =IFERROR(INDEX(DEFN!$F$13:$F$82, $Q63), "Cannot Find Indicator") -> No | W63: =IFERROR(INDEX(DEFN!$K$13:$K$82, $Q63, 1), "Cannot Find Indicator") -> Policies | X63: Policy - Buildings | Y63: Buildings - Policy - Buildings | Z63: =IFERROR(INDEX(DEFN!$Q$13:$W$82, MATCH(Y63, DEFN!$X$13:$X$82, 0), MATCH(str_CountryType, DEFN!$Q$10:$W$10, 0)), 0) -> 1 | AB63: 1 | AC63: 0 | AD63: 1
B64: Buildings | C64: 0 | D64: Fundamentals | E64: 0.5 | F64: Energy efficiency plans and performance standards | G64: 0 | H64: Energy efficiency plans and performance standards | I64: No | J64: 1 | K64: 0 | L64: =IFERROR(INDEX(IND!$S$11:$S$11410, MATCH(Y64&" > "&$B$4, IND!$AC$11:$AC$11410, 0), 1)*IF(LEFT(W64,1)="%", 100, 1), 0) -> 21.5 | M64: Policies | N64: =IF(K64="", "", IFERROR(K64*dbl_ScoreMax*MAX(0, IFERROR(INDEX(IND!$V$11:$V$11410, MATCH(Y64&" > "&$B$4, IND!$AC$11:$AC$11410, 0), 1), 0))/100, 0)) -> 0 | P64: =IF(ISNUMBER(FIND("Growth", Y64)), 0, COUNTIFS(DEFN!$U$88:$U$273,Y64)) -> 2 | Q64: 54 | R64: =IFERROR(INDEX(DEFN!B$13:B$82, $Q64, 1), "Cannot Find: " & R$10) -> Buildings | S64: =IFERROR(INDEX(DEFN!C$13:C$82, $Q64, 1), "Cannot Find: " & S$10) -> Fundamentals | T64: =IFERROR(INDEX(DEFN!D$13:D$82, $Q64, 1), "Cannot Find: " & T$10) -> Energy efficiency plans and performance standards | U64: =IFERROR(INDEX(DEFN!E$13:E$82, $Q64, 1), "Cannot Find: " & U$10) -> Energy efficiency plans and performance standards | V64: =IFERROR(INDEX(DEFN!$F$13:$F$82, $Q64), "Cannot Find Indicator") -> No | W64: =IFERROR(INDEX(DEFN!$K$13:$K$82, $Q64, 1), "Cannot Find Indicator") -> Policies | X64: Energy efficiency plans and performance standards | Y64: Buildings - Energy efficiency plans and performance standards | Z64: =IFERROR(INDEX(DEFN!$Q$13:$W$82, MATCH(Y64, DEFN!$X$13:$X$82, 0), MATCH(str_CountryType, DEFN!$Q$10:$W$10, 0)), 0) -> 1 | AD64: 1
B65: Buildings | C65: 0 | D65: Fundamentals | E65: 0.5 | F65: Policy - Climate change | G65: 0 | H65: Policy - Climate change | I65: No | J65: 1 | K65: 0 | L65: =IFERROR(INDEX(IND!$S$11:$S$11410, MATCH(Y65&" > "&$B$4, IND!$AC$11:$AC$11410, 0), 1)*IF(LEFT(W65,1)="%", 100, 1), 0) -> 2.75 | M65: Score | N65: =IF(K65="", "", IFERROR(K65*dbl_ScoreMax*MAX(0, IFERROR(INDEX(IND!$V$11:$V$11410, MATCH(Y65&" > "&$B$4, IND!$AC$11:$AC$11410, 0), 1), 0))/100, 0)) -> 0 | P65: =IF(ISNUMBER(FIND("Growth", Y65)), 0, COUNTIFS(DEFN!$U$88:$U$273,Y65)) -> 5 | Q65: 55 | R65: =IFERROR(INDEX(DEFN!B$13:B$82, $Q65, 1), "Cannot Find: " & R$10) -> Buildings | S65: =IFERROR(INDEX(DEFN!C$13:C$82, $Q65, 1), "Cannot Find: " & S$10) -> Fundamentals | T65: =IFERROR(INDEX(DEFN!D$13:D$82, $Q65, 1), "Cannot Find: " & T$10) -> Policy - Climate change | U65: =IFERROR(INDEX(DEFN!E$13:E$82, $Q65, 1), "Cannot Find: " & U$10) -> Policy - Climate change | V65: =IFERROR(INDEX(DEFN!$F$13:$F$82, $Q65), "Cannot Find Indicator") -> No | W65: =IFERROR(INDEX(DEFN!$K$13:$K$82, $Q65, 1), "Cannot Find Indicator") -> Score | X65: Policy - Climate change | Y65: Buildings - Policy - Climate change | Z65: =IFERROR(INDEX(DEFN!$Q$13:$W$82, MATCH(Y65, DEFN!$X$13:$X$82, 0), MATCH(str_CountryType, DEFN!$Q$10:$W$10, 0)), 0) -> 1 | AD65: 1
B66: Buildings | C66: 0 | D66: Fundamentals | E66: 0.5 | F66: Currency variation | G66: 0 | H66: Currency variation | I66: No | J66: 1 | K66: 0 | L66: =IFERROR(INDEX(IND!$S$11:$S$11410, MATCH(Y66&" > "&$B$4, IND!$AC$11:$AC$11410, 0), 1)*IF(LEFT(W66,1)="%", 100, 1), 0) -> 0.5 | M66: Score | N66: =IF(K66="", "", IFERROR(K66*dbl_ScoreMax*MAX(0, IFERROR(INDEX(IND!$V$11:$V$11410, MATCH(Y66&" > "&$B$4, IND!$AC$11:$AC$11410, 0), 1), 0))/100, 0)) -> 0 | P66: =IF(ISNUMBER(FIND("Growth", Y66)), 0, COUNTIFS(DEFN!$U$88:$U$273,Y66)) -> 1 | Q66: 56 | R66: =IFERROR(INDEX(DEFN!B$13:B$82, $Q66, 1), "Cannot Find: " & R$10) -> Buildings | S66: =IFERROR(INDEX(DEFN!C$13:C$82, $Q66, 1), "Cannot Find: " & S$10) -> Fundamentals | T66: =IFERROR(INDEX(DEFN!D$13:D$82, $Q66, 1), "Cannot Find: " & T$10) -> Currency variation | U66: =IFERROR(INDEX(DEFN!E$13:E$82, $Q66, 1), "Cannot Find: " & U$10) -> Currency variation | V66: =IFERROR(INDEX(DEFN!$F$13:$F$82, $Q66), "Cannot Find Indicator") -> No | W66: =IFERROR(INDEX(DEFN!$K$13:$K$82, $Q66, 1), "Cannot Find Indicator") -> Score | X66: Currency variation | Y66: Buildings - Currency variation | Z66: =IFERROR(INDEX(DEFN!$Q$13:$W$82, MATCH(Y66, DEFN!$X$13:$X$82, 0), MATCH(str_CountryType, DEFN!$Q$10:$W$10, 0)), 0) -> 1 | AD66: 1
B67: Buildings | C67: 0 | D67: Opportunities | E67: 0.25 | F67: Prices and costs - Buildings | G67: 0 | H67: Natural gas price/electricity price ratio | I67: No | J67: 0.5 | K67: 0 | L67: =IFERROR(INDEX(IND!$S$11:$S$11410, MATCH(Y67&" > "&$B$4, IND!$AC$11:$AC$11410, 0), 1)*IF(LEFT(W67,1)="%", 100, 1), 0) -> 0 | M67: % | N67: =IF(K67="", "", IFERROR(K67*dbl_ScoreMax*MAX(0, IFERROR(INDEX(IND!$V$11:$V$11410, MATCH(Y67&" > "&$B$4, IND!$AC$11:$AC$11410, 0), 1), 0))/100, 0)) -> 0 | P67: =IF(ISNUMBER(FIND("Growth", Y67)), 0, COUNTIFS(DEFN!$U$88:$U$273,Y67)) -> 1 | Q67: 57 | R67: =IFERROR(INDEX(DEFN!B$13:B$82, $Q67, 1), "Cannot Find: " & R$10) -> Buildings | S67: =IFERROR(INDEX(DEFN!C$13:C$82, $Q67, 1), "Cannot Find: " & S$10) -> Opportunities | T67: =IFERROR(INDEX(DEFN!D$13:D$82, $Q67, 1), "Cannot Find: " & T$10) -> Prices and costs - Buildings | U67: =IFERROR(INDEX(DEFN!E$13:E$82, $Q67, 1), "Cannot Find: " & U$10) -> Natural gas price/electricity price ratio | V67: =IFERROR(INDEX(DEFN!$F$13:$F$82, $Q67), "Cannot Find Indicator") -> No | W67: =IFERROR(INDEX(DEFN!$K$13:$K$82, $Q67, 1), "Cannot Find Indicator") -> % | X67: Prices and costs - Buildings | Y67: Buildings - Natural gas price/electricity price ratio | Z67: =IFERROR(INDEX(DEFN!$Q$13:$W$82, MATCH(Y67, DEFN!$X$13:$X$82, 0), MATCH(str_CountryType, DEFN!$Q$10:$W$10, 0)), 0) -> 0.5 | AC67: 0 | AD67: 1
B68: Buildings | C68: 0 | D68: Opportunities | E68: 0.25 | F68: Prices and costs - Buildings | G68: 0 | H68: Oil price/electricity price ratio | I68: No | J68: 0.5 | K68: 0 | L68: =IFERROR(INDEX(IND!$S$11:$S$11410, MATCH(Y68&" > "&$B$4, IND!$AC$11:$AC$11410, 0), 1)*IF(LEFT(W68,1)="%", 100, 1), 0) -> 0 | M68: % | N68: =IF(K68="", "", IFERROR(K68*dbl_ScoreMax*MAX(0, IFERROR(INDEX(IND!$V$11:$V$11410, MATCH(Y68&" > "&$B$4, IND!$AC$11:$AC$11410, 0), 1), 0))/100, 0)) -> 0 | P68: =IF(ISNUMBER(FIND("Growth", Y68)), 0, COUNTIFS(DEFN!$U$88:$U$273,Y68)) -> 1 | Q68: 58 | R68: =IFERROR(INDEX(DEFN!B$13:B$82, $Q68, 1), "Cannot Find: " & R$10) -> Buildings | S68: =IFERROR(INDEX(DEFN!C$13:C$82, $Q68, 1), "Cannot Find: " & S$10) -> Opportunities | T68: =IFERROR(INDEX(DEFN!D$13:D$82, $Q68, 1), "Cannot Find: " & T$10) -> Prices and costs - Buildings | U68: =IFERROR(INDEX(DEFN!E$13:E$82, $Q68, 1), "Cannot Find: " & U$10) -> Oil price/electricity price ratio | V68: =IFERROR(INDEX(DEFN!$F$13:$F$82, $Q68), "Cannot Find Indicator") -> No | W68: =IFERROR(INDEX(DEFN!$K$13:$K$82, $Q68, 1), "Cannot Find Indicator") -> % | X68: Prices and costs - Buildings | Y68: Buildings - Oil price/electricity price ratio | Z68: =IFERROR(INDEX(DEFN!$Q$13:$W$82, MATCH(Y68, DEFN!$X$13:$X$82, 0), MATCH(str_CountryType, DEFN!$Q$10:$W$10, 0)), 0) -> 0.5
B69: Buildings | C69: 0 | D69: Opportunities | E69: 0.25 | F69: Barriers and incentives - Buildings | G69: 0 | H69: Loans or grants availability | I69: No | J69: 1 | K69: 0 | L69: =IFERROR(INDEX(IND!$S$11:$S$11410, MATCH(Y69&" > "&$B$4, IND!$AC$11:$AC$11410, 0), 1)*IF(LEFT(W69,1)="%", 100, 1), 0) -> 1 | M69: Scor | N69: =IF(K69="", "", IFERROR(K69*dbl_ScoreMax*MAX(0, IFERROR(INDEX(IND!$V$11:$V$11410, MATCH(Y69&" > "&$B$4, IND!$AC$11:$AC$11410, 0), 1), 0))/100, 0)) -> 0 | P69: =IF(ISNUMBER(FIND("Growth", Y69)), 0, COUNTIFS(DEFN!$U$88:$U$273,Y69)) -> 1 | Q69: 59 | R69: =IFERROR(INDEX(DEFN!B$13:B$82, $Q69, 1), "Cannot Find: " & R$10) -> Buildings | S69: =IFERROR(INDEX(DEFN!C$13:C$82, $Q69, 1), "Cannot Find: " & S$10) -> Opportunities | T69: =IFERROR(INDEX(DEFN!D$13:D$82, $Q69, 1), "Cannot Find: " & T$10) -> Barriers and incentives - Buildings | U69: =IFERROR(INDEX(DEFN!E$13:E$82, $Q69, 1), "Cannot Find: " & U$10) -> Loans or grants availability | V69: =IFERROR(INDEX(DEFN!$F$13:$F$82, $Q69), "Cannot Find Indicator") -> No | W69: =IFERROR(INDEX(DEFN!$K$13:$K$82, $Q69, 1), "Cannot Find Indicator") -> Score | X69: =F69 -> Barriers and incentives - Buildings | Y69: Buildings - Loans or grants availability | Z69: =IFERROR(INDEX(DEFN!$Q$13:$W$82, MATCH(Y69, DEFN!$X$13:$X$82, 0), MATCH(str_CountryType, DEFN!$Q$10:$W$10, 0)), 0) -> 1 | AD69: 1
B70: Buildings | C70: 0 | D70: Opportunities | E70: 0.25 | F70: Market size - Buildings | G70: 0 | H70: Heating by technology: district heating | I70: No | J70: 0.1 | K70: 0 | L70: =IFERROR(INDEX(IND!$S$11:$S$11410, MATCH(Y70&" > "&$B$4, IND!$AC$11:$AC$11410, 0), 1)*IF(LEFT(W70,1)="%", 100, 1), 0) -> 0 | M70: % | N70: =IF(K70="", "", IFERROR(K70*dbl_ScoreMax*MAX(0, IFERROR(INDEX(IND!$V$11:$V$11410, MATCH(Y70&" > "&$B$4, IND!$AC$11:$AC$11410, 0), 1), 0))/100, 0)) -> 0 | P70: =IF(ISNUMBER(FIND("Growth", Y70)), 0, COUNTIFS(DEFN!$U$88:$U$273,Y70)) -> 1 | Q70: 60 | R70: =IFERROR(INDEX(DEFN!B$13:B$82, $Q70, 1), "Cannot Find: " & R$10) -> Buildings | S70: =IFERROR(INDEX(DEFN!C$13:C$82, $Q70, 1), "Cannot Find: " & S$10) -> Opportunities | T70: =IFERROR(INDEX(DEFN!D$13:D$82, $Q70, 1), "Cannot Find: " & T$10) -> Market size - Buildings | U70: =IFERROR(INDEX(DEFN!E$13:E$82, $Q70, 1), "Cannot Find: " & U$10) -> Heating by technology: district heating | V70: =IFERROR(INDEX(DEFN!$F$13:$F$82, $Q70), "Cannot Find Indicator") -> No | W70: =IFERROR(INDEX(DEFN!$K$13:$K$82, $Q70, 1), "Cannot Find Indicator") -> % | X70: Market size - Buildings | Y70: Buildings - Heating by technology: district heating | Z70: =IFERROR(INDEX(DEFN!$Q$13:$W$82, MATCH(Y70, DEFN!$X$13:$X$82, 0), MATCH(str_CountryType, DEFN!$Q$10:$W$10, 0)), 0) -> 0.1 | AD70: 1
B71: =R71 -> Buildings | C71: 0 | D71: =S71&"" -> Opportunities | E71: 0.25 | F71: =T71 -> Market size - Buildings | G71: =SUMIFS($G$85:$G$133, $F$85:$F$133, F71, $D$85:$D$133, D71, $B$85:$B$133, B71) -> 0 | H71: =IF(P71<2, HYPERLINK("#", U71), HYPERLINK("#" & "str_CountryProfileURL", U71)) -> Heating by technology: direct electric | I71: =V71 -> No | J71: =IF(ISNUMBER(Z71), Z71, IF(AND(Z71="None", L71<>0), (1-SUMIFS($Z$11:$Z$80, $F$11:$F$80, F71, $Z$11:$Z$80, ">0"))/COUNTIFS($F$11:$F$80, F71, $Z$11:$Z$80, "None", $L$11:$L$80, "<>0"), 0)) -> 0.2 | K71: =IF(J71="", "", C71*E71*G71*J71) -> 0 | L71: =IFERROR(INDEX(IND!$S$11:$S$11410, MATCH(Y71&" > "&$B$4, IND!$AC$11:$AC$11410, 0), 1)*IF(LEFT(W71,1)="%", 100, 1), 0) -> 0 | M71: =IF(AND(L71=1, LEFT(W71, 1)<>"%", LEFT(W71, 1)<>"$", W71<>"MW", W71<>"GWh"), LEFT(W71, LEN(W71)-1), W71) -> % | N71: =IF(K71="", "", IFERROR(K71*dbl_ScoreMax*MAX(0, IFERROR(INDEX(IND!$V$11:$V$11410, MATCH(Y71&" > "&$B$4, IND!$AC$11:$AC$11410, 0), 1), 0))/100, 0)) -> 0 | O71: =IF(OR(N71="", N71=0), "", IFERROR(N71/(K71*dbl_ScoreMax), 0)) ->  | P71: =IF(ISNUMBER(FIND("Growth", Y71)), 0, COUNTIFS(DEFN!$U$88:$U$273,Y71)) -> 1 | Q71: 61 | R71: =IFERROR(INDEX(DEFN!B$13:B$82, $Q71, 1), "Cannot Find: " & R$10) -> Buildings | S71: =IFERROR(INDEX(DEFN!C$13:C$82, $Q71, 1), "Cannot Find: " & S$10) -> Opportunities | T71: =IFERROR(INDEX(DEFN!D$13:D$82, $Q71, 1), "Cannot Find: " & T$10) -> Market size - Buildings | U71: =IFERROR(INDEX(DEFN!E$13:E$82, $Q71, 1), "Cannot Find: " & U$10) -> Heating by technology: direct electric | V71: =IFERROR(INDEX(DEFN!$F$13:$F$82, $Q71), "Cannot Find Indicator") -> No | W71: =IFERROR(INDEX(DEFN!$K$13:$K$82, $Q71, 1), "Cannot Find Indicator") -> % | X71: =F71 -> Market size - Buildings | Y71: =B71&" - "&U71 -> Buildings - Heating by technology: direct electric | Z71: =IFERROR(INDEX(DEFN!$Q$13:$W$82, MATCH(Y71, DEFN!$X$13:$X$82, 0), MATCH(str_CountryType, DEFN!$Q$10:$W$10, 0)), 0) -> 0.2 | AB71: =IF(B70<>B71, SUMIFS($E$11:$E$80, $B$11:$B$80, B71, $B$11:$B$80, B71, $E$11:$E$80, ">=0", $AC$11:$AC$80, ">=0"), "") ->  | AC71: =IF(D70<>D71, SUMIFS($G$11:$G$80, $D$11:$D$80, D71, $B$11:$B$80, B71, $G$11:$G$80, ">=0", $AD$11:$AD$80, ">=0"), "") ->  | AD71: =IF(F70<>F71, SUMIFS($Z$11:$Z$80, $F$11:$F$80, F71, $D$11:$D$80, D71, $B$11:$B$80, B71, $Z$11:$Z$80, ">=0"), "") -> 
B72: Buildings | C72: 0 | D72: Opportunities | E72: 0.25 | F72: Market size - Buildings | G72: 0 | H72: Heating by technology: Oil | I72: No | J72: 0.2 | K72: 0 | L72: =IFERROR(INDEX(IND!$S$11:$S$11410, MATCH(Y72&" > "&$B$4, IND!$AC$11:$AC$11410, 0), 1)*IF(LEFT(W72,1)="%", 100, 1), 0) -> 0 | M72: % | N72: =IF(K72="", "", IFERROR(K72*dbl_ScoreMax*MAX(0, IFERROR(INDEX(IND!$V$11:$V$11410, MATCH(Y72&" > "&$B$4, IND!$AC$11:$AC$11410, 0), 1), 0))/100, 0)) -> 0 | P72: =IF(ISNUMBER(FIND("Growth", Y72)), 0, COUNTIFS(DEFN!$U$88:$U$273,Y72)) -> 1 | Q72: 62 | R72: =IFERROR(INDEX(DEFN!B$13:B$82, $Q72, 1), "Cannot Find: " & R$10) -> Buildings | S72: =IFERROR(INDEX(DEFN!C$13:C$82, $Q72, 1), "Cannot Find: " & S$10) -> Opportunities | T72: =IFERROR(INDEX(DEFN!D$13:D$82, $Q72, 1), "Cannot Find: " & T$10) -> Market size - Buildings | U72: =IFERROR(INDEX(DEFN!E$13:E$82, $Q72, 1), "Cannot Find: " & U$10) -> Heating by technology: Oil | V72: =IFERROR(INDEX(DEFN!$F$13:$F$82, $Q72), "Cannot Find Indicator") -> No | W72: =IFERROR(INDEX(DEFN!$K$13:$K$82, $Q72, 1), "Cannot Find Indicator") -> % | X72: Market size - Buildings | Y72: Buildings - Heating by technology: Oil | Z72: =IFERROR(INDEX(DEFN!$Q$13:$W$82, MATCH(Y72, DEFN!$X$13:$X$82, 0), MATCH(str_CountryType, DEFN!$Q$10:$W$10, 0)), 0) -> 0.2
B73: Buildings | C73: 0 | D73: Opportunities | E73: 0.25 | F73: Market size - Buildings | G73: 0 | H73: Growth rate of heat pumps sales | I73: No | J73: 0.5 | K73: 0 | L73: =IFERROR(INDEX(IND!$S$11:$S$11410, MATCH(Y73&" > "&$B$4, IND!$AC$11:$AC$11410, 0), 1)*IF(LEFT(W73,1)="%", 100, 1), 0) -> 0 | M73: % | N73: =IF(K73="", "", IFERROR(K73*dbl_ScoreMax*MAX(0, IFERROR(INDEX(IND!$V$11:$V$11410, MATCH(Y73&" > "&$B$4, IND!$AC$11:$AC$11410, 0), 1), 0))/100, 0)) -> 0 | P73: =IF(ISNUMBER(FIND("Growth", Y73)), 0, COUNTIFS(DEFN!$U$88:$U$273,Y73)) -> 0 | Q73: 63 | R73: =IFERROR(INDEX(DEFN!B$13:B$82, $Q73, 1), "Cannot Find: " & R$10) -> Buildings | S73: =IFERROR(INDEX(DEFN!C$13:C$82, $Q73, 1), "Cannot Find: " & S$10) -> Opportunities | T73: =IFERROR(INDEX(DEFN!D$13:D$82, $Q73, 1), "Cannot Find: " & T$10) -> Market size - Buildings | U73: =IFERROR(INDEX(DEFN!E$13:E$82, $Q73, 1), "Cannot Find: " & U$10) -> Growth rate of heat pumps sales | V73: =IFERROR(INDEX(DEFN!$F$13:$F$82, $Q73), "Cannot Find Indicator") -> No | W73: =IFERROR(INDEX(DEFN!$K$13:$K$82, $Q73, 1), "Cannot Find Indicator") -> % | X73: Market size - Buildings | Y73: Buildings - Growth rate of heat pumps sales | Z73: =IFERROR(INDEX(DEFN!$Q$13:$W$82, MATCH(Y73, DEFN!$X$13:$X$82, 0), MATCH(str_CountryType, DEFN!$Q$10:$W$10, 0)), 0) -> 0.5
B74: Buildings | C74: 0 | D74: Opportunities | E74: 0.25 | F74: Clean power - Buildings | G74: 0 | H74: Clean power - Buildings | I74: No | J74: 1 | K74: 0 | L74: =IFERROR(INDEX(IND!$S$11:$S$11410, MATCH(Y74&" > "&$B$4, IND!$AC$11:$AC$11410, 0), 1)*IF(LEFT(W74,1)="%", 100, 1), 0) -> 22.02412466 | M74: % of All Power | N74: =IF(K74="", "", IFERROR(K74*dbl_ScoreMax*MAX(0, IFERROR(INDEX(IND!$V$11:$V$11410, MATCH(Y74&" > "&$B$4, IND!$AC$11:$AC$11410, 0), 1), 0))/100, 0)) -> 0 | P74: =IF(ISNUMBER(FIND("Growth", Y74)), 0, COUNTIFS(DEFN!$U$88:$U$273,Y74)) -> 1 | Q74: 64 | R74: =IFERROR(INDEX(DEFN!B$13:B$82, $Q74, 1), "Cannot Find: " & R$10) -> Buildings | S74: =IFERROR(INDEX(DEFN!C$13:C$82, $Q74, 1), "Cannot Find: " & S$10) -> Opportunities | T74: =IFERROR(INDEX(DEFN!D$13:D$82, $Q74, 1), "Cannot Find: " & T$10) -> Clean power - Buildings | U74: =IFERROR(INDEX(DEFN!E$13:E$82, $Q74, 1), "Cannot Find: " & U$10) -> Clean power - Buildings | V74: =IFERROR(INDEX(DEFN!$F$13:$F$82, $Q74), "Cannot Find Indicator") -> No | W74: =IFERROR(INDEX(DEFN!$K$13:$K$82, $Q74, 1), "Cannot Find Indicator") -> % of All Power | X74: Clean power - Buildings | Y74: Buildings - Clean power - Buildings | Z74: =IFERROR(INDEX(DEFN!$Q$13:$W$82, MATCH(Y74, DEFN!$X$13:$X$82, 0), MATCH(str_CountryType, DEFN!$Q$10:$W$10, 0)), 0) -> 1 | AD74: 1
B75: Buildings | C75: =IFERROR(INDEX(C$85:C$133, MATCH(B75, B$85:B$133, 0), 1), 0) -> 0 | D75: Opportunities | E75: =IFERROR(INDEX(E$85:E$133, MATCH(D75, D$85:D$133, 0), 1)*1, 0) -> 0.25 | F75: Corporate commitments | G75: 0 | H75: Corporate commitments | I75: No | J75: 1 | K75: 0 | L75: =IFERROR(INDEX(IND!$S$11:$S$11410, MATCH(Y75&" > "&$B$4, IND!$AC$11:$AC$11410, 0), 1)*IF(LEFT(W75,1)="%", 100, 1), 0) -> 0.2174856917 | M75: Companies | N75: =IF(K75="", "", IFERROR(K75*dbl_ScoreMax*MAX(0, IFERROR(INDEX(IND!$V$11:$V$11410, MATCH(Y75&" > "&$B$4, IND!$AC$11:$AC$11410, 0), 1), 0))/100, 0)) -> 0 | P75: =IF(ISNUMBER(FIND("Growth", Y75)), 0, COUNTIFS(DEFN!$U$88:$U$273,Y75)) -> 3 | Q75: 65 | R75: =IFERROR(INDEX(DEFN!B$13:B$82, $Q75, 1), "Cannot Find: " & R$10) -> Buildings | S75: =IFERROR(INDEX(DEFN!C$13:C$82, $Q75, 1), "Cannot Find: " & S$10) -> Opportunities | T75: =IFERROR(INDEX(DEFN!D$13:D$82, $Q75, 1), "Cannot Find: " & T$10) -> Corporate commitments | U75: =IFERROR(INDEX(DEFN!E$13:E$82, $Q75, 1), "Cannot Find: " & U$10) -> Corporate commitments | V75: =IFERROR(INDEX(DEFN!$F$13:$F$82, $Q75), "Cannot Find Indicator") -> No | W75: =IFERROR(INDEX(DEFN!$K$13:$K$82, $Q75, 1), "Cannot Find Indicator") -> Companies | X75: Corporate commitments | Y75: Buildings - Corporate commitments | Z75: =IFERROR(INDEX(DEFN!$Q$13:$W$82, MATCH(Y75, DEFN!$X$13:$X$82, 0), MATCH(str_CountryType, DEFN!$Q$10:$W$10, 0)), 0) -> 1 | AD75: 1
B76: Buildings | C76: 0 | D76: Opportunities | E76: 0.25 | F76: GDP growth - 5 year IMF outlook | G76: 0 | H76: GDP growth - 5 year IMF outlook | I76: No | J76: 1 | K76: 0 | L76: =IFERROR(INDEX(IND!$S$11:$S$11410, MATCH(Y76&" > "&$B$4, IND!$AC$11:$AC$11410, 0), 1)*IF(LEFT(W76,1)="%", 100, 1), 0) -> 49.14192204 | M76: % | N76: =IF(K76="", "", IFERROR(K76*dbl_ScoreMax*MAX(0, IFERROR(INDEX(IND!$V$11:$V$11410, MATCH(Y76&" > "&$B$4, IND!$AC$11:$AC$11410, 0), 1), 0))/100, 0)) -> 0 | P76: =IF(ISNUMBER(FIND("Growth", Y76)), 0, COUNTIFS(DEFN!$U$88:$U$273,Y76)) -> 1 | Q76: 66 | R76: =IFERROR(INDEX(DEFN!B$13:B$82, $Q76, 1), "Cannot Find: " & R$10) -> Buildings | S76: =IFERROR(INDEX(DEFN!C$13:C$82, $Q76, 1), "Cannot Find: " & S$10) -> Opportunities | T76: =IFERROR(INDEX(DEFN!D$13:D$82, $Q76, 1), "Cannot Find: " & T$10) -> GDP growth - 5 year IMF outlook | U76: =IFERROR(INDEX(DEFN!E$13:E$82, $Q76, 1), "Cannot Find: " & U$10) -> GDP growth - 5 year IMF outlook | V76: =IFERROR(INDEX(DEFN!$F$13:$F$82, $Q76), "Cannot Find Indicator") -> No | W76: =IFERROR(INDEX(DEFN!$K$13:$K$82, $Q76, 1), "Cannot Find Indicator") -> % | X76: GDP growth - 5 year IMF outlook | Y76: Buildings - GDP growth - 5 year IMF outlook | Z76: =IFERROR(INDEX(DEFN!$Q$13:$W$82, MATCH(Y76, DEFN!$X$13:$X$82, 0), MATCH(str_CountryType, DEFN!$Q$10:$W$10, 0)), 0) -> 1 | AD76: 1
B77: Buildings | C77: 0 | D77: Experience | E77: 0.25 | F77: System - Buildings | G77: 0 | H77: Heating by technology: heat pumps | I77: No | J77: 0.2 | K77: 0 | L77: =IFERROR(INDEX(IND!$S$11:$S$11410, MATCH(Y77&" > "&$B$4, IND!$AC$11:$AC$11410, 0), 1)*IF(LEFT(W77,1)="%", 100, 1), 0) -> 0 | M77: % | N77: =IF(K77="", "", IFERROR(K77*dbl_ScoreMax*MAX(0, IFERROR(INDEX(IND!$V$11:$V$11410, MATCH(Y77&" > "&$B$4, IND!$AC$11:$AC$11410, 0), 1), 0))/100, 0)) -> 0 | P77: =IF(ISNUMBER(FIND("Growth", Y77)), 0, COUNTIFS(DEFN!$U$88:$U$273,Y77)) -> 1 | Q77: 67 | R77: =IFERROR(INDEX(DEFN!B$13:B$82, $Q77, 1), "Cannot Find: " & R$10) -> Buildings | S77: =IFERROR(INDEX(DEFN!C$13:C$82, $Q77, 1), "Cannot Find: " & S$10) -> Experience | T77: =IFERROR(INDEX(DEFN!D$13:D$82, $Q77, 1), "Cannot Find: " & T$10) -> System - Buildings | U77: =IFERROR(INDEX(DEFN!E$13:E$82, $Q77, 1), "Cannot Find: " & U$10) -> Heating by technology: heat pumps | V77: =IFERROR(INDEX(DEFN!$F$13:$F$82, $Q77), "Cannot Find Indicator") -> No | W77: =IFERROR(INDEX(DEFN!$K$13:$K$82, $Q77, 1), "Cannot Find Indicator") -> % | X77: System - Buildings | Y77: Buildings - Heating by technology: heat pumps | Z77: =IFERROR(INDEX(DEFN!$Q$13:$W$82, MATCH(Y77, DEFN!$X$13:$X$82, 0), MATCH(str_CountryType, DEFN!$Q$10:$W$10, 0)), 0) -> 0.2 | AC77: 0 | AD77: 1
B78: Buildings | C78: 0 | D78: Experience | E78: 0.25 | F78: System - Buildings | G78: 0 | H78: Heat pumps sales | I78: No | J78: 0.8 | K78: 0 | L78: =IFERROR(INDEX(IND!$S$11:$S$11410, MATCH(Y78&" > "&$B$4, IND!$AC$11:$AC$11410, 0), 1)*IF(LEFT(W78,1)="%", 100, 1), 0) -> 0 | M78: Number | N78: =IF(K78="", "", IFERROR(K78*dbl_ScoreMax*MAX(0, IFERROR(INDEX(IND!$V$11:$V$11410, MATCH(Y78&" > "&$B$4, IND!$AC$11:$AC$11410, 0), 1), 0))/100, 0)) -> 0 | P78: =IF(ISNUMBER(FIND("Growth", Y78)), 0, COUNTIFS(DEFN!$U$88:$U$273,Y78)) -> 1 | Q78: 68 | R78: =IFERROR(INDEX(DEFN!B$13:B$82, $Q78, 1), "Cannot Find: " & R$10) -> Buildings | S78: =IFERROR(INDEX(DEFN!C$13:C$82, $Q78, 1), "Cannot Find: " & S$10) -> Experience | T78: =IFERROR(INDEX(DEFN!D$13:D$82, $Q78, 1), "Cannot Find: " & T$10) -> System - Buildings | U78: =IFERROR(INDEX(DEFN!E$13:E$82, $Q78, 1), "Cannot Find: " & U$10) -> Heat pumps sales | V78: =IFERROR(INDEX(DEFN!$F$13:$F$82, $Q78), "Cannot Find Indicator") -> No | W78: =IFERROR(INDEX(DEFN!$K$13:$K$82, $Q78, 1), "Cannot Find Indicator") -> Number | X78: System - Buildings | Y78: Buildings - Heat pumps sales | Z78: =IFERROR(INDEX(DEFN!$Q$13:$W$82, MATCH(Y78, DEFN!$X$13:$X$82, 0), MATCH(str_CountryType, DEFN!$Q$10:$W$10, 0)), 0) -> 0.8
B79: Buildings | C79: 0 | D79: Experience | E79: 0.25 | F79: Finance - Buildings | G79: 0 | H79: Electrified heating investment | I79: No | J79: 0.5 | K79: 0 | L79: =IFERROR(INDEX(IND!$S$11:$S$11410, MATCH(Y79&" > "&$B$4, IND!$AC$11:$AC$11410, 0), 1)*IF(LEFT(W79,1)="%", 100, 1), 0) -> 0 | M79: $ million | N79: =IF(K79="", "", IFERROR(K79*dbl_ScoreMax*MAX(0, IFERROR(INDEX(IND!$V$11:$V$11410, MATCH(Y79&" > "&$B$4, IND!$AC$11:$AC$11410, 0), 1), 0))/100, 0)) -> 0 | P79: =IF(ISNUMBER(FIND("Growth", Y79)), 0, COUNTIFS(DEFN!$U$88:$U$273,Y79)) -> 0 | Q79: 69 | R79: =IFERROR(INDEX(DEFN!B$13:B$82, $Q79, 1), "Cannot Find: " & R$10) -> Buildings | S79: =IFERROR(INDEX(DEFN!C$13:C$82, $Q79, 1), "Cannot Find: " & S$10) -> Experience | T79: =IFERROR(INDEX(DEFN!D$13:D$82, $Q79, 1), "Cannot Find: " & T$10) -> Finance - Buildings | U79: =IFERROR(INDEX(DEFN!E$13:E$82, $Q79, 1), "Cannot Find: " & U$10) -> Electrified heating investment | V79: =IFERROR(INDEX(DEFN!$F$13:$F$82, $Q79), "Cannot Find Indicator") -> No | W79: =IFERROR(INDEX(DEFN!$K$13:$K$82, $Q79, 1), "Cannot Find Indicator") -> $ million | X79: Finance - Buildings | Y79: Buildings - Electrified heating investment | Z79: =IFERROR(INDEX(DEFN!$Q$13:$W$82, MATCH(Y79, DEFN!$X$13:$X$82, 0), MATCH(str_CountryType, DEFN!$Q$10:$W$10, 0)), 0) -> 0.5 | AD79: 1
B80: Buildings | C80: 0 | D80: Experience | E80: 0.25 | F80: Finance - Buildings | G80: 0 | H80: Growth rate of electrified heating investment | I80: No | J80: 0.5 | K80: 0 | L80: =IFERROR(INDEX(IND!$S$11:$S$11410, MATCH(Y80&" > "&$B$4, IND!$AC$11:$AC$11410, 0), 1)*IF(LEFT(W80,1)="%", 100, 1), 0) -> 0 | M80: % | N80: =IF(K80="", "", IFERROR(K80*dbl_ScoreMax*MAX(0, IFERROR(INDEX(IND!$V$11:$V$11410, MATCH(Y80&" > "&$B$4, IND!$AC$11:$AC$11410, 0), 1), 0))/100, 0)) -> 0 | P80: =IF(ISNUMBER(FIND("Growth", Y80)), 0, COUNTIFS(DEFN!$U$88:$U$273,Y80)) -> 0 | Q80: 70 | R80: =IFERROR(INDEX(DEFN!B$13:B$82, $Q80, 1), "Cannot Find: " & R$10) -> Buildings | S80: =IFERROR(INDEX(DEFN!C$13:C$82, $Q80, 1), "Cannot Find: " & S$10) -> Experience | T80: =IFERROR(INDEX(DEFN!D$13:D$82, $Q80, 1), "Cannot Find: " & T$10) -> Finance - Buildings | U80: =IFERROR(INDEX(DEFN!E$13:E$82, $Q80, 1), "Cannot Find: " & U$10) -> Growth rate of electrified heating investment | V80: =IFERROR(INDEX(DEFN!$F$13:$F$82, $Q80), "Cannot Find Indicator") -> No | W80: =IFERROR(INDEX(DEFN!$K$13:$K$82, $Q80, 1), "Cannot Find Indicator") -> % | X80: Finance - Buildings | Y80: Buildings - Growth rate of electrified heating investment | Z80: =IFERROR(INDEX(DEFN!$Q$13:$W$82, MATCH(Y80, DEFN!$X$13:$X$82, 0), MATCH(str_CountryType, DEFN!$Q$10:$W$10, 0)), 0) -> 0.5
B82: Weights Settings*
B84: Sector | C84: Weight | D84: Parameter | E84: Weight | F84: Category | G84: Weight
B85: Power | C85: 1 | D85: Fundamentals | E85: 0.5 | F85: Policy - Renewable energy | G85: 0.3
B86: Power | D86: Fundamentals | F86: Policy - Flexibility | G86: 0
B87: Power | D87: Fundamentals | F87: Policy - Climate change | G87: 0.1
B88: Power | D88: Fundamentals | F88: Power sector - General | G88: 0.15
B89: Power | D89: Fundamentals | F89: Power sector - Wholesale | G89: 0.15
B90: Power | D90: Fundamentals | F90: Power sector - Decentralized energy | G90: 0.05
B91: Power | D91: Fundamentals | F91: Power sector - Decentralized energy details | G91: 0.05
B92: Power | D92: Fundamentals | F92: Power sector - Flexibility | G92: 0
B93: Power | D93: Fundamentals | F93: Power sector - Ancillary services | G93: 0
B94: Power | D94: Fundamentals | F94: Barriers - General | G94: 0.1
B95: Power | D95: Fundamentals | F95: Barriers - Decentralized energy | G95: 0.05
B96: Power | D96: Fundamentals | F96: Currency variation | G96: 0.05
B97: Power | D97: Opportunities | E97: 0.25 | F97: Prices and costs | G97: 0.1
B98: Power | D98: Opportunities | F98: Prices and costs - Decentralized energy | G98: 0.05
B99: Power | D99: Opportunities | F99: Renewables procurement | G99: 0.1875
B100: Power | D100: Opportunities | F100: Decentralized energy incentives | G100: 0.1125
B101: Power | D101: Opportunities | F101: Carbon Intensity | G101: 0.15
B102: Power | D102: Opportunities | F102: Market size | G102: 0.3
B103: Power | D103: Opportunities | F103: Corporate commitments | G103: 0.05
B104: Power | D104: Opportunities | F104: GDP growth - 5 year IMF outlook | G104: 0.05
B105: Power | D105: Experience | E105: 0.25 | F105: Manufacturing | G105: 0
B106: Power | D106: Experience | F106: Finance | G106: 0.4
B107: Power | D107: Experience | F107: System | G107: 0.6
B108: Transport | C108: 0 | D108: Fundamentals | E108: 0.5 | F108: Policy - Transport | G108: 0.55
B109: Transport | D109: Fundamentals | F109: Policy - Climate change | G109: 0.1
B110: Transport | D110: Fundamentals | F110: Barriers - Transport | G110: 0.2
B111: Transport | D111: Fundamentals | F111: Incentives - Transport | G111: 0.05
B112: Transport | D112: Fundamentals | F112: Currency variation | G112: 0.1
B113: Transport | D113: Opportunities | E113: 0.25 | F113: Prices and costs - Transport | G113: 0.2
B114: Transport | D114: Opportunities | F114: Influence on fuel prices | G114: 0.2
B115: Transport | D115: Opportunities | F115: Market size - Transport | G115: 0.2
B116: Transport | D116: Opportunities | F116: Carbon Intensity - Transport | G116: 0.1
B117: Transport | D117: Opportunities | F117: Clean power - Transport | G117: 0.1
B118: Transport | D118: Opportunities | F118: Corporate commitments | G118: 0.05
B119: Transport | D119: Opportunities | F119: GDP growth - 5 year IMF outlook | G119: 0.15
B120: Transport | D120: Experience | E120: 0.25 | F120: Finance - Transport | G120: 0.5
B121: Transport | D121: Experience | F121: System - Transport | G121: 0.5
B122: Buildings | C122: 0 | D122: Fundamentals | E122: 0 | F122: Policy - Buildings | G122: 0
B123: Buildings | D123: Fundamentals | F123: Energy efficiency plans and performance standards | G123: 0
B124: Buildings | D124: Fundamentals | F124: Policy - Climate change | G124: 0
B125: Buildings | D125: Fundamentals | F125: Currency variation | G125: 0
B126: Buildings | D126: Opportunities | E126: 0 | F126: Prices and costs - Buildings | G126: 0
B127: Buildings | D127: Opportunities | F127: Barriers and incentives - Buildings | G127: 0
B128: Buildings | D128: Opportunities | F128: Market size - Buildings | G128: 0
B129: Buildings | D129: Opportunities | F129: Clean power - Buildings | G129: 0
B130: Buildings | D130: Opportunities | F130: Corporate commitments | G130: 0
B131: Buildings | D131: Opportunities | F131: GDP growth - 5 year IMF outlook | G131: 0
B132: Buildings | D132: Experience | E132: 0 | F132: System - Buildings | G132: 0
B133: Buildings | D133: Experience | F133: Finance - Buildings | G133: 0

Sheet IND (hidden)
G2: Model Base Year* | H2: 2020
G3: Growth Rate Cap (%) | H3: 1.5
G4: Maximum Score | H4: 5
G5: Benchmark Max | H5: 100
G6: Investment Year (Start) | H6: 2016
G7: Investment Growth Period | H7: =int_InvStartYear& "-" &RIGHT(int_Year,2) -> 2016-20
A9: Indicator Fields | G9: Indicator Data | U9: Note* | Y9: For indicator. | Z9: For growth calc. | AA9: For growth calc. | AP9: INDICATOR
A10: Indicator | B10: Country | C10: Indicator | D10: Sector | E10: Parameter | F10: Category | G10: Indicator | H10: Off-grid | I10: Levelisation | J10: Growth | K10: Units | L10: Region | M10: Countries & States | N10: ISO | O10: Statistic | P10: Best Case | Q10: User Defined | R10: Levelisation | S10: ="Data ("&int_Year&")" -> Data (2020) | T10: Data (Levelised) | U10: Benchmark | V10: Score | W10: Hardcoded Scores | X10: Growth Rate | Y10: ="Investment ("&int_InvStartYear& " to " &1*int_Year&")"&"" -> Investment (2016 to 2020) | Z10: ="Investment ("&int_InvStartYear& " to " &int_Year-1&")" -> Investment (2016 to 2019) | AA10: ="Investment ("&int_InvStartYear& " to " &1*int_Year&")" -> Investment (2016 to 2020) | AB10: Indicator ID | AC10: Row ID | AD10: Country Type | AE10: On-grid | AF10: Off-grid | AG10: Flexibility | AH10: Non-Flexibility | AI10: Heating | AJ10: Non-Heating | AK10: Type | AL10: Weight Column | AM10: Sector Weight | AN10: Parameter Weight | AO10: Category Weight | AP10: Weight (BNEF) | AQ10: Weight (Adjusted)* | AR10: Net Weight* | AS10: Net Score*
A11: 1 | B11: 1 | C11: =IFERROR(INDEX(DEFN!$A$13:$X$82, MATCH($A11, DEFN!$A$13:$A$82, 0), MATCH(C$10, DEFN!$A$12:$X$12, 0)), "") -> Policy - Renewable energy | D11: =IF(F11="", "", INDEX(DEFN!$A$13:$X$82, MATCH($A11, DEFN!$A$13:$A$82, 0), MATCH(D$10, DEFN!$A$12:$X$12, 0))) -> Power | E11: =IF(G11="", "", INDEX(DEFN!$A$13:$X$82, MATCH($A11, DEFN!$A$13:$A$82, 0), MATCH(E$10, DEFN!$A$12:$X$12, 0))) -> Fundamentals | F11: =IF(G11="", "", INDEX(DEFN!$A$13:$X$82, MATCH($A11, DEFN!$A$13:$A$82, 0), MATCH(F$10, DEFN!$A$12:$X$12, 0))) -> Policy - Renewable energy | G11: =IFERROR(INDEX(DEFN!$A$13:$X$82, MATCH($A11, DEFN!$A$13:$A$82, 0), MATCH(C$10, DEFN!$A$12:$X$12, 0)), "") -> Policy - Renewable energy | H11: =IF(G11="", "", INDEX(DEFN!$A$13:$X$82, MATCH($A11, DEFN!$A$13:$A$82, 0), MATCH(H$10, DEFN!$A$12:$X$12, 0))) -> No | I11: =IF(G11="", "", INDEX(DEFN!$A$13:$X$82, MATCH($A11, DEFN!$A$13:$A$82, 0), MATCH(I$10, DEFN!$A$12:$X$12, 0))) -> None | J11: =IF(G11="", "", INDEX(DEFN!$A$13:$X$82, MATCH($A11, DEFN!$A$13:$A$82, 0), MATCH(J$10, DEFN!$A$12:$X$12, 0))) -> None | K11: =IF(G11="", "", INDEX(DEFN!$A$13:$X$82, MATCH($A11, DEFN!$A$13:$A$82, 0), MATCH(K$10, DEFN!$A$12:$X$12, 0))) -> Policies | L11: =IF(G11="", "", INDEX(DEFN!B$278:B$427, MATCH($B11, DEFN!$A$278:$A$427, 0), 1)) -> Americas | M11: =IF(G11="", "", INDEX(DEFN!C$278:C$427, MATCH($B11, DEFN!$A$278:$A$427, 0), 1)) -> Canada | N11: =IF(G11="", "", IFERROR(INDEX(DEFN!$E$278:$E$427, MATCH(M11, DEFN!$C$278:$C$427, 0), 1), "")) -> CAN | O11: =IF(F11="", "", INDEX(DEFN!$A$13:$X$82, MATCH($A11, DEFN!$A$13:$A$82, 0), MATCH(O$10, DEFN!$A$12:$X$12, 0))) -> Total | P11: =IF(G11="", "", INDEX(DEFN!$A$13:$X$82, MATCH($A11, DEFN!$A$13:$A$82, 0), MATCH(P$10, DEFN!$A$12:$X$12, 0))) -> User Defined | Q11: =IF(G11="", 0, INDEX(DEFN!$A$13:$X$82, MATCH($A11, DEFN!$A$13:$A$82, 0), MATCH(Q$10, DEFN!$A$12:$X$12, 0))) -> 5 | R11: =IFERROR(IF($I11="None", 1, IF($I11="All Capacity", SUMIFS(SID!Y$12:Y$28511, SID!$L$12:$L$28511, $M11, SID!$I$12:$I$28511, $K11), IF($I11="All Generation", SUMIFS(SID!Y$12:Y$28511, SID!$L$12:$L$28511, $M11, SID!$I$12:$I$28511, $K11), SUMIFS(SID!Y$12:Y$28511, SID!$L$12:$L$28511, $M11, SID!$F$12:$F$28511, $I11)))), 1) -> 1 | S11: =IF(AND(LEFT(G11, 6)="Growth", J11<>"None"), X11, IF(Y11=0, IF(O11="Average", IFERROR(AVERAGEIFS(SID!Y$12:Y$28511, SID!$F$12:$F$28511, $G11, SID!$C$12:$C$28511, $D11, SID!$L$12:$L$28511, $M11, SID!$Z$12:$Z$28511, 0), 0), IFERROR(SUMIFS(SID!Y$12:Y$28511, SID!$F$12:$F$28511, $G11, SID!$C$12:$C$28511, $D11, SID!$L$12:$L$28511, $M11, SID!$Z$12:$Z$28511, 0), 0)), Y11)) -> 94.57134255 | T11: =IFERROR(IF(ISNUMBER(W11), MAX(W11/R11, 0), MAX(IF(LEFT(G11, 11)="Growth rate", MIN(S11, dbl_GrowthCap), S11)/R11, 0)), 0) -> 2.651783899 | U11: =IF(G11<>G10, IFERROR(IF(P11="User Defined", $Q11, IF(P11="Min", SMALL(T11:T160, COUNTIF(T11:T160, 0)+1), IF(P11="Max", MAX(T11:T160), IF(P11="Average", AVERAGEIF(T11:T160, "<>0"), IF(P11="Total", SUM(T11:T160), 0))))), 0),U10) -> 5 | V11: =IFERROR(dbl_BenchmarkMax*IF(P11="Min", U11/T11, T11/U11), 0) -> 53.03567798 | W11: 2.651783899 | X11: =IF(OR(LEFT($J11, 16)="Clean energy inv", LEFT($J11, 16)="Electrified heat", LEFT($J11, 16)="Electrified vehi"), IF(OR(Z11=0, AA11=0), 0, AA11/Z11-1), IF(J11="None", 0, IFERROR(SUMIFS(SID!Y$12:Y$28511, SID!$F$12:$F$28511, J11, SID!$L$12:$L$28511, M11, SID!$Z$12:$Z$28511, 0)/SUMIFS(SID!X$12:X$28511, SID!$F$12:$F$28511, J11, SID!$L$12:$L$28511, M11, SID!$Z$12:$Z$28511, 0) - 1, 0))) -> 0 | Y11: =IF(OR(LEFT($G11, 16)="Clean energy inv", LEFT($G11, 16)="Electrified heat", LEFT($G11, 16)="Electrified vehi"), SUMIFS(INV!$E$3:$E$3003, INV!$C$3:$C$3003, $N11, INV!$A$3:$A$3003, $D11, INV!$D$3:$D$3003, ">="& int_InvStartYear, INV!$D$3:$D$3003, "<="& int_Year), 0) -> 0 | Z11: =IF(OR(LEFT($J11, 16)="Clean energy inv", LEFT($J11, 16)="Electrified heat", LEFT($J11, 16)="Electrified vehi"), SUMIFS(INV!$E$3:$E$3003, INV!$C$3:$C$3003, $N11, INV!$A$3:$A$3003, $D11, INV!$D$3:$D$3003, ">="& int_InvStartYear, INV!$D$3:$D$3003, "<="& int_Year-1), 0) -> 0 | AA11: =IF(OR(LEFT($J11, 16)="Clean energy inv", LEFT($J11, 16)="Electrified heat", LEFT($J11, 16)="Electrified vehi"), SUMIFS(INV!$E$3:$E$3003, INV!$C$3:$C$3003, $N11, INV!$A$3:$A$3003, $D11, INV!$D$3:$D$3003, ">="& int_InvStartYear, INV!$D$3:$D$3003, "<="& int_Year), 0) -> 0 | AB11: =D11&" - " &C11 -> Power - Policy - Renewable energy | AC11: =AB11&" > " &M11 -> Power - Policy - Renewable energy > Canada | AD11: =IF(ISNUMBER(MATCH(M11, list_RegionOnGrid, 0)), "On-Grid", "Off-Grid") -> On-Grid | AE11: =IF(ISNUMBER(MATCH($M11, DEFN!A$442:A$599, 0)), AE$10, "") -> On-grid | AF11: =IF(ISNUMBER(MATCH($M11, DEFN!B$442:B$599, 0)), AF$10, "") ->  | AG11: =IF(ISNUMBER(MATCH($M11, DEFN!C$442:C$599, 0)), AG$10, "") ->  | AH11: =IF(ISNUMBER(MATCH($M11, DEFN!D$442:D$599, 0)), AH$10, "") -> Non-Flexibility | AI11: =IF(ISNUMBER(MATCH($M11, DEFN!E$442:E$599, 0)), AI$10, "") -> Heating | AJ11: =IF(ISNUMBER(MATCH($M11, DEFN!F$442:F$599, 0)), AJ$10, "") ->  | AK11: =TRIM(AE11&" "&AF11&" "&AG11&" "&AH11&" "&AI11&" "&AJ11) -> On-grid Non-Flexibility Heating | AL11: =IFERROR(INDEX(WEIGHTS!$B$6:$H$6, 1, MATCH(IND!$AK11, WEIGHTS!$AD$5:$AJ$5, 0)), "") -> 3 | AM11: =IF(str_Sector_RANK="Default", IFERROR(INDEX(WEIGHTS!$B$16:$H$64, MATCH($D11, WEIGHTS!$I$16:$I$64, 0), $AL11), 0), IF(str_Sector_RANK="Custom", IFERROR(INDEX(RANKING!$P$5:$P$7, MATCH(D11, RANKING!$O$5:$O$7, 0), 1), 0), IF(D11=str_Sector_RANK,1,0))) -> 1 | AN11: =IF(str_Parameter_RANK="Default", IFERROR(INDEX(WEIGHTS!$K$16:$Q$64, MATCH($D11&" > "&$E11, WEIGHTS!$R$16:$R$64, 0), $AL11), 0), IF(str_Parameter_RANK="Custom", IFERROR(INDEX(RANKING!$R$5:$R$7, MATCH(E11, RANKING!$Q$5:$Q$7, 0), 1), 0), IF(E11=str_Parameter_RANK,1,0))) -> 0.5 | AO11: =IFERROR(INDEX(WEIGHTS!$T$16:$Z$64, MATCH($D11&" > "&$E11&" > "&$F11, WEIGHTS!$AA$16:$AA$64, 0), $AL11), 0) -> 0.4 | AP11: =IFERROR(INDEX(DEFN!$Q$13:$W$82, MATCH(AB11, DEFN!$X$13:$X$82, 0), MATCH(AK11, DEFN!$Q$10:$W$10, 0)), 0) -> 1 | AQ11: =IF(ISNUMBER(AP11), AP11, IF(S11=0, 0, (1-SUMIFS($AP$10:$AP$11411, $AP$10:$AP$11411, ">0", $F$10:$F$11411, F11, $M$10:$M$11411, M11))/COUNTIFS($AP$10:$AP$11411, "None", $S$10:$S$11411, "<>0", $F$10:$F$11411, F11, $M$10:$M$11411, M11))) -> 1 | AR11: =AM11*AN11*AO11*AQ11 -> 0.2 | AS11: =AR11*(V11/100)*dbl_ScoreMax -> 0.5303567798
A12: 1 | B12: =B11+1 -> 2 | C12: =IFERROR(INDEX(DEFN!$A$13:$X$82, MATCH($A12, DEFN!$A$13:$A$82, 0), MATCH(C$10, DEFN!$A$12:$X$12, 0)), "") -> Policy - Renewable energy | D12: =IF(F12="", "", INDEX(DEFN!$A$13:$X$82, MATCH($A12, DEFN!$A$13:$A$82, 0), MATCH(D$10, DEFN!$A$12:$X$12, 0))) -> Power | E12: =IF(G12="", "", INDEX(DEFN!$A$13:$X$82, MATCH($A12, DEFN!$A$13:$A$82, 0), MATCH(E$10, DEFN!$A$12:$X$12, 0))) -> Fundamentals | F12: =IF(G12="", "", INDEX(DEFN!$A$13:$X$82, MATCH($A12, DEFN!$A$13:$A$82, 0), MATCH(F$10, DEFN!$A$12:$X$12, 0))) -> Policy - Renewable energy | G12: =IFERROR(INDEX(DEFN!$A$13:$X$82, MATCH($A12, DEFN!$A$13:$A$82, 0), MATCH(C$10, DEFN!$A$12:$X$12, 0)), "") -> Policy - Renewable energy | H12: =IF(G12="", "", INDEX(DEFN!$A$13:$X$82, MATCH($A12, DEFN!$A$13:$A$82, 0), MATCH(H$10, DEFN!$A$12:$X$12, 0))) -> No | I12: =IF(G12="", "", INDEX(DEFN!$A$13:$X$82, MATCH($A12, DEFN!$A$13:$A$82, 0), MATCH(I$10, DEFN!$A$12:$X$12, 0))) -> None | J12: =IF(G12="", "", INDEX(DEFN!$A$13:$X$82, MATCH($A12, DEFN!$A$13:$A$82, 0), MATCH(J$10, DEFN!$A$12:$X$12, 0))) -> None | K12: =IF(G12="", "", INDEX(DEFN!$A$13:$X$82, MATCH($A12, DEFN!$A$13:$A$82, 0), MATCH(K$10, DEFN!$A$12:$X$12, 0))) -> Policies | L12: =IF(G12="", "", INDEX(DEFN!B$278:B$427, MATCH($B12, DEFN!$A$278:$A$427, 0), 1)) -> Americas | M12: =IF(G12="", "", INDEX(DEFN!C$278:C$427, MATCH($B12, DEFN!$A$278:$A$427, 0), 1)) -> United States | N12: =IF(G12="", "", IFERROR(INDEX(DEFN!$E$278:$E$427, MATCH(M12, DEFN!$C$278:$C$427, 0), 1), "")) -> USA | O12: =IF(F12="", "", INDEX(DEFN!$A$13:$X$82, MATCH($A12, DEFN!$A$13:$A$82, 0), MATCH(O$10, DEFN!$A$12:$X$12, 0))) -> Total | P12: =IF(G12="", "", INDEX(DEFN!$A$13:$X$82, MATCH($A12, DEFN!$A$13:$A$82, 0), MATCH(P$10, DEFN!$A$12:$X$12, 0))) -> User Defined | Q12: =IF(G12="", 0, INDEX(DEFN!$A$13:$X$82, MATCH($A12, DEFN!$A$13:$A$82, 0), MATCH(Q$10, DEFN!$A$12:$X$12, 0))) -> 5 | R12: =IFERROR(IF($I12="None", 1, IF($I12="All Capacity", SUMIFS(SID!Y$12:Y$28511, SID!$L$12:$L$28511, $M12, SID!$I$12:$I$28511, $K12), IF($I12="All Generation", SUMIFS(SID!Y$12:Y$28511, SID!$L$12:$L$28511, $M12, SID!$I$12:$I$28511, $K12), SUMIFS(SID!Y$12:Y$28511, SID!$L$12:$L$28511, $M12, SID!$F$12:$F$28511, $I12)))), 1) -> 1 | S12: =IF(AND(LEFT(G12, 6)="Growth", J12<>"None"), X12, IF(Y12=0, IF(O12="Average", IFERROR(AVERAGEIFS(SID!Y$12:Y$28511, SID!$F$12:$F$28511, $G12, SID!$C$12:$C$28511, $D12, SID!$L$12:$L$28511, $M12, SID!$Z$12:$Z$28511, 0), 0), IFERROR(SUMIFS(SID!Y$12:Y$28511, SID!$F$12:$F$28511, $G12, SID!$C$12:$C$28511, $D12, SID!$L$12:$L$28511, $M12, SID!$Z$12:$Z$28511, 0), 0)), Y12)) -> 77.44831043 | T12: 2.185587068 | U12: =IF(G12<>G11, IFERROR(IF(P12="User Defined", $Q12, IF(P12="Min", SMALL(T12:T161, COUNTIF(T12:T161, 0)+1), IF(P12="Max", MAX(T12:T161), IF(P12="Average", AVERAGEIF(T12:T161, "<>0"), IF(P12="Total", SUM(T12:T161), 0))))), 0),U11) -> 5 | V12: =IFERROR(dbl_BenchmarkMax*IF(P12="Min", U12/T12, T12/U12), 0) -> 43.71174137 | W12: 2.185587068 | X12: =IF(OR(LEFT($J12, 16)="Clean energy inv", LEFT($J12, 16)="Electrified heat", LEFT($J12, 16)="Electrified vehi"), IF(OR(Z12=0, AA12=0), 0, AA12/Z12-1), IF(J12="None", 0, IFERROR(SUMIFS(SID!Y$12:Y$28511, SID!$F$12:$F$28511, J12, SID!$L$12:$L$28511, M12, SID!$Z$12:$Z$28511, 0)/SUMIFS(SID!X$12:X$28511, SID!$F$12:$F$28511, J12, SID!$L$12:$L$28511, M12, SID!$Z$12:$Z$28511, 0) - 1, 0))) -> 0 | Y12: =IF(OR(LEFT($G12, 16)="Clean energy inv", LEFT($G12, 16)="Electrified heat", LEFT($G12, 16)="Electrified vehi"), SUMIFS(INV!$E$3:$E$3003, INV!$C$3:$C$3003, $N12, INV!$A$3:$A$3003, $D12, INV!$D$3:$D$3003, ">="& int_InvStartYear, INV!$D$3:$D$3003, "<="& int_Year), 0) -> 0 | Z12: =IF(OR(LEFT($J12, 16)="Clean energy inv", LEFT($J12, 16)="Electrified heat", LEFT($J12, 16)="Electrified vehi"), SUMIFS(INV!$E$3:$E$3003, INV!$C$3:$C$3003, $N12, INV!$A$3:$A$3003, $D12, INV!$D$3:$D$3003, ">="& int_InvStartYear, INV!$D$3:$D$3003, "<="& int_Year-1), 0) -> 0 | AA12: =IF(OR(LEFT($J12, 16)="Clean energy inv", LEFT($J12, 16)="Electrified heat", LEFT($J12, 16)="Electrified vehi"), SUMIFS(INV!$E$3:$E$3003, INV!$C$3:$C$3003, $N12, INV!$A$3:$A$3003, $D12, INV!$D$3:$D$3003, ">="& int_InvStartYear, INV!$D$3:$D$3003, "<="& int_Year), 0) -> 0 | AB12: =D12&" - " &C12 -> Power - Policy - Renewable energy | AC12: =AB12&" > " &M12 -> Power - Policy - Renewable energy > United States | AD12: =IF(ISNUMBER(MATCH(M12, list_RegionOnGrid, 0)), "On-Grid", "Off-Grid") -> On-Grid | AE12: =IF(ISNUMBER(MATCH($M12, DEFN!A$442:A$599, 0)), AE$10, "") -> On-grid | AF12: =IF(ISNUMBER(MATCH($M12, DEFN!B$442:B$599, 0)), AF$10, "") ->  | AG12: =IF(ISNUMBER(MATCH($M12, DEFN!C$442:C$599, 0)), AG$10, "") -> Flexibility | AH12: =IF(ISNUMBER(MATCH($M12, DEFN!D$442:D$599, 0)), AH$10, "") ->  | AI12: =IF(ISNUMBER(MATCH($M12, DEFN!E$442:E$599, 0)), AI$10, "") -> Heating | AJ12: =IF(ISNUMBER(MATCH($M12, DEFN!F$442:F$599, 0)), AJ$10, "") ->  | AK12: =TRIM(AE12&" "&AF12&" "&AG12&" "&AH12&" "&AI12&" "&AJ12) -> On-grid Flexibility Heating | AL12: =IFERROR(INDEX(WEIGHTS!$B$6:$H$6, 1, MATCH(IND!$AK12, WEIGHTS!$AD$5:$AJ$5, 0)), "") -> 4 | AM12: =IF(str_Sector_RANK="Default", IFERROR(INDEX(WEIGHTS!$B$16:$H$64, MATCH($D12, WEIGHTS!$I$16:$I$64, 0), $AL12), 0), IF(str_Sector_RANK="Custom", IFERROR(INDEX(RANKING!$P$5:$P$7, MATCH(D12, RANKING!$O$5:$O$7, 0), 1), 0), IF(D12=str_Sector_RANK,1,0))) -> 1 | AN12: =IF(str_Parameter_RANK="Default", IFERROR(INDEX(WEIGHTS!$K$16:$Q$64, MATCH($D12&" > "&$E12, WEIGHTS!$R$16:$R$64, 0), $AL12), 0), IF(str_Parameter_RANK="Custom", IFERROR(INDEX(RANKING!$R$5:$R$7, MATCH(E12, RANKING!$Q$5:$Q$7, 0), 1), 0), IF(E12=str_Parameter_RANK,1,0))) -> 0.5 | AO12: =IFERROR(INDEX(WEIGHTS!$T$16:$Z$64, MATCH($D12&" > "&$E12&" > "&$F12, WEIGHTS!$AA$16:$AA$64, 0), $AL12), 0) -> 0.25 | AP12: =IFERROR(INDEX(DEFN!$Q$13:$W$82, MATCH(AB12, DEFN!$X$13:$X$82, 0), MATCH(AK12, DEFN!$Q$10:$W$10, 0)), 0) -> 1 | AQ12: 1 | AR12: =AM12*AN12*AO12*AQ12 -> 0.125 | AS12: =AR12*(V12/100)*dbl_ScoreMax -> 0.2731983835
A13: 1 | B13: =B12+1 -> 3 | C13: =IFERROR(INDEX(DEFN!$A$13:$X$82, MATCH($A13, DEFN!$A$13:$A$82, 0), MATCH(C$10, DEFN!$A$12:$X$12, 0)), "") -> Policy - Renewable energy | D13: =IF(F13="", "", INDEX(DEFN!$A$13:$X$82, MATCH($A13, DEFN!$A$13:$A$82, 0), MATCH(D$10, DEFN!$A$12:$X$12, 0))) -> Power | E13: =IF(G13="", "", INDEX(DEFN!$A$13:$X$82, MATCH($A13, DEFN!$A$13:$A$82, 0), MATCH(E$10, DEFN!$A$12:$X$12, 0))) -> Fundamentals | F13: =IF(G13="", "", INDEX(DEFN!$A$13:$X$82, MATCH($A13, DEFN!$A$13:$A$82, 0), MATCH(F$10, DEFN!$A$12:$X$12, 0))) -> Policy - Renewable energy | G13: =IFERROR(INDEX(DEFN!$A$13:$X$82, MATCH($A13, DEFN!$A$13:$A$82, 0), MATCH(C$10, DEFN!$A$12:$X$12, 0)), "") -> Policy - Renewable energy | H13: =IF(G13="", "", INDEX(DEFN!$A$13:$X$82, MATCH($A13, DEFN!$A$13:$A$82, 0), MATCH(H$10, DEFN!$A$12:$X$12, 0))) -> No | I13: =IF(G13="", "", INDEX(DEFN!$A$13:$X$82, MATCH($A13, DEFN!$A$13:$A$82, 0), MATCH(I$10, DEFN!$A$12:$X$12, 0))) -> None | J13: =IF(G13="", "", INDEX(DEFN!$A$13:$X$82, MATCH($A13, DEFN!$A$13:$A$82, 0), MATCH(J$10, DEFN!$A$12:$X$12, 0))) -> None | K13: =IF(G13="", "", INDEX(DEFN!$A$13:$X$82, MATCH($A13, DEFN!$A$13:$A$82, 0), MATCH(K$10, DEFN!$A$12:$X$12, 0))) -> Policies | L13: =IF(G13="", "", INDEX(DEFN!B$278:B$427, MATCH($B13, DEFN!$A$278:$A$427, 0), 1)) -> Americas | M13: =IF(G13="", "", INDEX(DEFN!C$278:C$427, MATCH($B13, DEFN!$A$278:$A$427, 0), 1)) -> Argentina | N13: =IF(G13="", "", IFERROR(INDEX(DEFN!$E$278:$E$427, MATCH(M13, DEFN!$C$278:$C$427, 0), 1), "")) -> ARG | O13: =IF(F13="", "", INDEX(DEFN!$A$13:$X$82, MATCH($A13, DEFN!$A$13:$A$82, 0), MATCH(O$10, DEFN!$A$12:$X$12, 0))) -> Total | P13: =IF(G13="", "", INDEX(DEFN!$A$13:$X$82, MATCH($A13, DEFN!$A$13:$A$82, 0), MATCH(P$10, DEFN!$A$12:$X$12, 0))) -> User Defined | Q13: =IF(G13="", 0, INDEX(DEFN!$A$13:$X$82, MATCH($A13, DEFN!$A$13:$A$82, 0), MATCH(Q$10, DEFN!$A$12:$X$12, 0))) -> 5 | R13: =IFERROR(IF($I13="None", 1, IF($I13="All Capacity", SUMIFS(SID!Y$12:Y$28511, SID!$L$12:$L$28511, $M13, SID!$I$12:$I$28511, $K13), IF($I13="All Generation", SUMIFS(SID!Y$12:Y$28511, SID!$L$12:$L$28511, $M13, SID!$I$12:$I$28511, $K13), SUMIFS(SID!Y$12:Y$28511, SID!$L$12:$L$28511, $M13, SID!$F$12:$F$28511, $I13)))), 1) -> 1 | S13: =IF(AND(LEFT(G13, 6)="Growth", J13<>"None"), X13, IF(Y13=0, IF(O13="Average", IFERROR(AVERAGEIFS(SID!Y$12:Y$28511, SID!$F$12:$F$28511, $G13, SID!$C$12:$C$28511, $D13, SID!$L$12:$L$28511, $M13, SID!$Z$12:$Z$28511, 0), 0), IFERROR(SUMIFS(SID!Y$12:Y$28511, SID!$F$12:$F$28511, $G13, SID!$C$12:$C$28511, $D13, SID!$L$12:$L$28511, $M13, SID!$Z$12:$Z$28511, 0), 0)), Y13)) -> 102.6333109 | T13: 2.868191222 | U13: 5 | V13: 57.36382443 | W13: 2.868191222 | X13: =IF(OR(LEFT($J13, 16)="Clean energy inv", LEFT($J13, 16)="Electrified heat", LEFT($J13, 16)="Electrified vehi"), IF(OR(Z13=0, AA13=0), 0, AA13/Z13-1), IF(J13="None", 0, IFERROR(SUMIFS(SID!Y$12:Y$28511, SID!$F$12:$F$28511, J13, SID!$L$12:$L$28511, M13, SID!$Z$12:$Z$28511, 0)/SUMIFS(SID!X$12:X$28511, SID!$F$12:$F$28511, J13, SID!$L$12:$L$28511, M13, SID!$Z$12:$Z$28511, 0) - 1, 0))) -> 0 | Y13: =IF(OR(LEFT($G13, 16)="Clean energy inv", LEFT($G13, 16)="Electrified heat", LEFT($G13, 16)="Electrified vehi"), SUMIFS(INV!$E$3:$E$3003, INV!$C$3:$C$3003, $N13, INV!$A$3:$A$3003, $D13, INV!$D$3:$D$3003, ">="& int_InvStartYear, INV!$D$3:$D$3003, "<="& int_Year), 0) -> 0 | Z13: =IF(OR(LEFT($J13, 16)="Clean energy inv", LEFT($J13, 16)="Electrified heat", LEFT($J13, 16)="Electrified vehi"), SUMIFS(INV!$E$3:$E$3003, INV!$C$3:$C$3003, $N13, INV!$A$3:$A$3003, $D13, INV!$D$3:$D$3003, ">="& int_InvStartYear, INV!$D$3:$D$3003, "<="& int_Year-1), 0) -> 0 | AA13: =IF(OR(LEFT($J13, 16)="Clean energy inv", LEFT($J13, 16)="Electrified heat", LEFT($J13, 16)="Electrified vehi"), SUMIFS(INV!$E$3:$E$3003, INV!$C$3:$C$3003, $N13, INV!$A$3:$A$3003, $D13, INV!$D$3:$D$3003, ">="& int_InvStartYear, INV!$D$3:$D$3003, "<="& int_Year), 0) -> 0 | AB13: Power - Policy - Renewable energy | AC13: Power - Policy - Renewable energy > Argentina | AD13: On-Grid | AE13: =IF(ISNUMBER(MATCH($M13, DEFN!A$442:A$599, 0)), AE$10, "") -> On-grid | AF13: =IF(ISNUMBER(MATCH($M13, DEFN!B$442:B$599, 0)), AF$10, "") ->  | AG13: =IF(ISNUMBER(MATCH($M13, DEFN!C$442:C$599, 0)), AG$10, "") ->  | AH13: =IF(ISNUMBER(MATCH($M13, DEFN!D$442:D$599, 0)), AH$10, "") -> Non-Flexibility | AI13: =IF(ISNUMBER(MATCH($M13, DEFN!E$442:E$599, 0)), AI$10, "") -> Heating | AJ13: =IF(ISNUMBER(MATCH($M13, DEFN!F$442:F$599, 0)), AJ$10, "") ->  | AK13: On-grid Non-Flexibility Heating | AL13: =IFERROR(INDEX(WEIGHTS!$B$6:$H$6, 1, MATCH(IND!$AK13, WEIGHTS!$AD$5:$AJ$5, 0)), "") -> 3 | AM13: =IF(str_Sector_RANK="Default", IFERROR(INDEX(WEIGHTS!$B$16:$H$64, MATCH($D13, WEIGHTS!$I$16:$I$64, 0), $AL13), 0), IF(str_Sector_RANK="Custom", IFERROR(INDEX(RANKING!$P$5:$P$7, MATCH(D13, RANKING!$O$5:$O$7, 0), 1), 0), IF(D13=str_Sector_RANK,1,0))) -> 1 | AN13: =IF(str_Parameter_RANK="Default", IFERROR(INDEX(WEIGHTS!$K$16:$Q$64, MATCH($D13&" > "&$E13, WEIGHTS!$R$16:$R$64, 0), $AL13), 0), IF(str_Parameter_RANK="Custom", IFERROR(INDEX(RANKING!$R$5:$R$7, MATCH(E13, RANKING!$Q$5:$Q$7, 0), 1), 0), IF(E13=str_Parameter_RANK,1,0))) -> 0.5 | AO13: =IFERROR(INDEX(WEIGHTS!$T$16:$Z$64, MATCH($D13&" > "&$E13&" > "&$F13, WEIGHTS!$AA$16:$AA$64, 0), $AL13), 0) -> 0.4 | AP13: =IFERROR(INDEX(DEFN!$Q$13:$W$82, MATCH(AB13, DEFN!$X$13:$X$82, 0), MATCH(AK13, DEFN!$Q$10:$W$10, 0)), 0) -> 1 | AQ13: 1 | AR13: 0.2 | AS13: 0.5736382443
A14: 1 | B14: 4 | C14: =IFERROR(INDEX(DEFN!$A$13:$X$82, MATCH($A14, DEFN!$A$13:$A$82, 0), MATCH(C$10, DEFN!$A$12:$X$12, 0)), "") -> Policy - Renewable energy | D14: =IF(F14="", "", INDEX(DEFN!$A$13:$X$82, MATCH($A14, DEFN!$A$13:$A$82, 0), MATCH(D$10, DEFN!$A$12:$X$12, 0))) -> Power | E14: =IF(G14="", "", INDEX(DEFN!$A$13:$X$82, MATCH($A14, DEFN!$A$13:$A$82, 0), MATCH(E$10, DEFN!$A$12:$X$12, 0))) -> Fundamentals | F14: =IF(G14="", "", INDEX(DEFN!$A$13:$X$82, MATCH($A14, DEFN!$A$13:$A$82, 0), MATCH(F$10, DEFN!$A$12:$X$12, 0))) -> Policy - Renewable energy | G14: =IFERROR(INDEX(DEFN!$A$13:$X$82, MATCH($A14, DEFN!$A$13:$A$82, 0), MATCH(C$10, DEFN!$A$12:$X$12, 0)), "") -> Policy - Renewable energy | H14: =IF(G14="", "", INDEX(DEFN!$A$13:$X$82, MATCH($A14, DEFN!$A$13:$A$82, 0), MATCH(H$10, DEFN!$A$12:$X$12, 0))) -> No | I14: =IF(G14="", "", INDEX(DEFN!$A$13:$X$82, MATCH($A14, DEFN!$A$13:$A$82, 0), MATCH(I$10, DEFN!$A$12:$X$12, 0))) -> None | J14: =IF(G14="", "", INDEX(DEFN!$A$13:$X$82, MATCH($A14, DEFN!$A$13:$A$82, 0), MATCH(J$10, DEFN!$A$12:$X$12, 0))) -> None | K14: =IF(G14="", "", INDEX(DEFN!$A$13:$X$82, MATCH($A14, DEFN!$A$13:$A$82, 0), MATCH(K$10, DEFN!$A$12:$X$12, 0))) -> Policies | L14: =IF(G14="", "", INDEX(DEFN!B$278:B$427, MATCH($B14, DEFN!$A$278:$A$427, 0), 1)) -> Americas | M14: =IF(G14="", "", INDEX(DEFN!C$278:C$427, MATCH($B14, DEFN!$A$278:$A$427, 0), 1)) -> Bolivia | N14: =IF(G14="", "", IFERROR(INDEX(DEFN!$E$278:$E$427, MATCH(M14, DEFN!$C$278:$C$427, 0), 1), "")) -> BOL | O14: =IF(F14="", "", INDEX(DEFN!$A$13:$X$82, MATCH($A14, DEFN!$A$13:$A$82, 0), MATCH(O$10, DEFN!$A$12:$X$12, 0))) -> Total | P14: =IF(G14="", "", INDEX(DEFN!$A$13:$X$82, MATCH($A14, DEFN!$A$13:$A$82, 0), MATCH(P$10, DEFN!$A$12:$X$12, 0))) -> User Defined | Q14: =IF(G14="", 0, INDEX(DEFN!$A$13:$X$82, MATCH($A14, DEFN!$A$13:$A$82, 0), MATCH(Q$10, DEFN!$A$12:$X$12, 0))) -> 5 | R14: =IFERROR(IF($I14="None", 1, IF($I14="All Capacity", SUMIFS(SID!Y$12:Y$28511, SID!$L$12:$L$28511, $M14, SID!$I$12:$I$28511, $K14), IF($I14="All Generation", SUMIFS(SID!Y$12:Y$28511, SID!$L$12:$L$28511, $M14, SID!$I$12:$I$28511, $K14), SUMIFS(SID!Y$12:Y$28511, SID!$L$12:$L$28511, $M14, SID!$F$12:$F$28511, $I14)))), 1) -> 1 | S14: =IF(AND(LEFT(G14, 6)="Growth", J14<>"None"), X14, IF(Y14=0, IF(O14="Average", IFERROR(AVERAGEIFS(SID!Y$12:Y$28511, SID!$F$12:$F$28511, $G14, SID!$C$12:$C$28511, $D14, SID!$L$12:$L$28511, $M14, SID!$Z$12:$Z$28511, 0), 0), IFERROR(SUMIFS(SID!Y$12:Y$28511, SID!$F$12:$F$28511, $G14, SID!$C$12:$C$28511, $D14, SID!$L$12:$L$28511, $M14, SID!$Z$12:$Z$28511, 0), 0)), Y14)) -> 43.933605 | T14: 1.241656342 | U14: 5 | V14: 24.83312684 | W14: 1.241656342 | X14: =IF(OR(LEFT($J14, 16)="Clean energy inv", LEFT($J14, 16)="Electrified heat", LEFT($J14, 16)="Electrified vehi"), IF(OR(Z14=0, AA14=0), 0, AA14/Z14-1), IF(J14="None", 0, IFERROR(SUMIFS(SID!Y$12:Y$28511, SID!$F$12:$F$28511, J14, SID!$L$12:$L$28511, M14, SID!$Z$12:$Z$28511, 0)/SUMIFS(SID!X$12:X$28511, SID!$F$12:$F$28511, J14, SID!$L$12:$L$28511, M14, SID!$Z$12:$Z$28511, 0) - 1, 0))) -> 0 | Y14: =IF(OR(LEFT($G14, 16)="Clean energy inv", LEFT($G14, 16)="Electrified heat", LEFT($G14, 16)="Electrified vehi"), SUMIFS(INV!$E$3:$E$3003, INV!$C$3:$C$3003, $N14, INV!$A$3:$A$3003, $D14, INV!$D$3:$D$3003, ">="& int_InvStartYear, INV!$D$3:$D$3003, "<="& int_Year), 0) -> 0 | Z14: =IF(OR(LEFT($J14, 16)="Clean energy inv", LEFT($J14, 16)="Electrified heat", LEFT($J14, 16)="Electrified vehi"), SUMIFS(INV!$E$3:$E$3003, INV!$C$3:$C$3003, $N14, INV!$A$3:$A$3003, $D14, INV!$D$3:$D$3003, ">="& int_InvStartYear, INV!$D$3:$D$3003, "<="& int_Year-1), 0) -> 0 | AA14: =IF(OR(LEFT($J14, 16)="Clean energy inv", LEFT($J14, 16)="Electrified heat", LEFT($J14, 16)="Electrified vehi"), SUMIFS(INV!$E$3:$E$3003, INV!$C$3:$C$3003, $N14, INV!$A$3:$A$3003, $D14, INV!$D$3:$D$3003, ">="& int_InvStartYear, INV!$D$3:$D$3003, "<="& int_Year), 0) -> 0 | AB14: Power - Policy - Renewable energy | AC14: Power - Policy - Renewable energy > Bolivia | AD14: Off-Grid | AE14: =IF(ISNUMBER(MATCH($M14, DEFN!A$442:A$599, 0)), AE$10, "") ->  | AF14: =IF(ISNUMBER(MATCH($M14, DEFN!B$442:B$599, 0)), AF$10, "") -> Off-grid | AG14: =IF(ISNUMBER(MATCH($M14, DEFN!C$442:C$599, 0)), AG$10, "") ->  | AH14: =IF(ISNUMBER(MATCH($M14, DEFN!D$442:D$599, 0)), AH$10, "") -> Non-Flexibility | AI14: =IF(ISNUMBER(MATCH($M14, DEFN!E$442:E$599, 0)), AI$10, "") -> Heating | AJ14: =IF(ISNUMBER(MATCH($M14, DEFN!F$442:F$599, 0)), AJ$10, "") ->  | AK14: Off-grid Non-Flexibility Heating | AL14: =IFERROR(INDEX(WEIGHTS!$B$6:$H$6, 1, MATCH(IND!$AK14, WEIGHTS!$AD$5:$AJ$5, 0)), "") -> 7 | AM14: =IF(str_Sector_RANK="Default", IFERROR(INDEX(WEIGHTS!$B$16:$H$64, MATCH($D14, WEIGHTS!$I$16:$I$64, 0), $AL14), 0), IF(str_Sector_RANK="Custom", IFERROR(INDEX(RANKING!$P$5:$P$7, MATCH(D14, RANKING!$O$5:$O$7, 0), 1), 0), IF(D14=str_Sector_RANK,1,0))) -> 1 | AN14: =IF(str_Parameter_RANK="Default", IFERROR(INDEX(WEIGHTS!$K$16:$Q$64, MATCH($D14&" > "&$E14, WEIGHTS!$R$16:$R$64, 0), $AL14), 0), IF(str_Parameter_RANK="Custom", IFERROR(INDEX(RANKING!$R$5:$R$7, MATCH(E14, RANKING!$Q$5:$Q$7, 0), 1), 0), IF(E14=str_Parameter_RANK,1,0))) -> 0.5 | AO14: =IFERROR(INDEX(WEIGHTS!$T$16:$Z$64, MATCH($D14&" > "&$E14&" > "&$F14, WEIGHTS!$AA$16:$AA$64, 0), $AL14), 0) -> 0.3 | AP14: =IFERROR(INDEX(DEFN!$Q$13:$W$82, MATCH(AB14, DEFN!$X$13:$X$82, 0), MATCH(AK14, DEFN!$Q$10:$W$10, 0)), 0) -> 1 | AQ14: 1 | AR14: 0.15 | AS14: 0.1862484513
A15: 1 | B15: 5 | C15: =IFERROR(INDEX(DEFN!$A$13:$X$82, MATCH($A15, DEFN!$A$13:$A$82, 0), MATCH(C$10, DEFN!$A$12:$X$12, 0)), "") -> Policy - Renewable energy | D15: =IF(F15="", "", INDEX(DEFN!$A$13:$X$82, MATCH($A15, DEFN!$A$13:$A$82, 0), MATCH(D$10, DEFN!$A$12:$X$12, 0))) -> Power | E15: =IF(G15="", "", INDEX(DEFN!$A$13:$X$82, MATCH($A15, DEFN!$A$13:$A$82, 0), MATCH(E$10, DEFN!$A$12:$X$12, 0))) -> Fundamentals | F15: =IF(G15="", "", INDEX(DEFN!$A$13:$X$82, MATCH($A15, DEFN!$A$13:$A$82, 0), MATCH(F$10, DEFN!$A$12:$X$12, 0))) -> Policy - Renewable energy | G15: =IFERROR(INDEX(DEFN!$A$13:$X$82, MATCH($A15, DEFN!$A$13:$A$82, 0), MATCH(C$10, DEFN!$A$12:$X$12, 0)), "") -> Policy - Renewable energy | H15: =IF(G15="", "", INDEX(DEFN!$A$13:$X$82, MATCH($A15, DEFN!$A$13:$A$82, 0), MATCH(H$10, DEFN!$A$12:$X$12, 0))) -> No | I15: =IF(G15="", "", INDEX(DEFN!$A$13:$X$82, MATCH($A15, DEFN!$A$13:$A$82, 0), MATCH(I$10, DEFN!$A$12:$X$12, 0))) -> None | J15: =IF(G15="", "", INDEX(DEFN!$A$13:$X$82, MATCH($A15, DEFN!$A$13:$A$82, 0), MATCH(J$10, DEFN!$A$12:$X$12, 0))) -> None | K15: =IF(G15="", "", INDEX(DEFN!$A$13:$X$82, MATCH($A15, DEFN!$A$13:$A$82, 0), MATCH(K$10, DEFN!$A$12:$X$12, 0))) -> Policies | L15: =IF(G15="", "", INDEX(DEFN!B$278:B$427, MATCH($B15, DEFN!$A$278:$A$427, 0), 1)) -> Americas | M15: =IF(G15="", "", INDEX(DEFN!C$278:C$427, MATCH($B15, DEFN!$A$278:$A$427, 0), 1)) -> Brazil | N15: =IF(G15="", "", IFERROR(INDEX(DEFN!$E$278:$E$427, MATCH(M15, DEFN!$C$278:$C$427, 0), 1), "")) -> BRA | O15: =IF(F15="", "", INDEX(DEFN!$A$13:$X$82, MATCH($A15, DEFN!$A$13:$A$82, 0), MATCH(O$10, DEFN!$A$12:$X$12, 0))) -> Total | P15: =IF(G15="", "", INDEX(DEFN!$A$13:$X$82, MATCH($A15, DEFN!$A$13:$A$82, 0), MATCH(P$10, DEFN!$A$12:$X$12, 0))) -> User Defined | Q15: =IF(G15="", 0, INDEX(DEFN!$A$13:$X$82, MATCH($A15, DEFN!$A$13:$A$82, 0), MATCH(Q$10, DEFN!$A$12:$X$12, 0))) -> 5 | R15: =IFERROR(IF($I15="None", 1, IF($I15="All Capacity", SUMIFS(SID!Y$12:Y$28511, SID!$L$12:$L$28511, $M15, SID!$I$12:$I$28511, $K15), IF($I15="All Generation", SUMIFS(SID!Y$12:Y$28511, SID!$L$12:$L$28511, $M15, SID!$I$12:$I$28511, $K15), SUMIFS(SID!Y$12:Y$28511, SID!$L$12:$L$28511, $M15, SID!$F$12:$F$28511, $I15)))), 1) -> 1 | S15: =IF(AND(LEFT(G15, 6)="Growth", J15<>"None"), X15, IF(Y15=0, IF(O15="Average", IFERROR(AVERAGEIFS(SID!Y$12:Y$28511, SID!$F$12:$F$28511, $G15, SID!$C$12:$C$28511, $D15, SID!$L$12:$L$28511, $M15, SID!$Z$12:$Z$28511, 0), 0), IFERROR(SUMIFS(SID!Y$12:Y$28511, SID!$F$12:$F$28511, $G15, SID!$C$12:$C$28511, $D15, SID!$L$12:$L$28511, $M15, SID!$Z$12:$Z$28511, 0), 0)), Y15)) -> 102.3277033 | T15: 2.872976542 | U15: 5 | V15: 57.45953083 | W15: 2.872976542 | X15: =IF(OR(LEFT($J15, 16)="Clean energy inv", LEFT($J15, 16)="Electrified heat", LEFT($J15, 16)="Electrified vehi"), IF(OR(Z15=0, AA15=0), 0, AA15/Z15-1), IF(J15="None", 0, IFERROR(SUMIFS(SID!Y$12:Y$28511, SID!$F$12:$F$28511, J15, SID!$L$12:$L$28511, M15, SID!$Z$12:$Z$28511, 0)/SUMIFS(SID!X$12:X$28511, SID!$F$12:$F$28511, J15, SID!$L$12:$L$28511, M15, SID!$Z$12:$Z$28511, 0) - 1, 0))) -> 0 | Y15: =IF(OR(LEFT($G15, 16)="Clean energy inv", LEFT($G15, 16)="Electrified heat", LEFT($G15, 16)="Electrified vehi"), SUMIFS(INV!$E$3:$E$3003, INV!$C$3:$C$3003, $N15, INV!$A$3:$A$3003, $D15, INV!$D$3:$D$3003, ">="& int_InvStartYear, INV!$D$3:$D$3003, "<="& int_Year), 0) -> 0 | Z15: =IF(OR(LEFT($J15, 16)="Clean energy inv", LEFT($J15, 16)="Electrified heat", LEFT($J15, 16)="Electrified vehi"), SUMIFS(INV!$E$3:$E$3003, INV!$C$3:$C$3003, $N15, INV!$A$3:$A$3003, $D15, INV!$D$3:$D$3003, ">="& int_InvStartYear, INV!$D$3:$D$3003, "<="& int_Year-1), 0) -> 0 | AA15: =IF(OR(LEFT($J15, 16)="Clean energy inv", LEFT($J15, 16)="Electrified heat", LEFT($J15, 16)="Electrified vehi"), SUMIFS(INV!$E$3:$E$3003, INV!$C$3:$C$3003, $N15, INV!$A$3:$A$3003, $D15, INV!$D$3:$D$3003, ">="& int_InvStartYear, INV!$D$3:$D$3003, "<="& int_Year), 0) -> 0 | AB15: Power - Policy - Renewable energy | AC15: Power - Policy - Renewable energy > Brazil | AD15: On-Grid | AE15: =IF(ISNUMBER(MATCH($M15, DEFN!A$442:A$599, 0)), AE$10, "") -> On-grid | AF15: =IF(ISNUMBER(MATCH($M15, DEFN!B$442:B$599, 0)), AF$10, "") ->  | AG15: =IF(ISNUMBER(MATCH($M15, DEFN!C$442:C$599, 0)), AG$10, "") -> Flexibility | AH15: =IF(ISNUMBER(MATCH($M15, DEFN!D$442:D$599, 0)), AH$10, "") ->  | AI15: =IF(ISNUMBER(MATCH($M15, DEFN!E$442:E$599, 0)), AI$10, "") ->  | AJ15: =IF(ISNUMBER(MATCH($M15, DEFN!F$442:F$599, 0)), AJ$10, "") -> Non-Heating | AK15: On-grid Flexibility Non-Heating | AL15: =IFERROR(INDEX(WEIGHTS!$B$6:$H$6, 1, MATCH(IND!$AK15, WEIGHTS!$AD$5:$AJ$5, 0)), "") -> 2 | AM15: =IF(str_Sector_RANK="Default", IFERROR(INDEX(WEIGHTS!$B$16:$H$64, MATCH($D15, WEIGHTS!$I$16:$I$64, 0), $AL15), 0), IF(str_Sector_RANK="Custom", IFERROR(INDEX(RANKING!$P$5:$P$7, MATCH(D15, RANKING!$O$5:$O$7, 0), 1), 0), IF(D15=str_Sector_RANK,1,0))) -> 1 | AN15: =IF(str_Parameter_RANK="Default", IFERROR(INDEX(WEIGHTS!$K$16:$Q$64, MATCH($D15&" > "&$E15, WEIGHTS!$R$16:$R$64, 0), $AL15), 0), IF(str_Parameter_RANK="Custom", IFERROR(INDEX(RANKING!$R$5:$R$7, MATCH(E15, RANKING!$Q$5:$Q$7, 0), 1), 0), IF(E15=str_Parameter_RANK,1,0))) -> 0.5 | AO15: =IFERROR(INDEX(WEIGHTS!$T$16:$Z$64, MATCH($D15&" > "&$E15&" > "&$F15, WEIGHTS!$AA$16:$AA$64, 0), $AL15), 0) -> 0.25 | AP15: =IFERROR(INDEX(DEFN!$Q$13:$W$82, MATCH(AB15, DEFN!$X$13:$X$82, 0), MATCH(AK15, DEFN!$Q$10:$W$10, 0)), 0) -> 1 | AQ15: 1 | AR15: 0.125 | AS15: 0.3591220677
A16: 1 | B16: 6 | C16: =IFERROR(INDEX(DEFN!$A$13:$X$82, MATCH($A16, DEFN!$A$13:$A$82, 0), MATCH(C$10, DEFN!$A$12:$X$12, 0)), "") -> Policy - Renewable energy | D16: =IF(F16="", "", INDEX(DEFN!$A$13:$X$82, MATCH($A16, DEFN!$A$13:$A$82, 0), MATCH(D$10, DEFN!$A$12:$X$12, 0))) -> Power | E16: =IF(G16="", "", INDEX(DEFN!$A$13:$X$82, MATCH($A16, DEFN!$A$13:$A$82, 0), MATCH(E$10, DEFN!$A$12:$X$12, 0))) -> Fundamentals | F16: =IF(G16="", "", INDEX(DEFN!$A$13:$X$82, MATCH($A16, DEFN!$A$13:$A$82, 0), MATCH(F$10, DEFN!$A$12:$X$12, 0))) -> Policy - Renewable energy | G16: =IFERROR(INDEX(DEFN!$A$13:$X$82, MATCH($A16, DEFN!$A$13:$A$82, 0), MATCH(C$10, DEFN!$A$12:$X$12, 0)), "") -> Policy - Renewable energy | H16: =IF(G16="", "", INDEX(DEFN!$A$13:$X$82, MATCH($A16, DEFN!$A$13:$A$82, 0), MATCH(H$10, DEFN!$A$12:$X$12, 0))) -> No | I16: =IF(G16="", "", INDEX(DEFN!$A$13:$X$82, MATCH($A16, DEFN!$A$13:$A$82, 0), MATCH(I$10, DEFN!$A$12:$X$12, 0))) -> None | J16: =IF(G16="", "", INDEX(DEFN!$A$13:$X$82, MATCH($A16, DEFN!$A$13:$A$82, 0), MATCH(J$10, DEFN!$A$12:$X$12, 0))) -> None | K16: =IF(G16="", "", INDEX(DEFN!$A$13:$X$82, MATCH($A16, DEFN!$A$13:$A$82, 0), MATCH(K$10, DEFN!$A$12:$X$12, 0))) -> Policies | L16: =IF(G16="", "", INDEX(DEFN!B$278:B$427, MATCH($B16, DEFN!$A$278:$A$427, 0), 1)) -> Americas | M16: =IF(G16="", "", INDEX(DEFN!C$278:C$427, MATCH($B16, DEFN!$A$278:$A$427, 0), 1)) -> Chile | N16: =IF(G16="", "", IFERROR(INDEX(DEFN!$E$278:$E$427, MATCH(M16, DEFN!$C$278:$C$427, 0), 1), "")) -> CHL | O16: =IF(F16="", "", INDEX(DEFN!$A$13:$X$82, MATCH($A16, DEFN!$A$13:$A$82, 0), MATCH(O$10, DEFN!$A$12:$X$12, 0))) -> Total | P16: =IF(G16="", "", INDEX(DEFN!$A$13:$X$82, MATCH($A16, DEFN!$A$13:$A$82, 0), MATCH(P$10, DEFN!$A$12:$X$12, 0))) -> User Defined | Q16: =IF(G16="", 0, INDEX(DEFN!$A$13:$X$82, MATCH($A16, DEFN!$A$13:$A$82, 0), MATCH(Q$10, DEFN!$A$12:$X$12, 0))) -> 5 | R16: =IFERROR(IF($I16="None", 1, IF($I16="All Capacity", SUMIFS(SID!Y$12:Y$28511, SID!$L$12:$L$28511, $M16, SID!$I$12:$I$28511, $K16), IF($I16="All Generation", SUMIFS(SID!Y$12:Y$28511, SID!$L$12:$L$28511, $M16, SID!$I$12:$I$28511, $K16), SUMIFS(SID!Y$12:Y$28511, SID!$L$12:$L$28511, $M16, SID!$F$12:$F$28511, $I16)))), 1) -> 1 | S16: =IF(AND(LEFT(G16, 6)="Growth", J16<>"None"), X16, IF(Y16=0, IF(O16="Average", IFERROR(AVERAGEIFS(SID!Y$12:Y$28511, SID!$F$12:$F$28511, $G16, SID!$C$12:$C$28511, $D16, SID!$L$12:$L$28511, $M16, SID!$Z$12:$Z$28511, 0), 0), IFERROR(SUMIFS(SID!Y$12:Y$28511, SID!$F$12:$F$28511, $G16, SID!$C$12:$C$28511, $D16, SID!$L$12:$L$28511, $M16, SID!$Z$12:$Z$28511, 0), 0)), Y16)) -> 105.1544389 | T16: 2.95529362 | U16: 5 | V16: 59.1058724 | W16: 2.95529362 | X16: =IF(OR(LEFT($J16, 16)="Clean energy inv", LEFT($J16, 16)="Electrified heat", LEFT($J16, 16)="Electrified vehi"), IF(OR(Z16=0, AA16=0), 0, AA16/Z16-1), IF(J16="None", 0, IFERROR(SUMIFS(SID!Y$12:Y$28511, SID!$F$12:$F$28511, J16, SID!$L$12:$L$28511, M16, SID!$Z$12:$Z$28511, 0)/SUMIFS(SID!X$12:X$28511, SID!$F$12:$F$28511, J16, SID!$L$12:$L$28511, M16, SID!$Z$12:$Z$28511, 0) - 1, 0))) -> 0 | Y16: =IF(OR(LEFT($G16, 16)="Clean energy inv", LEFT($G16, 16)="Electrified heat", LEFT($G16, 16)="Electrified vehi"), SUMIFS(INV!$E$3:$E$3003, INV!$C$3:$C$3003, $N16, INV!$A$3:$A$3003, $D16, INV!$D$3:$D$3003, ">="& int_InvStartYear, INV!$D$3:$D$3003, "<="& int_Year), 0) -> 0 | Z16: =IF(OR(LEFT($J16, 16)="Clean energy inv", LEFT($J16, 16)="Electrified heat", LEFT($J16, 16)="Electrified vehi"), SUMIFS(INV!$E$3:$E$3003, INV!$C$3:$C$3003, $N16, INV!$A$3:$A$3003, $D16, INV!$D$3:$D$3003, ">="& int_InvStartYear, INV!$D$3:$D$3003, "<="& int_Year-1), 0) -> 0 | AA16: =IF(OR(LEFT($J16, 16)="Clean energy inv", LEFT($J16, 16)="Electrified heat", LEFT($J16, 16)="Electrified vehi"), SUMIFS(INV!$E$3:$E$3003, INV!$C$3:$C$3003, $N16, INV!$A$3:$A$3003, $D16, INV!$D$3:$D$3003, ">="& int_InvStartYear, INV!$D$3:$D$3003, "<="& int_Year), 0) -> 0 | AB16: Power - Policy - Renewable energy | AC16: Power - Policy - Renewable energy > Chile | AD16: On-Grid | AE16: =IF(ISNUMBER(MATCH($M16, DEFN!A$442:A$599, 0)), AE$10, "") -> On-grid | AF16: =IF(ISNUMBER(MATCH($M16, DEFN!B$442:B$599, 0)), AF$10, "") ->  | AG16: =IF(ISNUMBER(MATCH($M16, DEFN!C$442:C$599, 0)), AG$10, "") -> Flexibility | AH16: =IF(ISNUMBER(MATCH($M16, DEFN!D$442:D$599, 0)), AH$10, "") ->  | AI16: =IF(ISNUMBER(MATCH($M16, DEFN!E$442:E$599, 0)), AI$10, "") -> Heating | AJ16: =IF(ISNUMBER(MATCH($M16, DEFN!F$442:F$599, 0)), AJ$10, "") ->  | AK16: On-grid Flexibility Heating | AL16: =IFERROR(INDEX(WEIGHTS!$B$6:$H$6, 1, MATCH(IND!$AK16, WEIGHTS!$AD$5:$AJ$5, 0)), "") -> 4 | AM16: =IF(str_Sector_RANK="Default", IFERROR(INDEX(WEIGHTS!$B$16:$H$64, MATCH($D16, WEIGHTS!$I$16:$I$64, 0), $AL16), 0), IF(str_Sector_RANK="Custom", IFERROR(INDEX(RANKING!$P$5:$P$7, MATCH(D16, RANKING!$O$5:$O$7, 0), 1), 0), IF(D16=str_Sector_RANK,1,0))) -> 1 | AN16: =IF(str_Parameter_RANK="Default", IFERROR(INDEX(WEIGHTS!$K$16:$Q$64, MATCH($D16&" > "&$E16, WEIGHTS!$R$16:$R$64, 0), $AL16), 0), IF(str_Parameter_RANK="Custom", IFERROR(INDEX(RANKING!$R$5:$R$7, MATCH(E16, RANKING!$Q$5:$Q$7, 0), 1), 0), IF(E16=str_Parameter_RANK,1,0))) -> 0.5 | AO16: =IFERROR(INDEX(WEIGHTS!$T$16:$Z$64, MATCH($D16&" > "&$E16&" > "&$F16, WEIGHTS!$AA$16:$AA$64, 0), $AL16), 0) -> 0.25 | AP16: =IFERROR(INDEX(DEFN!$Q$13:$W$82, MATCH(AB16, DEFN!$X$13:$X$82, 0), MATCH(AK16, DEFN!$Q$10:$W$10, 0)), 0) -> 1 | AQ16: 1 | AR16: 0.125 | AS16: 0.3694117025
A17: 1 | B17: 7 | C17: =IFERROR(INDEX(DEFN!$A$13:$X$82, MATCH($A17, DEFN!$A$13:$A$82, 0), MATCH(C$10, DEFN!$A$12:$X$12, 0)), "") -> Policy - Renewable energy | D17: =IF(F17="", "", INDEX(DEFN!$A$13:$X$82, MATCH($A17, DEFN!$A$13:$A$82, 0), MATCH(D$10, DEFN!$A$12:$X$12, 0))) -> Power | E17: =IF(G17="", "", INDEX(DEFN!$A$13:$X$82, MATCH($A17, DEFN!$A$13:$A$82, 0), MATCH(E$10, DEFN!$A$12:$X$12, 0))) -> Fundamentals | F17: =IF(G17="", "", INDEX(DEFN!$A$13:$X$82, MATCH($A17, DEFN!$A$13:$A$82, 0), MATCH(F$10, DEFN!$A$12:$X$12, 0))) -> Policy - Renewable energy | G17: =IFERROR(INDEX(DEFN!$A$13:$X$82, MATCH($A17, DEFN!$A$13:$A$82, 0), MATCH(C$10, DEFN!$A$12:$X$12, 0)), "") -> Policy - Renewable energy | H17: =IF(G17="", "", INDEX(DEFN!$A$13:$X$82, MATCH($A17, DEFN!$A$13:$A$82, 0), MATCH(H$10, DEFN!$A$12:$X$12, 0))) -> No | I17: =IF(G17="", "", INDEX(DEFN!$A$13:$X$82, MATCH($A17, DEFN!$A$13:$A$82, 0), MATCH(I$10, DEFN!$A$12:$X$12, 0))) -> None | J17: =IF(G17="", "", INDEX(DEFN!$A$13:$X$82, MATCH($A17, DEFN!$A$13:$A$82, 0), MATCH(J$10, DEFN!$A$12:$X$12, 0))) -> None | K17: =IF(G17="", "", INDEX(DEFN!$A$13:$X$82, MATCH($A17, DEFN!$A$13:$A$82, 0), MATCH(K$10, DEFN!$A$12:$X$12, 0))) -> Policies | L17: =IF(G17="", "", INDEX(DEFN!B$278:B$427, MATCH($B17, DEFN!$A$278:$A$427, 0), 1)) -> Americas | M17: =IF(G17="", "", INDEX(DEFN!C$278:C$427, MATCH($B17, DEFN!$A$278:$A$427, 0), 1)) -> Colombia | N17: =IF(G17="", "", IFERROR(INDEX(DEFN!$E$278:$E$427, MATCH(M17, DEFN!$C$278:$C$427, 0), 1), "")) -> COL | O17: =IF(F17="", "", INDEX(DEFN!$A$13:$X$82, MATCH($A17, DEFN!$A$13:$A$82, 0), MATCH(O$10, DEFN!$A$12:$X$12, 0))) -> Total | P17: =IF(G17="", "", INDEX(DEFN!$A$13:$X$82, MATCH($A17, DEFN!$A$13:$A$82, 0), MATCH(P$10, DEFN!$A$12:$X$12, 0))) -> User Defined | Q17: =IF(G17="", 0, INDEX(DEFN!$A$13:$X$82, MATCH($A17, DEFN!$A$13:$A$82, 0), MATCH(Q$10, DEFN!$A$12:$X$12, 0))) -> 5 | R17: =IFERROR(IF($I17="None", 1, IF($I17="All Capacity", SUMIFS(SID!Y$12:Y$28511, SID!$L$12:$L$28511, $M17, SID!$I$12:$I$28511, $K17), IF($I17="All Generation", SUMIFS(SID!Y$12:Y$28511, SID!$L$12:$L$28511, $M17, SID!$I$12:$I$28511, $K17), SUMIFS(SID!Y$12:Y$28511, SID!$L$12:$L$28511, $M17, SID!$F$12:$F$28511, $I17)))), 1) -> 1 | S17: =IF(AND(LEFT(G17, 6)="Growth", J17<>"None"), X17, IF(Y17=0, IF(O17="Average", IFERROR(AVERAGEIFS(SID!Y$12:Y$28511, SID!$F$12:$F$28511, $G17, SID!$C$12:$C$28511, $D17, SID!$L$12:$L$28511, $M17, SID!$Z$12:$Z$28511, 0), 0), IFERROR(SUMIFS(SID!Y$12:Y$28511, SID!$F$12:$F$28511, $G17, SID!$C$12:$C$28511, $D17, SID!$L$12:$L$28511, $M17, SID!$Z$12:$Z$28511, 0), 0)), Y17)) -> 92.83561175 | T17: 2.581610762 | U17: 5 | V17: 51.63221524 | W17: 2.581610762 | X17: =IF(OR(LEFT($J17, 16)="Clean energy inv", LEFT($J17, 16)="Electrified heat", LEFT($J17, 16)="Electrified vehi"), IF(OR(Z17=0, AA17=0), 0, AA17/Z17-1), IF(J17="None", 0, IFERROR(SUMIFS(SID!Y$12:Y$28511, SID!$F$12:$F$28511, J17, SID!$L$12:$L$28511, M17, SID!$Z$12:$Z$28511, 0)/SUMIFS(SID!X$12:X$28511, SID!$F$12:$F$28511, J17, SID!$L$12:$L$28511, M17, SID!$Z$12:$Z$28511, 0) - 1, 0))) -> 0 | Y17: =IF(OR(LEFT($G17, 16)="Clean energy inv", LEFT($G17, 16)="Electrified heat", LEFT($G17, 16)="Electrified vehi"), SUMIFS(INV!$E$3:$E$3003, INV!$C$3:$C$3003, $N17, INV!$A$3:$A$3003, $D17, INV!$D$3:$D$3003, ">="& int_InvStartYear, INV!$D$3:$D$3003, "<="& int_Year), 0) -> 0 | Z17: =IF(OR(LEFT($J17, 16)="Clean energy inv", LEFT($J17, 16)="Electrified heat", LEFT($J17, 16)="Electrified vehi"), SUMIFS(INV!$E$3:$E$3003, INV!$C$3:$C$3003, $N17, INV!$A$3:$A$3003, $D17, INV!$D$3:$D$3003, ">="& int_InvStartYear, INV!$D$3:$D$3003, "<="& int_Year-1), 0) -> 0 | AA17: =IF(OR(LEFT($J17, 16)="Clean energy inv", LEFT($J17, 16)="Electrified heat", LEFT($J17, 16)="Electrified vehi"), SUMIFS(INV!$E$3:$E$3003, INV!$C$3:$C$3003, $N17, INV!$A$3:$A$3003, $D17, INV!$D$3:$D$3003, ">="& int_InvStartYear, INV!$D$3:$D$3003, "<="& int_Year), 0) -> 0 | AB17: Power - Policy - Renewable energy | AC17: Power - Policy - Renewable energy > Colombia | AD17: On-Grid | AE17: =IF(ISNUMBER(MATCH($M17, DEFN!A$442:A$599, 0)), AE$10, "") -> On-grid | AF17: =IF(ISNUMBER(MATCH($M17, DEFN!B$442:B$599, 0)), AF$10, "") ->  | AG17: =IF(ISNUMBER(MATCH($M17, DEFN!C$442:C$599, 0)), AG$10, "") ->  | AH17: =IF(ISNUMBER(MATCH($M17, DEFN!D$442:D$599, 0)), AH$10, "") -> Non-Flexibility | AI17: =IF(ISNUMBER(MATCH($M17, DEFN!E$442:E$599, 0)), AI$10, "") ->  | AJ17: =IF(ISNUMBER(MATCH($M17, DEFN!F$442:F$599, 0)), AJ$10, "") -> Non-Heating | AK17: On-grid Non-Flexibility Non-Heating | AL17: =IFERROR(INDEX(WEIGHTS!$B$6:$H$6, 1, MATCH(IND!$AK17, WEIGHTS!$AD$5:$AJ$5, 0)), "") -> 1 | AM17: =IF(str_Sector_RANK="Default", IFERROR(INDEX(WEIGHTS!$B$16:$H$64, MATCH($D17, WEIGHTS!$I$16:$I$64, 0), $AL17), 0), IF(str_Sector_RANK="Custom", IFERROR(INDEX(RANKING!$P$5:$P$7, MATCH(D17, RANKING!$O$5:$O$7, 0), 1), 0), IF(D17=str_Sector_RANK,1,0))) -> 1 | AN17: =IF(str_Parameter_RANK="Default", IFERROR(INDEX(WEIGHTS!$K$16:$Q$64, MATCH($D17&" > "&$E17, WEIGHTS!$R$16:$R$64, 0), $AL17), 0), IF(str_Parameter_RANK="Custom", IFERROR(INDEX(RANKING!$R$5:$R$7, MATCH(E17, RANKING!$Q$5:$Q$7, 0), 1), 0), IF(E17=str_Parameter_RANK,1,0))) -> 0.5 | AO17: =IFERROR(INDEX(WEIGHTS!$T$16:$Z$64, MATCH($D17&" > "&$E17&" > "&$F17, WEIGHTS!$AA$16:$AA$64, 0), $AL17), 0) -> 0.4 | AP17: =IFERROR(INDEX(DEFN!$Q$13:$W$82, MATCH(AB17, DEFN!$X$13:$X$82, 0), MATCH(AK17, DEFN!$Q$10:$W$10, 0)), 0) -> 1 | AQ17: 1 | AR17: 0.2 | AS17: 0.5163221524
A18: 1 | B18: 8 | C18: =IFERROR(INDEX(DEFN!$A$13:$X$82, MATCH($A18, DEFN!$A$13:$A$82, 0), MATCH(C$10, DEFN!$A$12:$X$12, 0)), "") -> Policy - Renewable energy | D18: =IF(F18="", "", INDEX(DEFN!$A$13:$X$82, MATCH($A18, DEFN!$A$13:$A$82, 0), MATCH(D$10, DEFN!$A$12:$X$12, 0))) -> Power | E18: =IF(G18="", "", INDEX(DEFN!$A$13:$X$82, MATCH($A18, DEFN!$A$13:$A$82, 0), MATCH(E$10, DEFN!$A$12:$X$12, 0))) -> Fundamentals | F18: =IF(G18="", "", INDEX(DEFN!$A$13:$X$82, MATCH($A18, DEFN!$A$13:$A$82, 0), MATCH(F$10, DEFN!$A$12:$X$12, 0))) -> Policy - Renewable energy | G18: =IFERROR(INDEX(DEFN!$A$13:$X$82, MATCH($A18, DEFN!$A$13:$A$82, 0), MATCH(C$10, DEFN!$A$12:$X$12, 0)), "") -> Policy - Renewable energy | H18: =IF(G18="", "", INDEX(DEFN!$A$13:$X$82, MATCH($A18, DEFN!$A$13:$A$82, 0), MATCH(H$10, DEFN!$A$12:$X$12, 0))) -> No | I18: =IF(G18="", "", INDEX(DEFN!$A$13:$X$82, MATCH($A18, DEFN!$A$13:$A$82, 0), MATCH(I$10, DEFN!$A$12:$X$12, 0))) -> None | J18: =IF(G18="", "", INDEX(DEFN!$A$13:$X$82, MATCH($A18, DEFN!$A$13:$A$82, 0), MATCH(J$10, DEFN!$A$12:$X$12, 0))) -> None | K18: =IF(G18="", "", INDEX(DEFN!$A$13:$X$82, MATCH($A18, DEFN!$A$13:$A$82, 0), MATCH(K$10, DEFN!$A$12:$X$12, 0))) -> Policies | L18: =IF(G18="", "", INDEX(DEFN!B$278:B$427, MATCH($B18, DEFN!$A$278:$A$427, 0), 1)) -> Americas | M18: =IF(G18="", "", INDEX(DEFN!C$278:C$427, MATCH($B18, DEFN!$A$278:$A$427, 0), 1)) -> Costa Rica | N18: =IF(G18="", "", IFERROR(INDEX(DEFN!$E$278:$E$427, MATCH(M18, DEFN!$C$278:$C$427, 0), 1), "")) -> CRI | O18: =IF(F18="", "", INDEX(DEFN!$A$13:$X$82, MATCH($A18, DEFN!$A$13:$A$82, 0), MATCH(O$10, DEFN!$A$12:$X$12, 0))) -> Total | P18: =IF(G18="", "", INDEX(DEFN!$A$13:$X$82, MATCH($A18, DEFN!$A$13:$A$82, 0), MATCH(P$10, DEFN!$A$12:$X$12, 0))) -> User Defined | Q18: =IF(G18="", 0, INDEX(DEFN!$A$13:$X$82, MATCH($A18, DEFN!$A$13:$A$82, 0), MATCH(Q$10, DEFN!$A$12:$X$12, 0))) -> 5 | R18: =IFERROR(IF($I18="None", 1, IF($I18="All Capacity", SUMIFS(SID!Y$12:Y$28511, SID!$L$12:$L$28511, $M18, SID!$I$12:$I$28511, $K18), IF($I18="All Generation", SUMIFS(SID!Y$12:Y$28511, SID!$L$12:$L$28511, $M18, SID!$I$12:$I$28511, $K18), SUMIFS(SID!Y$12:Y$28511, SID!$L$12:$L$28511, $M18, SID!$F$12:$F$28511, $I18)))), 1) -> 1 | S18: =IF(AND(LEFT(G18, 6)="Growth", J18<>"None"), X18, IF(Y18=0, IF(O18="Average", IFERROR(AVERAGEIFS(SID!Y$12:Y$28511, SID!$F$12:$F$28511, $G18, SID!$C$12:$C$28511, $D18, SID!$L$12:$L$28511, $M18, SID!$Z$12:$Z$28511, 0), 0), IFERROR(SUMIFS(SID!Y$12:Y$28511, SID!$F$12:$F$28511, $G18, SID!$C$12:$C$28511, $D18, SID!$L$12:$L$28511, $M18, SID!$Z$12:$Z$28511, 0), 0)), Y18)) -> 63.01967557 | T18: 1.762185578 | U18: 5 | V18: 35.24371155 | W18: 1.762185578 | X18: =IF(OR(LEFT($J18, 16)="Clean energy inv", LEFT($J18, 16)="Electrified heat", LEFT($J18, 16)="Electrified vehi"), IF(OR(Z18=0, AA18=0), 0, AA18/Z18-1), IF(J18="None", 0, IFERROR(SUMIFS(SID!Y$12:Y$28511, SID!$F$12:$F$28511, J18, SID!$L$12:$L$28511, M18, SID!$Z$12:$Z$28511, 0)/SUMIFS(SID!X$12:X$28511, SID!$F$12:$F$28511, J18, SID!$L$12:$L$28511, M18, SID!$Z$12:$Z$28511, 0) - 1, 0))) -> 0 | Y18: =IF(OR(LEFT($G18, 16)="Clean energy inv", LEFT($G18, 16)="Electrified heat", LEFT($G18, 16)="Electrified vehi"), SUMIFS(INV!$E$3:$E$3003, INV!$C$3:$C$3003, $N18, INV!$A$3:$A$3003, $D18, INV!$D$3:$D$3003, ">="& int_InvStartYear, INV!$D$3:$D$3003, "<="& int_Year), 0) -> 0 | Z18: =IF(OR(LEFT($J18, 16)="Clean energy inv", LEFT($J18, 16)="Electrified heat", LEFT($J18, 16)="Electrified vehi"), SUMIFS(INV!$E$3:$E$3003, INV!$C$3:$C$3003, $N18, INV!$A$3:$A$3003, $D18, INV!$D$3:$D$3003, ">="& int_InvStartYear, INV!$D$3:$D$3003, "<="& int_Year-1), 0) -> 0 | AA18: =IF(OR(LEFT($J18, 16)="Clean energy inv", LEFT($J18, 16)="Electrified heat", LEFT($J18, 16)="Electrified vehi"), SUMIFS(INV!$E$3:$E$3003, INV!$C$3:$C$3003, $N18, INV!$A$3:$A$3003, $D18, INV!$D$3:$D$3003, ">="& int_InvStartYear, INV!$D$3:$D$3003, "<="& int_Year), 0) -> 0 | AB18: Power - Policy - Renewable energy | AC18: Power - Policy - Renewable energy > Costa Rica | AD18: On-Grid | AE18: =IF(ISNUMBER(MATCH($M18, DEFN!A$442:A$599, 0)), AE$10, "") -> On-grid | AF18: =IF(ISNUMBER(MATCH($M18, DEFN!B$442:B$599, 0)), AF$10, "") ->  | AG18: =IF(ISNUMBER(MATCH($M18, DEFN!C$442:C$599, 0)), AG$10, "") -> Flexibility | AH18: =IF(ISNUMBER(MATCH($M18, DEFN!D$442:D$599, 0)), AH$10, "") ->  | AI18: =IF(ISNUMBER(MATCH($M18, DEFN!E$442:E$599, 0)), AI$10, "") ->  | AJ18: =IF(ISNUMBER(MATCH($M18, DEFN!F$442:F$599, 0)), AJ$10, "") -> Non-Heating | AK18: On-grid Flexibility Non-Heating | AL18: =IFERROR(INDEX(WEIGHTS!$B$6:$H$6, 1, MATCH(IND!$AK18, WEIGHTS!$AD$5:$AJ$5, 0)), "") -> 2 | AM18: =IF(str_Sector_RANK="Default", IFERROR(INDEX(WEIGHTS!$B$16:$H$64, MATCH($D18, WEIGHTS!$I$16:$I$64, 0), $AL18), 0), IF(str_Sector_RANK="Custom", IFERROR(INDEX(RANKING!$P$5:$P$7, MATCH(D18, RANKING!$O$5:$O$7, 0), 1), 0), IF(D18=str_Sector_RANK,1,0))) -> 1 | AN18: =IF(str_Parameter_RANK="Default", IFERROR(INDEX(WEIGHTS!$K$16:$Q$64, MATCH($D18&" > "&$E18, WEIGHTS!$R$16:$R$64, 0), $AL18), 0), IF(str_Parameter_RANK="Custom", IFERROR(INDEX(RANKING!$R$5:$R$7, MATCH(E18, RANKING!$Q$5:$Q$7, 0), 1), 0), IF(E18=str_Parameter_RANK,1,0))) -> 0.5 | AO18: =IFERROR(INDEX(WEIGHTS!$T$16:$Z$64, MATCH($D18&" > "&$E18&" > "&$F18, WEIGHTS!$AA$16:$AA$64, 0), $AL18), 0) -> 0.25 | AP18: =IFERROR(INDEX(DEFN!$Q$13:$W$82, MATCH(AB18, DEFN!$X$13:$X$82, 0), MATCH(AK18, DEFN!$Q$10:$W$10, 0)), 0) -> 1 | AQ18: 1 | AR18: 0.125 | AS18: 0.2202731972
A19: 1 | B19: 9 | C19: =IFERROR(INDEX(DEFN!$A$13:$X$82, MATCH($A19, DEFN!$A$13:$A$82, 0), MATCH(C$10, DEFN!$A$12:$X$12, 0)), "") -> Policy - Renewable energy | D19: =IF(F19="", "", INDEX(DEFN!$A$13:$X$82, MATCH($A19, DEFN!$A$13:$A$82, 0), MATCH(D$10, DEFN!$A$12:$X$12, 0))) -> Power | E19: =IF(G19="", "", INDEX(DEFN!$A$13:$X$82, MATCH($A19, DEFN!$A$13:$A$82, 0), MATCH(E$10, DEFN!$A$12:$X$12, 0))) -> Fundamentals | F19: =IF(G19="", "", INDEX(DEFN!$A$13:$X$82, MATCH($A19, DEFN!$A$13:$A$82, 0), MATCH(F$10, DEFN!$A$12:$X$12, 0))) -> Policy - Renewable energy | G19: =IFERROR(INDEX(DEFN!$A$13:$X$82, MATCH($A19, DEFN!$A$13:$A$82, 0), MATCH(C$10, DEFN!$A$12:$X$12, 0)), "") -> Policy - Renewable energy | H19: =IF(G19="", "", INDEX(DEFN!$A$13:$X$82, MATCH($A19, DEFN!$A$13:$A$82, 0), MATCH(H$10, DEFN!$A$12:$X$12, 0))) -> No | I19: =IF(G19="", "", INDEX(DEFN!$A$13:$X$82, MATCH($A19, DEFN!$A$13:$A$82, 0), MATCH(I$10, DEFN!$A$12:$X$12, 0))) -> None | J19: =IF(G19="", "", INDEX(DEFN!$A$13:$X$82, MATCH($A19, DEFN!$A$13:$A$82, 0), MATCH(J$10, DEFN!$A$12:$X$12, 0))) -> None | K19: =IF(G19="", "", INDEX(DEFN!$A$13:$X$82, MATCH($A19, DEFN!$A$13:$A$82, 0), MATCH(K$10, DEFN!$A$12:$X$12, 0))) -> Policies | L19: =IF(G19="", "", INDEX(DEFN!B$278:B$427, MATCH($B19, DEFN!$A$278:$A$427, 0), 1)) -> Americas | M19: =IF(G19="", "", INDEX(DEFN!C$278:C$427, MATCH($B19, DEFN!$A$278:$A$427, 0), 1)) -> Dominican Republic | N19: =IF(G19="", "", IFERROR(INDEX(DEFN!$E$278:$E$427, MATCH(M19, DEFN!$C$278:$C$427, 0), 1), "")) -> DOM | O19: =IF(F19="", "", INDEX(DEFN!$A$13:$X$82, MATCH($A19, DEFN!$A$13:$A$82, 0), MATCH(O$10, DEFN!$A$12:$X$12, 0))) -> Total | P19: =IF(G19="", "", INDEX(DEFN!$A$13:$X$82, MATCH($A19, DEFN!$A$13:$A$82, 0), MATCH(P$10, DEFN!$A$12:$X$12, 0))) -> User Defined | Q19: =IF(G19="", 0, INDEX(DEFN!$A$13:$X$82, MATCH($A19, DEFN!$A$13:$A$82, 0), MATCH(Q$10, DEFN!$A$12:$X$12, 0))) -> 5 | R19: =IFERROR(IF($I19="None", 1, IF($I19="All Capacity", SUMIFS(SID!Y$12:Y$28511, SID!$L$12:$L$28511, $M19, SID!$I$12:$I$28511, $K19), IF($I19="All Generation", SUMIFS(SID!Y$12:Y$28511, SID!$L$12:$L$28511, $M19, SID!$I$12:$I$28511, $K19), SUMIFS(SID!Y$12:Y$28511, SID!$L$12:$L$28511, $M19, SID!$F$12:$F$28511, $I19)))), 1) -> 1 | S19: =IF(AND(LEFT(G19, 6)="Growth", J19<>"None"), X19, IF(Y19=0, IF(O19="Average", IFERROR(AVERAGEIFS(SID!Y$12:Y$28511, SID!$F$12:$F$28511, $G19, SID!$C$12:$C$28511, $D19, SID!$L$12:$L$28511, $M19, SID!$Z$12:$Z$28511, 0), 0), IFERROR(SUMIFS(SID!Y$12:Y$28511, SID!$F$12:$F$28511, $G19, SID!$C$12:$C$28511, $D19, SID!$L$12:$L$28511, $M19, SID!$Z$12:$Z$28511, 0), 0)), Y19)) -> 78.62534717 | T19: 2.186076265 | U19: 5 | V19: 43.7215253 | W19: 2.186076265 | X19: =IF(OR(LEFT($J19, 16)="Clean energy inv", LEFT($J19, 16)="Electrified heat", LEFT($J19, 16)="Electrified vehi"), IF(OR(Z19=0, AA19=0), 0, AA19/Z19-1), IF(J19="None", 0, IFERROR(SUMIFS(SID!Y$12:Y$28511, SID!$F$12:$F$28511, J19, SID!$L$12:$L$28511, M19, SID!$Z$12:$Z$28511, 0)/SUMIFS(SID!X$12:X$28511, SID!$F$12:$F$28511, J19, SID!$L$12:$L$28511, M19, SID!$Z$12:$Z$28511, 0) - 1, 0))) -> 0 | Y19: =IF(OR(LEFT($G19, 16)="Clean energy inv", LEFT($G19, 16)="Electrified heat", LEFT($G19, 16)="Electrified vehi"), SUMIFS(INV!$E$3:$E$3003, INV!$C$3:$C$3003, $N19, INV!$A$3:$A$3003, $D19, INV!$D$3:$D$3003, ">="& int_InvStartYear, INV!$D$3:$D$3003, "<="& int_Year), 0) -> 0 | Z19: =IF(OR(LEFT($J19, 16)="Clean energy inv", LEFT($J19, 16)="Electrified heat", LEFT($J19, 16)="Electrified vehi"), SUMIFS(INV!$E$3:$E$3003, INV!$C$3:$C$3003, $N19, INV!$A$3:$A$3003, $D19, INV!$D$3:$D$3003, ">="& int_InvStartYear, INV!$D$3:$D$3003, "<="& int_Year-1), 0) -> 0 | AA19: =IF(OR(LEFT($J19, 16)="Clean energy inv", LEFT($J19, 16)="Electrified heat", LEFT($J19, 16)="Electrified vehi"), SUMIFS(INV!$E$3:$E$3003, INV!$C$3:$C$3003, $N19, INV!$A$3:$A$3003, $D19, INV!$D$3:$D$3003, ">="& int_InvStartYear, INV!$D$3:$D$3003, "<="& int_Year), 0) -> 0 | AB19: Power - Policy - Renewable energy | AC19: Power - Policy - Renewable energy > Dominican Republic | AD19: Off-Grid | AE19: =IF(ISNUMBER(MATCH($M19, DEFN!A$442:A$599, 0)), AE$10, "") ->  | AF19: =IF(ISNUMBER(MATCH($M19, DEFN!B$442:B$599, 0)), AF$10, "") -> Off-grid | AG19: =IF(ISNUMBER(MATCH($M19, DEFN!C$442:C$599, 0)), AG$10, "") ->  | AH19: =IF(ISNUMBER(MATCH($M19, DEFN!D$442:D$599, 0)), AH$10, "") -> Non-Flexibility | AI19: =IF(ISNUMBER(MATCH($M19, DEFN!E$442:E$599, 0)), AI$10, "") ->  | AJ19: =IF(ISNUMBER(MATCH($M19, DEFN!F$442:F$599, 0)), AJ$10, "") -> Non-Heating | AK19: Off-grid Non-Flexibility Non-Heating | AL19: =IFERROR(INDEX(WEIGHTS!$B$6:$H$6, 1, MATCH(IND!$AK19, WEIGHTS!$AD$5:$AJ$5, 0)), "") -> 5 | AM19: =IF(str_Sector_RANK="Default", IFERROR(INDEX(WEIGHTS!$B$16:$H$64, MATCH($D19, WEIGHTS!$I$16:$I$64, 0), $AL19), 0), IF(str_Sector_RANK="Custom", IFERROR(INDEX(RANKING!$P$5:$P$7, MATCH(D19, RANKING!$O$5:$O$7, 0), 1), 0), IF(D19=str_Sector_RANK,1,0))) -> 1 | AN19: =IF(str_Parameter_RANK="Default", IFERROR(INDEX(WEIGHTS!$K$16:$Q$64, MATCH($D19&" > "&$E19, WEIGHTS!$R$16:$R$64, 0), $AL19), 0), IF(str_Parameter_RANK="Custom", IFERROR(INDEX(RANKING!$R$5:$R$7, MATCH(E19, RANKING!$Q$5:$Q$7, 0), 1), 0), IF(E19=str_Parameter_RANK,1,0))) -> 0.5 | AO19: =IFERROR(INDEX(WEIGHTS!$T$16:$Z$64, MATCH($D19&" > "&$E19&" > "&$F19, WEIGHTS!$AA$16:$AA$64, 0), $AL19), 0) -> 0.3 | AP19: =IFERROR(INDEX(DEFN!$Q$13:$W$82, MATCH(AB19, DEFN!$X$13:$X$82, 0), MATCH(AK19, DEFN!$Q$10:$W$10, 0)), 0) -> 1 | AQ19: 1 | AR19: 0.15 | AS19: 0.3279114397
A20: 1 | B20: 10 | C20: =IFERROR(INDEX(DEFN!$A$13:$X$82, MATCH($A20, DEFN!$A$13:$A$82, 0), MATCH(C$10, DEFN!$A$12:$X$12, 0)), "") -> Policy - Renewable energy | D20: =IF(F20="", "", INDEX(DEFN!$A$13:$X$82, MATCH($A20, DEFN!$A$13:$A$82, 0), MATCH(D$10, DEFN!$A$12:$X$12, 0))) -> Power | E20: =IF(G20="", "", INDEX(DEFN!$A$13:$X$82, MATCH($A20, DEFN!$A$13:$A$82, 0), MATCH(E$10, DEFN!$A$12:$X$12, 0))) -> Fundamentals | F20: =IF(G20="", "", INDEX(DEFN!$A$13:$X$82, MATCH($A20, DEFN!$A$13:$A$82, 0), MATCH(F$10, DEFN!$A$12:$X$12, 0))) -> Policy - Renewable energy | G20: =IFERROR(INDEX(DEFN!$A$13:$X$82, MATCH($A20, DEFN!$A$13:$A$82, 0), MATCH(C$10, DEFN!$A$12:$X$12, 0)), "") -> Policy - Renewable energy | H20: =IF(G20="", "", INDEX(DEFN!$A$13:$X$82, MATCH($A20, DEFN!$A$13:$A$82, 0), MATCH(H$10, DEFN!$A$12:$X$12, 0))) -> No | I20: =IF(G20="", "", INDEX(DEFN!$A$13:$X$82, MATCH($A20, DEFN!$A$13:$A$82, 0), MATCH(I$10, DEFN!$A$12:$X$12, 0))) -> None | J20: =IF(G20="", "", INDEX(DEFN!$A$13:$X$82, MATCH($A20, DEFN!$A$13:$A$82, 0), MATCH(J$10, DEFN!$A$12:$X$12, 0))) -> None | K20: =IF(G20="", "", INDEX(DEFN!$A$13:$X$82, MATCH($A20, DEFN!$A$13:$A$82, 0), MATCH(K$10, DEFN!$A$12:$X$12, 0))) -> Policies | L20: =IF(G20="", "", INDEX(DEFN!B$278:B$427, MATCH($B20, DEFN!$A$278:$A$427, 0), 1)) -> Americas | M20: =IF(G20="", "", INDEX(DEFN!C$278:C$427, MATCH($B20, DEFN!$A$278:$A$427, 0), 1)) -> Ecuador | N20: =IF(G20="", "", IFERROR(INDEX(DEFN!$E$278:$E$427, MATCH(M20, DEFN!$C$278:$C$427, 0), 1), "")) -> ECU | O20: =IF(F20="", "", INDEX(DEFN!$A$13:$X$82, MATCH($A20, DEFN!$A$13:$A$82, 0), MATCH(O$10, DEFN!$A$12:$X$12, 0))) -> Total | P20: =IF(G20="", "", INDEX(DEFN!$A$13:$X$82, MATCH($A20, DEFN!$A$13:$A$82, 0), MATCH(P$10, DEFN!$A$12:$X$12, 0))) -> User Defined | Q20: =IF(G20="", 0, INDEX(DEFN!$A$13:$X$82, MATCH($A20, DEFN!$A$13:$A$82, 0), MATCH(Q$10, DEFN!$A$12:$X$12, 0))) -> 5 | R20: =IFERROR(IF($I20="None", 1, IF($I20="All Capacity", SUMIFS(SID!Y$12:Y$28511, SID!$L$12:$L$28511, $M20, SID!$I$12:$I$28511, $K20), IF($I20="All Generation", SUMIFS(SID!Y$12:Y$28511, SID!$L$12:$L$28511, $M20, SID!$I$12:$I$28511, $K20), SUMIFS(SID!Y$12:Y$28511, SID!$L$12:$L$28511, $M20, SID!$F$12:$F$28511, $I20)))), 1) -> 1 | S20: =IF(AND(LEFT(G20, 6)="Growth", J20<>"None"), X20, IF(Y20=0, IF(O20="Average", IFERROR(AVERAGEIFS(SID!Y$12:Y$28511, SID!$F$12:$F$28511, $G20, SID!$C$12:$C$28511, $D20, SID!$L$12:$L$28511, $M20, SID!$Z$12:$Z$28511, 0), 0), IFERROR(SUMIFS(SID!Y$12:Y$28511, SID!$F$12:$F$28511, $G20, SID!$C$12:$C$28511, $D20, SID!$L$12:$L$28511, $M20, SID!$Z$12:$Z$28511, 0), 0)), Y20)) -> 95.83027957 | T20: 2.65649718 | U20: 5 | V20: 53.1299436 | W20: 2.65649718 | X20: =IF(OR(LEFT($J20, 16)="Clean energy inv", LEFT($J20, 16)="Electrified heat", LEFT($J20, 16)="Electrified vehi"), IF(OR(Z20=0, AA20=0), 0, AA20/Z20-1), IF(J20="None", 0, IFERROR(SUMIFS(SID!Y$12:Y$28511, SID!$F$12:$F$28511, J20, SID!$L$12:$L$28511, M20, SID!$Z$12:$Z$28511, 0)/SUMIFS(SID!X$12:X$28511, SID!$F$12:$F$28511, J20, SID!$L$12:$L$28511, M20, SID!$Z$12:$Z$28511, 0) - 1, 0))) -> 0 | Y20: =IF(OR(LEFT($G20, 16)="Clean energy inv", LEFT($G20, 16)="Electrified heat", LEFT($G20, 16)="Electrified vehi"), SUMIFS(INV!$E$3:$E$3003, INV!$C$3:$C$3003, $N20, INV!$A$3:$A$3003, $D20, INV!$D$3:$D$3003, ">="& int_InvStartYear, INV!$D$3:$D$3003, "<="& int_Year), 0) -> 0 | Z20: =IF(OR(LEFT($J20, 16)="Clean energy inv", LEFT($J20, 16)="Electrified heat", LEFT($J20, 16)="Electrified vehi"), SUMIFS(INV!$E$3:$E$3003, INV!$C$3:$C$3003, $N20, INV!$A$3:$A$3003, $D20, INV!$D$3:$D$3003, ">="& int_InvStartYear, INV!$D$3:$D$3003, "<="& int_Year-1), 0) -> 0 | AA20: =IF(OR(LEFT($J20, 16)="Clean energy inv", LEFT($J20, 16)="Electrified heat", LEFT($J20, 16)="Electrified vehi"), SUMIFS(INV!$E$3:$E$3003, INV!$C$3:$C$3003, $N20, INV!$A$3:$A$3003, $D20, INV!$D$3:$D$3003, ">="& int_InvStartYear, INV!$D$3:$D$3003, "<="& int_Year), 0) -> 0 | AB20: Power - Policy - Renewable energy | AC20: Power - Policy - Renewable energy > Ecuador | AD20: On-Grid | AE20: =IF(ISNUMBER(MATCH($M20, DEFN!A$442:A$599, 0)), AE$10, "") -> On-grid | AF20: =IF(ISNUMBER(MATCH($M20, DEFN!B$442:B$599, 0)), AF$10, "") ->  | AG20: =IF(ISNUMBER(MATCH($M20, DEFN!C$442:C$599, 0)), AG$10, "") ->  | AH20: =IF(ISNUMBER(MATCH($M20, DEFN!D$442:D$599, 0)), AH$10, "") -> Non-Flexibility | AI20: =IF(ISNUMBER(MATCH($M20, DEFN!E$442:E$599, 0)), AI$10, "") -> Heating | AJ20: =IF(ISNUMBER(MATCH($M20, DEFN!F$442:F$599, 0)), AJ$10, "") ->  | AK20: On-grid Non-Flexibility Heating | AL20: =IFERROR(INDEX(WEIGHTS!$B$6:$H$6, 1, MATCH(IND!$AK20, WEIGHTS!$AD$5:$AJ$5, 0)), "") -> 3 | AM20: =IF(str_Sector_RANK="Default", IFERROR(INDEX(WEIGHTS!$B$16:$H$64, MATCH($D20, WEIGHTS!$I$16:$I$64, 0), $AL20), 0), IF(str_Sector_RANK="Custom", IFERROR(INDEX(RANKING!$P$5:$P$7, MATCH(D20, RANKING!$O$5:$O$7, 0), 1), 0), IF(D20=str_Sector_RANK,1,0))) -> 1 | AN20: =IF(str_Parameter_RANK="Default", IFERROR(INDEX(WEIGHTS!$K$16:$Q$64, MATCH($D20&" > "&$E20, WEIGHTS!$R$16:$R$64, 0), $AL20), 0), IF(str_Parameter_RANK="Custom", IFERROR(INDEX(RANKING!$R$5:$R$7, MATCH(E20, RANKING!$Q$5:$Q$7, 0), 1), 0), IF(E20=str_Parameter_RANK,1,0))) -> 0.5 | AO20: =IFERROR(INDEX(WEIGHTS!$T$16:$Z$64, MATCH($D20&" > "&$E20&" > "&$F20, WEIGHTS!$AA$16:$AA$64, 0), $AL20), 0) -> 0.4 | AP20: =IFERROR(INDEX(DEFN!$Q$13:$W$82, MATCH(AB20, DEFN!$X$13:$X$82, 0), MATCH(AK20, DEFN!$Q$10:$W$10, 0)), 0) -> 1 | AQ20: 1 | AR20: 0.2 | AS20: 0.531299436
A21: 1 | B21: 11 | C21: =IFERROR(INDEX(DEFN!$A$13:$X$82, MATCH($A21, DEFN!$A$13:$A$82, 0), MATCH(C$10, DEFN!$A$12:$X$12, 0)), "") -> Policy - Renewable energy | D21: =IF(F21="", "", INDEX(DEFN!$A$13:$X$82, MATCH($A21, DEFN!$A$13:$A$82, 0), MATCH(D$10, DEFN!$A$12:$X$12, 0))) -> Power | E21: =IF(G21="", "", INDEX(DEFN!$A$13:$X$82, MATCH($A21, DEFN!$A$13:$A$82, 0), MATCH(E$10, DEFN!$A$12:$X$12, 0))) -> Fundamentals | F21: =IF(G21="", "", INDEX(DEFN!$A$13:$X$82, MATCH($A21, DEFN!$A$13:$A$82, 0), MATCH(F$10, DEFN!$A$12:$X$12, 0))) -> Policy - Renewable energy | G21: =IFERROR(INDEX(DEFN!$A$13:$X$82, MATCH($A21, DEFN!$A$13:$A$82, 0), MATCH(C$10, DEFN!$A$12:$X$12, 0)), "") -> Policy - Renewable energy | H21: =IF(G21="", "", INDEX(DEFN!$A$13:$X$82, MATCH($A21, DEFN!$A$13:$A$82, 0), MATCH(H$10, DEFN!$A$12:$X$12, 0))) -> No | I21: =IF(G21="", "", INDEX(DEFN!$A$13:$X$82, MATCH($A21, DEFN!$A$13:$A$82, 0), MATCH(I$10, DEFN!$A$12:$X$12, 0))) -> None | J21: =IF(G21="", "", INDEX(DEFN!$A$13:$X$82, MATCH($A21, DEFN!$A$13:$A$82, 0), MATCH(J$10, DEFN!$A$12:$X$12, 0))) -> None | K21: =IF(G21="", "", INDEX(DEFN!$A$13:$X$82, MATCH($A21, DEFN!$A$13:$A$82, 0), MATCH(K$10, DEFN!$A$12:$X$12, 0))) -> Policies | L21: =IF(G21="", "", INDEX(DEFN!B$278:B$427, MATCH($B21, DEFN!$A$278:$A$427, 0), 1)) -> Americas | M21: =IF(G21="", "", INDEX(DEFN!C$278:C$427, MATCH($B21, DEFN!$A$278:$A$427, 0), 1)) -> El Salvador | N21: =IF(G21="", "", IFERROR(INDEX(DEFN!$E$278:$E$427, MATCH(M21, DEFN!$C$278:$C$427, 0), 1), "")) -> SLV | O21: =IF(F21="", "", INDEX(DEFN!$A$13:$X$82, MATCH($A21, DEFN!$A$13:$A$82, 0), MATCH(O$10, DEFN!$A$12:$X$12, 0))) -> Total | P21: =IF(G21="", "", INDEX(DEFN!$A$13:$X$82, MATCH($A21, DEFN!$A$13:$A$82, 0), MATCH(P$10, DEFN!$A$12:$X$12, 0))) -> User Defined | Q21: =IF(G21="", 0, INDEX(DEFN!$A$13:$X$82, MATCH($A21, DEFN!$A$13:$A$82, 0), MATCH(Q$10, DEFN!$A$12:$X$12, 0))) -> 5 | R21: =IFERROR(IF($I21="None", 1, IF($I21="All Capacity", SUMIFS(SID!Y$12:Y$28511, SID!$L$12:$L$28511, $M21, SID!$I$12:$I$28511, $K21), IF($I21="All Generation", SUMIFS(SID!Y$12:Y$28511, SID!$L$12:$L$28511, $M21, SID!$I$12:$I$28511, $K21), SUMIFS(SID!Y$12:Y$28511, SID!$L$12:$L$28511, $M21, SID!$F$12:$F$28511, $I21)))), 1) -> 1 | S21: =IF(AND(LEFT(G21, 6)="Growth", J21<>"None"), X21, IF(Y21=0, IF(O21="Average", IFERROR(AVERAGEIFS(SID!Y$12:Y$28511, SID!$F$12:$F$28511, $G21, SID!$C$12:$C$28511, $D21, SID!$L$12:$L$28511, $M21, SID!$Z$12:$Z$28511, 0), 0), IFERROR(SUMIFS(SID!Y$12:Y$28511, SID!$F$12:$F$28511, $G21, SID!$C$12:$C$28511, $D21, SID!$L$12:$L$28511, $M21, SID!$Z$12:$Z$28511, 0), 0)), Y21)) -> 49.79094797 | T21: 1.376500936 | U21: 5 | V21: 27.53001872 | W21: 1.376500936 | X21: =IF(OR(LEFT($J21, 16)="Clean energy inv", LEFT($J21, 16)="Electrified heat", LEFT($J21, 16)="Electrified vehi"), IF(OR(Z21=0, AA21=0), 0, AA21/Z21-1), IF(J21="None", 0, IFERROR(SUMIFS(SID!Y$12:Y$28511, SID!$F$12:$F$28511, J21, SID!$L$12:$L$28511, M21, SID!$Z$12:$Z$28511, 0)/SUMIFS(SID!X$12:X$28511, SID!$F$12:$F$28511, J21, SID!$L$12:$L$28511, M21, SID!$Z$12:$Z$28511, 0) - 1, 0))) -> 0 | Y21: =IF(OR(LEFT($G21, 16)="Clean energy inv", LEFT($G21, 16)="Electrified heat", LEFT($G21, 16)="Electrified vehi"), SUMIFS(INV!$E$3:$E$3003, INV!$C$3:$C$3003, $N21, INV!$A$3:$A$3003, $D21, INV!$D$3:$D$3003, ">="& int_InvStartYear, INV!$D$3:$D$3003, "<="& int_Year), 0) -> 0 | Z21: =IF(OR(LEFT($J21, 16)="Clean energy inv", LEFT($J21, 16)="Electrified heat", LEFT($J21, 16)="Electrified vehi"), SUMIFS(INV!$E$3:$E$3003, INV!$C$3:$C$3003, $N21, INV!$A$3:$A$3003, $D21, INV!$D$3:$D$3003, ">="& int_InvStartYear, INV!$D$3:$D$3003, "<="& int_Year-1), 0) -> 0 | AA21: =IF(OR(LEFT($J21, 16)="Clean energy inv", LEFT($J21, 16)="Electrified heat", LEFT($J21, 16)="Electrified vehi"), SUMIFS(INV!$E$3:$E$3003, INV!$C$3:$C$3003, $N21, INV!$A$3:$A$3003, $D21, INV!$D$3:$D$3003, ">="& int_InvStartYear, INV!$D$3:$D$3003, "<="& int_Year), 0) -> 0 | AB21: Power - Policy - Renewable energy | AC21: Power - Policy - Renewable energy > El Salvador | AD21: Off-Grid | AE21: =IF(ISNUMBER(MATCH($M21, DEFN!A$442:A$599, 0)), AE$10, "") ->  | AF21: =IF(ISNUMBER(MATCH($M21, DEFN!B$442:B$599, 0)), AF$10, "") -> Off-grid | AG21: =IF(ISNUMBER(MATCH($M21, DEFN!C$442:C$599, 0)), AG$10, "") ->  | AH21: =IF(ISNUMBER(MATCH($M21, DEFN!D$442:D$599, 0)), AH$10, "") -> Non-Flexibility | AI21: =IF(ISNUMBER(MATCH($M21, DEFN!E$442:E$599, 0)), AI$10, "") ->  | AJ21: =IF(ISNUMBER(MATCH($M21, DEFN!F$442:F$599, 0)), AJ$10, "") -> Non-Heating | AK21: Off-grid Non-Flexibility Non-Heating | AL21: =IFERROR(INDEX(WEIGHTS!$B$6:$H$6, 1, MATCH(IND!$AK21, WEIGHTS!$AD$5:$AJ$5, 0)), "") -> 5 | AM21: =IF(str_Sector_RANK="Default", IFERROR(INDEX(WEIGHTS!$B$16:$H$64, MATCH($D21, WEIGHTS!$I$16:$I$64, 0), $AL21), 0), IF(str_Sector_RANK="Custom", IFERROR(INDEX(RANKING!$P$5:$P$7, MATCH(D21, RANKING!$O$5:$O$7, 0), 1), 0), IF(D21=str_Sector_RANK,1,0))) -> 1 | AN21: =IF(str_Parameter_RANK="Default", IFERROR(INDEX(WEIGHTS!$K$16:$Q$64, MATCH($D21&" > "&$E21, WEIGHTS!$R$16:$R$64, 0), $AL21), 0), IF(str_Parameter_RANK="Custom", IFERROR(INDEX(RANKING!$R$5:$R$7, MATCH(E21, RANKING!$Q$5:$Q$7, 0), 1), 0), IF(E21=str_Parameter_RANK,1,0))) -> 0.5 | AO21: =IFERROR(INDEX(WEIGHTS!$T$16:$Z$64, MATCH($D21&" > "&$E21&" > "&$F21, WEIGHTS!$AA$16:$AA$64, 0), $AL21), 0) -> 0.3 | AP21: =IFERROR(INDEX(DEFN!$Q$13:$W$82, MATCH(AB21, DEFN!$X$13:$X$82, 0), MATCH(AK21, DEFN!$Q$10:$W$10, 0)), 0) -> 1 | AQ21: 1 | AR21: 0.15 | AS21: 0.2064751404
A22: 1 | B22: 12 | C22: =IFERROR(INDEX(DEFN!$A$13:$X$82, MATCH($A22, DEFN!$A$13:$A$82, 0), MATCH(C$10, DEFN!$A$12:$X$12, 0)), "") -> Policy - Renewable energy | D22: =IF(F22="", "", INDEX(DEFN!$A$13:$X$82, MATCH($A22, DEFN!$A$13:$A$82, 0), MATCH(D$10, DEFN!$A$12:$X$12, 0))) -> Power | E22: =IF(G22="", "", INDEX(DEFN!$A$13:$X$82, MATCH($A22, DEFN!$A$13:$A$82, 0), MATCH(E$10, DEFN!$A$12:$X$12, 0))) -> Fundamentals | F22: =IF(G22="", "", INDEX(DEFN!$A$13:$X$82, MATCH($A22, DEFN!$A$13:$A$82, 0), MATCH(F$10, DEFN!$A$12:$X$12, 0))) -> Policy - Renewable energy | G22: =IFERROR(INDEX(DEFN!$A$13:$X$82, MATCH($A22, DEFN!$A$13:$A$82, 0), MATCH(C$10, DEFN!$A$12:$X$12, 0)), "") -> Policy - Renewable energy | H22: =IF(G22="", "", INDEX(DEFN!$A$13:$X$82, MATCH($A22, DEFN!$A$13:$A$82, 0), MATCH(H$10, DEFN!$A$12:$X$12, 0))) -> No | I22: =IF(G22="", "", INDEX(DEFN!$A$13:$X$82, MATCH($A22, DEFN!$A$13:$A$82, 0), MATCH(I$10, DEFN!$A$12:$X$12, 0))) -> None | J22: =IF(G22="", "", INDEX(DEFN!$A$13:$X$82, MATCH($A22, DEFN!$A$13:$A$82, 0), MATCH(J$10, DEFN!$A$12:$X$12, 0))) -> None | K22: =IF(G22="", "", INDEX(DEFN!$A$13:$X$82, MATCH($A22, DEFN!$A$13:$A$82, 0), MATCH(K$10, DEFN!$A$12:$X$12, 0))) -> Policies | L22: =IF(G22="", "", INDEX(DEFN!B$278:B$427, MATCH($B22, DEFN!$A$278:$A$427, 0), 1)) -> Americas | M22: =IF(G22="", "", INDEX(DEFN!C$278:C$427, MATCH($B22, DEFN!$A$278:$A$427, 0), 1)) -> Guatemala | N22: =IF(G22="", "", IFERROR(INDEX(DEFN!$E$278:$E$427, MATCH(M22, DEFN!$C$278:$C$427, 0), 1), "")) -> GTM | O22: =IF(F22="", "", INDEX(DEFN!$A$13:$X$82, MATCH($A22, DEFN!$A$13:$A$82, 0), MATCH(O$10, DEFN!$A$12:$X$12, 0))) -> Total | P22: =IF(G22="", "", INDEX(DEFN!$A$13:$X$82, MATCH($A22, DEFN!$A$13:$A$82, 0), MATCH(P$10, DEFN!$A$12:$X$12, 0))) -> User Defined | Q22: =IF(G22="", 0, INDEX(DEFN!$A$13:$X$82, MATCH($A22, DEFN!$A$13:$A$82, 0), MATCH(Q$10, DEFN!$A$12:$X$12, 0))) -> 5 | R22: =IFERROR(IF($I22="None", 1, IF($I22="All Capacity", SUMIFS(SID!Y$12:Y$28511, SID!$L$12:$L$28511, $M22, SID!$I$12:$I$28511, $K22), IF($I22="All Generation", SUMIFS(SID!Y$12:Y$28511, SID!$L$12:$L$28511, $M22, SID!$I$12:$I$28511, $K22), SUMIFS(SID!Y$12:Y$28511, SID!$L$12:$L$28511, $M22, SID!$F$12:$F$28511, $I22)))), 1) -> 1 | S22: =IF(AND(LEFT(G22, 6)="Growth", J22<>"None"), X22, IF(Y22=0, IF(O22="Average", IFERROR(AVERAGEIFS(SID!Y$12:Y$28511, SID!$F$12:$F$28511, $G22, SID!$C$12:$C$28511, $D22, SID!$L$12:$L$28511, $M22, SID!$Z$12:$Z$28511, 0), 0), IFERROR(SUMIFS(SID!Y$12:Y$28511, SID!$F$12:$F$28511, $G22, SID!$C$12:$C$28511, $D22, SID!$L$12:$L$28511, $M22, SID!$Z$12:$Z$28511, 0), 0)), Y22)) -> 70.58968891 | T22: 1.997378295 | U22: 5 | V22: 39.9475659 | W22: 1.997378295 | X22: =IF(OR(LEFT($J22, 16)="Clean energy inv", LEFT($J22, 16)="Electrified heat", LEFT($J22, 16)="Electrified vehi"), IF(OR(Z22=0, AA22=0), 0, AA22/Z22-1), IF(J22="None", 0, IFERROR(SUMIFS(SID!Y$12:Y$28511, SID!$F$12:$F$28511, J22, SID!$L$12:$L$28511, M22, SID!$Z$12:$Z$28511, 0)/SUMIFS(SID!X$12:X$28511, SID!$F$12:$F$28511, J22, SID!$L$12:$L$28511, M22, SID!$Z$12:$Z$28511, 0) - 1, 0))) -> 0 | Y22: =IF(OR(LEFT($G22, 16)="Clean energy inv", LEFT($G22, 16)="Electrified heat", LEFT($G22, 16)="Electrified vehi"), SUMIFS(INV!$E$3:$E$3003, INV!$C$3:$C$3003, $N22, INV!$A$3:$A$3003, $D22, INV!$D$3:$D$3003, ">="& int_InvStartYear, INV!$D$3:$D$3003, "<="& int_Year), 0) -> 0 | Z22: =IF(OR(LEFT($J22, 16)="Clean energy inv", LEFT($J22, 16)="Electrified heat", LEFT($J22, 16)="Electrified vehi"), SUMIFS(INV!$E$3:$E$3003, INV!$C$3:$C$3003, $N22, INV!$A$3:$A$3003, $D22, INV!$D$3:$D$3003, ">="& int_InvStartYear, INV!$D$3:$D$3003, "<="& int_Year-1), 0) -> 0 | AA22: =IF(OR(LEFT($J22, 16)="Clean energy inv", LEFT($J22, 16)="Electrified heat", LEFT($J22, 16)="Electrified vehi"), SUMIFS(INV!$E$3:$E$3003, INV!$C$3:$C$3003, $N22, INV!$A$3:$A$3003, $D22, INV!$D$3:$D$3003, ">="& int_InvStartYear, INV!$D$3:$D$3003, "<="& int_Year), 0) -> 0 | AB22: Power - Policy - Renewable energy | AC22: Power - Policy - Renewable energy > Guatemala | AD22: Off-Grid | AE22: =IF(ISNUMBER(MATCH($M22, DEFN!A$442:A$599, 0)), AE$10, "") ->  | AF22: =IF(ISNUMBER(MATCH($M22, DEFN!B$442:B$599, 0)), AF$10, "") -> Off-grid | AG22: =IF(ISNUMBER(MATCH($M22, DEFN!C$442:C$599, 0)), AG$10, "") ->  | AH22: =IF(ISNUMBER(MATCH($M22, DEFN!D$442:D$599, 0)), AH$10, "") -> Non-Flexibility | AI22: =IF(ISNUMBER(MATCH($M22, DEFN!E$442:E$599, 0)), AI$10, "") ->  | AJ22: =IF(ISNUMBER(MATCH($M22, DEFN!F$442:F$599, 0)), AJ$10, "") -> Non-Heating | AK22: Off-grid Non-Flexibility Non-Heating | AL22: =IFERROR(INDEX(WEIGHTS!$B$6:$H$6, 1, MATCH(IND!$AK22, WEIGHTS!$AD$5:$AJ$5, 0)), "") -> 5 | AM22: =IF(str_Sector_RANK="Default", IFERROR(INDEX(WEIGHTS!$B$16:$H$64, MATCH($D22, WEIGHTS!$I$16:$I$64, 0), $AL22), 0), IF(str_Sector_RANK="Custom", IFERROR(INDEX(RANKING!$P$5:$P$7, MATCH(D22, RANKING!$O$5:$O$7, 0), 1), 0), IF(D22=str_Sector_RANK,1,0))) -> 1 | AN22: =IF(str_Parameter_RANK="Default", IFERROR(INDEX(WEIGHTS!$K$16:$Q$64, MATCH($D22&" > "&$E22, WEIGHTS!$R$16:$R$64, 0), $AL22), 0), IF(str_Parameter_RANK="Custom", IFERROR(INDEX(RANKING!$R$5:$R$7, MATCH(E22, RANKING!$Q$5:$Q$7, 0), 1), 0), IF(E22=str_Parameter_RANK,1,0))) -> 0.5 | AO22: =IFERROR(INDEX(WEIGHTS!$T$16:$Z$64, MATCH($D22&" > "&$E22&" > "&$F22, WEIGHTS!$AA$16:$AA$64, 0), $AL22), 0) -> 0.3 | AP22: =IFERROR(INDEX(DEFN!$Q$13:$W$82, MATCH(AB22, DEFN!$X$13:$X$82, 0), MATCH(AK22, DEFN!$Q$10:$W$10, 0)), 0) -> 1 | AQ22: 1 | AR22: 0.15 | AS22: 0.2996067442
A23: 1 | B23: 13 | C23: =IFERROR(INDEX(DEFN!$A$13:$X$82, MATCH($A23, DEFN!$A$13:$A$82, 0), MATCH(C$10, DEFN!$A$12:$X$12, 0)), "") -> Policy - Renewable energy | D23: =IF(F23="", "", INDEX(DEFN!$A$13:$X$82, MATCH($A23, DEFN!$A$13:$A$82, 0), MATCH(D$10, DEFN!$A$12:$X$12, 0))) -> Power | E23: =IF(G23="", "", INDEX(DEFN!$A$13:$X$82, MATCH($A23, DEFN!$A$13:$A$82, 0), MATCH(E$10, DEFN!$A$12:$X$12, 0))) -> Fundamentals | F23: =IF(G23="", "", INDEX(DEFN!$A$13:$X$82, MATCH($A23, DEFN!$A$13:$A$82, 0), MATCH(F$10, DEFN!$A$12:$X$12, 0))) -> Policy - Renewable energy | G23: =IFERROR(INDEX(DEFN!$A$13:$X$82, MATCH($A23, DEFN!$A$13:$A$82, 0), MATCH(C$10, DEFN!$A$12:$X$12, 0)), "") -> Policy - Renewable energy | H23: =IF(G23="", "", INDEX(DEFN!$A$13:$X$82, MATCH($A23, DEFN!$A$13:$A$82, 0), MATCH(H$10, DEFN!$A$12:$X$12, 0))) -> No | I23: =IF(G23="", "", INDEX(DEFN!$A$13:$X$82, MATCH($A23, DEFN!$A$13:$A$82, 0), MATCH(I$10, DEFN!$A$12:$X$12, 0))) -> None | J23: =IF(G23="", "", INDEX(DEFN!$A$13:$X$82, MATCH($A23, DEFN!$A$13:$A$82, 0), MATCH(J$10, DEFN!$A$12:$X$12, 0))) -> None | K23: =IF(G23="", "", INDEX(DEFN!$A$13:$X$82, MATCH($A23, DEFN!$A$13:$A$82, 0), MATCH(K$10, DEFN!$A$12:$X$12, 0))) -> Policies | L23: =IF(G23="", "", INDEX(DEFN!B$278:B$427, MATCH($B23, DEFN!$A$278:$A$427, 0), 1)) -> Americas | M23: =IF(G23="", "", INDEX(DEFN!C$278:C$427, MATCH($B23, DEFN!$A$278:$A$427, 0), 1)) -> Haiti | N23: =IF(G23="", "", IFERROR(INDEX(DEFN!$E$278:$E$427, MATCH(M23, DEFN!$C$278:$C$427, 0), 1), "")) -> HTI | O23: =IF(F23="", "", INDEX(DEFN!$A$13:$X$82, MATCH($A23, DEFN!$A$13:$A$82, 0), MATCH(O$10, DEFN!$A$12:$X$12, 0))) -> Total | P23: =IF(G23="", "", INDEX(DEFN!$A$13:$X$82, MATCH($A23, DEFN!$A$13:$A$82, 0), MATCH(P$10, DEFN!$A$12:$X$12, 0))) -> User Defined | Q23: =IF(G23="", 0, INDEX(DEFN!$A$13:$X$82, MATCH($A23, DEFN!$A$13:$A$82, 0), MATCH(Q$10, DEFN!$A$12:$X$12, 0))) -> 5 | R23: =IFERROR(IF($I23="None", 1, IF($I23="All Capacity", SUMIFS(SID!Y$12:Y$28511, SID!$L$12:$L$28511, $M23, SID!$I$12:$I$28511, $K23), IF($I23="All Generation", SUMIFS(SID!Y$12:Y$28511, SID!$L$12:$L$28511, $M23, SID!$I$12:$I$28511, $K23), SUMIFS(SID!Y$12:Y$28511, SID!$L$12:$L$28511, $M23, SID!$F$12:$F$28511, $I23)))), 1) -> 1 | S23: =IF(AND(LEFT(G23, 6)="Growth", J23<>"None"), X23, IF(Y23=0, IF(O23="Average", IFERROR(AVERAGEIFS(SID!Y$12:Y$28511, SID!$F$12:$F$28511, $G23, SID!$C$12:$C$28511, $D23, SID!$L$12:$L$28511, $M23, SID!$Z$12:$Z$28511, 0), 0), IFERROR(SUMIFS(SID!Y$12:Y$28511, SID!$F$12:$F$28511, $G23, SID!$C$12:$C$28511, $D23, SID!$L$12:$L$28511, $M23, SID!$Z$12:$Z$28511, 0), 0)), Y23)) -> 26.41268484 | T23: 0.7529326025 | U23: 5 | V23: 15.05865205 | W23: 0.7529326025 | X23: =IF(OR(LEFT($J23, 16)="Clean energy inv", LEFT($J23, 16)="Electrified heat", LEFT($J23, 16)="Electrified vehi"), IF(OR(Z23=0, AA23=0), 0, AA23/Z23-1), IF(J23="None", 0, IFERROR(SUMIFS(SID!Y$12:Y$28511, SID!$F$12:$F$28511, J23, SID!$L$12:$L$28511, M23, SID!$Z$12:$Z$28511, 0)/SUMIFS(SID!X$12:X$28511, SID!$F$12:$F$28511, J23, SID!$L$12:$L$28511, M23, SID!$Z$12:$Z$28511, 0) - 1, 0))) -> 0 | Y23: =IF(OR(LEFT($G23, 16)="Clean energy inv", LEFT($G23, 16)="Electrified heat", LEFT($G23, 16)="Electrified vehi"), SUMIFS(INV!$E$3:$E$3003, INV!$C$3:$C$3003, $N23, INV!$A$3:$A$3003, $D23, INV!$D$3:$D$3003, ">="& int_InvStartYear, INV!$D$3:$D$3003, "<="& int_Year), 0) -> 0 | Z23: =IF(OR(LEFT($J23, 16)="Clean energy inv", LEFT($J23, 16)="Electrified heat", LEFT($J23, 16)="Electrified vehi"), SUMIFS(INV!$E$3:$E$3003, INV!$C$3:$C$3003, $N23, INV!$A$3:$A$3003, $D23, INV!$D$3:$D$3003, ">="& int_InvStartYear, INV!$D$3:$D$3003, "<="& int_Year-1), 0) -> 0 | AA23: =IF(OR(LEFT($J23, 16)="Clean energy inv", LEFT($J23, 16)="Electrified heat", LEFT($J23, 16)="Electrified vehi"), SUMIFS(INV!$E$3:$E$3003, INV!$C$3:$C$3003, $N23, INV!$A$3:$A$3003, $D23, INV!$D$3:$D$3003, ">="& int_InvStartYear, INV!$D$3:$D$3003, "<="& int_Year), 0) -> 0 | AB23: Power - Policy - Renewable energy | AC23: Power - Policy - Renewable energy > Haiti | AD23: Off-Grid | AE23: =IF(ISNUMBER(MATCH($M23, DEFN!A$442:A$599, 0)), AE$10, "") ->  | AF23: =IF(ISNUMBER(MATCH($M23, DEFN!B$442:B$599, 0)), AF$10, "") -> Off-grid | AG23: =IF(ISNUMBER(MATCH($M23, DEFN!C$442:C$599, 0)), AG$10, "") ->  | AH23: =IF(ISNUMBER(MATCH($M23, DEFN!D$442:D$599, 0)), AH$10, "") -> Non-Flexibility | AI23: =IF(ISNUMBER(MATCH($M23, DEFN!E$442:E$599, 0)), AI$10, "") ->  | AJ23: =IF(ISNUMBER(MATCH($M23, DEFN!F$442:F$599, 0)), AJ$10, "") -> Non-Heating | AK23: Off-grid Non-Flexibility Non-Heating | AL23: =IFERROR(INDEX(WEIGHTS!$B$6:$H$6, 1, MATCH(IND!$AK23, WEIGHTS!$AD$5:$AJ$5, 0)), "") -> 5 | AM23: =IF(str_Sector_RANK="Default", IFERROR(INDEX(WEIGHTS!$B$16:$H$64, MATCH($D23, WEIGHTS!$I$16:$I$64, 0), $AL23), 0), IF(str_Sector_RANK="Custom", IFERROR(INDEX(RANKING!$P$5:$P$7, MATCH(D23, RANKING!$O$5:$O$7, 0), 1), 0), IF(D23=str_Sector_RANK,1,0))) -> 1 | AN23: =IF(str_Parameter_RANK="Default", IFERROR(INDEX(WEIGHTS!$K$16:$Q$64, MATCH($D23&" > "&$E23, WEIGHTS!$R$16:$R$64, 0), $AL23), 0), IF(str_Parameter_RANK="Custom", IFERROR(INDEX(RANKING!$R$5:$R$7, MATCH(E23, RANKING!$Q$5:$Q$7, 0), 1), 0), IF(E23=str_Parameter_RANK,1,0))) -> 0.5 | AO23: =IFERROR(INDEX(WEIGHTS!$T$16:$Z$64, MATCH($D23&" > "&$E23&" > "&$F23, WEIGHTS!$AA$16:$AA$64, 0), $AL23), 0) -> 0.3 | AP23: =IFERROR(INDEX(DEFN!$Q$13:$W$82, MATCH(AB23, DEFN!$X$13:$X$82, 0), MATCH(AK23, DEFN!$Q$10:$W$10, 0)), 0) -> 1 | AQ23: 1 | AR23: 0.15 | AS23: 0.1129398904
A24: 1 | B24: 14 | C24: =IFERROR(INDEX(DEFN!$A$13:$X$82, MATCH($A24, DEFN!$A$13:$A$82, 0), MATCH(C$10, DEFN!$A$12:$X$12, 0)), "") -> Policy - Renewable energy | D24: =IF(F24="", "", INDEX(DEFN!$A$13:$X$82, MATCH($A24, DEFN!$A$13:$A$82, 0), MATCH(D$10, DEFN!$A$12:$X$12, 0))) -> Power | E24: =IF(G24="", "", INDEX(DEFN!$A$13:$X$82, MATCH($A24, DEFN!$A$13:$A$82, 0), MATCH(E$10, DEFN!$A$12:$X$12, 0))) -> Fundamentals | F24: =IF(G24="", "", INDEX(DEFN!$A$13:$X$82, MATCH($A24, DEFN!$A$13:$A$82, 0), MATCH(F$10, DEFN!$A$12:$X$12, 0))) -> Policy - Renewable energy | G24: =IFERROR(INDEX(DEFN!$A$13:$X$82, MATCH($A24, DEFN!$A$13:$A$82, 0), MATCH(C$10, DEFN!$A$12:$X$12, 0)), "") -> Policy - Renewable energy | H24: =IF(G24="", "", INDEX(DEFN!$A$13:$X$82, MATCH($A24, DEFN!$A$13:$A$82, 0), MATCH(H$10, DEFN!$A$12:$X$12, 0))) -> No | I24: =IF(G24="", "", INDEX(DEFN!$A$13:$X$82, MATCH($A24, DEFN!$A$13:$A$82, 0), MATCH(I$10, DEFN!$A$12:$X$12, 0))) -> None | J24: =IF(G24="", "", INDEX(DEFN!$A$13:$X$82, MATCH($A24, DEFN!$A$13:$A$82, 0), MATCH(J$10, DEFN!$A$12:$X$12, 0))) -> None | K24: =IF(G24="", "", INDEX(DEFN!$A$13:$X$82, MATCH($A24, DEFN!$A$13:$A$82, 0), MATCH(K$10, DEFN!$A$12:$X$12, 0))) -> Policies | L24: =IF(G24="", "", INDEX(DEFN!B$278:B$427, MATCH($B24, DEFN!$A$278:$A$427, 0), 1)) -> Americas | M24: =IF(G24="", "", INDEX(DEFN!C$278:C$427, MATCH($B24, DEFN!$A$278:$A$427, 0), 1)) -> Honduras | N24: =IF(G24="", "", IFERROR(INDEX(DEFN!$E$278:$E$427, MATCH(M24, DEFN!$C$278:$C$427, 0), 1), "")) -> HND | O24: =IF(F24="", "", INDEX(DEFN!$A$13:$X$82, MATCH($A24, DEFN!$A$13:$A$82, 0), MATCH(O$10, DEFN!$A$12:$X$12, 0))) -> Total | P24: =IF(G24="", "", INDEX(DEFN!$A$13:$X$82, MATCH($A24, DEFN!$A$13:$A$82, 0), MATCH(P$10, DEFN!$A$12:$X$12, 0))) -> User Defined | Q24: =IF(G24="", 0, INDEX(DEFN!$A$13:$X$82, MATCH($A24, DEFN!$A$13:$A$82, 0), MATCH(Q$10, DEFN!$A$12:$X$12, 0))) -> 5 | R24: =IFERROR(IF($I24="None", 1, IF($I24="All Capacity", SUMIFS(SID!Y$12:Y$28511, SID!$L$12:$L$28511, $M24, SID!$I$12:$I$28511, $K24), IF($I24="All Generation", SUMIFS(SID!Y$12:Y$28511, SID!$L$12:$L$28511, $M24, SID!$I$12:$I$28511, $K24), SUMIFS(SID!Y$12:Y$28511, SID!$L$12:$L$28511, $M24, SID!$F$12:$F$28511, $I24)))), 1) -> 1 | S24: =IF(AND(LEFT(G24, 6)="Growth", J24<>"None"), X24, IF(Y24=0, IF(O24="Average", IFERROR(AVERAGEIFS(SID!Y$12:Y$28511, SID!$F$12:$F$28511, $G24, SID!$C$12:$C$28511, $D24, SID!$L$12:$L$28511, $M24, SID!$Z$12:$Z$28511, 0), 0), IFERROR(SUMIFS(SID!Y$12:Y$28511, SID!$F$12:$F$28511, $G24, SID!$C$12:$C$28511, $D24, SID!$L$12:$L$28511, $M24, SID!$Z$12:$Z$28511, 0), 0)), Y24)) -> 66.20870763 | T24: 1.819162129 | U24: 5 | V24: 36.38324257 | W24: 1.819162129 | X24: =IF(OR(LEFT($J24, 16)="Clean energy inv", LEFT($J24, 16)="Electrified heat", LEFT($J24, 16)="Electrified vehi"), IF(OR(Z24=0, AA24=0), 0, AA24/Z24-1), IF(J24="None", 0, IFERROR(SUMIFS(SID!Y$12:Y$28511, SID!$F$12:$F$28511, J24, SID!$L$12:$L$28511, M24, SID!$Z$12:$Z$28511, 0)/SUMIFS(SID!X$12:X$28511, SID!$F$12:$F$28511, J24, SID!$L$12:$L$28511, M24, SID!$Z$12:$Z$28511, 0) - 1, 0))) -> 0 | Y24: =IF(OR(LEFT($G24, 16)="Clean energy inv", LEFT($G24, 16)="Electrified heat", LEFT($G24, 16)="Electrified vehi"), SUMIFS(INV!$E$3:$E$3003, INV!$C$3:$C$3003, $N24, INV!$A$3:$A$3003, $D24, INV!$D$3:$D$3003, ">="& int_InvStartYear, INV!$D$3:$D$3003, "<="& int_Year), 0) -> 0 | Z24: =IF(OR(LEFT($J24, 16)="Clean energy inv", LEFT($J24, 16)="Electrified heat", LEFT($J24, 16)="Electrified vehi"), SUMIFS(INV!$E$3:$E$3003, INV!$C$3:$C$3003, $N24, INV!$A$3:$A$3003, $D24, INV!$D$3:$D$3003, ">="& int_InvStartYear, INV!$D$3:$D$3003, "<="& int_Year-1), 0) -> 0 | AA24: =IF(OR(LEFT($J24, 16)="Clean energy inv", LEFT($J24, 16)="Electrified heat", LEFT($J24, 16)="Electrified vehi"), SUMIFS(INV!$E$3:$E$3003, INV!$C$3:$C$3003, $N24, INV!$A$3:$A$3003, $D24, INV!$D$3:$D$3003, ">="& int_InvStartYear, INV!$D$3:$D$3003, "<="& int_Year), 0) -> 0 | AB24: Power - Policy - Renewable energy | AC24: Power - Policy - Renewable energy > Honduras | AD24: Off-Grid | AE24: =IF(ISNUMBER(MATCH($M24, DEFN!A$442:A$599, 0)), AE$10, "") ->  | AF24: =IF(ISNUMBER(MATCH($M24, DEFN!B$442:B$599, 0)), AF$10, "") -> Off-grid | AG24: =IF(ISNUMBER(MATCH($M24, DEFN!C$442:C$599, 0)), AG$10, "") -> Flexibility | AH24: =IF(ISNUMBER(MATCH($M24, DEFN!D$442:D$599, 0)), AH$10, "") ->  | AI24: =IF(ISNUMBER(MATCH($M24, DEFN!E$442:E$599, 0)), AI$10, "") ->  | AJ24: =IF(ISNUMBER(MATCH($M24, DEFN!F$442:F$599, 0)), AJ$10, "") -> Non-Heating | AK24: Off-grid Flexibility Non-Heating | AL24: =IFERROR(INDEX(WEIGHTS!$B$6:$H$6, 1, MATCH(IND!$AK24, WEIGHTS!$AD$5:$AJ$5, 0)), "") -> 6 | AM24: =IF(str_Sector_RANK="Default", IFERROR(INDEX(WEIGHTS!$B$16:$H$64, MATCH($D24, WEIGHTS!$I$16:$I$64, 0), $AL24), 0), IF(str_Sector_RANK="Custom", IFERROR(INDEX(RANKING!$P$5:$P$7, MATCH(D24, RANKING!$O$5:$O$7, 0), 1), 0), IF(D24=str_Sector_RANK,1,0))) -> 1 | AN24: =IF(str_Parameter_RANK="Default", IFERROR(INDEX(WEIGHTS!$K$16:$Q$64, MATCH($D24&" > "&$E24, WEIGHTS!$R$16:$R$64, 0), $AL24), 0), IF(str_Parameter_RANK="Custom", IFERROR(INDEX(RANKING!$R$5:$R$7, MATCH(E24, RANKING!$Q$5:$Q$7, 0), 1), 0), IF(E24=str_Parameter_RANK,1,0))) -> 0.5 | AO24: =IFERROR(INDEX(WEIGHTS!$T$16:$Z$64, MATCH($D24&" > "&$E24&" > "&$F24, WEIGHTS!$AA$16:$AA$64, 0), $AL24), 0) -> 0.25 | AP24: =IFERROR(INDEX(DEFN!$Q$13:$W$82, MATCH(AB24, DEFN!$X$13:$X$82, 0), MATCH(AK24, DEFN!$Q$10:$W$10, 0)), 0) -> 1 | AQ24: 1 | AR24: 0.125 | AS24: 0.2273952661
A25: 1 | B25: 15 | C25: =IFERROR(INDEX(DEFN!$A$13:$X$82, MATCH($A25, DEFN!$A$13:$A$82, 0), MATCH(C$10, DEFN!$A$12:$X$12, 0)), "") -> Policy - Renewable energy | D25: =IF(F25="", "", INDEX(DEFN!$A$13:$X$82, MATCH($A25, DEFN!$A$13:$A$82, 0), MATCH(D$10, DEFN!$A$12:$X$12, 0))) -> Power | E25: =IF(G25="", "", INDEX(DEFN!$A$13:$X$82, MATCH($A25, DEFN!$A$13:$A$82, 0), MATCH(E$10, DEFN!$A$12:$X$12, 0))) -> Fundamentals | F25: =IF(G25="", "", INDEX(DEFN!$A$13:$X$82, MATCH($A25, DEFN!$A$13:$A$82, 0), MATCH(F$10, DEFN!$A$12:$X$12, 0))) -> Policy - Renewable energy | G25: =IFERROR(INDEX(DEFN!$A$13:$X$82, MATCH($A25, DEFN!$A$13:$A$82, 0), MATCH(C$10, DEFN!$A$12:$X$12, 0)), "") -> Policy - Renewable energy | H25: =IF(G25="", "", INDEX(DEFN!$A$13:$X$82, MATCH($A25, DEFN!$A$13:$A$82, 0), MATCH(H$10, DEFN!$A$12:$X$12, 0))) -> No | I25: =IF(G25="", "", INDEX(DEFN!$A$13:$X$82, MATCH($A25, DEFN!$A$13:$A$82, 0), MATCH(I$10, DEFN!$A$12:$X$12, 0))) -> None | J25: =IF(G25="", "", INDEX(DEFN!$A$13:$X$82, MATCH($A25, DEFN!$A$13:$A$82, 0), MATCH(J$10, DEFN!$A$12:$X$12, 0))) -> None | K25: =IF(G25="", "", INDEX(DEFN!$A$13:$X$82, MATCH($A25, DEFN!$A$13:$A$82, 0), MATCH(K$10, DEFN!$A$12:$X$12, 0))) -> Policies | L25: =IF(G25="", "", INDEX(DEFN!B$278:B$427, MATCH($B25, DEFN!$A$278:$A$427, 0), 1)) -> Americas | M25: =IF(G25="", "", INDEX(DEFN!C$278:C$427, MATCH($B25, DEFN!$A$278:$A$427, 0), 1)) -> Jamaica | N25: =IF(G25="", "", IFERROR(INDEX(DEFN!$E$278:$E$427, MATCH(M25, DEFN!$C$278:$C$427, 0), 1), "")) -> JAM | O25: =IF(F25="", "", INDEX(DEFN!$A$13:$X$82, MATCH($A25, DEFN!$A$13:$A$82, 0), MATCH(O$10, DEFN!$A$12:$X$12, 0))) -> Total | P25: =IF(G25="", "", INDEX(DEFN!$A$13:$X$82, MATCH($A25, DEFN!$A$13:$A$82, 0), MATCH(P$10, DEFN!$A$12:$X$12, 0))) -> User Defined | Q25: =IF(G25="", 0, INDEX(DEFN!$A$13:$X$82, MATCH($A25, DEFN!$A$13:$A$82, 0), MATCH(Q$10, DEFN!$A$12:$X$12, 0))) -> 5 | R25: =IFERROR(IF($I25="None", 1, IF($I25="All Capacity", SUMIFS(SID!Y$12:Y$28511, SID!$L$12:$L$28511, $M25, SID!$I$12:$I$28511, $K25), IF($I25="All Generation", SUMIFS(SID!Y$12:Y$28511, SID!$L$12:$L$28511, $M25, SID!$I$12:$I$28511, $K25), SUMIFS(SID!Y$12:Y$28511, SID!$L$12:$L$28511, $M25, SID!$F$12:$F$28511, $I25)))), 1) -> 1 | S25: =IF(AND(LEFT(G25, 6)="Growth", J25<>"None"), X25, IF(Y25=0, IF(O25="Average", IFERROR(AVERAGEIFS(SID!Y$12:Y$28511, SID!$F$12:$F$28511, $G25, SID!$C$12:$C$28511, $D25, SID!$L$12:$L$28511, $M25, SID!$Z$12:$Z$28511, 0), 0), IFERROR(SUMIFS(SID!Y$12:Y$28511, SID!$F$12:$F$28511, $G25, SID!$C$12:$C$28511, $D25, SID!$L$12:$L$28511, $M25, SID!$Z$12:$Z$28511, 0), 0)), Y25)) -> 71.26688256 | T25: 2.001213746 | U25: 5 | V25: 40.02427492 | W25: 2.001213746 | X25: =IF(OR(LEFT($J25, 16)="Clean energy inv", LEFT($J25, 16)="Electrified heat", LEFT($J25, 16)="Electrified vehi"), IF(OR(Z25=0, AA25=0), 0, AA25/Z25-1), IF(J25="None", 0, IFERROR(SUMIFS(SID!Y$12:Y$28511, SID!$F$12:$F$28511, J25, SID!$L$12:$L$28511, M25, SID!$Z$12:$Z$28511, 0)/SUMIFS(SID!X$12:X$28511, SID!$F$12:$F$28511, J25, SID!$L$12:$L$28511, M25, SID!$Z$12:$Z$28511, 0) - 1, 0))) -> 0 | Y25: =IF(OR(LEFT($G25, 16)="Clean energy inv", LEFT($G25, 16)="Electrified heat", LEFT($G25, 16)="Electrified vehi"), SUMIFS(INV!$E$3:$E$3003, INV!$C$3:$C$3003, $N25, INV!$A$3:$A$3003, $D25, INV!$D$3:$D$3003, ">="& int_InvStartYear, INV!$D$3:$D$3003, "<="& int_Year), 0) -> 0 | Z25: =IF(OR(LEFT($J25, 16)="Clean energy inv", LEFT($J25, 16)="Electrified heat", LEFT($J25, 16)="Electrified vehi"), SUMIFS(INV!$E$3:$E$3003, INV!$C$3:$C$3003, $N25, INV!$A$3:$A$3003, $D25, INV!$D$3:$D$3003, ">="& int_InvStartYear, INV!$D$3:$D$3003, "<="& int_Year-1), 0) -> 0 | AA25: =IF(OR(LEFT($J25, 16)="Clean energy inv", LEFT($J25, 16)="Electrified heat", LEFT($J25, 16)="Electrified vehi"), SUMIFS(INV!$E$3:$E$3003, INV!$C$3:$C$3003, $N25, INV!$A$3:$A$3003, $D25, INV!$D$3:$D$3003, ">="& int_InvStartYear, INV!$D$3:$D$3003, "<="& int_Year), 0) -> 0 | AB25: Power - Policy - Renewable energy | AC25: Power - Policy - Renewable energy > Jamaica | AD25: Off-Grid | AE25: =IF(ISNUMBER(MATCH($M25, DEFN!A$442:A$599, 0)), AE$10, "") ->  | AF25: =IF(ISNUMBER(MATCH($M25, DEFN!B$442:B$599, 0)), AF$10, "") -> Off-grid | AG25: =IF(ISNUMBER(MATCH($M25, DEFN!C$442:C$599, 0)), AG$10, "") ->  | AH25: =IF(ISNUMBER(MATCH($M25, DEFN!D$442:D$599, 0)), AH$10, "") -> Non-Flexibility | AI25: =IF(ISNUMBER(MATCH($M25, DEFN!E$442:E$599, 0)), AI$10, "") ->  | AJ25: =IF(ISNUMBER(MATCH($M25, DEFN!F$442:F$599, 0)), AJ$10, "") -> Non-Heating | AK25: Off-grid Non-Flexibility Non-Heating | AL25: =IFERROR(INDEX(WEIGHTS!$B$6:$H$6, 1, MATCH(IND!$AK25, WEIGHTS!$AD$5:$AJ$5, 0)), "") -> 5 | AM25: =IF(str_Sector_RANK="Default", IFERROR(INDEX(WEIGHTS!$B$16:$H$64, MATCH($D25, WEIGHTS!$I$16:$I$64, 0), $AL25), 0), IF(str_Sector_RANK="Custom", IFERROR(INDEX(RANKING!$P$5:$P$7, MATCH(D25, RANKING!$O$5:$O$7, 0), 1), 0), IF(D25=str_Sector_RANK,1,0))) -> 1 | AN25: =IF(str_Parameter_RANK="Default", IFERROR(INDEX(WEIGHTS!$K$16:$Q$64, MATCH($D25&" > "&$E25, WEIGHTS!$R$16:$R$64, 0), $AL25), 0), IF(str_Parameter_RANK="Custom", IFERROR(INDEX(RANKING!$R$5:$R$7, MATCH(E25, RANKING!$Q$5:$Q$7, 0), 1), 0), IF(E25=str_Parameter_RANK,1,0))) -> 0.5 | AO25: =IFERROR(INDEX(WEIGHTS!$T$16:$Z$64, MATCH($D25&" > "&$E25&" > "&$F25, WEIGHTS!$AA$16:$AA$64, 0), $AL25), 0) -> 0.3 | AP25: =IFERROR(INDEX(DEFN!$Q$13:$W$82, MATCH(AB25, DEFN!$X$13:$X$82, 0), MATCH(AK25, DEFN!$Q$10:$W$10, 0)), 0) -> 1 | AQ25: 1 | AR25: 0.15 | AS25: 0.3001820619
A26: 1 | B26: 16 | C26: =IFERROR(INDEX(DEFN!$A$13:$X$82, MATCH($A26, DEFN!$A$13:$A$82, 0), MATCH(C$10, DEFN!$A$12:$X$12, 0)), "") -> Policy - Renewable energy | D26: =IF(F26="", "", INDEX(DEFN!$A$13:$X$82, MATCH($A26, DEFN!$A$13:$A$82, 0), MATCH(D$10, DEFN!$A$12:$X$12, 0))) -> Power | E26: =IF(G26="", "", INDEX(DEFN!$A$13:$X$82, MATCH($A26, DEFN!$A$13:$A$82, 0), MATCH(E$10, DEFN!$A$12:$X$12, 0))) -> Fundamentals | F26: =IF(G26="", "", INDEX(DEFN!$A$13:$X$82, MATCH($A26, DEFN!$A$13:$A$82, 0), MATCH(F$10, DEFN!$A$12:$X$12, 0))) -> Policy - Renewable energy | G26: =IFERROR(INDEX(DEFN!$A$13:$X$82, MATCH($A26, DEFN!$A$13:$A$82, 0), MATCH(C$10, DEFN!$A$12:$X$12, 0)), "") -> Policy - Renewable energy | H26: =IF(G26="", "", INDEX(DEFN!$A$13:$X$82, MATCH($A26, DEFN!$A$13:$A$82, 0), MATCH(H$10, DEFN!$A$12:$X$12, 0))) -> No | I26: =IF(G26="", "", INDEX(DEFN!$A$13:$X$82, MATCH($A26, DEFN!$A$13:$A$82, 0), MATCH(I$10, DEFN!$A$12:$X$12, 0))) -> None | J26: =IF(G26="", "", INDEX(DEFN!$A$13:$X$82, MATCH($A26, DEFN!$A$13:$A$82, 0), MATCH(J$10, DEFN!$A$12:$X$12, 0))) -> None | K26: =IF(G26="", "", INDEX(DEFN!$A$13:$X$82, MATCH($A26, DEFN!$A$13:$A$82, 0), MATCH(K$10, DEFN!$A$12:$X$12, 0))) -> Policies | L26: =IF(G26="", "", INDEX(DEFN!B$278:B$427, MATCH($B26, DEFN!$A$278:$A$427, 0), 1)) -> Americas | M26: =IF(G26="", "", INDEX(DEFN!C$278:C$427, MATCH($B26, DEFN!$A$278:$A$427, 0), 1)) -> Mexico | N26: =IF(G26="", "", IFERROR(INDEX(DEFN!$E$278:$E$427, MATCH(M26, DEFN!$C$278:$C$427, 0), 1), "")) -> MEX | O26: =IF(F26="", "", INDEX(DEFN!$A$13:$X$82, MATCH($A26, DEFN!$A$13:$A$82, 0), MATCH(O$10, DEFN!$A$12:$X$12, 0))) -> Total | P26: =IF(G26="", "", INDEX(DEFN!$A$13:$X$82, MATCH($A26, DEFN!$A$13:$A$82, 0), MATCH(P$10, DEFN!$A$12:$X$12, 0))) -> User Defined | Q26: =IF(G26="", 0, INDEX(DEFN!$A$13:$X$82, MATCH($A26, DEFN!$A$13:$A$82, 0), MATCH(Q$10, DEFN!$A$12:$X$12, 0))) -> 5 | R26: =IFERROR(IF($I26="None", 1, IF($I26="All Capacity", SUMIFS(SID!Y$12:Y$28511, SID!$L$12:$L$28511, $M26, SID!$I$12:$I$28511, $K26), IF($I26="All Generation", SUMIFS(SID!Y$12:Y$28511, SID!$L$12:$L$28511, $M26, SID!$I$12:$I$28511, $K26), SUMIFS(SID!Y$12:Y$28511, SID!$L$12:$L$28511, $M26, SID!$F$12:$F$28511, $I26)))), 1) -> 1 | S26: =IF(AND(LEFT(G26, 6)="Growth", J26<>"None"), X26, IF(Y26=0, IF(O26="Average", IFERROR(AVERAGEIFS(SID!Y$12:Y$28511, SID!$F$12:$F$28511, $G26, SID!$C$12:$C$28511, $D26, SID!$L$12:$L$28511, $M26, SID!$Z$12:$Z$28511, 0), 0), IFERROR(SUMIFS(SID!Y$12:Y$28511, SID!$F$12:$F$28511, $G26, SID!$C$12:$C$28511, $D26, SID!$L$12:$L$28511, $M26, SID!$Z$12:$Z$28511, 0), 0)), Y26)) -> 86.75250608 | T26: 2.437729782 | U26: 5 | V26: 48.75459563 | W26: 2.437729782 | X26: =IF(OR(LEFT($J26, 16)="Clean energy inv", LEFT($J26, 16)="Electrified heat", LEFT($J26, 16)="Electrified vehi"), IF(OR(Z26=0, AA26=0), 0, AA26/Z26-1), IF(J26="None", 0, IFERROR(SUMIFS(SID!Y$12:Y$28511, SID!$F$12:$F$28511, J26, SID!$L$12:$L$28511, M26, SID!$Z$12:$Z$28511, 0)/SUMIFS(SID!X$12:X$28511, SID!$F$12:$F$28511, J26, SID!$L$12:$L$28511, M26, SID!$Z$12:$Z$28511, 0) - 1, 0))) -> 0 | Y26: =IF(OR(LEFT($G26, 16)="Clean energy inv", LEFT($G26, 16)="Electrified heat", LEFT($G26, 16)="Electrified vehi"), SUMIFS(INV!$E$3:$E$3003, INV!$C$3:$C$3003, $N26, INV!$A$3:$A$3003, $D26, INV!$D$3:$D$3003, ">="& int_InvStartYear, INV!$D$3:$D$3003, "<="& int_Year), 0) -> 0 | Z26: =IF(OR(LEFT($J26, 16)="Clean energy inv", LEFT($J26, 16)="Electrified heat", LEFT($J26, 16)="Electrified vehi"), SUMIFS(INV!$E$3:$E$3003, INV!$C$3:$C$3003, $N26, INV!$A$3:$A$3003, $D26, INV!$D$3:$D$3003, ">="& int_InvStartYear, INV!$D$3:$D$3003, "<="& int_Year-1), 0) -> 0 | AA26: =IF(OR(LEFT($J26, 16)="Clean energy inv", LEFT($J26, 16)="Electrified heat", LEFT($J26, 16)="Electrified vehi"), SUMIFS(INV!$E$3:$E$3003, INV!$C$3:$C$3003, $N26, INV!$A$3:$A$3003, $D26, INV!$D$3:$D$3003, ">="& int_InvStartYear, INV!$D$3:$D$3003, "<="& int_Year), 0) -> 0 | AB26: Power - Policy - Renewable energy | AC26: Power - Policy - Renewable energy > Mexico | AD26: On-Grid | AE26: =IF(ISNUMBER(MATCH($M26, DEFN!A$442:A$599, 0)), AE$10, "") -> On-grid | AF26: =IF(ISNUMBER(MATCH($M26, DEFN!B$442:B$599, 0)), AF$10, "") ->  | AG26: =IF(ISNUMBER(MATCH($M26, DEFN!C$442:C$599, 0)), AG$10, "") ->  | AH26: =IF(ISNUMBER(MATCH($M26, DEFN!D$442:D$599, 0)), AH$10, "") -> Non-Flexibility | AI26: =IF(ISNUMBER(MATCH($M26, DEFN!E$442:E$599, 0)), AI$10, "") ->  | AJ26: =IF(ISNUMBER(MATCH($M26, DEFN!F$442:F$599, 0)), AJ$10, "") -> Non-Heating | AK26: On-grid Non-Flexibility Non-Heating | AL26: =IFERROR(INDEX(WEIGHTS!$B$6:$H$6, 1, MATCH(IND!$AK26, WEIGHTS!$AD$5:$AJ$5, 0)), "") -> 1 | AM26: =IF(str_Sector_RANK="Default", IFERROR(INDEX(WEIGHTS!$B$16:$H$64, MATCH($D26, WEIGHTS!$I$16:$I$64, 0), $AL26), 0), IF(str_Sector_RANK="Custom", IFERROR(INDEX(RANKING!$P$5:$P$7, MATCH(D26, RANKING!$O$5:$O$7, 0), 1), 0), IF(D26=str_Sector_RANK,1,0))) -> 1 | AN26: =IF(str_Parameter_RANK="Default", IFERROR(INDEX(WEIGHTS!$K$16:$Q$64, MATCH($D26&" > "&$E26, WEIGHTS!$R$16:$R$64, 0), $AL26), 0), IF(str_Parameter_RANK="Custom", IFERROR(INDEX(RANKING!$R$5:$R$7, MATCH(E26, RANKING!$Q$5:$Q$7, 0), 1), 0), IF(E26=str_Parameter_RANK,1,0))) -> 0.5 | AO26: =IFERROR(INDEX(WEIGHTS!$T$16:$Z$64, MATCH($D26&" > "&$E26&" > "&$F26, WEIGHTS!$AA$16:$AA$64, 0), $AL26), 0) -> 0.4 | AP26: =IFERROR(INDEX(DEFN!$Q$13:$W$82, MATCH(AB26, DEFN!$X$13:$X$82, 0), MATCH(AK26, DEFN!$Q$10:$W$10, 0)), 0) -> 1 | AQ26: 1 | AR26: 0.2 | AS26: 0.4875459563
A27: 1 | B27: 17 | C27: =IFERROR(INDEX(DEFN!$A$13:$X$82, MATCH($A27, DEFN!$A$13:$A$82, 0), MATCH(C$10, DEFN!$A$12:$X$12, 0)), "") -> Policy - Renewable energy | D27: =IF(F27="", "", INDEX(DEFN!$A$13:$X$82, MATCH($A27, DEFN!$A$13:$A$82, 0), MATCH(D$10, DEFN!$A$12:$X$12, 0))) -> Power | E27: =IF(G27="", "", INDEX(DEFN!$A$13:$X$82, MATCH($A27, DEFN!$A$13:$A$82, 0), MATCH(E$10, DEFN!$A$12:$X$12, 0))) -> Fundamentals | F27: =IF(G27="", "", INDEX(DEFN!$A$13:$X$82, MATCH($A27, DEFN!$A$13:$A$82, 0), MATCH(F$10, DEFN!$A$12:$X$12, 0))) -> Policy - Renewable energy | G27: =IFERROR(INDEX(DEFN!$A$13:$X$82, MATCH($A27, DEFN!$A$13:$A$82, 0), MATCH(C$10, DEFN!$A$12:$X$12, 0)), "") -> Policy - Renewable energy | H27: =IF(G27="", "", INDEX(DEFN!$A$13:$X$82, MATCH($A27, DEFN!$A$13:$A$82, 0), MATCH(H$10, DEFN!$A$12:$X$12, 0))) -> No | I27: =IF(G27="", "", INDEX(DEFN!$A$13:$X$82, MATCH($A27, DEFN!$A$13:$A$82, 0), MATCH(I$10, DEFN!$A$12:$X$12, 0))) -> None | J27: =IF(G27="", "", INDEX(DEFN!$A$13:$X$82, MATCH($A27, DEFN!$A$13:$A$82, 0), MATCH(J$10, DEFN!$A$12:$X$12, 0))) -> None | K27: =IF(G27="", "", INDEX(DEFN!$A$13:$X$82, MATCH($A27, DEFN!$A$13:$A$82, 0), MATCH(K$10, DEFN!$A$12:$X$12, 0))) -> Policies | L27: =IF(G27="", "", INDEX(DEFN!B$278:B$427, MATCH($B27, DEFN!$A$278:$A$427, 0), 1)) -> Americas | M27: =IF(G27="", "", INDEX(DEFN!C$278:C$427, MATCH($B27, DEFN!$A$278:$A$427, 0), 1)) -> Nicaragua | N27: =IF(G27="", "", IFERROR(INDEX(DEFN!$E$278:$E$427, MATCH(M27, DEFN!$C$278:$C$427, 0), 1), "")) -> NIC | O27: =IF(F27="", "", INDEX(DEFN!$A$13:$X$82, MATCH($A27, DEFN!$A$13:$A$82, 0), MATCH(O$10, DEFN!$A$12:$X$12, 0))) -> Total | P27: =IF(G27="", "", INDEX(DEFN!$A$13:$X$82, MATCH($A27, DEFN!$A$13:$A$82, 0), MATCH(P$10, DEFN!$A$12:$X$12, 0))) -> User Defined | Q27: =IF(G27="", 0, INDEX(DEFN!$A$13:$X$82, MATCH($A27, DEFN!$A$13:$A$82, 0), MATCH(Q$10, DEFN!$A$12:$X$12, 0))) -> 5 | R27: =IFERROR(IF($I27="None", 1, IF($I27="All Capacity", SUMIFS(SID!Y$12:Y$28511, SID!$L$12:$L$28511, $M27, SID!$I$12:$I$28511, $K27), IF($I27="All Generation", SUMIFS(SID!Y$12:Y$28511, SID!$L$12:$L$28511, $M27, SID!$I$12:$I$28511, $K27), SUMIFS(SID!Y$12:Y$28511, SID!$L$12:$L$28511, $M27, SID!$F$12:$F$28511, $I27)))), 1) -> 1 | S27: =IF(AND(LEFT(G27, 6)="Growth", J27<>"None"), X27, IF(Y27=0, IF(O27="Average", IFERROR(AVERAGEIFS(SID!Y$12:Y$28511, SID!$F$12:$F$28511, $G27, SID!$C$12:$C$28511, $D27, SID!$L$12:$L$28511, $M27, SID!$Z$12:$Z$28511, 0), 0), IFERROR(SUMIFS(SID!Y$12:Y$28511, SID!$F$12:$F$28511, $G27, SID!$C$12:$C$28511, $D27, SID!$L$12:$L$28511, $M27, SID!$Z$12:$Z$28511, 0), 0)), Y27)) -> 54.24835262 | T27: 1.503681753 | U27: 5 | V27: 30.07363507 | W27: 1.503681753 | X27: =IF(OR(LEFT($J27, 16)="Clean energy inv", LEFT($J27, 16)="Electrified heat", LEFT($J27, 16)="Electrified vehi"), IF(OR(Z27=0, AA27=0), 0, AA27/Z27-1), IF(J27="None", 0, IFERROR(SUMIFS(SID!Y$12:Y$28511, SID!$F$12:$F$28511, J27, SID!$L$12:$L$28511, M27, SID!$Z$12:$Z$28511, 0)/SUMIFS(SID!X$12:X$28511, SID!$F$12:$F$28511, J27, SID!$L$12:$L$28511, M27, SID!$Z$12:$Z$28511, 0) - 1, 0))) -> 0 | Y27: =IF(OR(LEFT($G27, 16)="Clean energy inv", LEFT($G27, 16)="Electrified heat", LEFT($G27, 16)="Electrified vehi"), SUMIFS(INV!$E$3:$E$3003, INV!$C$3:$C$3003, $N27, INV!$A$3:$A$3003, $D27, INV!$D$3:$D$3003, ">="& int_InvStartYear, INV!$D$3:$D$3003, "<="& int_Year), 0) -> 0 | Z27: =IF(OR(LEFT($J27, 16)="Clean energy inv", LEFT($J27, 16)="Electrified heat", LEFT($J27, 16)="Electrified vehi"), SUMIFS(INV!$E$3:$E$3003, INV!$C$3:$C$3003, $N27, INV!$A$3:$A$3003, $D27, INV!$D$3:$D$3003, ">="& int_InvStartYear, INV!$D$3:$D$3003, "<="& int_Year-1), 0) -> 0 | AA27: =IF(OR(LEFT($J27, 16)="Clean energy inv", LEFT($J27, 16)="Electrified heat", LEFT($J27, 16)="Electrified vehi"), SUMIFS(INV!$E$3:$E$3003, INV!$C$3:$C$3003, $N27, INV!$A$3:$A$3003, $D27, INV!$D$3:$D$3003, ">="& int_InvStartYear, INV!$D$3:$D$3003, "<="& int_Year), 0) -> 0 | AB27: Power - Policy - Renewable energy | AC27: Power - Policy - Renewable energy > Nicaragua | AD27: Off-Grid | AE27: =IF(ISNUMBER(MATCH($M27, DEFN!A$442:A$599, 0)), AE$10, "") ->  | AF27: =IF(ISNUMBER(MATCH($M27, DEFN!B$442:B$599, 0)), AF$10, "") -> Off-grid | AG27: =IF(ISNUMBER(MATCH($M27, DEFN!C$442:C$599, 0)), AG$10, "") -> Flexibility | AH27: =IF(ISNUMBER(MATCH($M27, DEFN!D$442:D$599, 0)), AH$10, "") ->  | AI27: =IF(ISNUMBER(MATCH($M27, DEFN!E$442:E$599, 0)), AI$10, "") ->  | AJ27: =IF(ISNUMBER(MATCH($M27, DEFN!F$442:F$599, 0)), AJ$10, "") -> Non-Heating | AK27: Off-grid Flexibility Non-Heating | AL27: =IFERROR(INDEX(WEIGHTS!$B$6:$H$6, 1, MATCH(IND!$AK27, WEIGHTS!$AD$5:$AJ$5, 0)), "") -> 6 | AM27: =IF(str_Sector_RANK="Default", IFERROR(INDEX(WEIGHTS!$B$16:$H$64, MATCH($D27, WEIGHTS!$I$16:$I$64, 0), $AL27), 0), IF(str_Sector_RANK="Custom", IFERROR(INDEX(RANKING!$P$5:$P$7, MATCH(D27, RANKING!$O$5:$O$7, 0), 1), 0), IF(D27=str_Sector_RANK,1,0))) -> 1 | AN27: =IF(str_Parameter_RANK="Default", IFERROR(INDEX(WEIGHTS!$K$16:$Q$64, MATCH($D27&" > "&$E27, WEIGHTS!$R$16:$R$64, 0), $AL27), 0), IF(str_Parameter_RANK="Custom", IFERROR(INDEX(RANKING!$R$5:$R$7, MATCH(E27, RANKING!$Q$5:$Q$7, 0), 1), 0), IF(E27=str_Parameter_RANK,1,0))) -> 0.5 | AO27: =IFERROR(INDEX(WEIGHTS!$T$16:$Z$64, MATCH($D27&" > "&$E27&" > "&$F27, WEIGHTS!$AA$16:$AA$64, 0), $AL27), 0) -> 0.25 | AP27: =IFERROR(INDEX(DEFN!$Q$13:$W$82, MATCH(AB27, DEFN!$X$13:$X$82, 0), MATCH(AK27, DEFN!$Q$10:$W$10, 0)), 0) -> 1 | AQ27: 1 | AR27: 0.125 | AS27: 0.1879602192
A28: 1 | B28: 18 | C28: =IFERROR(INDEX(DEFN!$A$13:$X$82, MATCH($A28, DEFN!$A$13:$A$82, 0), MATCH(C$10, DEFN!$A$12:$X$12, 0)), "") -> Policy - Renewable energy | D28: =IF(F28="", "", INDEX(DEFN!$A$13:$X$82, MATCH($A28, DEFN!$A$13:$A$82, 0), MATCH(D$10, DEFN!$A$12:$X$12, 0))) -> Power | E28: =IF(G28="", "", INDEX(DEFN!$A$13:$X$82, MATCH($A28, DEFN!$A$13:$A$82, 0), MATCH(E$10, DEFN!$A$12:$X$12, 0))) -> Fundamentals | F28: =IF(G28="", "", INDEX(DEFN!$A$13:$X$82, MATCH($A28, DEFN!$A$13:$A$82, 0), MATCH(F$10, DEFN!$A$12:$X$12, 0))) -> Policy - Renewable energy | G28: =IFERROR(INDEX(DEFN!$A$13:$X$82, MATCH($A28, DEFN!$A$13:$A$82, 0), MATCH(C$10, DEFN!$A$12:$X$12, 0)), "") -> Policy - Renewable energy | H28: =IF(G28="", "", INDEX(DEFN!$A$13:$X$82, MATCH($A28, DEFN!$A$13:$A$82, 0), MATCH(H$10, DEFN!$A$12:$X$12, 0))) -> No | I28: =IF(G28="", "", INDEX(DEFN!$A$13:$X$82, MATCH($A28, DEFN!$A$13:$A$82, 0), MATCH(I$10, DEFN!$A$12:$X$12, 0))) -> None | J28: =IF(G28="", "", INDEX(DEFN!$A$13:$X$82, MATCH($A28, DEFN!$A$13:$A$82, 0), MATCH(J$10, DEFN!$A$12:$X$12, 0))) -> None | K28: =IF(G28="", "", INDEX(DEFN!$A$13:$X$82, MATCH($A28, DEFN!$A$13:$A$82, 0), MATCH(K$10, DEFN!$A$12:$X$12, 0))) -> Policies | L28: =IF(G28="", "", INDEX(DEFN!B$278:B$427, MATCH($B28, DEFN!$A$278:$A$427, 0), 1)) -> Americas | M28: =IF(G28="", "", INDEX(DEFN!C$278:C$427, MATCH($B28, DEFN!$A$278:$A$427, 0), 1)) -> Panama | N28: =IF(G28="", "", IFERROR(INDEX(DEFN!$E$278:$E$427, MATCH(M28, DEFN!$C$278:$C$427, 0), 1), "")) -> PAN | O28: =IF(F28="", "", INDEX(DEFN!$A$13:$X$82, MATCH($A28, DEFN!$A$13:$A$82, 0), MATCH(O$10, DEFN!$A$12:$X$12, 0))) -> Total | P28: =IF(G28="", "", INDEX(DEFN!$A$13:$X$82, MATCH($A28, DEFN!$A$13:$A$82, 0), MATCH(P$10, DEFN!$A$12:$X$12, 0))) -> User Defined | Q28: =IF(G28="", 0, INDEX(DEFN!$A$13:$X$82, MATCH($A28, DEFN!$A$13:$A$82, 0), MATCH(Q$10, DEFN!$A$12:$X$12, 0))) -> 5 | R28: =IFERROR(IF($I28="None", 1, IF($I28="All Capacity", SUMIFS(SID!Y$12:Y$28511, SID!$L$12:$L$28511, $M28, SID!$I$12:$I$28511, $K28), IF($I28="All Generation", SUMIFS(SID!Y$12:Y$28511, SID!$L$12:$L$28511, $M28, SID!$I$12:$I$28511, $K28), SUMIFS(SID!Y$12:Y$28511, SID!$L$12:$L$28511, $M28, SID!$F$12:$F$28511, $I28)))), 1) -> 1 | S28: =IF(AND(LEFT(G28, 6)="Growth", J28<>"None"), X28, IF(Y28=0, IF(O28="Average", IFERROR(AVERAGEIFS(SID!Y$12:Y$28511, SID!$F$12:$F$28511, $G28, SID!$C$12:$C$28511, $D28, SID!$L$12:$L$28511, $M28, SID!$Z$12:$Z$28511, 0), 0), IFERROR(SUMIFS(SID!Y$12:Y$28511, SID!$F$12:$F$28511, $G28, SID!$C$12:$C$28511, $D28, SID!$L$12:$L$28511, $M28, SID!$Z$12:$Z$28511, 0), 0)), Y28)) -> 84.88971932 | T28: 2.3599564 | U28: 5 | V28: 47.19912799 | W28: 2.3599564 | X28: =IF(OR(LEFT($J28, 16)="Clean energy inv", LEFT($J28, 16)="Electrified heat", LEFT($J28, 16)="Electrified vehi"), IF(OR(Z28=0, AA28=0), 0, AA28/Z28-1), IF(J28="None", 0, IFERROR(SUMIFS(SID!Y$12:Y$28511, SID!$F$12:$F$28511, J28, SID!$L$12:$L$28511, M28, SID!$Z$12:$Z$28511, 0)/SUMIFS(SID!X$12:X$28511, SID!$F$12:$F$28511, J28, SID!$L$12:$L$28511, M28, SID!$Z$12:$Z$28511, 0) - 1, 0))) -> 0 | Y28: =IF(OR(LEFT($G28, 16)="Clean energy inv", LEFT($G28, 16)="Electrified heat", LEFT($G28, 16)="Electrified vehi"), SUMIFS(INV!$E$3:$E$3003, INV!$C$3:$C$3003, $N28, INV!$A$3:$A$3003, $D28, INV!$D$3:$D$3003, ">="& int_InvStartYear, INV!$D$3:$D$3003, "<="& int_Year), 0) -> 0 | Z28: =IF(OR(LEFT($J28, 16)="Clean energy inv", LEFT($J28, 16)="Electrified heat", LEFT($J28, 16)="Electrified vehi"), SUMIFS(INV!$E$3:$E$3003, INV!$C$3:$C$3003, $N28, INV!$A$3:$A$3003, $D28, INV!$D$3:$D$3003, ">="& int_InvStartYear, INV!$D$3:$D$3003, "<="& int_Year-1), 0) -> 0 | AA28: =IF(OR(LEFT($J28, 16)="Clean energy inv", LEFT($J28, 16)="Electrified heat", LEFT($J28, 16)="Electrified vehi"), SUMIFS(INV!$E$3:$E$3003, INV!$C$3:$C$3003, $N28, INV!$A$3:$A$3003, $D28, INV!$D$3:$D$3003, ">="& int_InvStartYear, INV!$D$3:$D$3003, "<="& int_Year), 0) -> 0 | AB28: Power - Policy - Renewable energy | AC28: Power - Policy - Renewable energy > Panama | AD28: Off-Grid | AE28: =IF(ISNUMBER(MATCH($M28, DEFN!A$442:A$599, 0)), AE$10, "") ->  | AF28: =IF(ISNUMBER(MATCH($M28, DEFN!B$442:B$599, 0)), AF$10, "") -> Off-grid | AG28: =IF(ISNUMBER(MATCH($M28, DEFN!C$442:C$599, 0)), AG$10, "") ->  | AH28: =IF(ISNUMBER(MATCH($M28, DEFN!D$442:D$599, 0)), AH$10, "") -> Non-Flexibility | AI28: =IF(ISNUMBER(MATCH($M28, DEFN!E$442:E$599, 0)), AI$10, "") ->  | AJ28: =IF(ISNUMBER(MATCH($M28, DEFN!F$442:F$599, 0)), AJ$10, "") -> Non-Heating | AK28: Off-grid Non-Flexibility Non-Heating | AL28: =IFERROR(INDEX(WEIGHTS!$B$6:$H$6, 1, MATCH(IND!$AK28, WEIGHTS!$AD$5:$AJ$5, 0)), "") -> 5 | AM28: =IF(str_Sector_RANK="Default", IFERROR(INDEX(WEIGHTS!$B$16:$H$64, MATCH($D28, WEIGHTS!$I$16:$I$64, 0), $AL28), 0), IF(str_Sector_RANK="Custom", IFERROR(INDEX(RANKING!$P$5:$P$7, MATCH(D28, RANKING!$O$5:$O$7, 0), 1), 0), IF(D28=str_Sector_RANK,1,0))) -> 1 | AN28: =IF(str_Parameter_RANK="Default", IFERROR(INDEX(WEIGHTS!$K$16:$Q$64, MATCH($D28&" > "&$E28, WEIGHTS!$R$16:$R$64, 0), $AL28), 0), IF(str_Parameter_RANK="Custom", IFERROR(INDEX(RANKING!$R$5:$R$7, MATCH(E28, RANKING!$Q$5:$Q$7, 0), 1), 0), IF(E28=str_Parameter_RANK,1,0))) -> 0.5 | AO28: =IFERROR(INDEX(WEIGHTS!$T$16:$Z$64, MATCH($D28&" > "&$E28&" > "&$F28, WEIGHTS!$AA$16:$AA$64, 0), $AL28), 0) -> 0.3 | AP28: =IFERROR(INDEX(DEFN!$Q$13:$W$82, MATCH(AB28, DEFN!$X$13:$X$82, 0), MATCH(AK28, DEFN!$Q$10:$W$10, 0)), 0) -> 1 | AQ28: 1 | AR28: 0.15 | AS28: 0.3539934599
A29: 1 | B29: 19 | C29: =IFERROR(INDEX(DEFN!$A$13:$X$82, MATCH($A29, DEFN!$A$13:$A$82, 0), MATCH(C$10, DEFN!$A$12:$X$12, 0)), "") -> Policy - Renewable energy | D29: =IF(F29="", "", INDEX(DEFN!$A$13:$X$82, MATCH($A29, DEFN!$A$13:$A$82, 0), MATCH(D$10, DEFN!$A$12:$X$12, 0))) -> Power | E29: =IF(G29="", "", INDEX(DEFN!$A$13:$X$82, MATCH($A29, DEFN!$A$13:$A$82, 0), MATCH(E$10, DEFN!$A$12:$X$12, 0))) -> Fundamentals | F29: =IF(G29="", "", INDEX(DEFN!$A$13:$X$82, MATCH($A29, DEFN!$A$13:$A$82, 0), MATCH(F$10, DEFN!$A$12:$X$12, 0))) -> Policy - Renewable energy | G29: =IFERROR(INDEX(DEFN!$A$13:$X$82, MATCH($A29, DEFN!$A$13:$A$82, 0), MATCH(C$10, DEFN!$A$12:$X$12, 0)), "") -> Policy - Renewable energy | H29: =IF(G29="", "", INDEX(DEFN!$A$13:$X$82, MATCH($A29, DEFN!$A$13:$A$82, 0), MATCH(H$10, DEFN!$A$12:$X$12, 0))) -> No | I29: =IF(G29="", "", INDEX(DEFN!$A$13:$X$82, MATCH($A29, DEFN!$A$13:$A$82, 0), MATCH(I$10, DEFN!$A$12:$X$12, 0))) -> None | J29: =IF(G29="", "", INDEX(DEFN!$A$13:$X$82, MATCH($A29, DEFN!$A$13:$A$82, 0), MATCH(J$10, DEFN!$A$12:$X$12, 0))) -> None | K29: =IF(G29="", "", INDEX(DEFN!$A$13:$X$82, MATCH($A29, DEFN!$A$13:$A$82, 0), MATCH(K$10, DEFN!$A$12:$X$12, 0))) -> Policies | L29: =IF(G29="", "", INDEX(DEFN!B$278:B$427, MATCH($B29, DEFN!$A$278:$A$427, 0), 1)) -> Americas | M29: =IF(G29="", "", INDEX(DEFN!C$278:C$427, MATCH($B29, DEFN!$A$278:$A$427, 0), 1)) -> Paraguay | N29: =IF(G29="", "", IFERROR(INDEX(DEFN!$E$278:$E$427, MATCH(M29, DEFN!$C$278:$C$427, 0), 1), "")) -> PRY | O29: =IF(F29="", "", INDEX(DEFN!$A$13:$X$82, MATCH($A29, DEFN!$A$13:$A$82, 0), MATCH(O$10, DEFN!$A$12:$X$12, 0))) -> Total | P29: =IF(G29="", "", INDEX(DEFN!$A$13:$X$82, MATCH($A29, DEFN!$A$13:$A$82, 0), MATCH(P$10, DEFN!$A$12:$X$12, 0))) -> User Defined | Q29: =IF(G29="", 0, INDEX(DEFN!$A$13:$X$82, MATCH($A29, DEFN!$A$13:$A$82, 0), MATCH(Q$10, DEFN!$A$12:$X$12, 0))) -> 5 | R29: =IFERROR(IF($I29="None", 1, IF($I29="All Capacity", SUMIFS(SID!Y$12:Y$28511, SID!$L$12:$L$28511, $M29, SID!$I$12:$I$28511, $K29), IF($I29="All Generation", SUMIFS(SID!Y$12:Y$28511, SID!$L$12:$L$28511, $M29, SID!$I$12:$I$28511, $K29), SUMIFS(SID!Y$12:Y$28511, SID!$L$12:$L$28511, $M29, SID!$F$12:$F$28511, $I29)))), 1) -> 1 | S29: =IF(AND(LEFT(G29, 6)="Growth", J29<>"None"), X29, IF(Y29=0, IF(O29="Average", IFERROR(AVERAGEIFS(SID!Y$12:Y$28511, SID!$F$12:$F$28511, $G29, SID!$C$12:$C$28511, $D29, SID!$L$12:$L$28511, $M29, SID!$Z$12:$Z$28511, 0), 0), IFERROR(SUMIFS(SID!Y$12:Y$28511, SID!$F$12:$F$28511, $G29, SID!$C$12:$C$28511, $D29, SID!$L$12:$L$28511, $M29, SID!$Z$12:$Z$28511, 0), 0)), Y29)) -> 17.57142855 | T29: 0.5122118802 | U29: 5 | V29: 10.2442376 | W29: 0.5122118802 | X29: =IF(OR(LEFT($J29, 16)="Clean energy inv", LEFT($J29, 16)="Electrified heat", LEFT($J29, 16)="Electrified vehi"), IF(OR(Z29=0, AA29=0), 0, AA29/Z29-1), IF(J29="None", 0, IFERROR(SUMIFS(SID!Y$12:Y$28511, SID!$F$12:$F$28511, J29, SID!$L$12:$L$28511, M29, SID!$Z$12:$Z$28511, 0)/SUMIFS(SID!X$12:X$28511, SID!$F$12:$F$28511, J29, SID!$L$12:$L$28511, M29, SID!$Z$12:$Z$28511, 0) - 1, 0))) -> 0 | Y29: =IF(OR(LEFT($G29, 16)="Clean energy inv", LEFT($G29, 16)="Electrified heat", LEFT($G29, 16)="Electrified vehi"), SUMIFS(INV!$E$3:$E$3003, INV!$C$3:$C$3003, $N29, INV!$A$3:$A$3003, $D29, INV!$D$3:$D$3003, ">="& int_InvStartYear, INV!$D$3:$D$3003, "<="& int_Year), 0) -> 0 | Z29: =IF(OR(LEFT($J29, 16)="Clean energy inv", LEFT($J29, 16)="Electrified heat", LEFT($J29, 16)="Electrified vehi"), SUMIFS(INV!$E$3:$E$3003, INV!$C$3:$C$3003, $N29, INV!$A$3:$A$3003, $D29, INV!$D$3:$D$3003, ">="& int_InvStartYear, INV!$D$3:$D$3003, "<="& int_Year-1), 0) -> 0 | AA29: =IF(OR(LEFT($J29, 16)="Clean energy inv", LEFT($J29, 16)="Electrified heat", LEFT($J29, 16)="Electrified vehi"), SUMIFS(INV!$E$3:$E$3003, INV!$C$3:$C$3003, $N29, INV!$A$3:$A$3003, $D29, INV!$D$3:$D$3003, ">="& int_InvStartYear, INV!$D$3:$D$3003, "<="& int_Year), 0) -> 0 | AB29: Power - Policy - Renewable energy | AC29: Power - Policy - Renewable energy > Paraguay | AD29: On-Grid | AE29: =IF(ISNUMBER(MATCH($M29, DEFN!A$442:A$599, 0)), AE$10, "") -> On-grid | AF29: =IF(ISNUMBER(MATCH($M29, DEFN!B$442:B$599, 0)), AF$10, "") ->  | AG29: =IF(ISNUMBER(MATCH($M29, DEFN!C$442:C$599, 0)), AG$10, "") ->  | AH29: =IF(ISNUMBER(MATCH($M29, DEFN!D$442:D$599, 0)), AH$10, "") -> Non-Flexibility | AI29: =IF(ISNUMBER(MATCH($M29, DEFN!E$442:E$599, 0)), AI$10, "") ->  | AJ29: =IF(ISNUMBER(MATCH($M29, DEFN!F$442:F$599, 0)), AJ$10, "") -> Non-Heating | AK29: On-grid Non-Flexibility Non-Heating | AL29: =IFERROR(INDEX(WEIGHTS!$B$6:$H$6, 1, MATCH(IND!$AK29, WEIGHTS!$AD$5:$AJ$5, 0)), "") -> 1 | AM29: =IF(str_Sector_RANK="Default", IFERROR(INDEX(WEIGHTS!$B$16:$H$64, MATCH($D29, WEIGHTS!$I$16:$I$64, 0), $AL29), 0), IF(str_Sector_RANK="Custom", IFERROR(INDEX(RANKING!$P$5:$P$7, MATCH(D29, RANKING!$O$5:$O$7, 0), 1), 0), IF(D29=str_Sector_RANK,1,0))) -> 1 | AN29: =IF(str_Parameter_RANK="Default", IFERROR(INDEX(WEIGHTS!$K$16:$Q$64, MATCH($D29&" > "&$E29, WEIGHTS!$R$16:$R$64, 0), $AL29), 0), IF(str_Parameter_RANK="Custom", IFERROR(INDEX(RANKING!$R$5:$R$7, MATCH(E29, RANKING!$Q$5:$Q$7, 0), 1), 0), IF(E29=str_Parameter_RANK,1,0))) -> 0.5 | AO29: =IFERROR(INDEX(WEIGHTS!$T$16:$Z$64, MATCH($D29&" > "&$E29&" > "&$F29, WEIGHTS!$AA$16:$AA$64, 0), $AL29), 0) -> 0.4 | AP29: =IFERROR(INDEX(DEFN!$Q$13:$W$82, MATCH(AB29, DEFN!$X$13:$X$82, 0), MATCH(AK29, DEFN!$Q$10:$W$10, 0)), 0) -> 1 | AQ29: 1 | AR29: 0.2 | AS29: 0.102442376
A30: 1 | B30: 20 | C30: =IFERROR(INDEX(DEFN!$A$13:$X$82, MATCH($A30, DEFN!$A$13:$A$82, 0), MATCH(C$10, DEFN!$A$12:$X$12, 0)), "") -> Policy - Renewable energy | D30: =IF(F30="", "", INDEX(DEFN!$A$13:$X$82, MATCH($A30, DEFN!$A$13:$A$82, 0), MATCH(D$10, DEFN!$A$12:$X$12, 0))) -> Power | E30: =IF(G30="", "", INDEX(DEFN!$A$13:$X$82, MATCH($A30, DEFN!$A$13:$A$82, 0), MATCH(E$10, DEFN!$A$12:$X$12, 0))) -> Fundamentals | F30: =IF(G30="", "", INDEX(DEFN!$A$13:$X$82, MATCH($A30, DEFN!$A$13:$A$82, 0), MATCH(F$10, DEFN!$A$12:$X$12, 0))) -> Policy - Renewable energy | G30: =IFERROR(INDEX(DEFN!$A$13:$X$82, MATCH($A30, DEFN!$A$13:$A$82, 0), MATCH(C$10, DEFN!$A$12:$X$12, 0)), "") -> Policy - Renewable energy | H30: =IF(G30="", "", INDEX(DEFN!$A$13:$X$82, MATCH($A30, DEFN!$A$13:$A$82, 0), MATCH(H$10, DEFN!$A$12:$X$12, 0))) -> No | I30: =IF(G30="", "", INDEX(DEFN!$A$13:$X$82, MATCH($A30, DEFN!$A$13:$A$82, 0), MATCH(I$10, DEFN!$A$12:$X$12, 0))) -> None | J30: =IF(G30="", "", INDEX(DEFN!$A$13:$X$82, MATCH($A30, DEFN!$A$13:$A$82, 0), MATCH(J$10, DEFN!$A$12:$X$12, 0))) -> None | K30: =IF(G30="", "", INDEX(DEFN!$A$13:$X$82, MATCH($A30, DEFN!$A$13:$A$82, 0), MATCH(K$10, DEFN!$A$12:$X$12, 0))) -> Policies | L30: =IF(G30="", "", INDEX(DEFN!B$278:B$427, MATCH($B30, DEFN!$A$278:$A$427, 0), 1)) -> Americas | M30: =IF(G30="", "", INDEX(DEFN!C$278:C$427, MATCH($B30, DEFN!$A$278:$A$427, 0), 1)) -> Peru | N30: =IF(G30="", "", IFERROR(INDEX(DEFN!$E$278:$E$427, MATCH(M30, DEFN!$C$278:$C$427, 0), 1), "")) -> PER | O30: =IF(F30="", "", INDEX(DEFN!$A$13:$X$82, MATCH($A30, DEFN!$A$13:$A$82, 0), MATCH(O$10, DEFN!$A$12:$X$12, 0))) -> Total | P30: =IF(G30="", "", INDEX(DEFN!$A$13:$X$82, MATCH($A30, DEFN!$A$13:$A$82, 0), MATCH(P$10, DEFN!$A$12:$X$12, 0))) -> User Defined | Q30: =IF(G30="", 0, INDEX(DEFN!$A$13:$X$82, MATCH($A30, DEFN!$A$13:$A$82, 0), MATCH(Q$10, DEFN!$A$12:$X$12, 0))) -> 5 | R30: =IFERROR(IF($I30="None", 1, IF($I30="All Capacity", SUMIFS(SID!Y$12:Y$28511, SID!$L$12:$L$28511, $M30, SID!$I$12:$I$28511, $K30), IF($I30="All Generation", SUMIFS(SID!Y$12:Y$28511, SID!$L$12:$L$28511, $M30, SID!$I$12:$I$28511, $K30), SUMIFS(SID!Y$12:Y$28511, SID!$L$12:$L$28511, $M30, SID!$F$12:$F$28511, $I30)))), 1) -> 1 | S30: =IF(AND(LEFT(G30, 6)="Growth", J30<>"None"), X30, IF(Y30=0, IF(O30="Average", IFERROR(AVERAGEIFS(SID!Y$12:Y$28511, SID!$F$12:$F$28511, $G30, SID!$C$12:$C$28511, $D30, SID!$L$12:$L$28511, $M30, SID!$Z$12:$Z$28511, 0), 0), IFERROR(SUMIFS(SID!Y$12:Y$28511, SID!$F$12:$F$28511, $G30, SID!$C$12:$C$28511, $D30, SID!$L$12:$L$28511, $M30, SID!$Z$12:$Z$28511, 0), 0)), Y30)) -> 20.81745074 | T30: 0.5864002065 | U30: 5 | V30: 11.72800413 | W30: 0.5864002065 | X30: =IF(OR(LEFT($J30, 16)="Clean energy inv", LEFT($J30, 16)="Electrified heat", LEFT($J30, 16)="Electrified vehi"), IF(OR(Z30=0, AA30=0), 0, AA30/Z30-1), IF(J30="None", 0, IFERROR(SUMIFS(SID!Y$12:Y$28511, SID!$F$12:$F$28511, J30, SID!$L$12:$L$28511, M30, SID!$Z$12:$Z$28511, 0)/SUMIFS(SID!X$12:X$28511, SID!$F$12:$F$28511, J30, SID!$L$12:$L$28511, M30, SID!$Z$12:$Z$28511, 0) - 1, 0))) -> 0 | Y30: =IF(OR(LEFT($G30, 16)="Clean energy inv", LEFT($G30, 16)="Electrified heat", LEFT($G30, 16)="Electrified vehi"), SUMIFS(INV!$E$3:$E$3003, INV!$C$3:$C$3003, $N30, INV!$A$3:$A$3003, $D30, INV!$D$3:$D$3003, ">="& int_InvStartYear, INV!$D$3:$D$3003, "<="& int_Year), 0) -> 0 | Z30: =IF(OR(LEFT($J30, 16)="Clean energy inv", LEFT($J30, 16)="Electrified heat", LEFT($J30, 16)="Electrified vehi"), SUMIFS(INV!$E$3:$E$3003, INV!$C$3:$C$3003, $N30, INV!$A$3:$A$3003, $D30, INV!$D$3:$D$3003, ">="& int_InvStartYear, INV!$D$3:$D$3003, "<="& int_Year-1), 0) -> 0 | AA30: =IF(OR(LEFT($J30, 16)="Clean energy inv", LEFT($J30, 16)="Electrified heat", LEFT($J30, 16)="Electrified vehi"), SUMIFS(INV!$E$3:$E$3003, INV!$C$3:$C$3003, $N30, INV!$A$3:$A$3003, $D30, INV!$D$3:$D$3003, ">="& int_InvStartYear, INV!$D$3:$D$3003, "<="& int_Year), 0) -> 0 | AB30: Power - Policy - Renewable energy | AC30: Power - Policy - Renewable energy > Peru | AD30: Off-Grid | AE30: =IF(ISNUMBER(MATCH($M30, DEFN!A$442:A$599, 0)), AE$10, "") ->  | AF30: =IF(ISNUMBER(MATCH($M30, DEFN!B$442:B$599, 0)), AF$10, "") -> Off-grid | AG30: =IF(ISNUMBER(MATCH($M30, DEFN!C$442:C$599, 0)), AG$10, "") ->  | AH30: =IF(ISNUMBER(MATCH($M30, DEFN!D$442:D$599, 0)), AH$10, "") -> Non-Flexibility | AI30: =IF(ISNUMBER(MATCH($M30, DEFN!E$442:E$599, 0)), AI$10, "") ->  | AJ30: =IF(ISNUMBER(MATCH($M30, DEFN!F$442:F$599, 0)), AJ$10, "") -> Non-Heating | AK30: Off-grid Non-Flexibility Non-Heating | AL30: =IFERROR(INDEX(WEIGHTS!$B$6:$H$6, 1, MATCH(IND!$AK30, WEIGHTS!$AD$5:$AJ$5, 0)), "") -> 5 | AM30: =IF(str_Sector_RANK="Default", IFERROR(INDEX(WEIGHTS!$B$16:$H$64, MATCH($D30, WEIGHTS!$I$16:$I$64, 0), $AL30), 0), IF(str_Sector_RANK="Custom", IFERROR(INDEX(RANKING!$P$5:$P$7, MATCH(D30, RANKING!$O$5:$O$7, 0), 1), 0), IF(D30=str_Sector_RANK,1,0))) -> 1 | AN30: =IF(str_Parameter_RANK="Default", IFERROR(INDEX(WEIGHTS!$K$16:$Q$64, MATCH($D30&" > "&$E30, WEIGHTS!$R$16:$R$64, 0), $AL30), 0), IF(str_Parameter_RANK="Custom", IFERROR(INDEX(RANKING!$R$5:$R$7, MATCH(E30, RANKING!$Q$5:$Q$7, 0), 1), 0), IF(E30=str_Parameter_RANK,1,0))) -> 0.5 | AO30: =IFERROR(INDEX(WEIGHTS!$T$16:$Z$64, MATCH($D30&" > "&$E30&" > "&$F30, WEIGHTS!$AA$16:$AA$64, 0), $AL30), 0) -> 0.3 | AP30: =IFERROR(INDEX(DEFN!$Q$13:$W$82, MATCH(AB30, DEFN!$X$13:$X$82, 0), MATCH(AK30, DEFN!$Q$10:$W$10, 0)), 0) -> 1 | AQ30: 1 | AR30: 0.15 | AS30: 0.08796003098
A31: 1 | B31: 21 | C31: =IFERROR(INDEX(DEFN!$A$13:$X$82, MATCH($A31, DEFN!$A$13:$A$82, 0), MATCH(C$10, DEFN!$A$12:$X$12, 0)), "") -> Policy - Renewable energy | D31: =IF(F31="", "", INDEX(DEFN!$A$13:$X$82, MATCH($A31, DEFN!$A$13:$A$82, 0), MATCH(D$10, DEFN!$A$12:$X$12, 0))) -> Power | E31: =IF(G31="", "", INDEX(DEFN!$A$13:$X$82, MATCH($A31, DEFN!$A$13:$A$82, 0), MATCH(E$10, DEFN!$A$12:$X$12, 0))) -> Fundamentals | F31: =IF(G31="", "", INDEX(DEFN!$A$13:$X$82, MATCH($A31, DEFN!$A$13:$A$82, 0), MATCH(F$10, DEFN!$A$12:$X$12, 0))) -> Policy - Renewable energy | G31: =IFERROR(INDEX(DEFN!$A$13:$X$82, MATCH($A31, DEFN!$A$13:$A$82, 0), MATCH(C$10, DEFN!$A$12:$X$12, 0)), "") -> Policy - Renewable energy | H31: =IF(G31="", "", INDEX(DEFN!$A$13:$X$82, MATCH($A31, DEFN!$A$13:$A$82, 0), MATCH(H$10, DEFN!$A$12:$X$12, 0))) -> No | I31: =IF(G31="", "", INDEX(DEFN!$A$13:$X$82, MATCH($A31, DEFN!$A$13:$A$82, 0), MATCH(I$10, DEFN!$A$12:$X$12, 0))) -> None | J31: =IF(G31="", "", INDEX(DEFN!$A$13:$X$82, MATCH($A31, DEFN!$A$13:$A$82, 0), MATCH(J$10, DEFN!$A$12:$X$12, 0))) -> None | K31: =IF(G31="", "", INDEX(DEFN!$A$13:$X$82, MATCH($A31, DEFN!$A$13:$A$82, 0), MATCH(K$10, DEFN!$A$12:$X$12, 0))) -> Policies | L31: =IF(G31="", "", INDEX(DEFN!B$278:B$427, MATCH($B31, DEFN!$A$278:$A$427, 0), 1)) -> Americas | M31: =IF(G31="", "", INDEX(DEFN!C$278:C$427, MATCH($B31, DEFN!$A$278:$A$427, 0), 1)) -> Uruguay | N31: =IF(G31="", "", IFERROR(INDEX(DEFN!$E$278:$E$427, MATCH(M31, DEFN!$C$278:$C$427, 0), 1), "")) -> URY | O31: =IF(F31="", "", INDEX(DEFN!$A$13:$X$82, MATCH($A31, DEFN!$A$13:$A$82, 0), MATCH(O$10, DEFN!$A$12:$X$12, 0))) -> Total | P31: =IF(G31="", "", INDEX(DEFN!$A$13:$X$82, MATCH($A31, DEFN!$A$13:$A$82, 0), MATCH(P$10, DEFN!$A$12:$X$12, 0))) -> User Defined | Q31: =IF(G31="", 0, INDEX(DEFN!$A$13:$X$82, MATCH($A31, DEFN!$A$13:$A$82, 0), MATCH(Q$10, DEFN!$A$12:$X$12, 0))) -> 5 | R31: =IFERROR(IF($I31="None", 1, IF($I31="All Capacity", SUMIFS(SID!Y$12:Y$28511, SID!$L$12:$L$28511, $M31, SID!$I$12:$I$28511, $K31), IF($I31="All Generation", SUMIFS(SID!Y$12:Y$28511, SID!$L$12:$L$28511, $M31, SID!$I$12:$I$28511, $K31), SUMIFS(SID!Y$12:Y$28511, SID!$L$12:$L$28511, $M31, SID!$F$12:$F$28511, $I31)))), 1) -> 1 | S31: =IF(AND(LEFT(G31, 6)="Growth", J31<>"None"), X31, IF(Y31=0, IF(O31="Average", IFERROR(AVERAGEIFS(SID!Y$12:Y$28511, SID!$F$12:$F$28511, $G31, SID!$C$12:$C$28511, $D31, SID!$L$12:$L$28511, $M31, SID!$Z$12:$Z$28511, 0), 0), IFERROR(SUMIFS(SID!Y$12:Y$28511, SID!$F$12:$F$28511, $G31, SID!$C$12:$C$28511, $D31, SID!$L$12:$L$28511, $M31, SID!$Z$12:$Z$28511, 0), 0)), Y31)) -> 73.6081526 | T31: 2.020836683 | U31: 5 | V31: 40.41673367 | W31: 2.020836683 | X31: =IF(OR(LEFT($J31, 16)="Clean energy inv", LEFT($J31, 16)="Electrified heat", LEFT($J31, 16)="Electrified vehi"), IF(OR(Z31=0, AA31=0), 0, AA31/Z31-1), IF(J31="None", 0, IFERROR(SUMIFS(SID!Y$12:Y$28511, SID!$F$12:$F$28511, J31, SID!$L$12:$L$28511, M31, SID!$Z$12:$Z$28511, 0)/SUMIFS(SID!X$12:X$28511, SID!$F$12:$F$28511, J31, SID!$L$12:$L$28511, M31, SID!$Z$12:$Z$28511, 0) - 1, 0))) -> 0 | Y31: =IF(OR(LEFT($G31, 16)="Clean energy inv", LEFT($G31, 16)="Electrified heat", LEFT($G31, 16)="Electrified vehi"), SUMIFS(INV!$E$3:$E$3003, INV!$C$3:$C$3003, $N31, INV!$A$3:$A$3003, $D31, INV!$D$3:$D$3003, ">="& int_InvStartYear, INV!$D$3:$D$3003, "<="& int_Year), 0) -> 0 | Z31: =IF(OR(LEFT($J31, 16)="Clean energy inv", LEFT($J31, 16)="Electrified heat", LEFT($J31, 16)="Electrified vehi"), SUMIFS(INV!$E$3:$E$3003, INV!$C$3:$C$3003, $N31, INV!$A$3:$A$3003, $D31, INV!$D$3:$D$3003, ">="& int_InvStartYear, INV!$D$3:$D$3003, "<="& int_Year-1), 0) -> 0 | AA31: =IF(OR(LEFT($J31, 16)="Clean energy inv", LEFT($J31, 16)="Electrified heat", LEFT($J31, 16)="Electrified vehi"), SUMIFS(INV!$E$3:$E$3003, INV!$C$3:$C$3003, $N31, INV!$A$3:$A$3003, $D31, INV!$D$3:$D$3003, ">="& int_InvStartYear, INV!$D$3:$D$3003, "<="& int_Year), 0) -> 0 | AB31: Power - Policy - Renewable energy | AC31: Power - Policy - Renewable energy > Uruguay | AD31: On-Grid | AE31: =IF(ISNUMBER(MATCH($M31, DEFN!A$442:A$599, 0)), AE$10, "") -> On-grid | AF31: =IF(ISNUMBER(MATCH($M31, DEFN!B$442:B$599, 0)), AF$10, "") ->  | AG31: =IF(ISNUMBER(MATCH($M31, DEFN!C$442:C$599, 0)), AG$10, "") -> Flexibility | AH31: =IF(ISNUMBER(MATCH($M31, DEFN!D$442:D$599, 0)), AH$10, "") ->  | AI31: =IF(ISNUMBER(MATCH($M31, DEFN!E$442:E$599, 0)), AI$10, "") -> Heating | AJ31: =IF(ISNUMBER(MATCH($M31, DEFN!F$442:F$599, 0)), AJ$10, "") ->  | AK31: On-grid Flexibility Heating | AL31: =IFERROR(INDEX(WEIGHTS!$B$6:$H$6, 1, MATCH(IND!$AK31, WEIGHTS!$AD$5:$AJ$5, 0)), "") -> 4 | AM31: =IF(str_Sector_RANK="Default", IFERROR(INDEX(WEIGHTS!$B$16:$H$64, MATCH($D31, WEIGHTS!$I$16:$I$64, 0), $AL31), 0), IF(str_Sector_RANK="Custom", IFERROR(INDEX(RANKING!$P$5:$P$7, MATCH(D31, RANKING!$O$5:$O$7, 0), 1), 0), IF(D31=str_Sector_RANK,1,0))) -> 1 | AN31: =IF(str_Parameter_RANK="Default", IFERROR(INDEX(WEIGHTS!$K$16:$Q$64, MATCH($D31&" > "&$E31, WEIGHTS!$R$16:$R$64, 0), $AL31), 0), IF(str_Parameter_RANK="Custom", IFERROR(INDEX(RANKING!$R$5:$R$7, MATCH(E31, RANKING!$Q$5:$Q$7, 0), 1), 0), IF(E31=str_Parameter_RANK,1,0))) -> 0.5 | AO31: =IFERROR(INDEX(WEIGHTS!$T$16:$Z$64, MATCH($D31&" > "&$E31&" > "&$F31, WEIGHTS!$AA$16:$AA$64, 0), $AL31), 0) -> 0.25 | AP31: =IFERROR(INDEX(DEFN!$Q$13:$W$82, MATCH(AB31, DEFN!$X$13:$X$82, 0), MATCH(AK31, DEFN!$Q$10:$W$10, 0)), 0) -> 1 | AQ31: 1 | AR31: 0.125 | AS31: 0.2526045854
A32: 1 | B32: 22 | C32: =IFERROR(INDEX(DEFN!$A$13:$X$82, MATCH($A32, DEFN!$A$13:$A$82, 0), MATCH(C$10, DEFN!$A$12:$X$12, 0)), "") -> Policy - Renewable energy | D32: =IF(F32="", "", INDEX(DEFN!$A$13:$X$82, MATCH($A32, DEFN!$A$13:$A$82, 0), MATCH(D$10, DEFN!$A$12:$X$12, 0))) -> Power | E32: =IF(G32="", "", INDEX(DEFN!$A$13:$X$82, MATCH($A32, DEFN!$A$13:$A$82, 0), MATCH(E$10, DEFN!$A$12:$X$12, 0))) -> Fundamentals | F32: =IF(G32="", "", INDEX(DEFN!$A$13:$X$82, MATCH($A32, DEFN!$A$13:$A$82, 0), MATCH(F$10, DEFN!$A$12:$X$12, 0))) -> Policy - Renewable energy | G32: =IFERROR(INDEX(DEFN!$A$13:$X$82, MATCH($A32, DEFN!$A$13:$A$82, 0), MATCH(C$10, DEFN!$A$12:$X$12, 0)), "") -> Policy - Renewable energy | H32: =IF(G32="", "", INDEX(DEFN!$A$13:$X$82, MATCH($A32, DEFN!$A$13:$A$82, 0), MATCH(H$10, DEFN!$A$12:$X$12, 0))) -> No | I32: =IF(G32="", "", INDEX(DEFN!$A$13:$X$82, MATCH($A32, DEFN!$A$13:$A$82, 0), MATCH(I$10, DEFN!$A$12:$X$12, 0))) -> None | J32: =IF(G32="", "", INDEX(DEFN!$A$13:$X$82, MATCH($A32, DEFN!$A$13:$A$82, 0), MATCH(J$10, DEFN!$A$12:$X$12, 0))) -> None | K32: =IF(G32="", "", INDEX(DEFN!$A$13:$X$82, MATCH($A32, DEFN!$A$13:$A$82, 0), MATCH(K$10, DEFN!$A$12:$X$12, 0))) -> Policies | L32: =IF(G32="", "", INDEX(DEFN!B$278:B$427, MATCH($B32, DEFN!$A$278:$A$427, 0), 1)) -> Asia-Pacific | M32: =IF(G32="", "", INDEX(DEFN!C$278:C$427, MATCH($B32, DEFN!$A$278:$A$427, 0), 1)) -> Armenia | N32: =IF(G32="", "", IFERROR(INDEX(DEFN!$E$278:$E$427, MATCH(M32, DEFN!$C$278:$C$427, 0), 1), "")) -> ARM | O32: =IF(F32="", "", INDEX(DEFN!$A$13:$X$82, MATCH($A32, DEFN!$A$13:$A$82, 0), MATCH(O$10, DEFN!$A$12:$X$12, 0))) -> Total | P32: =IF(G32="", "", INDEX(DEFN!$A$13:$X$82, MATCH($A32, DEFN!$A$13:$A$82, 0), MATCH(P$10, DEFN!$A$12:$X$12, 0))) -> User Defined | Q32: =IF(G32="", 0, INDEX(DEFN!$A$13:$X$82, MATCH($A32, DEFN!$A$13:$A$82, 0), MATCH(Q$10, DEFN!$A$12:$X$12, 0))) -> 5 | R32: =IFERROR(IF($I32="None", 1, IF($I32="All Capacity", SUMIFS(SID!Y$12:Y$28511, SID!$L$12:$L$28511, $M32, SID!$I$12:$I$28511, $K32), IF($I32="All Generation", SUMIFS(SID!Y$12:Y$28511, SID!$L$12:$L$28511, $M32, SID!$I$12:$I$28511, $K32), SUMIFS(SID!Y$12:Y$28511, SID!$L$12:$L$28511, $M32, SID!$F$12:$F$28511, $I32)))), 1) -> 1 | S32: =IF(AND(LEFT(G32, 6)="Growth", J32<>"None"), X32, IF(Y32=0, IF(O32="Average", IFERROR(AVERAGEIFS(SID!Y$12:Y$28511, SID!$F$12:$F$28511, $G32, SID!$C$12:$C$28511, $D32, SID!$L$12:$L$28511, $M32, SID!$Z$12:$Z$28511, 0), 0), IFERROR(SUMIFS(SID!Y$12:Y$28511, SID!$F$12:$F$28511, $G32, SID!$C$12:$C$28511, $D32, SID!$L$12:$L$28511, $M32, SID!$Z$12:$Z$28511, 0), 0)), Y32)) -> 96.50632203 | T32: 2.707065045 | U32: 5 | V32: 54.14130091 | W32: 2.707065045 | X32: =IF(OR(LEFT($J32, 16)="Clean energy inv", LEFT($J32, 16)="Electrified heat", LEFT($J32, 16)="Electrified vehi"), IF(OR(Z32=0, AA32=0), 0, AA32/Z32-1), IF(J32="None", 0, IFERROR(SUMIFS(SID!Y$12:Y$28511, SID!$F$12:$F$28511, J32, SID!$L$12:$L$28511, M32, SID!$Z$12:$Z$28511, 0)/SUMIFS(SID!X$12:X$28511, SID!$F$12:$F$28511, J32, SID!$L$12:$L$28511, M32, SID!$Z$12:$Z$28511, 0) - 1, 0))) -> 0 | Y32: =IF(OR(LEFT($G32, 16)="Clean energy inv", LEFT($G32, 16)="Electrified heat", LEFT($G32, 16)="Electrified vehi"), SUMIFS(INV!$E$3:$E$3003, INV!$C$3:$C$3003, $N32, INV!$A$3:$A$3003, $D32, INV!$D$3:$D$3003, ">="& int_InvStartYear, INV!$D$3:$D$3003, "<="& int_Year), 0) -> 0 | Z32: =IF(OR(LEFT($J32, 16)="Clean energy inv", LEFT($J32, 16)="Electrified heat", LEFT($J32, 16)="Electrified vehi"), SUMIFS(INV!$E$3:$E$3003, INV!$C$3:$C$3003, $N32, INV!$A$3:$A$3003, $D32, INV!$D$3:$D$3003, ">="& int_InvStartYear, INV!$D$3:$D$3003, "<="& int_Year-1), 0) -> 0 | AA32: =IF(OR(LEFT($J32, 16)="Clean energy inv", LEFT($J32, 16)="Electrified heat", LEFT($J32, 16)="Electrified vehi"), SUMIFS(INV!$E$3:$E$3003, INV!$C$3:$C$3003, $N32, INV!$A$3:$A$3003, $D32, INV!$D$3:$D$3003, ">="& int_InvStartYear, INV!$D$3:$D$3003, "<="& int_Year), 0) -> 0 | AB32: Power - Policy - Renewable energy | AC32: Power - Policy - Renewable energy > Armenia | AD32: On-Grid | AE32: =IF(ISNUMBER(MATCH($M32, DEFN!A$442:A$599, 0)), AE$10, "") -> On-grid | AF32: =IF(ISNUMBER(MATCH($M32, DEFN!B$442:B$599, 0)), AF$10, "") ->  | AG32: =IF(ISNUMBER(MATCH($M32, DEFN!C$442:C$599, 0)), AG$10, "") ->  | AH32: =IF(ISNUMBER(MATCH($M32, DEFN!D$442:D$599, 0)), AH$10, "") -> Non-Flexibility | AI32: =IF(ISNUMBER(MATCH($M32, DEFN!E$442:E$599, 0)), AI$10, "") -> Heating | AJ32: =IF(ISNUMBER(MATCH($M32, DEFN!F$442:F$599, 0)), AJ$10, "") ->  | AK32: On-grid Non-Flexibility Heating | AL32: =IFERROR(INDEX(WEIGHTS!$B$6:$H$6, 1, MATCH(IND!$AK32, WEIGHTS!$AD$5:$AJ$5, 0)), "") -> 3 | AM32: =IF(str_Sector_RANK="Default", IFERROR(INDEX(WEIGHTS!$B$16:$H$64, MATCH($D32, WEIGHTS!$I$16:$I$64, 0), $AL32), 0), IF(str_Sector_RANK="Custom", IFERROR(INDEX(RANKING!$P$5:$P$7, MATCH(D32, RANKING!$O$5:$O$7, 0), 1), 0), IF(D32=str_Sector_RANK,1,0))) -> 1 | AN32: =IF(str_Parameter_RANK="Default", IFERROR(INDEX(WEIGHTS!$K$16:$Q$64, MATCH($D32&" > "&$E32, WEIGHTS!$R$16:$R$64, 0), $AL32), 0), IF(str_Parameter_RANK="Custom", IFERROR(INDEX(RANKING!$R$5:$R$7, MATCH(E32, RANKING!$Q$5:$Q$7, 0), 1), 0), IF(E32=str_Parameter_RANK,1,0))) -> 0.5 | AO32: =IFERROR(INDEX(WEIGHTS!$T$16:$Z$64, MATCH($D32&" > "&$E32&" > "&$F32, WEIGHTS!$AA$16:$AA$64, 0), $AL32), 0) -> 0.4 | AP32: =IFERROR(INDEX(DEFN!$Q$13:$W$82, MATCH(AB32, DEFN!$X$13:$X$82, 0), MATCH(AK32, DEFN!$Q$10:$W$10, 0)), 0) -> 1 | AQ32: 1 | AR32: 0.2 | AS32: 0.5414130091
A33: 1 | B33: 23 | C33: =IFERROR(INDEX(DEFN!$A$13:$X$82, MATCH($A33, DEFN!$A$13:$A$82, 0), MATCH(C$10, DEFN!$A$12:$X$12, 0)), "") -> Policy - Renewable energy | D33: =IF(F33="", "", INDEX(DEFN!$A$13:$X$82, MATCH($A33, DEFN!$A$13:$A$82, 0), MATCH(D$10, DEFN!$A$12:$X$12, 0))) -> Power | E33: =IF(G33="", "", INDEX(DEFN!$A$13:$X$82, MATCH($A33, DEFN!$A$13:$A$82, 0), MATCH(E$10, DEFN!$A$12:$X$12, 0))) -> Fundamentals | F33: =IF(G33="", "", INDEX(DEFN!$A$13:$X$82, MATCH($A33, DEFN!$A$13:$A$82, 0), MATCH(F$10, DEFN!$A$12:$X$12, 0))) -> Policy - Renewable energy | G33: =IFERROR(INDEX(DEFN!$A$13:$X$82, MATCH($A33, DEFN!$A$13:$A$82, 0), MATCH(C$10, DEFN!$A$12:$X$12, 0)), "") -> Policy - Renewable energy | H33: =IF(G33="", "", INDEX(DEFN!$A$13:$X$82, MATCH($A33, DEFN!$A$13:$A$82, 0), MATCH(H$10, DEFN!$A$12:$X$12, 0))) -> No | I33: =IF(G33="", "", INDEX(DEFN!$A$13:$X$82, MATCH($A33, DEFN!$A$13:$A$82, 0), MATCH(I$10, DEFN!$A$12:$X$12, 0))) -> None | J33: =IF(G33="", "", INDEX(DEFN!$A$13:$X$82, MATCH($A33, DEFN!$A$13:$A$82, 0), MATCH(J$10, DEFN!$A$12:$X$12, 0))) -> None | K33: =IF(G33="", "", INDEX(DEFN!$A$13:$X$82, MATCH($A33, DEFN!$A$13:$A$82, 0), MATCH(K$10, DEFN!$A$12:$X$12, 0))) -> Policies | L33: =IF(G33="", "", INDEX(DEFN!B$278:B$427, MATCH($B33, DEFN!$A$278:$A$427, 0), 1)) -> Asia-Pacific | M33: =IF(G33="", "", INDEX(DEFN!C$278:C$427, MATCH($B33, DEFN!$A$278:$A$427, 0), 1)) -> Australia | N33: =IF(G33="", "", IFERROR(INDEX(DEFN!$E$278:$E$427, MATCH(M33, DEFN!$C$278:$C$427, 0), 1), "")) -> AUS | O33: =IF(F33="", "", INDEX(DEFN!$A$13:$X$82, MATCH($A33, DEFN!$A$13:$A$82, 0), MATCH(O$10, DEFN!$A$12:$X$12, 0))) -> Total | P33: =IF(G33="", "", INDEX(DEFN!$A$13:$X$82, MATCH($A33, DEFN!$A$13:$A$82, 0), MATCH(P$10, DEFN!$A$12:$X$12, 0))) -> User Defined | Q33: =IF(G33="", 0, INDEX(DEFN!$A$13:$X$82, MATCH($A33, DEFN!$A$13:$A$82, 0), MATCH(Q$10, DEFN!$A$12:$X$12, 0))) -> 5 | R33: =IFERROR(IF($I33="None", 1, IF($I33="All Capacity", SUMIFS(SID!Y$12:Y$28511, SID!$L$12:$L$28511, $M33, SID!$I$12:$I$28511, $K33), IF($I33="All Generation", SUMIFS(SID!Y$12:Y$28511, SID!$L$12:$L$28511, $M33, SID!$I$12:$I$28511, $K33), SUMIFS(SID!Y$12:Y$28511, SID!$L$12:$L$28511, $M33, SID!$F$12:$F$28511, $I33)))), 1) -> 1 | S33: =IF(AND(LEFT(G33, 6)="Growth", J33<>"None"), X33, IF(Y33=0, IF(O33="Average", IFERROR(AVERAGEIFS(SID!Y$12:Y$28511, SID!$F$12:$F$28511, $G33, SID!$C$12:$C$28511, $D33, SID!$L$12:$L$28511, $M33, SID!$Z$12:$Z$28511, 0), 0), IFERROR(SUMIFS(SID!Y$12:Y$28511, SID!$F$12:$F$28511, $G33, SID!$C$12:$C$28511, $D33, SID!$L$12:$L$28511, $M33, SID!$Z$12:$Z$28511, 0), 0)), Y33)) -> 57.99999995 | T33: 1.665989963 | U33: 5 | V33: 33.31979925 | W33: 1.665989963 | X33: =IF(OR(LEFT($J33, 16)="Clean energy inv", LEFT($J33, 16)="Electrified heat", LEFT($J33, 16)="Electrified vehi"), IF(OR(Z33=0, AA33=0), 0, AA33/Z33-1), IF(J33="None", 0, IFERROR(SUMIFS(SID!Y$12:Y$28511, SID!$F$12:$F$28511, J33, SID!$L$12:$L$28511, M33, SID!$Z$12:$Z$28511, 0)/SUMIFS(SID!X$12:X$28511, SID!$F$12:$F$28511, J33, SID!$L$12:$L$28511, M33, SID!$Z$12:$Z$28511, 0) - 1, 0))) -> 0 | Y33: =IF(OR(LEFT($G33, 16)="Clean energy inv", LEFT($G33, 16)="Electrified heat", LEFT($G33, 16)="Electrified vehi"), SUMIFS(INV!$E$3:$E$3003, INV!$C$3:$C$3003, $N33, INV!$A$3:$A$3003, $D33, INV!$D$3:$D$3003, ">="& int_InvStartYear, INV!$D$3:$D$3003, "<="& int_Year), 0) -> 0 | Z33: =IF(OR(LEFT($J33, 16)="Clean energy inv", LEFT($J33, 16)="Electrified heat", LEFT($J33, 16)="Electrified vehi"), SUMIFS(INV!$E$3:$E$3003, INV!$C$3:$C$3003, $N33, INV!$A$3:$A$3003, $D33, INV!$D$3:$D$3003, ">="& int_InvStartYear, INV!$D$3:$D$3003, "<="& int_Year-1), 0) -> 0 | AA33: =IF(OR(LEFT($J33, 16)="Clean energy inv", LEFT($J33, 16)="Electrified heat", LEFT($J33, 16)="Electrified vehi"), SUMIFS(INV!$E$3:$E$3003, INV!$C$3:$C$3003, $N33, INV!$A$3:$A$3003, $D33, INV!$D$3:$D$3003, ">="& int_InvStartYear, INV!$D$3:$D$3003, "<="& int_Year), 0) -> 0 | AB33: Power - Policy - Renewable energy | AC33: Power - Policy - Renewable energy > Australia | AD33: On-Grid | AE33: =IF(ISNUMBER(MATCH($M33, DEFN!A$442:A$599, 0)), AE$10, "") -> On-grid | AF33: =IF(ISNUMBER(MATCH($M33, DEFN!B$442:B$599, 0)), AF$10, "") ->  | AG33: =IF(ISNUMBER(MATCH($M33, DEFN!C$442:C$599, 0)), AG$10, "") -> Flexibility | AH33: =IF(ISNUMBER(MATCH($M33, DEFN!D$442:D$599, 0)), AH$10, "") ->  | AI33: =IF(ISNUMBER(MATCH($M33, DEFN!E$442:E$599, 0)), AI$10, "") -> Heating | AJ33: =IF(ISNUMBER(MATCH($M33, DEFN!F$442:F$599, 0)), AJ$10, "") ->  | AK33: On-grid Flexibility Heating | AL33: =IFERROR(INDEX(WEIGHTS!$B$6:$H$6, 1, MATCH(IND!$AK33, WEIGHTS!$AD$5:$AJ$5, 0)), "") -> 4 | AM33: =IF(str_Sector_RANK="Default", IFERROR(INDEX(WEIGHTS!$B$16:$H$64, MATCH($D33, WEIGHTS!$I$16:$I$64, 0), $AL33), 0), IF(str_Sector_RANK="Custom", IFERROR(INDEX(RANKING!$P$5:$P$7, MATCH(D33, RANKING!$O$5:$O$7, 0), 1), 0), IF(D33=str_Sector_RANK,1,0))) -> 1 | AN33: =IF(str_Parameter_RANK="Default", IFERROR(INDEX(WEIGHTS!$K$16:$Q$64, MATCH($D33&" > "&$E33, WEIGHTS!$R$16:$R$64, 0), $AL33), 0), IF(str_Parameter_RANK="Custom", IFERROR(INDEX(RANKING!$R$5:$R$7, MATCH(E33, RANKING!$Q$5:$Q$7, 0), 1), 0), IF(E33=str_Parameter_RANK,1,0))) -> 0.5 | AO33: =IFERROR(INDEX(WEIGHTS!$T$16:$Z$64, MATCH($D33&" > "&$E33&" > "&$F33, WEIGHTS!$AA$16:$AA$64, 0), $AL33), 0) -> 0.25 | AP33: =IFERROR(INDEX(DEFN!$Q$13:$W$82, MATCH(AB33, DEFN!$X$13:$X$82, 0), MATCH(AK33, DEFN!$Q$10:$W$10, 0)), 0) -> 1 | AQ33: 1 | AR33: 0.125 | AS33: 0.2082487453
A34: 1 | B34: 24 | C34: =IFERROR(INDEX(DEFN!$A$13:$X$82, MATCH($A34, DEFN!$A$13:$A$82, 0), MATCH(C$10, DEFN!$A$12:$X$12, 0)), "") -> Policy - Renewable energy | D34: =IF(F34="", "", INDEX(DEFN!$A$13:$X$82, MATCH($A34, DEFN!$A$13:$A$82, 0), MATCH(D$10, DEFN!$A$12:$X$12, 0))) -> Power | E34: =IF(G34="", "", INDEX(DEFN!$A$13:$X$82, MATCH($A34, DEFN!$A$13:$A$82, 0), MATCH(E$10, DEFN!$A$12:$X$12, 0))) -> Fundamentals | F34: =IF(G34="", "", INDEX(DEFN!$A$13:$X$82, MATCH($A34, DEFN!$A$13:$A$82, 0), MATCH(F$10, DEFN!$A$12:$X$12, 0))) -> Policy - Renewable energy | G34: =IFERROR(INDEX(DEFN!$A$13:$X$82, MATCH($A34, DEFN!$A$13:$A$82, 0), MATCH(C$10, DEFN!$A$12:$X$12, 0)), "") -> Policy - Renewable energy | H34: =IF(G34="", "", INDEX(DEFN!$A$13:$X$82, MATCH($A34, DEFN!$A$13:$A$82, 0), MATCH(H$10, DEFN!$A$12:$X$12, 0))) -> No | I34: =IF(G34="", "", INDEX(DEFN!$A$13:$X$82, MATCH($A34, DEFN!$A$13:$A$82, 0), MATCH(I$10, DEFN!$A$12:$X$12, 0))) -> None | J34: =IF(G34="", "", INDEX(DEFN!$A$13:$X$82, MATCH($A34, DEFN!$A$13:$A$82, 0), MATCH(J$10, DEFN!$A$12:$X$12, 0))) -> None | K34: =IF(G34="", "", INDEX(DEFN!$A$13:$X$82, MATCH($A34, DEFN!$A$13:$A$82, 0), MATCH(K$10, DEFN!$A$12:$X$12, 0))) -> Policies | L34: =IF(G34="", "", INDEX(DEFN!B$278:B$427, MATCH($B34, DEFN!$A$278:$A$427, 0), 1)) -> Asia-Pacific | M34: =IF(G34="", "", INDEX(DEFN!C$278:C$427, MATCH($B34, DEFN!$A$278:$A$427, 0), 1)) -> Azerbaijan | N34: =IF(G34="", "", IFERROR(INDEX(DEFN!$E$278:$E$427, MATCH(M34, DEFN!$C$278:$C$427, 0), 1), "")) -> AZE | O34: =IF(F34="", "", INDEX(DEFN!$A$13:$X$82, MATCH($A34, DEFN!$A$13:$A$82, 0), MATCH(O$10, DEFN!$A$12:$X$12, 0))) -> Total | P34: =IF(G34="", "", INDEX(DEFN!$A$13:$X$82, MATCH($A34, DEFN!$A$13:$A$82, 0), MATCH(P$10, DEFN!$A$12:$X$12, 0))) -> User Defined | Q34: =IF(G34="", 0, INDEX(DEFN!$A$13:$X$82, MATCH($A34, DEFN!$A$13:$A$82, 0), MATCH(Q$10, DEFN!$A$12:$X$12, 0))) -> 5 | R34: =IFERROR(IF($I34="None", 1, IF($I34="All Capacity", SUMIFS(SID!Y$12:Y$28511, SID!$L$12:$L$28511, $M34, SID!$I$12:$I$28511, $K34), IF($I34="All Generation", SUMIFS(SID!Y$12:Y$28511, SID!$L$12:$L$28511, $M34, SID!$I$12:$I$28511, $K34), SUMIFS(SID!Y$12:Y$28511, SID!$L$12:$L$28511, $M34, SID!$F$12:$F$28511, $I34)))), 1) -> 1 | S34: =IF(AND(LEFT(G34, 6)="Growth", J34<>"None"), X34, IF(Y34=0, IF(O34="Average", IFERROR(AVERAGEIFS(SID!Y$12:Y$28511, SID!$F$12:$F$28511, $G34, SID!$C$12:$C$28511, $D34, SID!$L$12:$L$28511, $M34, SID!$Z$12:$Z$28511, 0), 0), IFERROR(SUMIFS(SID!Y$12:Y$28511, SID!$F$12:$F$28511, $G34, SID!$C$12:$C$28511, $D34, SID!$L$12:$L$28511, $M34, SID!$Z$12:$Z$28511, 0), 0)), Y34)) -> 70.7351875 | T34: 1.955863853 | U34: 5 | V34: 39.11727706 | W34: 1.955863853 | X34: =IF(OR(LEFT($J34, 16)="Clean energy inv", LEFT($J34, 16)="Electrified heat", LEFT($J34, 16)="Electrified vehi"), IF(OR(Z34=0, AA34=0), 0, AA34/Z34-1), IF(J34="None", 0, IFERROR(SUMIFS(SID!Y$12:Y$28511, SID!$F$12:$F$28511, J34, SID!$L$12:$L$28511, M34, SID!$Z$12:$Z$28511, 0)/SUMIFS(SID!X$12:X$28511, SID!$F$12:$F$28511, J34, SID!$L$12:$L$28511, M34, SID!$Z$12:$Z$28511, 0) - 1, 0))) -> 0 | Y34: =IF(OR(LEFT($G34, 16)="Clean energy inv", LEFT($G34, 16)="Electrified heat", LEFT($G34, 16)="Electrified vehi"), SUMIFS(INV!$E$3:$E$3003, INV!$C$3:$C$3003, $N34, INV!$A$3:$A$3003, $D34, INV!$D$3:$D$3003, ">="& int_InvStartYear, INV!$D$3:$D$3003, "<="& int_Year), 0) -> 0 | Z34: =IF(OR(LEFT($J34, 16)="Clean energy inv", LEFT($J34, 16)="Electrified heat", LEFT($J34, 16)="Electrified vehi"), SUMIFS(INV!$E$3:$E$3003, INV!$C$3:$C$3003, $N34, INV!$A$3:$A$3003, $D34, INV!$D$3:$D$3003, ">="& int_InvStartYear, INV!$D$3:$D$3003, "<="& int_Year-1), 0) -> 0 | AA34: =IF(OR(LEFT($J34, 16)="Clean energy inv", LEFT($J34, 16)="Electrified heat", LEFT($J34, 16)="Electrified vehi"), SUMIFS(INV!$E$3:$E$3003, INV!$C$3:$C$3003, $N34, INV!$A$3:$A$3003, $D34, INV!$D$3:$D$3003, ">="& int_InvStartYear, INV!$D$3:$D$3003, "<="& int_Year), 0) -> 0 | AB34: Power - Policy - Renewable energy | AC34: Power - Policy - Renewable energy > Azerbaijan | AD34: On-Grid | AE34: =IF(ISNUMBER(MATCH($M34, DEFN!A$442:A$599, 0)), AE$10, "") -> On-grid | AF34: =IF(ISNUMBER(MATCH($M34, DEFN!B$442:B$599, 0)), AF$10, "") ->  | AG34: =IF(ISNUMBER(MATCH($M34, DEFN!C$442:C$599, 0)), AG$10, "") ->  | AH34: =IF(ISNUMBER(MATCH($M34, DEFN!D$442:D$599, 0)), AH$10, "") -> Non-Flexibility | AI34: =IF(ISNUMBER(MATCH($M34, DEFN!E$442:E$599, 0)), AI$10, "") -> Heating | AJ34: =IF(ISNUMBER(MATCH($M34, DEFN!F$442:F$599, 0)), AJ$10, "") ->  | AK34: On-grid Non-Flexibility Heating | AL34: =IFERROR(INDEX(WEIGHTS!$B$6:$H$6, 1, MATCH(IND!$AK34, WEIGHTS!$AD$5:$AJ$5, 0)), "") -> 3 | AM34: =IF(str_Sector_RANK="Default", IFERROR(INDEX(WEIGHTS!$B$16:$H$64, MATCH($D34, WEIGHTS!$I$16:$I$64, 0), $AL34), 0), IF(str_Sector_RANK="Custom", IFERROR(INDEX(RANKING!$P$5:$P$7, MATCH(D34, RANKING!$O$5:$O$7, 0), 1), 0), IF(D34=str_Sector_RANK,1,0))) -> 1 | AN34: =IF(str_Parameter_RANK="Default", IFERROR(INDEX(WEIGHTS!$K$16:$Q$64, MATCH($D34&" > "&$E34, WEIGHTS!$R$16:$R$64, 0), $AL34), 0), IF(str_Parameter_RANK="Custom", IFERROR(INDEX(RANKING!$R$5:$R$7, MATCH(E34, RANKING!$Q$5:$Q$7, 0), 1), 0), IF(E34=str_Parameter_RANK,1,0))) -> 0.5 | AO34: =IFERROR(INDEX(WEIGHTS!$T$16:$Z$64, MATCH($D34&" > "&$E34&" > "&$F34, WEIGHTS!$AA$16:$AA$64, 0), $AL34), 0) -> 0.4 | AP34: =IFERROR(INDEX(DEFN!$Q$13:$W$82, MATCH(AB34, DEFN!$X$13:$X$82, 0), MATCH(AK34, DEFN!$Q$10:$W$10, 0)), 0) -> 1 | AQ34: 1 | AR34: 0.2 | AS34: 0.3911727706
A35: 1 | B35: 25 | C35: =IFERROR(INDEX(DEFN!$A$13:$X$82, MATCH($A35, DEFN!$A$13:$A$82, 0), MATCH(C$10, DEFN!$A$12:$X$12, 0)), "") -> Policy - Renewable energy | D35: =IF(F35="", "", INDEX(DEFN!$A$13:$X$82, MATCH($A35, DEFN!$A$13:$A$82, 0), MATCH(D$10, DEFN!$A$12:$X$12, 0))) -> Power | E35: =IF(G35="", "", INDEX(DEFN!$A$13:$X$82, MATCH($A35, DEFN!$A$13:$A$82, 0), MATCH(E$10, DEFN!$A$12:$X$12, 0))) -> Fundamentals | F35: =IF(G35="", "", INDEX(DEFN!$A$13:$X$82, MATCH($A35, DEFN!$A$13:$A$82, 0), MATCH(F$10, DEFN!$A$12:$X$12, 0))) -> Policy - Renewable energy | G35: =IFERROR(INDEX(DEFN!$A$13:$X$82, MATCH($A35, DEFN!$A$13:$A$82, 0), MATCH(C$10, DEFN!$A$12:$X$12, 0)), "") -> Policy - Renewable energy | H35: =IF(G35="", "", INDEX(DEFN!$A$13:$X$82, MATCH($A35, DEFN!$A$13:$A$82, 0), MATCH(H$10, DEFN!$A$12:$X$12, 0))) -> No | I35: =IF(G35="", "", INDEX(DEFN!$A$13:$X$82, MATCH($A35, DEFN!$A$13:$A$82, 0), MATCH(I$10, DEFN!$A$12:$X$12, 0))) -> None | J35: =IF(G35="", "", INDEX(DEFN!$A$13:$X$82, MATCH($A35, DEFN!$A$13:$A$82, 0), MATCH(J$10, DEFN!$A$12:$X$12, 0))) -> None | K35: =IF(G35="", "", INDEX(DEFN!$A$13:$X$82, MATCH($A35, DEFN!$A$13:$A$82, 0), MATCH(K$10, DEFN!$A$12:$X$12, 0))) -> Policies | L35: =IF(G35="", "", INDEX(DEFN!B$278:B$427, MATCH($B35, DEFN!$A$278:$A$427, 0), 1)) -> Asia-Pacific | M35: =IF(G35="", "", INDEX(DEFN!C$278:C$427, MATCH($B35, DEFN!$A$278:$A$427, 0), 1)) -> Bangladesh | N35: =IF(G35="", "", IFERROR(INDEX(DEFN!$E$278:$E$427, MATCH(M35, DEFN!$C$278:$C$427, 0), 1), "")) -> BGD | O35: =IF(F35="", "", INDEX(DEFN!$A$13:$X$82, MATCH($A35, DEFN!$A$13:$A$82, 0), MATCH(O$10, DEFN!$A$12:$X$12, 0))) -> Total | P35: =IF(G35="", "", INDEX(DEFN!$A$13:$X$82, MATCH($A35, DEFN!$A$13:$A$82, 0), MATCH(P$10, DEFN!$A$12:$X$12, 0))) -> User Defined | Q35: =IF(G35="", 0, INDEX(DEFN!$A$13:$X$82, MATCH($A35, DEFN!$A$13:$A$82, 0), MATCH(Q$10, DEFN!$A$12:$X$12, 0))) -> 5 | R35: =IFERROR(IF($I35="None", 1, IF($I35="All Capacity", SUMIFS(SID!Y$12:Y$28511, SID!$L$12:$L$28511, $M35, SID!$I$12:$I$28511, $K35), IF($I35="All Generation", SUMIFS(SID!Y$12:Y$28511, SID!$L$12:$L$28511, $M35, SID!$I$12:$I$28511, $K35), SUMIFS(SID!Y$12:Y$28511, SID!$L$12:$L$28511, $M35, SID!$F$12:$F$28511, $I35)))), 1) -> 1 | S35: =IF(AND(LEFT(G35, 6)="Growth", J35<>"None"), X35, IF(Y35=0, IF(O35="Average", IFERROR(AVERAGEIFS(SID!Y$12:Y$28511, SID!$F$12:$F$28511, $G35, SID!$C$12:$C$28511, $D35, SID!$L$12:$L$28511, $M35, SID!$Z$12:$Z$28511, 0), 0), IFERROR(SUMIFS(SID!Y$12:Y$28511, SID!$F$12:$F$28511, $G35, SID!$C$12:$C$28511, $D35, SID!$L$12:$L$28511, $M35, SID!$Z$12:$Z$28511, 0), 0)), Y35)) -> 61.21788946 | T35: 1.730961188 | U35: 5 | V35: 34.61922376 | W35: 1.730961188 | X35: =IF(OR(LEFT($J35, 16)="Clean energy inv", LEFT($J35, 16)="Electrified heat", LEFT($J35, 16)="Electrified vehi"), IF(OR(Z35=0, AA35=0), 0, AA35/Z35-1), IF(J35="None", 0, IFERROR(SUMIFS(SID!Y$12:Y$28511, SID!$F$12:$F$28511, J35, SID!$L$12:$L$28511, M35, SID!$Z$12:$Z$28511, 0)/SUMIFS(SID!X$12:X$28511, SID!$F$12:$F$28511, J35, SID!$L$12:$L$28511, M35, SID!$Z$12:$Z$28511, 0) - 1, 0))) -> 0 | Y35: =IF(OR(LEFT($G35, 16)="Clean energy inv", LEFT($G35, 16)="Electrified heat", LEFT($G35, 16)="Electrified vehi"), SUMIFS(INV!$E$3:$E$3003, INV!$C$3:$C$3003, $N35, INV!$A$3:$A$3003, $D35, INV!$D$3:$D$3003, ">="& int_InvStartYear, INV!$D$3:$D$3003, "<="& int_Year), 0) -> 0 | Z35: =IF(OR(LEFT($J35, 16)="Clean energy inv", LEFT($J35, 16)="Electrified heat", LEFT($J35, 16)="Electrified vehi"), SUMIFS(INV!$E$3:$E$3003, INV!$C$3:$C$3003, $N35, INV!$A$3:$A$3003, $D35, INV!$D$3:$D$3003, ">="& int_InvStartYear, INV!$D$3:$D$3003, "<="& int_Year-1), 0) -> 0 | AA35: =IF(OR(LEFT($J35, 16)="Clean energy inv", LEFT($J35, 16)="Electrified heat", LEFT($J35, 16)="Electrified vehi"), SUMIFS(INV!$E$3:$E$3003, INV!$C$3:$C$3003, $N35, INV!$A$3:$A$3003, $D35, INV!$D$3:$D$3003, ">="& int_InvStartYear, INV!$D$3:$D$3003, "<="& int_Year), 0) -> 0 | AB35: Power - Policy - Renewable energy | AC35: Power - Policy - Renewable energy > Bangladesh | AD35: Off-Grid | AE35: =IF(ISNUMBER(MATCH($M35, DEFN!A$442:A$599, 0)), AE$10, "") ->  | AF35: =IF(ISNUMBER(MATCH($M35, DEFN!B$442:B$599, 0)), AF$10, "") -> Off-grid | AG35: =IF(ISNUMBER(MATCH($M35, DEFN!C$442:C$599, 0)), AG$10, "") ->  | AH35: =IF(ISNUMBER(MATCH($M35, DEFN!D$442:D$599, 0)), AH$10, "") -> Non-Flexibility | AI35: =IF(ISNUMBER(MATCH($M35, DEFN!E$442:E$599, 0)), AI$10, "") ->  | AJ35: =IF(ISNUMBER(MATCH($M35, DEFN!F$442:F$599, 0)), AJ$10, "") -> Non-Heating | AK35: Off-grid Non-Flexibility Non-Heating | AL35: =IFERROR(INDEX(WEIGHTS!$B$6:$H$6, 1, MATCH(IND!$AK35, WEIGHTS!$AD$5:$AJ$5, 0)), "") -> 5 | AM35: =IF(str_Sector_RANK="Default", IFERROR(INDEX(WEIGHTS!$B$16:$H$64, MATCH($D35, WEIGHTS!$I$16:$I$64, 0), $AL35), 0), IF(str_Sector_RANK="Custom", IFERROR(INDEX(RANKING!$P$5:$P$7, MATCH(D35, RANKING!$O$5:$O$7, 0), 1), 0), IF(D35=str_Sector_RANK,1,0))) -> 1 | AN35: =IF(str_Parameter_RANK="Default", IFERROR(INDEX(WEIGHTS!$K$16:$Q$64, MATCH($D35&" > "&$E35, WEIGHTS!$R$16:$R$64, 0), $AL35), 0), IF(str_Parameter_RANK="Custom", IFERROR(INDEX(RANKING!$R$5:$R$7, MATCH(E35, RANKING!$Q$5:$Q$7, 0), 1), 0), IF(E35=str_Parameter_RANK,1,0))) -> 0.5 | AO35: =IFERROR(INDEX(WEIGHTS!$T$16:$Z$64, MATCH($D35&" > "&$E35&" > "&$F35, WEIGHTS!$AA$16:$AA$64, 0), $AL35), 0) -> 0.3 | AP35: =IFERROR(INDEX(DEFN!$Q$13:$W$82, MATCH(AB35, DEFN!$X$13:$X$82, 0), MATCH(AK35, DEFN!$Q$10:$W$10, 0)), 0) -> 1 | AQ35: 1 | AR35: 0.15 | AS35: 0.2596441782
A36: 1 | B36: 26 | C36: =IFERROR(INDEX(DEFN!$A$13:$X$82, MATCH($A36, DEFN!$A$13:$A$82, 0), MATCH(C$10, DEFN!$A$12:$X$12, 0)), "") -> Policy - Renewable energy | D36: =IF(F36="", "", INDEX(DEFN!$A$13:$X$82, MATCH($A36, DEFN!$A$13:$A$82, 0), MATCH(D$10, DEFN!$A$12:$X$12, 0))) -> Power | E36: =IF(G36="", "", INDEX(DEFN!$A$13:$X$82, MATCH($A36, DEFN!$A$13:$A$82, 0), MATCH(E$10, DEFN!$A$12:$X$12, 0))) -> Fundamentals | F36: =IF(G36="", "", INDEX(DEFN!$A$13:$X$82, MATCH($A36, DEFN!$A$13:$A$82, 0), MATCH(F$10, DEFN!$A$12:$X$12, 0))) -> Policy - Renewable energy | G36: =IFERROR(INDEX(DEFN!$A$13:$X$82, MATCH($A36, DEFN!$A$13:$A$82, 0), MATCH(C$10, DEFN!$A$12:$X$12, 0)), "") -> Policy - Renewable energy | H36: =IF(G36="", "", INDEX(DEFN!$A$13:$X$82, MATCH($A36, DEFN!$A$13:$A$82, 0), MATCH(H$10, DEFN!$A$12:$X$12, 0))) -> No | I36: =IF(G36="", "", INDEX(DEFN!$A$13:$X$82, MATCH($A36, DEFN!$A$13:$A$82, 0), MATCH(I$10, DEFN!$A$12:$X$12, 0))) -> None | J36: =IF(G36="", "", INDEX(DEFN!$A$13:$X$82, MATCH($A36, DEFN!$A$13:$A$82, 0), MATCH(J$10, DEFN!$A$12:$X$12, 0))) -> None | K36: =IF(G36="", "", INDEX(DEFN!$A$13:$X$82, MATCH($A36, DEFN!$A$13:$A$82, 0), MATCH(K$10, DEFN!$A$12:$X$12, 0))) -> Policies | L36: =IF(G36="", "", INDEX(DEFN!B$278:B$427, MATCH($B36, DEFN!$A$278:$A$427, 0), 1)) -> Asia-Pacific | M36: =IF(G36="", "", INDEX(DEFN!C$278:C$427, MATCH($B36, DEFN!$A$278:$A$427, 0), 1)) -> Cambodia | N36: =IF(G36="", "", IFERROR(INDEX(DEFN!$E$278:$E$427, MATCH(M36, DEFN!$C$278:$C$427, 0), 1), "")) -> KHM | O36: =IF(F36="", "", INDEX(DEFN!$A$13:$X$82, MATCH($A36, DEFN!$A$13:$A$82, 0), MATCH(O$10, DEFN!$A$12:$X$12, 0))) -> Total | P36: =IF(G36="", "", INDEX(DEFN!$A$13:$X$82, MATCH($A36, DEFN!$A$13:$A$82, 0), MATCH(P$10, DEFN!$A$12:$X$12, 0))) -> User Defined | Q36: =IF(G36="", 0, INDEX(DEFN!$A$13:$X$82, MATCH($A36, DEFN!$A$13:$A$82, 0), MATCH(Q$10, DEFN!$A$12:$X$12, 0))) -> 5 | R36: =IFERROR(IF($I36="None", 1, IF($I36="All Capacity", SUMIFS(SID!Y$12:Y$28511, SID!$L$12:$L$28511, $M36, SID!$I$12:$I$28511, $K36), IF($I36="All Generation", SUMIFS(SID!Y$12:Y$28511, SID!$L$12:$L$28511, $M36, SID!$I$12:$I$28511, $K36), SUMIFS(SID!Y$12:Y$28511, SID!$L$12:$L$28511, $M36, SID!$F$12:$F$28511, $I36)))), 1) -> 1 | S36: =IF(AND(LEFT(G36, 6)="Growth", J36<>"None"), X36, IF(Y36=0, IF(O36="Average", IFERROR(AVERAGEIFS(SID!Y$12:Y$28511, SID!$F$12:$F$28511, $G36, SID!$C$12:$C$28511, $D36, SID!$L$12:$L$28511, $M36, SID!$Z$12:$Z$28511, 0), 0), IFERROR(SUMIFS(SID!Y$12:Y$28511, SID!$F$12:$F$28511, $G36, SID!$C$12:$C$28511, $D36, SID!$L$12:$L$28511, $M36, SID!$Z$12:$Z$28511, 0), 0)), Y36)) -> 46.70631342 | T36: 1.337695686 | U36: 5 | V36: 26.75391372 | W36: 1.337695686 | X36: =IF(OR(LEFT($J36, 16)="Clean energy inv", LEFT($J36, 16)="Electrified heat", LEFT($J36, 16)="Electrified vehi"), IF(OR(Z36=0, AA36=0), 0, AA36/Z36-1), IF(J36="None", 0, IFERROR(SUMIFS(SID!Y$12:Y$28511, SID!$F$12:$F$28511, J36, SID!$L$12:$L$28511, M36, SID!$Z$12:$Z$28511, 0)/SUMIFS(SID!X$12:X$28511, SID!$F$12:$F$28511, J36, SID!$L$12:$L$28511, M36, SID!$Z$12:$Z$28511, 0) - 1, 0))) -> 0 | Y36: =IF(OR(LEFT($G36, 16)="Clean energy inv", LEFT($G36, 16)="Electrified heat", LEFT($G36, 16)="Electrified vehi"), SUMIFS(INV!$E$3:$E$3003, INV!$C$3:$C$3003, $N36, INV!$A$3:$A$3003, $D36, INV!$D$3:$D$3003, ">="& int_InvStartYear, INV!$D$3:$D$3003, "<="& int_Year), 0) -> 0 | Z36: =IF(OR(LEFT($J36, 16)="Clean energy inv", LEFT($J36, 16)="Electrified heat", LEFT($J36, 16)="Electrified vehi"), SUMIFS(INV!$E$3:$E$3003, INV!$C$3:$C$3003, $N36, INV!$A$3:$A$3003, $D36, INV!$D$3:$D$3003, ">="& int_InvStartYear, INV!$D$3:$D$3003, "<="& int_Year-1), 0) -> 0 | AA36: =IF(OR(LEFT($J36, 16)="Clean energy inv", LEFT($J36, 16)="Electrified heat", LEFT($J36, 16)="Electrified vehi"), SUMIFS(INV!$E$3:$E$3003, INV!$C$3:$C$3003, $N36, INV!$A$3:$A$3003, $D36, INV!$D$3:$D$3003, ">="& int_InvStartYear, INV!$D$3:$D$3003, "<="& int_Year), 0) -> 0 | AB36: Power - Policy - Renewable energy | AC36: Power - Policy - Renewable energy > Cambodia | AD36: Off-Grid | AE36: =IF(ISNUMBER(MATCH($M36, DEFN!A$442:A$599, 0)), AE$10, "") ->  | AF36: =IF(ISNUMBER(MATCH($M36, DEFN!B$442:B$599, 0)), AF$10, "") -> Off-grid | AG36: =IF(ISNUMBER(MATCH($M36, DEFN!C$442:C$599, 0)), AG$10, "") ->  | AH36: =IF(ISNUMBER(MATCH($M36, DEFN!D$442:D$599, 0)), AH$10, "") -> Non-Flexibility | AI36: =IF(ISNUMBER(MATCH($M36, DEFN!E$442:E$599, 0)), AI$10, "") ->  | AJ36: =IF(ISNUMBER(MATCH($M36, DEFN!F$442:F$599, 0)), AJ$10, "") -> Non-Heating | AK36: Off-grid Non-Flexibility Non-Heating | AL36: =IFERROR(INDEX(WEIGHTS!$B$6:$H$6, 1, MATCH(IND!$AK36, WEIGHTS!$AD$5:$AJ$5, 0)), "") -> 5 | AM36: =IF(str_Sector_RANK="Default", IFERROR(INDEX(WEIGHTS!$B$16:$H$64, MATCH($D36, WEIGHTS!$I$16:$I$64, 0), $AL36), 0), IF(str_Sector_RANK="Custom", IFERROR(INDEX(RANKING!$P$5:$P$7, MATCH(D36, RANKING!$O$5:$O$7, 0), 1), 0), IF(D36=str_Sector_RANK,1,0))) -> 1 | AN36: =IF(str_Parameter_RANK="Default", IFERROR(INDEX(WEIGHTS!$K$16:$Q$64, MATCH($D36&" > "&$E36, WEIGHTS!$R$16:$R$64, 0), $AL36), 0), IF(str_Parameter_RANK="Custom", IFERROR(INDEX(RANKING!$R$5:$R$7, MATCH(E36, RANKING!$Q$5:$Q$7, 0), 1), 0), IF(E36=str_Parameter_RANK,1,0))) -> 0.5 | AO36: =IFERROR(INDEX(WEIGHTS!$T$16:$Z$64, MATCH($D36&" > "&$E36&" > "&$F36, WEIGHTS!$AA$16:$AA$64, 0), $AL36), 0) -> 0.3 | AP36: =IFERROR(INDEX(DEFN!$Q$13:$W$82, MATCH(AB36, DEFN!$X$13:$X$82, 0), MATCH(AK36, DEFN!$Q$10:$W$10, 0)), 0) -> 1 | AQ36: 1 | AR36: 0.15 | AS36: 0.2006543529
A37: 1 | B37: 27 | C37: =IFERROR(INDEX(DEFN!$A$13:$X$82, MATCH($A37, DEFN!$A$13:$A$82, 0), MATCH(C$10, DEFN!$A$12:$X$12, 0)), "") -> Policy - Renewable energy | D37: =IF(F37="", "", INDEX(DEFN!$A$13:$X$82, MATCH($A37, DEFN!$A$13:$A$82, 0), MATCH(D$10, DEFN!$A$12:$X$12, 0))) -> Power | E37: =IF(G37="", "", INDEX(DEFN!$A$13:$X$82, MATCH($A37, DEFN!$A$13:$A$82, 0), MATCH(E$10, DEFN!$A$12:$X$12, 0))) -> Fundamentals | F37: =IF(G37="", "", INDEX(DEFN!$A$13:$X$82, MATCH($A37, DEFN!$A$13:$A$82, 0), MATCH(F$10, DEFN!$A$12:$X$12, 0))) -> Policy - Renewable energy | G37: =IFERROR(INDEX(DEFN!$A$13:$X$82, MATCH($A37, DEFN!$A$13:$A$82, 0), MATCH(C$10, DEFN!$A$12:$X$12, 0)), "") -> Policy - Renewable energy | H37: =IF(G37="", "", INDEX(DEFN!$A$13:$X$82, MATCH($A37, DEFN!$A$13:$A$82, 0), MATCH(H$10, DEFN!$A$12:$X$12, 0))) -> No | I37: =IF(G37="", "", INDEX(DEFN!$A$13:$X$82, MATCH($A37, DEFN!$A$13:$A$82, 0), MATCH(I$10, DEFN!$A$12:$X$12, 0))) -> None | J37: =IF(G37="", "", INDEX(DEFN!$A$13:$X$82, MATCH($A37, DEFN!$A$13:$A$82, 0), MATCH(J$10, DEFN!$A$12:$X$12, 0))) -> None | K37: =IF(G37="", "", INDEX(DEFN!$A$13:$X$82, MATCH($A37, DEFN!$A$13:$A$82, 0), MATCH(K$10, DEFN!$A$12:$X$12, 0))) -> Policies | L37: =IF(G37="", "", INDEX(DEFN!B$278:B$427, MATCH($B37, DEFN!$A$278:$A$427, 0), 1)) -> Asia-Pacific | M37: =IF(G37="", "", INDEX(DEFN!C$278:C$427, MATCH($B37, DEFN!$A$278:$A$427, 0), 1)) -> Mainland China | N37: =IF(G37="", "", IFERROR(INDEX(DEFN!$E$278:$E$427, MATCH(M37, DEFN!$C$278:$C$427, 0), 1), "")) -> CHN | O37: =IF(F37="", "", INDEX(DEFN!$A$13:$X$82, MATCH($A37, DEFN!$A$13:$A$82, 0), MATCH(O$10, DEFN!$A$12:$X$12, 0))) -> Total | P37: =IF(G37="", "", INDEX(DEFN!$A$13:$X$82, MATCH($A37, DEFN!$A$13:$A$82, 0), MATCH(P$10, DEFN!$A$12:$X$12, 0))) -> User Defined | Q37: =IF(G37="", 0, INDEX(DEFN!$A$13:$X$82, MATCH($A37, DEFN!$A$13:$A$82, 0), MATCH(Q$10, DEFN!$A$12:$X$12, 0))) -> 5 | R37: =IFERROR(IF($I37="None", 1, IF($I37="All Capacity", SUMIFS(SID!Y$12:Y$28511, SID!$L$12:$L$28511, $M37, SID!$I$12:$I$28511, $K37), IF($I37="All Generation", SUMIFS(SID!Y$12:Y$28511, SID!$L$12:$L$28511, $M37, SID!$I$12:$I$28511, $K37), SUMIFS(SID!Y$12:Y$28511, SID!$L$12:$L$28511, $M37, SID!$F$12:$F$28511, $I37)))), 1) -> 1 | S37: =IF(AND(LEFT(G37, 6)="Growth", J37<>"None"), X37, IF(Y37=0, IF(O37="Average", IFERROR(AVERAGEIFS(SID!Y$12:Y$28511, SID!$F$12:$F$28511, $G37, SID!$C$12:$C$28511, $D37, SID!$L$12:$L$28511, $M37, SID!$Z$12:$Z$28511, 0), 0), IFERROR(SUMIFS(SID!Y$12:Y$28511, SID!$F$12:$F$28511, $G37, SID!$C$12:$C$28511, $D37, SID!$L$12:$L$28511, $M37, SID!$Z$12:$Z$28511, 0), 0)), Y37)) -> 115.1309513 | T37: 3.226878428 | U37: 5 | V37: 64.53756855 | W37: 3.226878428 | X37: =IF(OR(LEFT($J37, 16)="Clean energy inv", LEFT($J37, 16)="Electrified heat", LEFT($J37, 16)="Electrified vehi"), IF(OR(Z37=0, AA37=0), 0, AA37/Z37-1), IF(J37="None", 0, IFERROR(SUMIFS(SID!Y$12:Y$28511, SID!$F$12:$F$28511, J37, SID!$L$12:$L$28511, M37, SID!$Z$12:$Z$28511, 0)/SUMIFS(SID!X$12:X$28511, SID!$F$12:$F$28511, J37, SID!$L$12:$L$28511, M37, SID!$Z$12:$Z$28511, 0) - 1, 0))) -> 0 | Y37: =IF(OR(LEFT($G37, 16)="Clean energy inv", LEFT($G37, 16)="Electrified heat", LEFT($G37, 16)="Electrified vehi"), SUMIFS(INV!$E$3:$E$3003, INV!$C$3:$C$3003, $N37, INV!$A$3:$A$3003, $D37, INV!$D$3:$D$3003, ">="& int_InvStartYear, INV!$D$3:$D$3003, "<="& int_Year), 0) -> 0 | Z37: =IF(OR(LEFT($J37, 16)="Clean energy inv", LEFT($J37, 16)="Electrified heat", LEFT($J37, 16)="Electrified vehi"), SUMIFS(INV!$E$3:$E$3003, INV!$C$3:$C$3003, $N37, INV!$A$3:$A$3003, $D37, INV!$D$3:$D$3003, ">="& int_InvStartYear, INV!$D$3:$D$3003, "<="& int_Year-1), 0) -> 0 | AA37: =IF(OR(LEFT($J37, 16)="Clean energy inv", LEFT($J37, 16)="Electrified heat", LEFT($J37, 16)="Electrified vehi"), SUMIFS(INV!$E$3:$E$3003, INV!$C$3:$C$3003, $N37, INV!$A$3:$A$3003, $D37, INV!$D$3:$D$3003, ">="& int_InvStartYear, INV!$D$3:$D$3003, "<="& int_Year), 0) -> 0 | AB37: Power - Policy - Renewable energy | AC37: Power - Policy - Renewable energy > Mainland China | AD37: On-Grid | AE37: =IF(ISNUMBER(MATCH($M37, DEFN!A$442:A$599, 0)), AE$10, "") -> On-grid | AF37: =IF(ISNUMBER(MATCH($M37, DEFN!B$442:B$599, 0)), AF$10, "") ->  | AG37: =IF(ISNUMBER(MATCH($M37, DEFN!C$442:C$599, 0)), AG$10, "") ->  | AH37: =IF(ISNUMBER(MATCH($M37, DEFN!D$442:D$599, 0)), AH$10, "") -> Non-Flexibility | AI37: =IF(ISNUMBER(MATCH($M37, DEFN!E$442:E$599, 0)), AI$10, "") -> Heating | AJ37: =IF(ISNUMBER(MATCH($M37, DEFN!F$442:F$599, 0)), AJ$10, "") ->  | AK37: On-grid Non-Flexibility Heating | AL37: =IFERROR(INDEX(WEIGHTS!$B$6:$H$6, 1, MATCH(IND!$AK37, WEIGHTS!$AD$5:$AJ$5, 0)), "") -> 3 | AM37: =IF(str_Sector_RANK="Default", IFERROR(INDEX(WEIGHTS!$B$16:$H$64, MATCH($D37, WEIGHTS!$I$16:$I$64, 0), $AL37), 0), IF(str_Sector_RANK="Custom", IFERROR(INDEX(RANKING!$P$5:$P$7, MATCH(D37, RANKING!$O$5:$O$7, 0), 1), 0), IF(D37=str_Sector_RANK,1,0))) -> 1 | AN37: =IF(str_Parameter_RANK="Default", IFERROR(INDEX(WEIGHTS!$K$16:$Q$64, MATCH($D37&" > "&$E37, WEIGHTS!$R$16:$R$64, 0), $AL37), 0), IF(str_Parameter_RANK="Custom", IFERROR(INDEX(RANKING!$R$5:$R$7, MATCH(E37, RANKING!$Q$5:$Q$7, 0), 1), 0), IF(E37=str_Parameter_RANK,1,0))) -> 0.5 | AO37: =IFERROR(INDEX(WEIGHTS!$T$16:$Z$64, MATCH($D37&" > "&$E37&" > "&$F37, WEIGHTS!$AA$16:$AA$64, 0), $AL37), 0) -> 0.4 | AP37: =IFERROR(INDEX(DEFN!$Q$13:$W$82, MATCH(AB37, DEFN!$X$13:$X$82, 0), MATCH(AK37, DEFN!$Q$10:$W$10, 0)), 0) -> 1 | AQ37: 1 | AR37: 0.2 | AS37: 0.6453756855
A38: 1 | B38: 28 | C38: =IFERROR(INDEX(DEFN!$A$13:$X$82, MATCH($A38, DEFN!$A$13:$A$82, 0), MATCH(C$10, DEFN!$A$12:$X$12, 0)), "") -> Policy - Renewable energy | D38: =IF(F38="", "", INDEX(DEFN!$A$13:$X$82, MATCH($A38, DEFN!$A$13:$A$82, 0), MATCH(D$10, DEFN!$A$12:$X$12, 0))) -> Power | E38: =IF(G38="", "", INDEX(DEFN!$A$13:$X$82, MATCH($A38, DEFN!$A$13:$A$82, 0), MATCH(E$10, DEFN!$A$12:$X$12, 0))) -> Fundamentals | F38: =IF(G38="", "", INDEX(DEFN!$A$13:$X$82, MATCH($A38, DEFN!$A$13:$A$82, 0), MATCH(F$10, DEFN!$A$12:$X$12, 0))) -> Policy - Renewable energy | G38: =IFERROR(INDEX(DEFN!$A$13:$X$82, MATCH($A38, DEFN!$A$13:$A$82, 0), MATCH(C$10, DEFN!$A$12:$X$12, 0)), "") -> Policy - Renewable energy | H38: =IF(G38="", "", INDEX(DEFN!$A$13:$X$82, MATCH($A38, DEFN!$A$13:$A$82, 0), MATCH(H$10, DEFN!$A$12:$X$12, 0))) -> No | I38: =IF(G38="", "", INDEX(DEFN!$A$13:$X$82, MATCH($A38, DEFN!$A$13:$A$82, 0), MATCH(I$10, DEFN!$A$12:$X$12, 0))) -> None | J38: =IF(G38="", "", INDEX(DEFN!$A$13:$X$82, MATCH($A38, DEFN!$A$13:$A$82, 0), MATCH(J$10, DEFN!$A$12:$X$12, 0))) -> None | K38: =IF(G38="", "", INDEX(DEFN!$A$13:$X$82, MATCH($A38, DEFN!$A$13:$A$82, 0), MATCH(K$10, DEFN!$A$12:$X$12, 0))) -> Policies | L38: =IF(G38="", "", INDEX(DEFN!B$278:B$427, MATCH($B38, DEFN!$A$278:$A$427, 0), 1)) -> Asia-Pacific | M38: =IF(G38="", "", INDEX(DEFN!C$278:C$427, MATCH($B38, DEFN!$A$278:$A$427, 0), 1)) -> Georgia | N38: =IF(G38="", "", IFERROR(INDEX(DEFN!$E$278:$E$427, MATCH(M38, DEFN!$C$278:$C$427, 0), 1), "")) -> GEO | O38: =IF(F38="", "", INDEX(DEFN!$A$13:$X$82, MATCH($A38, DEFN!$A$13:$A$82, 0), MATCH(O$10, DEFN!$A$12:$X$12, 0))) -> Total | P38: =IF(G38="", "", INDEX(DEFN!$A$13:$X$82, MATCH($A38, DEFN!$A$13:$A$82, 0), MATCH(P$10, DEFN!$A$12:$X$12, 0))) -> User Defined | Q38: =IF(G38="", 0, INDEX(DEFN!$A$13:$X$82, MATCH($A38, DEFN!$A$13:$A$82, 0), MATCH(Q$10, DEFN!$A$12:$X$12, 0))) -> 5 | R38: =IFERROR(IF($I38="None", 1, IF($I38="All Capacity", SUMIFS(SID!Y$12:Y$28511, SID!$L$12:$L$28511, $M38, SID!$I$12:$I$28511, $K38), IF($I38="All Generation", SUMIFS(SID!Y$12:Y$28511, SID!$L$12:$L$28511, $M38, SID!$I$12:$I$28511, $K38), SUMIFS(SID!Y$12:Y$28511, SID!$L$12:$L$28511, $M38, SID!$F$12:$F$28511, $I38)))), 1) -> 1 | S38: =IF(AND(LEFT(G38, 6)="Growth", J38<>"None"), X38, IF(Y38=0, IF(O38="Average", IFERROR(AVERAGEIFS(SID!Y$12:Y$28511, SID!$F$12:$F$28511, $G38, SID!$C$12:$C$28511, $D38, SID!$L$12:$L$28511, $M38, SID!$Z$12:$Z$28511, 0), 0), IFERROR(SUMIFS(SID!Y$12:Y$28511, SID!$F$12:$F$28511, $G38, SID!$C$12:$C$28511, $D38, SID!$L$12:$L$28511, $M38, SID!$Z$12:$Z$28511, 0), 0)), Y38)) -> 64.02380948 | T38: 1.795467479 | U38: 5 | V38: 35.90934958 | W38: 1.795467479 | X38: =IF(OR(LEFT($J38, 16)="Clean energy inv", LEFT($J38, 16)="Electrified heat", LEFT($J38, 16)="Electrified vehi"), IF(OR(Z38=0, AA38=0), 0, AA38/Z38-1), IF(J38="None", 0, IFERROR(SUMIFS(SID!Y$12:Y$28511, SID!$F$12:$F$28511, J38, SID!$L$12:$L$28511, M38, SID!$Z$12:$Z$28511, 0)/SUMIFS(SID!X$12:X$28511, SID!$F$12:$F$28511, J38, SID!$L$12:$L$28511, M38, SID!$Z$12:$Z$28511, 0) - 1, 0))) -> 0 | Y38: =IF(OR(LEFT($G38, 16)="Clean energy inv", LEFT($G38, 16)="Electrified heat", LEFT($G38, 16)="Electrified vehi"), SUMIFS(INV!$E$3:$E$3003, INV!$C$3:$C$3003, $N38, INV!$A$3:$A$3003, $D38, INV!$D$3:$D$3003, ">="& int_InvStartYear, INV!$D$3:$D$3003, "<="& int_Year), 0) -> 0 | Z38: =IF(OR(LEFT($J38, 16)="Clean energy inv", LEFT($J38, 16)="Electrified heat", LEFT($J38, 16)="Electrified vehi"), SUMIFS(INV!$E$3:$E$3003, INV!$C$3:$C$3003, $N38, INV!$A$3:$A$3003, $D38, INV!$D$3:$D$3003, ">="& int_InvStartYear, INV!$D$3:$D$3003, "<="& int_Year-1), 0) -> 0 | AA38: =IF(OR(LEFT($J38, 16)="Clean energy inv", LEFT($J38, 16)="Electrified heat", LEFT($J38, 16)="Electrified vehi"), SUMIFS(INV!$E$3:$E$3003, INV!$C$3:$C$3003, $N38, INV!$A$3:$A$3003, $D38, INV!$D$3:$D$3003, ">="& int_InvStartYear, INV!$D$3:$D$3003, "<="& int_Year), 0) -> 0 | AB38: Power - Policy - Renewable energy | AC38: Power - Policy - Renewable energy > Georgia | AD38: On-Grid | AE38: =IF(ISNUMBER(MATCH($M38, DEFN!A$442:A$599, 0)), AE$10, "") -> On-grid | AF38: =IF(ISNUMBER(MATCH($M38, DEFN!B$442:B$599, 0)), AF$10, "") ->  | AG38: =IF(ISNUMBER(MATCH($M38, DEFN!C$442:C$599, 0)), AG$10, "") ->  | AH38: =IF(ISNUMBER(MATCH($M38, DEFN!D$442:D$599, 0)), AH$10, "") -> Non-Flexibility | AI38: =IF(ISNUMBER(MATCH($M38, DEFN!E$442:E$599, 0)), AI$10, "") -> Heating | AJ38: =IF(ISNUMBER(MATCH($M38, DEFN!F$442:F$599, 0)), AJ$10, "") ->  | AK38: On-grid Non-Flexibility Heating | AL38: =IFERROR(INDEX(WEIGHTS!$B$6:$H$6, 1, MATCH(IND!$AK38, WEIGHTS!$AD$5:$AJ$5, 0)), "") -> 3 | AM38: =IF(str_Sector_RANK="Default", IFERROR(INDEX(WEIGHTS!$B$16:$H$64, MATCH($D38, WEIGHTS!$I$16:$I$64, 0), $AL38), 0), IF(str_Sector_RANK="Custom", IFERROR(INDEX(RANKING!$P$5:$P$7, MATCH(D38, RANKING!$O$5:$O$7, 0), 1), 0), IF(D38=str_Sector_RANK,1,0))) -> 1 | AN38: =IF(str_Parameter_RANK="Default", IFERROR(INDEX(WEIGHTS!$K$16:$Q$64, MATCH($D38&" > "&$E38, WEIGHTS!$R$16:$R$64, 0), $AL38), 0), IF(str_Parameter_RANK="Custom", IFERROR(INDEX(RANKING!$R$5:$R$7, MATCH(E38, RANKING!$Q$5:$Q$7, 0), 1), 0), IF(E38=str_Parameter_RANK,1,0))) -> 0.5 | AO38: =IFERROR(INDEX(WEIGHTS!$T$16:$Z$64, MATCH($D38&" > "&$E38&" > "&$F38, WEIGHTS!$AA$16:$AA$64, 0), $AL38), 0) -> 0.4 | AP38: =IFERROR(INDEX(DEFN!$Q$13:$W$82, MATCH(AB38, DEFN!$X$13:$X$82, 0), MATCH(AK38, DEFN!$Q$10:$W$10, 0)), 0) -> 1 | AQ38: 1 | AR38: 0.2 | AS38: 0.3590934958
A39: 1 | B39: 29 | C39: =IFERROR(INDEX(DEFN!$A$13:$X$82, MATCH($A39, DEFN!$A$13:$A$82, 0), MATCH(C$10, DEFN!$A$12:$X$12, 0)), "") -> Policy - Renewable energy | D39: =IF(F39="", "", INDEX(DEFN!$A$13:$X$82, MATCH($A39, DEFN!$A$13:$A$82, 0), MATCH(D$10, DEFN!$A$12:$X$12, 0))) -> Power | E39: =IF(G39="", "", INDEX(DEFN!$A$13:$X$82, MATCH($A39, DEFN!$A$13:$A$82, 0), MATCH(E$10, DEFN!$A$12:$X$12, 0))) -> Fundamentals | F39: =IF(G39="", "", INDEX(DEFN!$A$13:$X$82, MATCH($A39, DEFN!$A$13:$A$82, 0), MATCH(F$10, DEFN!$A$12:$X$12, 0))) -> Policy - Renewable energy | G39: =IFERROR(INDEX(DEFN!$A$13:$X$82, MATCH($A39, DEFN!$A$13:$A$82, 0), MATCH(C$10, DEFN!$A$12:$X$12, 0)), "") -> Policy - Renewable energy | H39: =IF(G39="", "", INDEX(DEFN!$A$13:$X$82, MATCH($A39, DEFN!$A$13:$A$82, 0), MATCH(H$10, DEFN!$A$12:$X$12, 0))) -> No | I39: =IF(G39="", "", INDEX(DEFN!$A$13:$X$82, MATCH($A39, DEFN!$A$13:$A$82, 0), MATCH(I$10, DEFN!$A$12:$X$12, 0))) -> None | J39: =IF(G39="", "", INDEX(DEFN!$A$13:$X$82, MATCH($A39, DEFN!$A$13:$A$82, 0), MATCH(J$10, DEFN!$A$12:$X$12, 0))) -> None | K39: =IF(G39="", "", INDEX(DEFN!$A$13:$X$82, MATCH($A39, DEFN!$A$13:$A$82, 0), MATCH(K$10, DEFN!$A$12:$X$12, 0))) -> Policies | L39: =IF(G39="", "", INDEX(DEFN!B$278:B$427, MATCH($B39, DEFN!$A$278:$A$427, 0), 1)) -> Asia-Pacific | M39: =IF(G39="", "", INDEX(DEFN!C$278:C$427, MATCH($B39, DEFN!$A$278:$A$427, 0), 1)) -> India | N39: =IF(G39="", "", IFERROR(INDEX(DEFN!$E$278:$E$427, MATCH(M39, DEFN!$C$278:$C$427, 0), 1), "")) -> IND | O39: =IF(F39="", "", INDEX(DEFN!$A$13:$X$82, MATCH($A39, DEFN!$A$13:$A$82, 0), MATCH(O$10, DEFN!$A$12:$X$12, 0))) -> Total | P39: =IF(G39="", "", INDEX(DEFN!$A$13:$X$82, MATCH($A39, DEFN!$A$13:$A$82, 0), MATCH(P$10, DEFN!$A$12:$X$12, 0))) -> User Defined | Q39: =IF(G39="", 0, INDEX(DEFN!$A$13:$X$82, MATCH($A39, DEFN!$A$13:$A$82, 0), MATCH(Q$10, DEFN!$A$12:$X$12, 0))) -> 5 | R39: =IFERROR(IF($I39="None", 1, IF($I39="All Capacity", SUMIFS(SID!Y$12:Y$28511, SID!$L$12:$L$28511, $M39, SID!$I$12:$I$28511, $K39), IF($I39="All Generation", SUMIFS(SID!Y$12:Y$28511, SID!$L$12:$L$28511, $M39, SID!$I$12:$I$28511, $K39), SUMIFS(SID!Y$12:Y$28511, SID!$L$12:$L$28511, $M39, SID!$F$12:$F$28511, $I39)))), 1) -> 1 | S39: =IF(AND(LEFT(G39, 6)="Growth", J39<>"None"), X39, IF(Y39=0, IF(O39="Average", IFERROR(AVERAGEIFS(SID!Y$12:Y$28511, SID!$F$12:$F$28511, $G39, SID!$C$12:$C$28511, $D39, SID!$L$12:$L$28511, $M39, SID!$Z$12:$Z$28511, 0), 0), IFERROR(SUMIFS(SID!Y$12:Y$28511, SID!$F$12:$F$28511, $G39, SID!$C$12:$C$28511, $D39, SID!$L$12:$L$28511, $M39, SID!$Z$12:$Z$28511, 0), 0)), Y39)) -> 117.0673687 | T39: 3.273776475 | U39: 5 | V39: 65.4755295 | W39: 3.273776475 | X39: =IF(OR(LEFT($J39, 16)="Clean energy inv", LEFT($J39, 16)="Electrified heat", LEFT($J39, 16)="Electrified vehi"), IF(OR(Z39=0, AA39=0), 0, AA39/Z39-1), IF(J39="None", 0, IFERROR(SUMIFS(SID!Y$12:Y$28511, SID!$F$12:$F$28511, J39, SID!$L$12:$L$28511, M39, SID!$Z$12:$Z$28511, 0)/SUMIFS(SID!X$12:X$28511, SID!$F$12:$F$28511, J39, SID!$L$12:$L$28511, M39, SID!$Z$12:$Z$28511, 0) - 1, 0))) -> 0 | Y39: =IF(OR(LEFT($G39, 16)="Clean energy inv", LEFT($G39, 16)="Electrified heat", LEFT($G39, 16)="Electrified vehi"), SUMIFS(INV!$E$3:$E$3003, INV!$C$3:$C$3003, $N39, INV!$A$3:$A$3003, $D39, INV!$D$3:$D$3003, ">="& int_InvStartYear, INV!$D$3:$D$3003, "<="& int_Year), 0) -> 0 | Z39: =IF(OR(LEFT($J39, 16)="Clean energy inv", LEFT($J39, 16)="Electrified heat", LEFT($J39, 16)="Electrified vehi"), SUMIFS(INV!$E$3:$E$3003, INV!$C$3:$C$3003, $N39, INV!$A$3:$A$3003, $D39, INV!$D$3:$D$3003, ">="& int_InvStartYear, INV!$D$3:$D$3003, "<="& int_Year-1), 0) -> 0 | AA39: =IF(OR(LEFT($J39, 16)="Clean energy inv", LEFT($J39, 16)="Electrified heat", LEFT($J39, 16)="Electrified vehi"), SUMIFS(INV!$E$3:$E$3003, INV!$C$3:$C$3003, $N39, INV!$A$3:$A$3003, $D39, INV!$D$3:$D$3003, ">="& int_InvStartYear, INV!$D$3:$D$3003, "<="& int_Year), 0) -> 0 | AB39: Power - Policy - Renewable energy | AC39: Power - Policy - Renewable energy > India | AD39: Off-Grid | AE39: =IF(ISNUMBER(MATCH($M39, DEFN!A$442:A$599, 0)), AE$10, "") ->  | AF39: =IF(ISNUMBER(MATCH($M39, DEFN!B$442:B$599, 0)), AF$10, "") -> Off-grid | AG39: =IF(ISNUMBER(MATCH($M39, DEFN!C$442:C$599, 0)), AG$10, "") ->  | AH39: =IF(ISNUMBER(MATCH($M39, DEFN!D$442:D$599, 0)), AH$10, "") -> Non-Flexibility | AI39: =IF(ISNUMBER(MATCH($M39, DEFN!E$442:E$599, 0)), AI$10, "") ->  | AJ39: =IF(ISNUMBER(MATCH($M39, DEFN!F$442:F$599, 0)), AJ$10, "") -> Non-Heating | AK39: Off-grid Non-Flexibility Non-Heating | AL39: =IFERROR(INDEX(WEIGHTS!$B$6:$H$6, 1, MATCH(IND!$AK39, WEIGHTS!$AD$5:$AJ$5, 0)), "") -> 5 | AM39: =IF(str_Sector_RANK="Default", IFERROR(INDEX(WEIGHTS!$B$16:$H$64, MATCH($D39, WEIGHTS!$I$16:$I$64, 0), $AL39), 0), IF(str_Sector_RANK="Custom", IFERROR(INDEX(RANKING!$P$5:$P$7, MATCH(D39, RANKING!$O$5:$O$7, 0), 1), 0), IF(D39=str_Sector_RANK,1,0))) -> 1 | AN39: =IF(str_Parameter_RANK="Default", IFERROR(INDEX(WEIGHTS!$K$16:$Q$64, MATCH($D39&" > "&$E39, WEIGHTS!$R$16:$R$64, 0), $AL39), 0), IF(str_Parameter_RANK="Custom", IFERROR(INDEX(RANKING!$R$5:$R$7, MATCH(E39, RANKING!$Q$5:$Q$7, 0), 1), 0), IF(E39=str_Parameter_RANK,1,0))) -> 0.5 | AO39: =IFERROR(INDEX(WEIGHTS!$T$16:$Z$64, MATCH($D39&" > "&$E39&" > "&$F39, WEIGHTS!$AA$16:$AA$64, 0), $AL39), 0) -> 0.3 | AP39: =IFERROR(INDEX(DEFN!$Q$13:$W$82, MATCH(AB39, DEFN!$X$13:$X$82, 0), MATCH(AK39, DEFN!$Q$10:$W$10, 0)), 0) -> 1 | AQ39: 1 | AR39: 0.15 | AS39: 0.4910664713
A40: 1 | B40: 30 | C40: =IFERROR(INDEX(DEFN!$A$13:$X$82, MATCH($A40, DEFN!$A$13:$A$82, 0), MATCH(C$10, DEFN!$A$12:$X$12, 0)), "") -> Policy - Renewable energy | D40: =IF(F40="", "", INDEX(DEFN!$A$13:$X$82, MATCH($A40, DEFN!$A$13:$A$82, 0), MATCH(D$10, DEFN!$A$12:$X$12, 0))) -> Power | E40: =IF(G40="", "", INDEX(DEFN!$A$13:$X$82, MATCH($A40, DEFN!$A$13:$A$82, 0), MATCH(E$10, DEFN!$A$12:$X$12, 0))) -> Fundamentals | F40: =IF(G40="", "", INDEX(DEFN!$A$13:$X$82, MATCH($A40, DEFN!$A$13:$A$82, 0), MATCH(F$10, DEFN!$A$12:$X$12, 0))) -> Policy - Renewable energy | G40: =IFERROR(INDEX(DEFN!$A$13:$X$82, MATCH($A40, DEFN!$A$13:$A$82, 0), MATCH(C$10, DEFN!$A$12:$X$12, 0)), "") -> Policy - Renewable energy | H40: =IF(G40="", "", INDEX(DEFN!$A$13:$X$82, MATCH($A40, DEFN!$A$13:$A$82, 0), MATCH(H$10, DEFN!$A$12:$X$12, 0))) -> No | I40: =IF(G40="", "", INDEX(DEFN!$A$13:$X$82, MATCH($A40, DEFN!$A$13:$A$82, 0), MATCH(I$10, DEFN!$A$12:$X$12, 0))) -> None | J40: =IF(G40="", "", INDEX(DEFN!$A$13:$X$82, MATCH($A40, DEFN!$A$13:$A$82, 0), MATCH(J$10, DEFN!$A$12:$X$12, 0))) -> None | K40: =IF(G40="", "", INDEX(DEFN!$A$13:$X$82, MATCH($A40, DEFN!$A$13:$A$82, 0), MATCH(K$10, DEFN!$A$12:$X$12, 0))) -> Policies | L40: =IF(G40="", "", INDEX(DEFN!B$278:B$427, MATCH($B40, DEFN!$A$278:$A$427, 0), 1)) -> Asia-Pacific | M40: =IF(G40="", "", INDEX(DEFN!C$278:C$427, MATCH($B40, DEFN!$A$278:$A$427, 0), 1)) -> Indonesia | N40: =IF(G40="", "", IFERROR(INDEX(DEFN!$E$278:$E$427, MATCH(M40, DEFN!$C$278:$C$427, 0), 1), "")) -> IDN | O40: =IF(F40="", "", INDEX(DEFN!$A$13:$X$82, MATCH($A40, DEFN!$A$13:$A$82, 0), MATCH(O$10, DEFN!$A$12:$X$12, 0))) -> Total | P40: =IF(G40="", "", INDEX(DEFN!$A$13:$X$82, MATCH($A40, DEFN!$A$13:$A$82, 0), MATCH(P$10, DEFN!$A$12:$X$12, 0))) -> User Defined | Q40: =IF(G40="", 0, INDEX(DEFN!$A$13:$X$82, MATCH($A40, DEFN!$A$13:$A$82, 0), MATCH(Q$10, DEFN!$A$12:$X$12, 0))) -> 5 | R40: =IFERROR(IF($I40="None", 1, IF($I40="All Capacity", SUMIFS(SID!Y$12:Y$28511, SID!$L$12:$L$28511, $M40, SID!$I$12:$I$28511, $K40), IF($I40="All Generation", SUMIFS(SID!Y$12:Y$28511, SID!$L$12:$L$28511, $M40, SID!$I$12:$I$28511, $K40), SUMIFS(SID!Y$12:Y$28511, SID!$L$12:$L$28511, $M40, SID!$F$12:$F$28511, $I40)))), 1) -> 1 | S40: =IF(AND(LEFT(G40, 6)="Growth", J40<>"None"), X40, IF(Y40=0, IF(O40="Average", IFERROR(AVERAGEIFS(SID!Y$12:Y$28511, SID!$F$12:$F$28511, $G40, SID!$C$12:$C$28511, $D40, SID!$L$12:$L$28511, $M40, SID!$Z$12:$Z$28511, 0), 0), IFERROR(SUMIFS(SID!Y$12:Y$28511, SID!$F$12:$F$28511, $G40, SID!$C$12:$C$28511, $D40, SID!$L$12:$L$28511, $M40, SID!$Z$12:$Z$28511, 0), 0)), Y40)) -> 74.43875746 | T40: 2.04697732 | U40: 5 | V40: 40.93954641 | W40: 2.04697732 | X40: =IF(OR(LEFT($J40, 16)="Clean energy inv", LEFT($J40, 16)="Electrified heat", LEFT($J40, 16)="Electrified vehi"), IF(OR(Z40=0, AA40=0), 0, AA40/Z40-1), IF(J40="None", 0, IFERROR(SUMIFS(SID!Y$12:Y$28511, SID!$F$12:$F$28511, J40, SID!$L$12:$L$28511, M40, SID!$Z$12:$Z$28511, 0)/SUMIFS(SID!X$12:X$28511, SID!$F$12:$F$28511, J40, SID!$L$12:$L$28511, M40, SID!$Z$12:$Z$28511, 0) - 1, 0))) -> 0 | Y40: =IF(OR(LEFT($G40, 16)="Clean energy inv", LEFT($G40, 16)="Electrified heat", LEFT($G40, 16)="Electrified vehi"), SUMIFS(INV!$E$3:$E$3003, INV!$C$3:$C$3003, $N40, INV!$A$3:$A$3003, $D40, INV!$D$3:$D$3003, ">="& int_InvStartYear, INV!$D$3:$D$3003, "<="& int_Year), 0) -> 0 | Z40: =IF(OR(LEFT($J40, 16)="Clean energy inv", LEFT($J40, 16)="Electrified heat", LEFT($J40, 16)="Electrified vehi"), SUMIFS(INV!$E$3:$E$3003, INV!$C$3:$C$3003, $N40, INV!$A$3:$A$3003, $D40, INV!$D$3:$D$3003, ">="& int_InvStartYear, INV!$D$3:$D$3003, "<="& int_Year-1), 0) -> 0 | AA40: =IF(OR(LEFT($J40, 16)="Clean energy inv", LEFT($J40, 16)="Electrified heat", LEFT($J40, 16)="Electrified vehi"), SUMIFS(INV!$E$3:$E$3003, INV!$C$3:$C$3003, $N40, INV!$A$3:$A$3003, $D40, INV!$D$3:$D$3003, ">="& int_InvStartYear, INV!$D$3:$D$3003, "<="& int_Year), 0) -> 0 | AB40: Power - Policy - Renewable energy | AC40: Power - Policy - Renewable energy > Indonesia | AD40: Off-Grid | AE40: =IF(ISNUMBER(MATCH($M40, DEFN!A$442:A$599, 0)), AE$10, "") ->  | AF40: =IF(ISNUMBER(MATCH($M40, DEFN!B$442:B$599, 0)), AF$10, "") -> Off-grid | AG40: =IF(ISNUMBER(MATCH($M40, DEFN!C$442:C$599, 0)), AG$10, "") ->  | AH40: =IF(ISNUMBER(MATCH($M40, DEFN!D$442:D$599, 0)), AH$10, "") -> Non-Flexibility | AI40: =IF(ISNUMBER(MATCH($M40, DEFN!E$442:E$599, 0)), AI$10, "") ->  | AJ40: =IF(ISNUMBER(MATCH($M40, DEFN!F$442:F$599, 0)), AJ$10, "") -> Non-Heating | AK40: Off-grid Non-Flexibility Non-Heating | AL40: =IFERROR(INDEX(WEIGHTS!$B$6:$H$6, 1, MATCH(IND!$AK40, WEIGHTS!$AD$5:$AJ$5, 0)), "") -> 5 | AM40: =IF(str_Sector_RANK="Default", IFERROR(INDEX(WEIGHTS!$B$16:$H$64, MATCH($D40, WEIGHTS!$I$16:$I$64, 0), $AL40), 0), IF(str_Sector_RANK="Custom", IFERROR(INDEX(RANKING!$P$5:$P$7, MATCH(D40, RANKING!$O$5:$O$7, 0), 1), 0), IF(D40=str_Sector_RANK,1,0))) -> 1 | AN40: =IF(str_Parameter_RANK="Default", IFERROR(INDEX(WEIGHTS!$K$16:$Q$64, MATCH($D40&" > "&$E40, WEIGHTS!$R$16:$R$64, 0), $AL40), 0), IF(str_Parameter_RANK="Custom", IFERROR(INDEX(RANKING!$R$5:$R$7, MATCH(E40, RANKING!$Q$5:$Q$7, 0), 1), 0), IF(E40=str_Parameter_RANK,1,0))) -> 0.5 | AO40: =IFERROR(INDEX(WEIGHTS!$T$16:$Z$64, MATCH($D40&" > "&$E40&" > "&$F40, WEIGHTS!$AA$16:$AA$64, 0), $AL40), 0) -> 0.3 | AP40: =IFERROR(INDEX(DEFN!$Q$13:$W$82, MATCH(AB40, DEFN!$X$13:$X$82, 0), MATCH(AK40, DEFN!$Q$10:$W$10, 0)), 0) -> 1 | AQ40: 1 | AR40: 0.15 | AS40: 0.3070465981
A41: 1 | B41: 31 | C41: =IFERROR(INDEX(DEFN!$A$13:$X$82, MATCH($A41, DEFN!$A$13:$A$82, 0), MATCH(C$10, DEFN!$A$12:$X$12, 0)), "") -> Policy - Renewable energy | D41: =IF(F41="", "", INDEX(DEFN!$A$13:$X$82, MATCH($A41, DEFN!$A$13:$A$82, 0), MATCH(D$10, DEFN!$A$12:$X$12, 0))) -> Power | E41: =IF(G41="", "", INDEX(DEFN!$A$13:$X$82, MATCH($A41, DEFN!$A$13:$A$82, 0), MATCH(E$10, DEFN!$A$12:$X$12, 0))) -> Fundamentals | F41: =IF(G41="", "", INDEX(DEFN!$A$13:$X$82, MATCH($A41, DEFN!$A$13:$A$82, 0), MATCH(F$10, DEFN!$A$12:$X$12, 0))) -> Policy - Renewable energy | G41: =IFERROR(INDEX(DEFN!$A$13:$X$82, MATCH($A41, DEFN!$A$13:$A$82, 0), MATCH(C$10, DEFN!$A$12:$X$12, 0)), "") -> Policy - Renewable energy | H41: =IF(G41="", "", INDEX(DEFN!$A$13:$X$82, MATCH($A41, DEFN!$A$13:$A$82, 0), MATCH(H$10, DEFN!$A$12:$X$12, 0))) -> No | I41: =IF(G41="", "", INDEX(DEFN!$A$13:$X$82, MATCH($A41, DEFN!$A$13:$A$82, 0), MATCH(I$10, DEFN!$A$12:$X$12, 0))) -> None | J41: =IF(G41="", "", INDEX(DEFN!$A$13:$X$82, MATCH($A41, DEFN!$A$13:$A$82, 0), MATCH(J$10, DEFN!$A$12:$X$12, 0))) -> None | K41: =IF(G41="", "", INDEX(DEFN!$A$13:$X$82, MATCH($A41, DEFN!$A$13:$A$82, 0), MATCH(K$10, DEFN!$A$12:$X$12, 0))) -> Policies | L41: =IF(G41="", "", INDEX(DEFN!B$278:B$427, MATCH($B41, DEFN!$A$278:$A$427, 0), 1)) -> Asia-Pacific | M41: =IF(G41="", "", INDEX(DEFN!C$278:C$427, MATCH($B41, DEFN!$A$278:$A$427, 0), 1)) -> Japan | N41: =IF(G41="", "", IFERROR(INDEX(DEFN!$E$278:$E$427, MATCH(M41, DEFN!$C$278:$C$427, 0), 1), "")) -> JPN | O41: =IF(F41="", "", INDEX(DEFN!$A$13:$X$82, MATCH($A41, DEFN!$A$13:$A$82, 0), MATCH(O$10, DEFN!$A$12:$X$12, 0))) -> Total | P41: =IF(G41="", "", INDEX(DEFN!$A$13:$X$82, MATCH($A41, DEFN!$A$13:$A$82, 0), MATCH(P$10, DEFN!$A$12:$X$12, 0))) -> User Defined | Q41: =IF(G41="", 0, INDEX(DEFN!$A$13:$X$82, MATCH($A41, DEFN!$A$13:$A$82, 0), MATCH(Q$10, DEFN!$A$12:$X$12, 0))) -> 5 | R41: =IFERROR(IF($I41="None", 1, IF($I41="All Capacity", SUMIFS(SID!Y$12:Y$28511, SID!$L$12:$L$28511, $M41, SID!$I$12:$I$28511, $K41), IF($I41="All Generation", SUMIFS(SID!Y$12:Y$28511, SID!$L$12:$L$28511, $M41, SID!$I$12:$I$28511, $K41), SUMIFS(SID!Y$12:Y$28511, SID!$L$12:$L$28511, $M41, SID!$F$12:$F$28511, $I41)))), 1) -> 1 | S41: =IF(AND(LEFT(G41, 6)="Growth", J41<>"None"), X41, IF(Y41=0, IF(O41="Average", IFERROR(AVERAGEIFS(SID!Y$12:Y$28511, SID!$F$12:$F$28511, $G41, SID!$C$12:$C$28511, $D41, SID!$L$12:$L$28511, $M41, SID!$Z$12:$Z$28511, 0), 0), IFERROR(SUMIFS(SID!Y$12:Y$28511, SID!$F$12:$F$28511, $G41, SID!$C$12:$C$28511, $D41, SID!$L$12:$L$28511, $M41, SID!$Z$12:$Z$28511, 0), 0)), Y41)) -> 70.97615714 | T41: 1.518229167 | U41: 5 | V41: 30.36458333 | W41: 1.518229167 | X41: =IF(OR(LEFT($J41, 16)="Clean energy inv", LEFT($J41, 16)="Electrified heat", LEFT($J41, 16)="Electrified vehi"), IF(OR(Z41=0, AA41=0), 0, AA41/Z41-1), IF(J41="None", 0, IFERROR(SUMIFS(SID!Y$12:Y$28511, SID!$F$12:$F$28511, J41, SID!$L$12:$L$28511, M41, SID!$Z$12:$Z$28511, 0)/SUMIFS(SID!X$12:X$28511, SID!$F$12:$F$28511, J41, SID!$L$12:$L$28511, M41, SID!$Z$12:$Z$28511, 0) - 1, 0))) -> 0 | Y41: =IF(OR(LEFT($G41, 16)="Clean energy inv", LEFT($G41, 16)="Electrified heat", LEFT($G41, 16)="Electrified vehi"), SUMIFS(INV!$E$3:$E$3003, INV!$C$3:$C$3003, $N41, INV!$A$3:$A$3003, $D41, INV!$D$3:$D$3003, ">="& int_InvStartYear, INV!$D$3:$D$3003, "<="& int_Year), 0) -> 0 | Z41: =IF(OR(LEFT($J41, 16)="Clean energy inv", LEFT($J41, 16)="Electrified heat", LEFT($J41, 16)="Electrified vehi"), SUMIFS(INV!$E$3:$E$3003, INV!$C$3:$C$3003, $N41, INV!$A$3:$A$3003, $D41, INV!$D$3:$D$3003, ">="& int_InvStartYear, INV!$D$3:$D$3003, "<="& int_Year-1), 0) -> 0 | AA41: =IF(OR(LEFT($J41, 16)="Clean energy inv", LEFT($J41, 16)="Electrified heat", LEFT($J41, 16)="Electrified vehi"), SUMIFS(INV!$E$3:$E$3003, INV!$C$3:$C$3003, $N41, INV!$A$3:$A$3003, $D41, INV!$D$3:$D$3003, ">="& int_InvStartYear, INV!$D$3:$D$3003, "<="& int_Year), 0) -> 0 | AB41: Power - Policy - Renewable energy | AC41: Power - Policy - Renewable energy > Japan | AD41: On-Grid | AE41: =IF(ISNUMBER(MATCH($M41, DEFN!A$442:A$599, 0)), AE$10, "") -> On-grid | AF41: =IF(ISNUMBER(MATCH($M41, DEFN!B$442:B$599, 0)), AF$10, "") ->  | AG41: =IF(ISNUMBER(MATCH($M41, DEFN!C$442:C$599, 0)), AG$10, "") ->  | AH41: =IF(ISNUMBER(MATCH($M41, DEFN!D$442:D$599, 0)), AH$10, "") -> Non-Flexibility | AI41: =IF(ISNUMBER(MATCH($M41, DEFN!E$442:E$599, 0)), AI$10, "") -> Heating | AJ41: =IF(ISNUMBER(MATCH($M41, DEFN!F$442:F$599, 0)), AJ$10, "") ->  | AK41: On-grid Non-Flexibility Heating | AL41: =IFERROR(INDEX(WEIGHTS!$B$6:$H$6, 1, MATCH(IND!$AK41, WEIGHTS!$AD$5:$AJ$5, 0)), "") -> 3 | AM41: =IF(str_Sector_RANK="Default", IFERROR(INDEX(WEIGHTS!$B$16:$H$64, MATCH($D41, WEIGHTS!$I$16:$I$64, 0), $AL41), 0), IF(str_Sector_RANK="Custom", IFERROR(INDEX(RANKING!$P$5:$P$7, MATCH(D41, RANKING!$O$5:$O$7, 0), 1), 0), IF(D41=str_Sector_RANK,1,0))) -> 1 | AN41: =IF(str_Parameter_RANK="Default", IFERROR(INDEX(WEIGHTS!$K$16:$Q$64, MATCH($D41&" > "&$E41, WEIGHTS!$R$16:$R$64, 0), $AL41), 0), IF(str_Parameter_RANK="Custom", IFERROR(INDEX(RANKING!$R$5:$R$7, MATCH(E41, RANKING!$Q$5:$Q$7, 0), 1), 0), IF(E41=str_Parameter_RANK,1,0))) -> 0.5 | AO41: =IFERROR(INDEX(WEIGHTS!$T$16:$Z$64, MATCH($D41&" > "&$E41&" > "&$F41, WEIGHTS!$AA$16:$AA$64, 0), $AL41), 0) -> 0.4 | AP41: =IFERROR(INDEX(DEFN!$Q$13:$W$82, MATCH(AB41, DEFN!$X$13:$X$82, 0), MATCH(AK41, DEFN!$Q$10:$W$10, 0)), 0) -> 1 | AQ41: 1 | AR41: 0.2 | AS41: 0.3036458333
A42: 1 | B42: 32 | C42: =IFERROR(INDEX(DEFN!$A$13:$X$82, MATCH($A42, DEFN!$A$13:$A$82, 0), MATCH(C$10, DEFN!$A$12:$X$12, 0)), "") -> Policy - Renewable energy | D42: =IF(F42="", "", INDEX(DEFN!$A$13:$X$82, MATCH($A42, DEFN!$A$13:$A$82, 0), MATCH(D$10, DEFN!$A$12:$X$12, 0))) -> Power | E42: =IF(G42="", "", INDEX(DEFN!$A$13:$X$82, MATCH($A42, DEFN!$A$13:$A$82, 0), MATCH(E$10, DEFN!$A$12:$X$12, 0))) -> Fundamentals | F42: =IF(G42="", "", INDEX(DEFN!$A$13:$X$82, MATCH($A42, DEFN!$A$13:$A$82, 0), MATCH(F$10, DEFN!$A$12:$X$12, 0))) -> Policy - Renewable energy | G42: =IFERROR(INDEX(DEFN!$A$13:$X$82, MATCH($A42, DEFN!$A$13:$A$82, 0), MATCH(C$10, DEFN!$A$12:$X$12, 0)), "") -> Policy - Renewable energy | H42: =IF(G42="", "", INDEX(DEFN!$A$13:$X$82, MATCH($A42, DEFN!$A$13:$A$82, 0), MATCH(H$10, DEFN!$A$12:$X$12, 0))) -> No | I42: =IF(G42="", "", INDEX(DEFN!$A$13:$X$82, MATCH($A42, DEFN!$A$13:$A$82, 0), MATCH(I$10, DEFN!$A$12:$X$12, 0))) -> None | J42: =IF(G42="", "", INDEX(DEFN!$A$13:$X$82, MATCH($A42, DEFN!$A$13:$A$82, 0), MATCH(J$10, DEFN!$A$12:$X$12, 0))) -> None | K42: =IF(G42="", "", INDEX(DEFN!$A$13:$X$82, MATCH($A42, DEFN!$A$13:$A$82, 0), MATCH(K$10, DEFN!$A$12:$X$12, 0))) -> Policies | L42: =IF(G42="", "", INDEX(DEFN!B$278:B$427, MATCH($B42, DEFN!$A$278:$A$427, 0), 1)) -> Asia-Pacific | M42: =IF(G42="", "", INDEX(DEFN!C$278:C$427, MATCH($B42, DEFN!$A$278:$A$427, 0), 1)) -> Kazakhstan | N42: =IF(G42="", "", IFERROR(INDEX(DEFN!$E$278:$E$427, MATCH(M42, DEFN!$C$278:$C$427, 0), 1), "")) -> KAZ | O42: =IF(F42="", "", INDEX(DEFN!$A$13:$X$82, MATCH($A42, DEFN!$A$13:$A$82, 0), MATCH(O$10, DEFN!$A$12:$X$12, 0))) -> Total | P42: =IF(G42="", "", INDEX(DEFN!$A$13:$X$82, MATCH($A42, DEFN!$A$13:$A$82, 0), MATCH(P$10, DEFN!$A$12:$X$12, 0))) -> User Defined | Q42: =IF(G42="", 0, INDEX(DEFN!$A$13:$X$82, MATCH($A42, DEFN!$A$13:$A$82, 0), MATCH(Q$10, DEFN!$A$12:$X$12, 0))) -> 5 | R42: =IFERROR(IF($I42="None", 1, IF($I42="All Capacity", SUMIFS(SID!Y$12:Y$28511, SID!$L$12:$L$28511, $M42, SID!$I$12:$I$28511, $K42), IF($I42="All Generation", SUMIFS(SID!Y$12:Y$28511, SID!$L$12:$L$28511, $M42, SID!$I$12:$I$28511, $K42), SUMIFS(SID!Y$12:Y$28511, SID!$L$12:$L$28511, $M42, SID!$F$12:$F$28511, $I42)))), 1) -> 1 | S42: =IF(AND(LEFT(G42, 6)="Growth", J42<>"None"), X42, IF(Y42=0, IF(O42="Average", IFERROR(AVERAGEIFS(SID!Y$12:Y$28511, SID!$F$12:$F$28511, $G42, SID!$C$12:$C$28511, $D42, SID!$L$12:$L$28511, $M42, SID!$Z$12:$Z$28511, 0), 0), IFERROR(SUMIFS(SID!Y$12:Y$28511, SID!$F$12:$F$28511, $G42, SID!$C$12:$C$28511, $D42, SID!$L$12:$L$28511, $M42, SID!$Z$12:$Z$28511, 0), 0)), Y42)) -> 83.59635341 | T42: 2.368610828 | U42: 5 | V42: 47.37221657 | W42: 2.368610828 | X42: =IF(OR(LEFT($J42, 16)="Clean energy inv", LEFT($J42, 16)="Electrified heat", LEFT($J42, 16)="Electrified vehi"), IF(OR(Z42=0, AA42=0), 0, AA42/Z42-1), IF(J42="None", 0, IFERROR(SUMIFS(SID!Y$12:Y$28511, SID!$F$12:$F$28511, J42, SID!$L$12:$L$28511, M42, SID!$Z$12:$Z$28511, 0)/SUMIFS(SID!X$12:X$28511, SID!$F$12:$F$28511, J42, SID!$L$12:$L$28511, M42, SID!$Z$12:$Z$28511, 0) - 1, 0))) -> 0 | Y42: =IF(OR(LEFT($G42, 16)="Clean energy inv", LEFT($G42, 16)="Electrified heat", LEFT($G42, 16)="Electrified vehi"), SUMIFS(INV!$E$3:$E$3003, INV!$C$3:$C$3003, $N42, INV!$A$3:$A$3003, $D42, INV!$D$3:$D$3003, ">="& int_InvStartYear, INV!$D$3:$D$3003, "<="& int_Year), 0) -> 0 | Z42: =IF(OR(LEFT($J42, 16)="Clean energy inv", LEFT($J42, 16)="Electrified heat", LEFT($J42, 16)="Electrified vehi"), SUMIFS(INV!$E$3:$E$3003, INV!$C$3:$C$3003, $N42, INV!$A$3:$A$3003, $D42, INV!$D$3:$D$3003, ">="& int_InvStartYear, INV!$D$3:$D$3003, "<="& int_Year-1), 0) -> 0 | AA42: =IF(OR(LEFT($J42, 16)="Clean energy inv", LEFT($J42, 16)="Electrified heat", LEFT($J42, 16)="Electrified vehi"), SUMIFS(INV!$E$3:$E$3003, INV!$C$3:$C$3003, $N42, INV!$A$3:$A$3003, $D42, INV!$D$3:$D$3003, ">="& int_InvStartYear, INV!$D$3:$D$3003, "<="& int_Year), 0) -> 0 | AB42: Power - Policy - Renewable energy | AC42: Power - Policy - Renewable energy > Kazakhstan | AD42: On-Grid | AE42: =IF(ISNUMBER(MATCH($M42, DEFN!A$442:A$599, 0)), AE$10, "") -> On-grid | AF42: =IF(ISNUMBER(MATCH($M42, DEFN!B$442:B$599, 0)), AF$10, "") ->  | AG42: =IF(ISNUMBER(MATCH($M42, DEFN!C$442:C$599, 0)), AG$10, "") ->  | AH42: =IF(ISNUMBER(MATCH($M42, DEFN!D$442:D$599, 0)), AH$10, "") -> Non-Flexibility | AI42: =IF(ISNUMBER(MATCH($M42, DEFN!E$442:E$599, 0)), AI$10, "") -> Heating | AJ42: =IF(ISNUMBER(MATCH($M42, DEFN!F$442:F$599, 0)), AJ$10, "") ->  | AK42: On-grid Non-Flexibility Heating | AL42: =IFERROR(INDEX(WEIGHTS!$B$6:$H$6, 1, MATCH(IND!$AK42, WEIGHTS!$AD$5:$AJ$5, 0)), "") -> 3 | AM42: =IF(str_Sector_RANK="Default", IFERROR(INDEX(WEIGHTS!$B$16:$H$64, MATCH($D42, WEIGHTS!$I$16:$I$64, 0), $AL42), 0), IF(str_Sector_RANK="Custom", IFERROR(INDEX(RANKING!$P$5:$P$7, MATCH(D42, RANKING!$O$5:$O$7, 0), 1), 0), IF(D42=str_Sector_RANK,1,0))) -> 1 | AN42: =IF(str_Parameter_RANK="Default", IFERROR(INDEX(WEIGHTS!$K$16:$Q$64, MATCH($D42&" > "&$E42, WEIGHTS!$R$16:$R$64, 0), $AL42), 0), IF(str_Parameter_RANK="Custom", IFERROR(INDEX(RANKING!$R$5:$R$7, MATCH(E42, RANKING!$Q$5:$Q$7, 0), 1), 0), IF(E42=str_Parameter_RANK,1,0))) -> 0.5 | AO42: =IFERROR(INDEX(WEIGHTS!$T$16:$Z$64, MATCH($D42&" > "&$E42&" > "&$F42, WEIGHTS!$AA$16:$AA$64, 0), $AL42), 0) -> 0.4 | AP42: =IFERROR(INDEX(DEFN!$Q$13:$W$82, MATCH(AB42, DEFN!$X$13:$X$82, 0), MATCH(AK42, DEFN!$Q$10:$W$10, 0)), 0) -> 1 | AQ42: 1 | AR42: 0.2 | AS42: 0.4737221657
